Workbook

Sheet 表紙

Sheet log (hidden)
B2: 2024-06-14 | D2: お客様情報１ | E2: Q28 | F2: お客様２の収入の中継セルへの修正
D3: 住宅ローン | E3: R82、L83:L98他 | F3: 金利変更欄に金利変更なしを追加し、金利変更なしの式を追加
D4: auじぶん銀行 | E4: AL11 | F4: キャンペーンの固定期間終了後の適用金利への反映
B6: 2024-06-24 | D6: CF00～21 | E6: 35行 | F6: 教育費の割戻の計算方法を変更
E7: 40行 | F7: マンション管理費等の計算方法を変更
E8: 44行 | F8: 年金積立方法の変更（CFで差し引いて、資産でプラスする）
E9: 56行 | F9: 35行を追加したので、削除
E10: B79 | F10: 運用対象を変更（投資積立金、ideco等）
E11: 79行 | F11: 計算方法を変更：安定資産があれば、取り崩しを行う方式に変更
D12: 住宅ローン | E12: Q13:U23 | F12: 商品１を変動金利の入力できるように入力欄を追加
D13: 1-0～3-3 | F13: 金利タイプ、金利、固定期間等の表示欄を、変動金利以外に対応できるように修正
D14: 金利判定1～3 | F14: 上記を受けて、判定シートを追加
B16: 2024-06-25 | D16: table | E16: O16 ～ | F16: 火災保険をお客様情報2から転記する方式に変更
B18: 2024-06-26 | D18: お客様情報1 | E18: J20:O34 | F18: 収入の入力方式を、比率から実数に変更
D19: CF00～21 | E19: 20、21行 | F19: 賃金上昇率を追加
E20: 45、46行 | F20: 収入の式を変更
B22: 2024-07-06 | D22: CF00～21 | E22: 44,45行 | F22: お客様情報1の転記ミス
D23: CF20、21 | E23: 47,48行 | F23: 退職後の支出の転記ミス
D24: 北洋 | F24: シート追加
D25: 団信 | F25: 北洋銀行の追加
D26: ローン選択 | F26: 北洋銀行の追加
D27: 金利手数料一覧 | F27: 北洋銀行の追加
B29: 2024-07-11 | D29: 住宅ローン | E29: T14:U23 | F29: 保護解除
D30: 1-0,2-0,3-0 | E30: B7:B9 | F30: 金利タイプの指定箇所を修正
D31: 金利判定 | F31: 変動金利のままの場合を追加

Sheet お客様情報1
A13: ◎ | B13: 物価上昇率 *
A16: ● 収入について
Q17: =IF(住宅ローン!K42="",D18,住宅ローン!K42) -> 0
A18: お客様１ | C18: 年齢 * | E18: 才 | Q18: =IF(住宅ローン!K42="",D20,住宅ローン!K42) -> 0
Q19: =IF(住宅ローン!M42="",D28,住宅ローン!M42) -> 0
C20: 前年年収 * | E20: 万円 | G20: 賃金上昇率 | P20: =IF(OR(J20>0,J20<0),J20,D$13/2) -> 0
C22: 収入変化 | E22: 才 | G22: 収入変化後の年収 | K22: 万円 | M22: 月換算 | N22: =ROUNDDOWN(J22/12,1) -> 0 | O22: 万円
C24: 定年予想 * | E24: 才 | G24: 退職後の年収 | K24: 万円 | M24: 月換算 | N24: =ROUNDDOWN(J24/12,1) -> 0 | O24: 万円
C26: 退職金予定額* | E26: 万円
A28: お客様２ | C28: 年齢 | E28: 才 | Q28: =D30 -> 0
C30: 前年年収 | E30: 万円 | G30: 賃金上昇率 | P30: =IF(OR(J30>0,J30<0),J30,D$13/2) -> 0
C32: 収入変化 | E32: 才 | G32: 収入変化後の年収 | K32: 万円 | M32: 月換算 | N32: =ROUNDDOWN(J32/12,1) -> 0 | O32: 万円
C34: 定年予想 | E34: 才 | G34: 退職後の年収 | K34: 万円 | M34: 月換算 | N34: =ROUNDDOWN(J34/12,1) -> 0 | O34: 万円
C36: 退職金予定額 | E36: 万円
A41: ●現在の資産・負債の状況
B43: 現在の資産残高 * | F43: 万円 | G43: 現在の運用残高 * | K43: 万円
B45: 現在の借入金残高（住宅ローン以外） | E45: =COUNT(お客様情報2!D41:D43) -> 0 | F45: 件 | G45: =SUM(お客様情報2!D41:D43) -> 0 | H45: 万円
B47: その他の資金 | E47: =COUNT(お客様情報2!D22:D27) -> 0 | F47: 件 | G47: =SUM(お客様情報2!D22:D27) -> 0 | H47: 万円
D49: 余剰資金 | E49: =お客様情報2!D5 -> 0 | F49: 円 | G49: 内 運用積立額 | I49: 月 | J49: =SUM(お客様情報2!D9:D11) -> 0 | K49: 円
D51: FCF | E51: =お客様情報2!D16 -> 0 | F51: 円 | G51: 運用利回り * | I51: 年
A62: ●教育費について
C64: 年齢 | E64: 幼稚園 | F64: 小学校 | G64: 中学校 | H64: 高校 | I64: 大学 | J64: 大学通学
B65: 第1子 | D65: 才
B67: 第2子 | D67: 才
B69: 第3子 | D69: 才
B71: 第4子 | D71: 才
B73: 第5子 | D73: 才
B76: 現在の教育費毎月積立額 | E76: =お客様情報2!D8 -> 0 | F76: 円 | G76: 現在の１人当たり教育費負担分 | J76: =COUNT(C65,C67,C69,C71,C73)*30000 -> 0 | K76: 円
G78: これまでの教育費積立額 | J78: =IFERROR(E76/COUNT(C65,C67,C69,C71,C73)*(IF(C65<0,0,C65)+IF(C67<0,0,C67)+IF(C69<0,0,C69)+IF(C71<0,0,C71)+IF(C73<0,0,C71))*12/10000,0) -> 0 | K78: 万円
C80: ※塾代等含んだ、1年あたりの平均必要額
D81: 幼稚園 | E81: 小学校 | F81: 中学校 | G81: 高校
C82: 公立 | D82: 22 | E82: 30 | F82: 45 | G82: 56 | R82: 22 | S82: 30 | T82: 45 | U82: 56
C83: 私立 | D83: 49 | E83: 142 | F83: 130 | G83: 114 | R83: 49 | S83: 142 | T83: 130 | U83: 114
D85: 大学 | E85: 下宿代 | G85: 医系大学 | R85: 大学 | S85: 下宿代 | U85: 医系大学
C86: 国公立 | D86: 92 | E86: 120 | F86: 国立医学部 | G86: 350 | R86: 92 | S86: 120 | T86: 国立医学部 | U86: 350
C87: 私立文系 | D87: 137 | E87: 120 | F87: 私立医学部 | G87: 500 | R87: 137 | S87: 120 | T87: 私立医学部 | U87: 500
C88: 私立理系 | D88: 182 | E88: 120 | F88: 私立歯学部 | G88: 410 | R88: 182 | S88: 120 | T88: 私立歯学部 | U88: 410
A91: ●住居費について
C93: 建物区分 *
C95: 住宅購入時期 * | F95: 年 | H95: 月
C97: 固定資産税 | D97: 年 | F97: 万円
C99: 不動産売買契約額 | F99: =IF(C99="","","万円") -> 万円 | G99: =IF(E93="マンション","マンションン管理費","") ->  | I99: =IF(G99="","","月") ->  | K99: =IF(G99="","","万円") -> 
C101: =IF(E93="戸建て","工事請負契約額等","") ->  | F101: =IF(C101="","","万円") ->  | G101: =IF(E93="マンション","マンション修繕積立金","") ->  | I101: =IF(G101="","","月") ->  | K101: =IF(G101="","","万円") -> 
C103: 修繕費用の合計 | E103: =IF(E93="マンション",329,IF(E93="戸建て",930,"")) ->  | F103: 万円
A108: ●老後資金について
B110: 退職時の目標純資産 * | F110: 万円
C112: 生活費削減 * | E112: 才 | G112: 退職後の生活費 | K112: 万円 | M112: 月換算 | N112: =ROUNDDOWN(J112/12,1) -> 0 | O112: 万円
I113: =D20+D30-E49*12/10000 -> 0 | J113: =(J112/I113)-1 -> 
G114: 退職後の年収（参考） | J114: =J24+J34 -> 0 | K114: 万円 | M114: 月換算 | N114: =ROUNDDOWN(J114/12,1) -> 0 | O114: 万円
A116: ●その他について
B118: 個別 | F118: 年に | H118: 万円を支払予定
F120: 年に | H120: 万円を支払予定
B122: 定期購入 | F122: 年毎に | H122: 万円を支払い予定 | K122: 才で終了
F124: 年毎に | H124: 万円を支払い予定 | K124: 才で終了

Sheet お客様情報2 (hidden)
B1: 余剰資金 | K1: 残高
C2: 項目 | D2: 月額 | K2: 昨年度 | L2: 今年度
C3: 月の収入 | D3: =(お客様情報1!Q18+お客様情報1!D30)/12*10000 -> 0 | F3: 1年間の貯蓄額増加額 | J3: 貯金 | M3: =L3-K3 -> 0
C4: 月の支出 | D4: =D3-D5 -> 0 | F4: 1年間の資産運用投資額 | J4: 投資 | M4: =L4-K4 -> 0
C5: 収支（余剰金） | F5: 月平均の余剰資金額 | H5: =INT(SUM(H3:H4)/12) -> 0
E6: 支出不算入時にチェック
C7: 固定資産税等 | F7: FALSE | G7: =IF(F7=TRUE,D7,0) -> 0
C8: 教育費積立 | F8: FALSE | G8: =IF(F8=TRUE,D8,0) -> 0
C9: 投資積立金 | F9: FALSE | G9: 0
C10: 年金保険 | F10: FALSE | G10: 0
C11: idecoまたはNISA | F11: FALSE | G11: 0
C12: 火災保険 | F12: FALSE | G12: 0
C13: 修繕積立金 | F13: FALSE | G13: 0
C14: 教育費積立（増額分） | F14: FALSE | G14: 0
C15: その他剰余金 | D15: =D5-SUM(D9:D14) -> 0
C16: FCF （ﾌﾘｰｷｬｯｼｭﾌﾛｰ） | D16: =D9+D10+D11+D15-SUM(G7:G14) -> 0 | E16: 対月収比 | F16: =IFERROR(D16/D3,0) -> 0
B19: 資産
C21: 項目 | D21: 金額 | F21: 入金予定時期
C22: 年金保険 | E22: 万円 | G22: 才
C23: 年金保険２ | E23: 万円 | G23: 才
C24: 債券 | E24: 万円 | G24: 才
C25: 投資信託 | E25: 万円 | G25: 才
C26: 不動産（換金予定あり） | E26: 万円 | G26: 才
C27: その他 | E27: 万円 | G27: 才
B38: ローン
C40: 項目 | D40: 毎月返済額 | F40: 完済予定時期
E41: 万円 | G41: 才
E42: 万円 | G42: 才
E43: 万円 | G43: 才

Sheet 個人情報_印刷用 (hidden)
A1: ●上昇率の想定 | C1: 物価 | E1: =お客様情報1!D13 -> 0
C2: 住宅ローン金利 | E2: =住宅ローン!E10 -> 0 | F2: 年後に | H2: =住宅ローン!J10 -> 0 | I2: =住宅ローン!K10 -> 0 | J2: =住宅ローン!L10 -> 0 | K2: 上昇する。
A4: ●収入の状況 | E4: 年齢 | G4: 年収 | K4: 賃金変化率
B6: お客様１ | D6: 現在 | E6: =お客様情報1!Q17 -> 0 | F6: 才 | G6: =お客様情報1!Q18 -> 0 | H6: 万円 | J6: 年 | K6: =お客様情報1!J20 -> 0
D7: 収入の変化 | E7: =IF(お客様情報1!D22="","",お客様情報1!D22) ->  | F7: 才 | G7: =IF(E7="","",E7*(1+K7)) ->  | H7: 万円 | J7: 変化率 | K7: =IF(E7="","",お客様情報1!J22) -> 
D8: 定年予想 | E8: =お客様情報1!D24 -> 0 | F8: 才 | G8: =お客様情報1!M24 -> 月換算 | H8: 万円 | J8: 変化率 | K8: =お客様情報1!J24 -> 0
D9: 退職金予定額 | E9: =お客様情報1!D26 -> 0 | F9: 万円
B11: お客様２ | D11: 現在 | E11: =お客様情報1!D28 -> 0 | F11: 才 | G11: =IF(E11="","",お客様情報1!Q19) -> 0 | H11: 万円 | J11: 年 | K11: =お客様情報1!J30 -> 0
D12: 収入の変化 | E12: =IF(お客様情報1!D32="","",お客様情報1!D32) ->  | F12: 才 | G12: =IF(E12="","",E12*(1+K12)) ->  | H12: 万円 | J12: 変化率 | K12: =IF(E12="","",お客様情報1!J32) -> 
D13: 定年予想 | E13: =IF(お客様情報1!D34="","",お客様情報1!D34) ->  | F13: 才 | G13: =お客様情報1!M34 -> 月換算 | H13: 万円 | J13: 変化率 | K13: =IF(お客様情報1!J34="","",お客様情報1!J34) -> 
D14: 退職金予定額 | E14: =お客様情報1!D36 -> 0 | F14: 万円
A16: ●現在と未来の状況 | C16: 現在の資産残高 | F16: =お客様情報1!E43 -> 0 | G16: 万円 | H16: 現在の運用残高 | K16: =お客様情報1!J43 -> 0 | L16: 万円
C17: 現在の借入金残高（住宅ローン以外） | F17: =IF(お客様情報1!E45=0,"",お客様情報1!E45) ->  | G17: 件 | H17: =IF(F17="","",お客様情報1!G45) ->  | I17: 万円
C18: その他の資金 | F18: =お客様情報1!E47 -> 0 | G18: 件 | H18: =IF(F18=0,"",お客様情報1!G47) ->  | I18: 万円
C19: 余剰資金 | D19: 毎月 | E19: =お客様情報1!E49 -> 0 | F19: 円 | G19: 内 運用積立額 | I19: 毎月 | J19: =IF(お客様情報1!J49=0,"",お客様情報1!J49) ->  | K19: 円
C20: 修繕積立金 | D20: 毎月 | E20: =お客様情報2!D13 -> 0 | F20: 円 | G20: 固定資産税 | I20: 毎月 | J20: =お客様情報2!D7 -> 0 | K20: 円
C21: 火災保険料 | D21: 毎月 | E21: =お客様情報2!D12 -> 0 | F21: 円 | G21: 教育費増額分 | I21: 毎月 | J21: =お客様情報2!D14 -> 0 | K21: 円
C22: FCF | D22: 毎月 | E22: =お客様情報1!E51 -> 0 | F22: 円 | G22: 運用利回り | I22: 年 | J22: =お客様情報1!J51 -> 0
A24: ●教育費について | D24: 年齢 | F24: 幼稚園 | G24: 小学校 | H24: 中学校 | I24: 高校 | J24: 大学 | K24: 大学通学
C25: 第1子 | D25: =IF(お客様情報1!C65="","",お客様情報1!C65) ->  | E25: 才 | F25: =IF(お客様情報1!E65="","",お客様情報1!E65) ->  | G25: =IF(お客様情報1!F65="","",お客様情報1!F65) ->  | H25: =IF(お客様情報1!G65="","",お客様情報1!G65) ->  | I25: =IF(お客様情報1!H65="","",お客様情報1!H65) ->  | J25: =IF(お客様情報1!I65="","",お客様情報1!I65) ->  | K25: =IF(お客様情報1!J65="","",お客様情報1!J65) -> 
C26: 第2子 | D26: =IF(お客様情報1!C67="","",お客様情報1!C66) ->  | E26: 才 | F26: =IF(お客様情報1!E67="","",お客様情報1!E66) ->  | G26: =IF(お客様情報1!F67="","",お客様情報1!F66) ->  | H26: =IF(お客様情報1!G67="","",お客様情報1!G66) ->  | I26: =IF(お客様情報1!H67="","",お客様情報1!H66) ->  | J26: =IF(お客様情報1!I67="","",お客様情報1!I66) ->  | K26: =IF(お客様情報1!J67="","",お客様情報1!J66) -> 
C27: 第3子 | D27: =IF(お客様情報1!C69="","",お客様情報1!C67) ->  | E27: 才 | F27: =IF(お客様情報1!E69="","",お客様情報1!E67) ->  | G27: =IF(お客様情報1!F69="","",お客様情報1!F67) ->  | H27: =IF(お客様情報1!G69="","",お客様情報1!G67) ->  | I27: =IF(お客様情報1!H69="","",お客様情報1!H67) ->  | J27: =IF(お客様情報1!I69="","",お客様情報1!I67) ->  | K27: =IF(お客様情報1!J69="","",お客様情報1!J67) -> 
C28: 第4子 | D28: =IF(お客様情報1!C71="","",お客様情報1!C68) ->  | E28: 才 | F28: =IF(お客様情報1!E71="","",お客様情報1!E68) ->  | G28: =IF(お客様情報1!F71="","",お客様情報1!F68) ->  | H28: =IF(お客様情報1!G71="","",お客様情報1!G68) ->  | I28: =IF(お客様情報1!H71="","",お客様情報1!H68) ->  | J28: =IF(お客様情報1!I71="","",お客様情報1!I68) ->  | K28: =IF(お客様情報1!J71="","",お客様情報1!J68) -> 
C29: 第5子 | D29: =IF(お客様情報1!C73="","",お客様情報1!C69) ->  | E29: 才 | F29: =IF(お客様情報1!E73="","",お客様情報1!E69) ->  | G29: =IF(お客様情報1!F73="","",お客様情報1!F69) ->  | H29: =IF(お客様情報1!G73="","",お客様情報1!G69) ->  | I29: =IF(お客様情報1!H73="","",お客様情報1!H69) ->  | J29: =IF(お客様情報1!I73="","",お客様情報1!I69) ->  | K29: =IF(お客様情報1!J73="","",お客様情報1!J69) -> 
C30: 現在の教育費毎月積立額 | E30: =お客様情報1!E76 -> 0 | F30: 円 | G30: 生活費の教育費相当分 | J30: =COUNT(D25,D26,D27,D28,D29)*30000 -> 0 | K30: 円
C31: これまでの教育費積立額 | E31: =お客様情報1!J78 -> 0 | F31: 万円
D33: ※塾代等含んだ、1年あたりの平均必要額
E34: 幼稚園 | F34: 小学校 | G34: 中学校 | H34: 高校
D35: 公立 | E35: 22 | F35: 30 | G35: 45 | H35: 56
D36: 私立 | E36: 49 | F36: 142 | G36: 130 | H36: 114
E38: 大学 | F38: 下宿代
D39: 国公立 | E39: 92 | F39: 120
D40: 私立文系 | E40: 137 | F40: 120
D41: 私立理系 | E41: 182 | F41: 120
A43: ●住居費について | D43: 建物区分 * | F43: =お客様情報1!E93 -> 0
D44: 住宅購入時期 * | F44: =お客様情報1!E95 -> 0 | G44: 年 | H44: =お客様情報1!G95 -> 0 | I44: 月
D45: 固定資産税 | E45: 年 | F45: =お客様情報1!E97 -> 0 | G45: 万円
D46: =お客様情報1!C99 -> 不動産売買契約額 | G46: 万円 | H46: =IF(お客様情報1!C101="","",お客様情報1!C101) ->  | J46: =IF(H46="","",お客様情報1!E101) ->  | K46: =IF(J46="","",万円) -> 
D47: =IF(F43="戸建て","工事請負契約","マンション管理費") -> マンション管理費 | E47: =IF(F43="戸建て","","毎月") -> 毎月 | F47: =IF(F43="戸建て",お客様情報1!E101,お客様情報1!J99) -> 0 | G47: =IF(D47="","","万円") -> 万円
D48: =IF(F43="戸建て","","マンション修繕積立金") -> マンション修繕積立金 | E48: =IF(F43="戸建て","","毎月") -> 毎月 | F48: =IF(F43="戸建て","",お客様情報1!J101) -> 0 | G48: =IF(D48="","","万円") -> 万円
D49: 修繕費用の合計 | F49: =IF(F43="マンション",329,IF(F43="戸建て",930,0)) -> 0 | G49: 万円
A51: ●老後資金について | C51: 退職時の目標純資産 * | E51: =お客様情報1!D110 -> 0 | G51: 万円
D52: 生活費削減 * | E52: =お客様情報1!D112 -> 0 | F52: 才 | G52: =お客様情報1!M112 -> 月換算 | H52: 万円 | J52: 年 | K52: =お客様情報1!J112 -> 0
A55: ●その他の支払い | C55: 個別 | D55: =IF(お客様情報1!C118="","",お客様情報1!C118) ->  | E55: =IF(お客様情報1!E118="","",お客様情報1!E118) ->  | F55: 年に | H55: =IF(お客様情報1!G118="","",お客様情報1!G118) ->  | I55: 万円を支払予定
D56: =IF(お客様情報1!C120="","",お客様情報1!C120) ->  | E56: =IF(お客様情報1!E120="","",お客様情報1!E120) ->  | F56: 年に | H56: =IF(お客様情報1!G120="","",お客様情報1!G120) ->  | I56: 万円を支払予定
C57: 定期購入 | D57: =IF(お客様情報1!C122="","",お客様情報1!C122) ->  | E57: =IF(お客様情報1!E122="","",お客様情報1!E122) ->  | F57: 年毎に | H57: =IF(お客様情報1!G122="","",お客様情報1!G122) ->  | I57: 万円を支払い予定 | K57: =IF(お客様情報1!J122="","",お客様情報1!J122) ->  | L57: 才で終了
D58: =IF(お客様情報1!C124="","",お客様情報1!C124) ->  | E58: =IF(お客様情報1!E124="","",お客様情報1!E124) ->  | F58: 年毎に | H58: =IF(お客様情報1!G124="","",お客様情報1!G124) ->  | I58: 万円を支払い予定 | K58: =IF(お客様情報1!J124="","",お客様情報1!J124) ->  | L58: 才で終了
A61: ●現在の住宅ローン | D61: 金融機関名 | E61: 商品名 | F61: 借入残高 | G61: 残存期間 | I61: 金利タイプ | J61: 適用金利 | K61: 毎月返済額
C62: 商品１ | D62: =住宅ローン!E16 -> 0 | E62: =住宅ローン!F16 -> 0 | F62: =住宅ローン!G16 -> 0 | G62: =住宅ローン!H16 -> 0 | H62: =住宅ローン!I16 -> 0 | I62: =住宅ローン!J16 -> 0 | J62: =住宅ローン!K16 -> 0 | K62: =住宅ローン!L16 -> 0
C63: =IF(住宅ローン!E18="","","商品２") ->  | D63: =IF(住宅ローン!E18="","",住宅ローン!E18) ->  | E63: =IF(D63="","",住宅ローン!F18) ->  | F63: =IF(E63="","",住宅ローン!G18) ->  | G63: =IF(F63="","",住宅ローン!H18) ->  | H63: =IF(G63="","",住宅ローン!I18) ->  | I63: =IF(H63="","",住宅ローン!J18) ->  | J63: =IF(I63="","",住宅ローン!K18) ->  | K63: =IF(J63="","",住宅ローン!L18) -> 
C64: =IF(住宅ローン!E20="","","商品３") ->  | D64: =IF(住宅ローン!E20="","",住宅ローン!E20) ->  | E64: =IF(D64="","",住宅ローン!F20) ->  | F64: =IF(E64="","",住宅ローン!G20) ->  | G64: =IF(F64="","",住宅ローン!H20) ->  | H64: =IF(G64="","",住宅ローン!I20) ->  | I64: =IF(H64="","",住宅ローン!J20) ->  | J64: =IF(I64="","",住宅ローン!K20) ->  | K64: =IF(J64="","",住宅ローン!L20) -> 

Sheet 計算 (hidden)
A1: 住宅ローン返済予定表を見ながら、入力してください
D4: 日付 | I4: 金利 | K4: 毎月返済額 | M4: 残高
A6: 商品１ | C6: 返済予定表 | E6: 年 | G6: 月 | L6: 円 | N6: 円
D7: =_xlfn.XLOOKUP(D6,table!$T$15:$T$51,table!$S$15:$S$51) -> 
C8: 現在 | D8: =YEAR(TODAY()) -> 2024 | E8: 年 | F8: =MONTH(TODAY()) -> 7 | G8: 月 | I8: =I6 -> 0 | K8: =K6 -> 0 | L8: 円 | M8: =IFERROR(INT(FV(I6/12,(D8-D7)*12+F8-F6,K6,-M6,)),0) -> 0 | N8: 円
C10: 完済予定日 | E10: 年 | G10: 月 | I10: 残存期間 | J10: =IF(D6="","",D11-D8-IF(F10<F8,1,0)) ->  | K10: 年 | L10: =IFERROR(IF(D7="","",IF(F10-F8<0,F10-F8+12,F10-F8)),"") ->  | M10: カ月
D11: =_xlfn.XLOOKUP(D10,table!$T$51:$T$105,table!$S$51:$S$105) -> 
A13: 商品２ | C13: 返済予定表 | E13: 年 | G13: 月 | L13: 円 | N13: 円
D14: =_xlfn.XLOOKUP(D13,table!$T$15:$T$51,table!$S$15:$S$51) -> 
C15: 現在 | D15: =D8 -> 2024 | E15: 年 | F15: =F8 -> 7 | G15: 月 | I15: =I13 -> 0 | K15: 0 | L15: 円 | M15: =IFERROR(INT(FV(I13/12,(D15-D14)*12+F15-F13,K13,-M13,)),0) -> 0 | N15: 円
C17: 完済予定日 | E17: 年 | G17: 月 | I17: 残存期間 | J17: =IF(D13="","",D18-D15-IF(F17<F15,1,0)) ->  | K17: 年 | L17: =IFERROR(IF(D14="","",IF(F17-F15<0,F17-F15+12,F17-F15)),"") ->  | M17: カ月
D18: =_xlfn.XLOOKUP(D17,table!$T$51:$T$105,table!$S$51:$S$105) -> 
A20: 商品３ | C20: 返済予定表 | E20: 年 | G20: 月 | L20: 円 | N20: 円
D21: =_xlfn.XLOOKUP(D20,table!$T$15:$T$51,table!$S$15:$S$51) -> 
C22: 現在 | D22: =D8 -> 2024 | E22: 年 | F22: =F8 -> 7 | G22: 月 | I22: =I20 -> 0 | K22: =IFERROR(INT(PMT(I20/12,(D25-D22)*12+F24-F20,-M20,,)),0) -> 0 | L22: 円 | M22: =IFERROR(INT(FV(I20/12,(D22-D21)*12+F22-F20,K20,-M20,)),0) -> 0 | N22: 円
C24: 完済予定日 | E24: 年 | G24: 月 | I24: 残存期間 | J24: =IF(D20="","",D25-D22-IF(F24<F22,1,0)) ->  | K24: 年 | L24: =IFERROR(IF(D21="","",IF(F24-F22<0,F24-F22+12,F24-F22)),"") ->  | M24: カ月
D25: =_xlfn.XLOOKUP(D24,table!$T$51:$T$105,table!$S$51:$S$105) -> 
D38: 日付 | I38: 金利 | K38: 毎月返済額 | M38: 残高
A40: 商品１ | B40: 毎月返済分 | C40: 返済予定表 | E40: 年 | G40: 月 | L40: 円 | M40: =IFERROR(PV(I40/12,(D45-D41)*12+F44-F40,-K40,,),0) -> 0 | N40: 円
D41: =_xlfn.XLOOKUP(D40,table!$T$15:$T$51,table!$S$15:$S$51) ->  | K41: =IF(K40=K42,"","値に大きな差があれば、入力ミスの可能性があります") -> 
C42: 現在 | D42: =D22 -> 2024 | E42: 年 | F42: =F22 -> 7 | G42: 月 | I42: =I40 -> 0 | K42: =K40 -> 0 | L42: 円 | M42: =IFERROR(INT(FV(I40/12,(D42-D41)*12+F42-F40,K40,-M40,)),0) -> 0 | N42: 円
C44: 完済予定日 | E44: 年 | G44: 月 | I44: 残存期間 | J44: =IF(D40="","",D45-D42-IF(F44<F42,1,0)) ->  | K44: 年 | L44: =IFERROR(IF(D41="","",IF(F44-F42<0,F44-F42+12,F44-F42)),"") ->  | M44: カ月
D45: =_xlfn.XLOOKUP(D44,table!$T$51:$T$105,table!$S$51:$S$105) -> 
B47: ボーナス返済分 | C47: 返済予定表 | E47: 年 | G47: 月 | L47: 円 | M47: =IFERROR(M53-M40,0) -> 0 | N47: 円
D48: =_xlfn.XLOOKUP(D47,table!$T$15:$T$51,table!$S$15:$S$51) -> 
C49: 現在 | D49: =D42 -> 2024 | E49: 年 | F49: =F42 -> 7 | G49: 月 | I49: =I47 -> 0 | K49: =K47 -> 0 | L49: 円 | M49: =IFERROR(IF(P49=0,M47,INT(FV(I47/2,INT(O49/6),K47,-M47,))),0) -> 0 | N49: 円 | O49: =(D49-D48)*12+F49-F47 ->  | P49: =IF(O49>6,1,0) -> 
C51: 完済予定日 | E51: 年 | G51: 月 | I51: 残存期間 | J51: =IFERROR(IF(D48="","",INT((O51-INT(O49/6)*6)/12)),"") ->  | K51: 年 | L51: =IFERROR(IF(D48="","",MOD(O51-INT(O49/6)*2,12)),"") ->  | M51: カ月 | O51: =(D53-D48)*12+F51-F47 -> 
C53: 合計 | D53: =_xlfn.XLOOKUP(D51,table!$T$51:$T$105,table!$S$51:$S$105) ->  | K53: =INT((M42*(J44*12+L44)+M49*(J51*12+L51))/(M42+M49)) ->  | L53: =INT(K40+K47/6) -> 0 | N53: 円 | O53: =IF(D40="","",INT(K53/12)) ->  | P53: =IF(D40="","",K53-O53*12) -> 
A55: 商品２ | B55: 毎月返済分 | C55: 返済予定表 | E55: 年 | G55: 月 | L55: 円 | M55: =IFERROR(PV(I55/12,(D60-D56)*12+F59-F55,-K55,,),0) -> 0 | N55: 円
D56: =_xlfn.XLOOKUP(D55,table!$T$15:$T$51,table!$S$15:$S$51) -> 
C57: 現在 | D57: =D22 -> 2024 | E57: 年 | F57: =F22 -> 7 | G57: 月 | I57: =住宅ローン!K44 -> 0 | K57: =K55 -> 0 | L57: 円 | M57: =IFERROR(INT(FV(I55/12,(D57-D56)*12+F57-F55,K55,-M55,)),0) -> 0 | N57: 円
C59: 完済予定日 | E59: 年 | G59: 月 | I59: 残存期間 | J59: =IFERROR(IF(D56="","",D60-D57-IF(F59<F57,1,0)),"") ->  | K59: 年 | L59: =IFERROR(IF(D56="","",IF(F59-F57<0,F59-F57+12,F59-F57)),"") ->  | M59: カ月
D60: =_xlfn.XLOOKUP(D59,table!$T$51:$T$105,table!$S$51:$S$105) -> 
B62: ボーナス返済分 | C62: 返済予定表 | E62: 年 | G62: 月 | L62: 円 | M62: =M68-M55 -> 0 | N62: 円
D63: =_xlfn.XLOOKUP(D62,table!$T$15:$T$51,table!$S$15:$S$51) -> 
C64: 現在 | D64: =D57 -> 2024 | E64: 年 | F64: =F57 -> 7 | G64: 月 | I64: =I62 -> 0 | K64: =K62 -> 0 | L64: 円 | M64: =IFERROR(IF(P64=0,M62,INT(FV(I62/2,INT(O64/6),K62,-M62,))),0) -> 0 | N64: 円 | O64: =(D64-D63)*12+F64-F62 ->  | P64: =IF(O64>6,1,0) -> 
C66: 完済予定日 | E66: 年 | G66: 月 | I66: 残存期間 | J66: =IFERROR(IF(D63="","",INT((O66-INT(O64/6)*6)/12)),"") ->  | K66: 年 | L66: =IFERROR(IF(D63="","",MOD(O66-INT(O64/6)*2,12)),"") ->  | M66: カ月 | O66: =(D68-D63)*12+F66-F62 -> 
C68: 合計 | D68: =_xlfn.XLOOKUP(D66,table!$T$51:$T$105,table!$S$51:$S$105) ->  | K68: =INT((M57*(J59*12+L59)+M64*(J66*12+L66))/(M57+M64)) ->  | L68: =INT(K55+K62/6) -> 0 | N68: 円 | O68: =IF(D55="","",INT(K68/12)) ->  | P68: =IF(D55="","",K68-O68*12) -> 
A70: 商品３ | B70: 毎月返済分 | C70: 返済予定表 | E70: 年 | G70: 月 | L70: 円 | M70: =IFERROR(PV(I70/12,(D75-D71)*12+F74-F70,-K70,,),0) -> 0 | N70: 円
D71: =_xlfn.XLOOKUP(D70,table!$T$15:$T$51,table!$S$15:$S$51) ->  | K71: =IF(K70=K72,"","値に大きな差があれば、入力ミスの可能性があります") -> 
C72: 現在 | D72: =D64 -> 2024 | E72: 年 | F72: =F64 -> 7 | G72: 月 | I72: =I70 -> 0 | K72: =K70 -> 0 | L72: 円 | M72: =IFERROR(INT(FV(I70/12,(D72-D71)*12+F72-F70,K70,-M70,)),0) -> 0 | N72: 円
C74: 完済予定日 | E74: 年 | G74: 月 | I74: 残存期間 | J74: =IFERROR(IF(D71="","",D75-D72-IF(F74<F72,1,0)),"") ->  | K74: 年 | L74: =IFERROR(IF(D71="","",IF(F74-F72<0,F74-F72+12,F74-F72)),"") ->  | M74: カ月
D75: =_xlfn.XLOOKUP(D74,table!$T$51:$T$105,table!$S$51:$S$105) -> 
B77: ボーナス返済分 | C77: 返済予定表 | E77: 年 | G77: 月 | L77: 円 | M77: =M83-M70 -> 0 | N77: 円
D78: =_xlfn.XLOOKUP(D77,table!$T$15:$T$51,table!$S$15:$S$51) -> 
C79: 現在 | D79: =D72 -> 2024 | E79: 年 | F79: =F72 -> 7 | G79: 月 | I79: =I77 -> 0 | K79: =K77 -> 0 | L79: 円 | M79: =IFERROR(IF(P79=0,M77,INT(FV(I77/2,INT(O79/6),K77,-M77,))),0) -> 0 | N79: 円 | O79: =(D79-D78)*12+F79-F77 ->  | P79: =IF(O79>6,1,0) -> 
C82: 完済予定日 | E82: 年 | G82: 月 | I82: 残存期間 | J82: =IFERROR(IF(D78="","",INT((O82-INT(O79/6)*6)/12)),"") ->  | K82: 年 | L82: =IFERROR(IF(D78="","",MOD(O82-INT(O79/6)*2,12)),"") ->  | O82: =(D83-D78)*12+F82-F77 -> 
D83: =_xlfn.XLOOKUP(D82,table!$T$51:$T$105,table!$S$51:$S$105) ->  | K83: =INT((M72*(J74*12+L74)+M79*(J82*12+L82))/(M72+M79)) ->  | L83: =INT(K70+K77/6) -> 0 | N83: 円 | O83: =IF(D70="","",K83-N83*12) -> 

Sheet 団信 (hidden)
A1: 金融機関名 | B1: 引受会社 | C1: 団信種類 | D1: 特徴 | E1: コスト | G1: 加入 | I1: 完済 | J1: 金額 | K1: 債務者区分 | L1: がん | N1: 診断給付金 | O1: 先進医療給付金 | P1: リビングニーズ | Q1: 心筋梗塞 | S1: 脳卒中 | U1: 入院時給付金 | W1: 高血圧 | Y1: 糖尿病 | AA1: 慢性腎不全 | AC1: 肝硬変 | AE1: 慢性膵炎 | AG1: 大動脈瘤及び解離 | AH1: 脳血管疾患 | AI1: 失業保障 | AJ1: 就業不能 | AL1: 要介護状態 | AM1: 自然災害
A2: フラット35 | B2: 日本生命他協同引き受け | C2: 一般団信 | E2: 0 | H2: 69 | I2: 79
A3: フラット35 | B3: 日本生命他協同引き受け | C3: 三大疾病特約 | E3: 0.0024 | H3: 50 | I3: 79 | L3: 〇診断 | Q3: 〇60日 | S3: 〇60日
A4: フラット35 | B4: 日本生命他協同引き受け | C4: 夫婦連生団信 | E4: 0.0018 | H4: 69 | I4: 79
A5: ソニー銀行 | B5: クレディ・アグリコル生命保険 | C5: 一般団信 | E5: 0 | H5: 64 | I5: 84 | U5: 女性のみ10万円
A6: ソニー銀行 | B6: クレディ・アグリコル生命保険 | C6: ワイド団信 | E6: 0.002 | H6: 64 | I6: 80
A7: ソニー銀行 | B7: クレディ・アグリコル生命保険 | C7: がん団信100 | E7: 0.001 | H7: 49 | I7: 84 | L7: 〇診断 | N7: 100万円／上皮内がん皮膚がん50万円 | O7: 1000万円 | P7: 〇 | U7: 女性のみ10万円
A8: ソニー銀行 | B8: クレディ・アグリコル生命保険 | C8: がん団信50 | E8: 0 | H8: 49 | I8: 84 | L8: △50％ 診断 | P8: 〇 | U8: 女性のみ10万円
A9: ソニー銀行 | B9: クレディ・アグリコル生命保険 | C9: ３大疾病団信 | E9: 0.002 | H9: 49 | I9: 84 | L9: 〇診断 | N9: 100万円／上皮内がん皮膚がん50万円 | O9: 1000万円 | P9: 〇 | Q9: 〇60日又は手術 | S9: 〇60日又は手術 | U9: 女性のみ10万円
A10: ソニー銀行 | B10: クレディ・アグリコル生命保険 | C10: 生活習慣病団信 | E10: 0.002 | H10: 49 | I10: 84 | L10: 〇診断 | M10: 上皮内、皮膚がんも180日以上 | N10: 100万円／上皮内がん皮膚がん50万円 | O10: 1000万円 | P10: 〇 | Q10: △180日 | R10: 1入院最大5回、通算36回 | S10: △180日 | T10: 1入院最大5回、通算36回 | U10: 入院10万円 | V10: 返済額分 | W10: △180日 | X10: 1入院最大5回、通算36回 | Y10: △180日 | Z10: 1入院最大5回、通算36回 | AA10: △180日 | AB10: 1入院最大5回、通算36回 | AC10: △180日 | AD10: 1入院最大5回、通算36回 | AE10: △180日 | AF10: 1入院最大5回、通算36回 | AG10: △180日 | AH10: △180日 | AK10: 1入院最大5回、通算36回
A11: 三菱UFJ信託銀行 | B11: 明治安田生命保険＆日本生命保険 | C11: 一般団信 | E11: 0 | H11: 69 | I11: 79
A12: 三菱UFJ信託銀行 | B12: 東京海上日動火災保険 | C12: 7大疾病保障付住宅ローン ビッグ＆セブン〈Plus〉 | E12: 別払い | H12: 55 | I12: 79 | L12: △1年30日 | M12: 30日経過後最長1年 | N12: 10万円 | O12: 300万円 | Q12: △1年30日 | R12: 30日経過後最長1年 | S12: △1年30日 | T12: 30日経過後最長1年 | W12: △1年30日 | X12: 30日経過後最長1年 | Y12: △1年30日 | Z12: 30日経過後最長1年 | AA12: △1年30日 | AB12: 30日経過後最長1年 | AC12: △1年30日 | AD12: 30日経過後最長1年
A13: 三井住友信託銀行 | B13: 住友生命保険 | C13: 一般団信 | E13: 0 | H13: 65 | I13: 80
A14: 三井住友信託銀行 | B14: カーディフ損害保険 | C14: 全入院保障付八大疾病保障特約（45）プラン１ | E14: 0.003 | H14: 45 | I14: 80 | L14: 〇診断 | Q14: 〇60日 | S14: 〇60日 | U14: 入院10万円／2か月超で30万円、最大12回まで | V14: 最長2か月、最大36カ月 | W14: △1年 | X14: 2か月経過後最大10カ月 | Y14: △1年 | Z14: 2か月経過後最大10カ月 | AA14: △1年 | AB14: 2か月経過後最大10カ月 | AC14: △1年 | AD14: 2か月経過後最大10カ月 | AE14: △1年 | AF14: 2か月経過後最大10カ月 | AI14: 最長3カ月
A15: 三井住友信託銀行 | B15: カーディフ損害保険 | C15: 八大疾病保障特約（45）プラン２ | E15: 0.0015 | H15: 45 | I15: 80 | L15: △50％ 1年 | Q15: △50％ 60日 | S15: △50％ 60日 | U15: 入院10万円／2か月超で30万円、最大12回まで | V15: 最長2か月、最大36カ月 | W15: △50％ 1年 | X15: 2か月経過後最大10カ月 | Y15: △50％ 1年 | Z15: 2か月経過後最大10カ月 | AA15: △50％ 1年 | AB15: 2か月経過後最大10カ月 | AC15: △50％ 1年 | AD15: 2か月経過後最大10カ月 | AE15: △50％ 1年 | AF15: 2か月経過後最大10カ月 | AI15: 最長3カ月
A16: 三井住友信託銀行 | B16: カーディフ損害保険 | C16: 八大疾病保障特約（45）プラン３ | E16: 0.002 | H16: 45 | I16: 80 | L16: 〇診断 | Q16: △1年 | R16: 最長12カ月分 | S16: △1年 | T16: 最長12カ月分 | W16: △1年 | X16: 最長12カ月分 | Y16: △1年 | Z16: 最長12カ月分 | AA16: △1年 | AB16: 最長12カ月分 | AC16: △1年 | AD16: 最長12カ月分 | AE16: △1年 | AF16: 最長12カ月分 | AI16: 最長3カ月
A17: 三井住友信託銀行 | B17: カーディフ損害保険 | C17: 八大疾病保障特約（45）プラン４ | E17: 0.001 | H17: 45 | I17: 80 | L17: △50％ 1年 | Q17: △50％ 1年 | R17: 最長12カ月分 | S17: △50％ 1年 | T17: 最長12カ月分 | W17: △50％ 1年 | X17: 最長12カ月分 | Y17: △50％ 1年 | Z17: 最長12カ月分 | AA17: △50％ 1年 | AB17: 最長12カ月分 | AC17: △50％ 1年 | AD17: 最長12カ月分 | AE17: △50％ 1年 | AF17: 最長12カ月分 | AI17: 最長3カ月
A18: 三井住友信託銀行 | B18: カーディフ損害保険 | C18: 八大疾病保障特約（55）プラン１ | E18: 0.002 | G18: 46 | H18: 55 | I18: 80 | L18: △1年 | N18: 100万円 | Q18: △1年 | R18: 最長12カ月分 | S18: △1年 | T18: 最長12カ月分 | W18: △1年 | X18: 最長12カ月分 | Y18: △1年 | Z18: 最長12カ月分 | AA18: △1年 | AB18: 最長12カ月分 | AC18: △1年 | AD18: 最長12カ月分 | AE18: △1年 | AF18: 最長12カ月分 | AI18: 最長3カ月
A19: 三井住友信託銀行 | B19: カーディフ損害保険 | C19: 八大疾病保障特約（55）プラン２ | E19: 0.001 | G19: 46 | H19: 55 | I19: 80 | L19: △50％ | N19: 100万円 | Q19: △50％ 1年 | R19: 最長12カ月分 | S19: △50％ 1年 | T19: 最長12カ月分 | W19: △50％ 1年 | X19: 最長12カ月分 | Y19: △50％ 1年 | Z19: 最長12カ月分 | AA19: △50％ 1年 | AB19: 最長12カ月分 | AC19: △50％ 1年 | AD19: 最長12カ月分 | AE19: △50％ 1年 | AF19: 最長12カ月分 | AI19: 最長3カ月
A20: 三井住友信託銀行 | D20: すまい・るパッケージ
A21: 住信SBIネット銀行 | B21: ＳＢＩ生命保険 | C21: スゴ団信 3大疾病100プラン（39） | D21: WEB申込コース | E21: 0.002 | H21: 39 | I21: 79 | L21: 〇診断 | O21: 1000万円 | P21: 〇 | Q21: 〇60日又は手術 | R21: 最長12カ月分 | S21: 〇60日又は手術 | T21: 最長12カ月分 | W21: △1年 | X21: 最長12カ月分 | Y21: △1年 | Z21: 最長12カ月分 | AA21: △1年 | AB21: 最長12カ月分 | AC21: △1年 | AD21: 最長12カ月分 | AE21: △1年 | AF21: 最長12カ月分 | AJ21: △2年 | AK21: 3カ月経過後、最長21カ月
A22: 住信SBIネット銀行 | B22: ＳＢＩ生命保険 | C22: スゴ団信 3大疾病50プラン（39） | D22: WEB申込コース | E22: 0 | H22: 39 | I22: 79 | L22: △50％ 診断 | M22: 標準的な治療を受けても効果がない場合には全額保証される | O22: 1000万円 | Q22: △50％ 60日または手術 | R22: 最長12カ月分 | S22: △50％ 60日または手術 | T22: 最長12カ月分 | W22: △1年 | X22: 最長12カ月分 | Y22: △1年 | Z22: 最長12カ月分 | AA22: △1年 | AB22: 最長12カ月分 | AC22: △1年 | AD22: 最長12カ月分 | AE22: △1年 | AF22: 最長12カ月分 | AJ22: △2年 | AK22: 3カ月経過後、最長21カ月
A23: 住信SBIネット銀行 | B23: ＳＢＩ生命保険 | C23: スゴ団信 基本プラン（40才以上） | D23: WEB申込コース | E23: 0 | G23: 40 | H23: 64 | I23: 79 | O23: 1000万円 | P23: 〇
A24: 住信SBIネット銀行 | B24: ＳＢＩ生命保険 | C24: スゴ団信 3大疾病100プラン（40才以上） | D24: WEB申込コース | E24: 0.004 | G24: 40 | H24: 64 | I24: 79 | L24: 〇診断 | O24: 1000万円 | P24: 〇 | Q24: 〇60日又は手術 | R24: 最長12カ月分 | S24: 〇60日又は手術 | T24: 最長12カ月分 | W24: △1年 | X24: 最長12カ月分 | Y24: △1年 | Z24: 最長12カ月分 | AA24: △1年 | AB24: 最長12カ月分 | AC24: △1年 | AD24: 最長12カ月分 | AE24: △1年 | AF24: 最長12カ月分 | AJ24: △2年 | AK24: 3カ月経過後、最長21カ月
A25: 住信SBIネット銀行 | B25: ＳＢＩ生命保険 | C25: スゴ団信 3大疾病50プラン（40才以上） | D25: WEB申込コース | E25: 0.0025 | G25: 40 | H25: 64 | I25: 79 | L25: △50％ 診断 | M25: 標準的な治療を受けても効果がない場合には全額保証される | O25: 1000万円 | Q25: △50％ 60日または手術 | R25: 最長12カ月分 | S25: △50％ 60日または手術 | T25: 最長12カ月分 | W25: △1年 | X25: 最長12カ月分 | Y25: △1年 | Z25: 最長12カ月分 | AA25: △1年 | AB25: 最長12カ月分 | AC25: △1年 | AD25: 最長12カ月分 | AE25: △1年 | AF25: 最長12カ月分 | AJ25: △2年 | AK25: 3カ月経過後、最長21カ月
A26: 住信SBIネット銀行 | B26: ＳＢＩ生命保険 | C26: ワイド団信 | D26: WEB申込コース | E26: 0.003 | H26: 69 | I26: 79 | S26: △1年
A27: 住信SBIネット銀行 | B27: ＳＢＩ生命保険 | C27: 一般団信 | D27: パッケージローン | E27: 0 | G27: 18 | H27: 69 | I27: 79 | L27: △1年 | Q27: △1年 | S27: △1年 | W27: △1年 | Y27: △1年 | AA27: △1年 | AC27: △1年 | AE27: △1年 | AJ27: △2年 | AK27: 3カ月経過後、12回まで、通算36回以内
A28: 住信SBIネット銀行 | B28: ＳＢＩ生命保険 | C28: 全疾病保障 | D28: フラット35（保証型） | E28: 0 | G28: 18 | H28: 69 | I28: 79 | M28: 標準的な治療を受けても効果がない場合には全額保証される | P28: 〇
A29: auじぶん銀行 | B29: ライフネット生命保険 | C29: 一般団信 | E29: 0 | H29: 64 | I29: 79 | P29: 〇
A30: auじぶん銀行 | B30: ライフネット生命保険 | C30: ワイド団信 | E30: 0.003 | H30: 64 | I30: 79
A31: auじぶん銀行 | B31: ライフネット生命保険 | C31: がん100％保障団信 | E31: 0.0005 | H31: 50 | I31: 79 | L31: 〇診断 | P31: 〇 | Q31: 〇60日又は手術 | S31: 〇60日又は手術 | AA31: △60日入院 | AC31: △60日入院 | AJ31: △180日 | AK31: 31日以上継続通算36回
A32: auじぶん銀行 | B32: ライフネット生命保険 | C32: がん50％保障団信 | E32: 0 | H32: 50 | I32: 79 | L32: △50％ 診断 | P32: 〇 | Q32: 〇60日又は手術 | S32: 〇60日又は手術 | AA32: △50％ 60日入院 | AC32: △50％ 60日入院 | AJ32: △180日 | AK32: 31日以上継続通算36回
A33: auじぶん銀行 | B33: ライフネット生命保険 | C33: がん100％保障団信プレミアム | E33: 0.0015 | H33: 50 | I33: 79 | L33: 〇診断 | N33: 100万円／ 上皮内がん・皮膚がん30万円 | O33: 2000万円 | P33: 〇 | Q33: 〇60日又は手術 | S33: 〇60日又は手術 | U33: 10万円 | V33: 通算12回 | AA33: △50％ 60日入院 | AC33: △50％ 60日入院 | AJ33: △180日 | AK33: 31日以上継続通算36回
A34: りそな銀行 | B34: 第一生命保険 | C34: 一般団信 | E34: 0 | H34: 69 | I34: 79 | J34: 3億円
A35: りそな銀行 | B35: クレディ・アグリコル生命保険 | C35: ワイド団信 | E35: 0.003 | H35: 49 | I35: 79
A36: りそな銀行 | B36: 第一生命保険 | C36: がん保障特約39才以下 | E36: 0.001 | H36: 39 | I36: 74 | J36: 1億円 | L36: 〇診断
A37: りそな銀行 | B37: 第一生命保険 | C37: がん保障特約40才以上 | E37: 0.002 | G37: 40 | H37: 49 | I37: 74 | J37: 1億円 | L37: 〇診断
A38: りそな銀行 | B38: 第一生命保険 | C38: 3大疾病特約付39以下 | E38: 0.002 | H38: 39 | I38: 74 | J38: 1億円 | L38: 〇診断 | Q38: 〇60日又は手術 | S38: 〇60日又は手術
A39: りそな銀行 | B39: 第一生命保険 | C39: 3大疾病特約付40才以上 | E39: 0.0025 | G39: 40 | H39: 49 | I39: 79 | J39: 1億円 | L39: 〇診断 | Q39: 〇60日又は手術 | S39: 〇60日又は手術
A40: りそな銀行 | B40: 第一生命保険 | C40: 団信革命39以下 | D40: 4月にｷｬﾝﾍﾟｰﾝ終了 | E40: 0.0025 | H40: 39 | I40: 74 | J40: 1億円 | L40: 〇診断 | Q40: 〇60日又は手術 | S40: 〇60日又は手術 | AJ40: △180日 | AL40: 介護認定２または△180日
A41: りそな銀行 | B41: 第一生命保険 | C41: 団信革命40才以上 | E41: 0.003 | G41: 40 | H41: 49 | I41: 79 | J41: 1億円 | L41: 〇診断 | Q41: 〇60日又は手術 | S41: 〇60日又は手術 | AJ41: △180日 | AL41: 介護認定２または△180日
A42: 三菱UFJ銀行 | B42: 明治安田生命保険＆日本生命保険 | C42: 一般団信 | E42: 0 | H42: 69 | I42: 79
A43: 三菱UFJ銀行 | B43: クレディ・アグリコル生命保険 | C43: ワイド団信 | E43: 0.003 | H43: 49 | I43: 79
A44: 三菱UFJ銀行 | B44: 東京海上日動火災保険 | C44: 3代疾病保障充実タイプ | E44: 0.003 | H44: 49 | I44: 79 | J44: 1億円 | L44: 〇診断 | Q44: 〇入院 | S44: 〇入院 | W44: △1年30日 | X44: 30日経過後最長1年 | Y44: △1年30日 | Z44: 30日経過後最長1年 | AA44: △1年30日 | AB44: 30日経過後最長1年 | AC44: △1年30日 | AD44: 30日経過後最長1年
A45: 三菱UFJ銀行 | B45: 東京海上日動火災保険 | C45: 7大疾病保障付住宅ローン ビッグ＆セブン〈Plus〉 | E45: 別払い | H45: 55 | I45: 79 | J45: 1億円 | L45: △1年30日 | M45: 30日経過後最長1年 | N45: 10万円 | O45: 300万円 | Q45: △1年30日 | R45: 30日経過後最長1年 | S45: △1年30日 | T45: 30日経過後最長1年 | W45: △1年30日 | X45: 30日経過後最長1年 | Y45: △1年30日 | Z45: 30日経過後最長1年 | AA45: △1年30日 | AB45: 30日経過後最長1年 | AC45: △1年30日 | AD45: 30日経過後最長1年
A46: みずほ銀行 | B46: 第一生命保険 | C46: 一般団信 | E46: 0 | H46: 70 | I46: 80
A47: みずほ銀行 | B47: SOMPOひまわり生命保険 | C47: ワイド団信 | E47: 0.003 | H47: 50 | I47: 80
A48: みずほ銀行 | B48: 損保ジャパン | C48: がん団信 | E48: 0.001 | H48: 50 | I48: 80 | L48: 〇診断 | P48: 〇
A49: みずほ銀行 | B49: 損保ジャパン | C49: 8大疾病保障 | E49: 別払い | H49: 55 | I49: 80 | L49: △1年 | M49: 30日経過後最長1年 | Q49: △1年 | R49: 30日経過後最長1年 | S49: △1年 | T49: 30日経過後最長1年 | W49: △1年 | Y49: △1年 | AA49: △1年 | AC49: △1年 | AE49: △1年 | AJ49: △1年
A50: みずほ銀行 | B50: 損保ジャパン | C50: 8大疾病保障プラス | E50: 別払い | H50: 55 | I50: 80 | L50: △1年 | M50: 30日経過後最長1年 | Q50: △1年 | R50: 30日経過後最長1年 | S50: △1年 | T50: 30日経過後最長1年 | W50: △1年 | Y50: △1年 | AA50: △1年 | AC50: △1年 | AE50: △1年 | AG50: △1年 | AH50: △1年 | AJ50: △1年
A51: みずほ銀行 | B51: 損保ジャパン | C51: 8大疾病保障がんサポートプラン | E51: 別払い | H51: 55 | I51: 80 | L51: 〇診断 | M51: 30日経過後最長1年 | Q51: △1年 | R51: 30日経過後最長1年 | S51: △1年 | T51: 30日経過後最長1年 | W51: △1年 | X51: 30日経過後最長1年 | Y51: △1年 | Z51: 30日経過後最長1年 | AA51: △1年 | AB51: 30日経過後最長1年 | AC51: △1年 | AD51: 30日経過後最長1年 | AE51: △1年 | AF51: 30日経過後最長1年
A52: みずほ銀行 | B52: 損保ジャパン | C52: 8大疾病保障プラスがんサポートプラン | E52: 別払い | H52: 55 | I52: 80 | L52: 〇診断 | M52: 30日経過後最長1年 | Q52: △1年 | R52: 30日経過後最長1年 | S52: △1年 | T52: 30日経過後最長1年 | W52: △1年 | X52: 30日経過後最長1年 | Y52: △1年 | Z52: 30日経過後最長1年 | AA52: △1年 | AB52: 30日経過後最長1年 | AC52: △1年 | AD52: 30日経過後最長1年 | AE52: △1年 | AF52: 30日経過後最長1年 | AG52: △1年 | AH52: △1年 | AJ52: △1年
A53: 三井住友銀行 | C53: 一般団信 | E53: 0 | H53: 69 | I53: 79
A54: 三井住友銀行 | B54: 住友生命保険 | C54: クロスサポート | E54: 0.0018 | H54: 69 | I54: 79 | J54: 5000万円
A55: 三井住友銀行 | B55: 三井住友海上火災保険 | C55: 8大疾病保障付（45） | E55: 0.003 | G55: 18 | H55: 45 | I55: 79 | J55: 2億円 | L55: 〇診断 | Q55: 〇60日 | S55: 〇60日 | U55: 10万円 | V55: 1カ月分 | W55: △13カ月 | X55: 30日経過後最長1年 | Y55: △13カ月 | Z55: 30日経過後最長1年 | AA55: △13カ月 | AB55: 30日経過後最長1年 | AC55: △13カ月 | AD55: 30日経過後最長1年 | AE55: △13カ月 | AF55: 30日経過後最長1年
A56: 三井住友銀行 | B56: 三井住友海上火災保険 | C56: 8大疾病保障付＋ケガ病気保障特約（45） | E56: 0.004 | G56: 18 | H56: 45 | I56: 79 | J56: 2億円 | L56: 〇診断 | Q56: 〇60日 | S56: 〇60日 | U56: 10万円 | V56: 1カ月分 | W56: △13カ月 | X56: 30日経過後最長1年 | Y56: △13カ月 | Z56: 30日経過後最長1年 | AA56: △13カ月 | AB56: 30日経過後最長1年 | AC56: △13カ月 | AD56: 30日経過後最長1年 | AE56: △13カ月 | AF56: 30日経過後最長1年 | AJ56: △13カ月 | AK56: 30日経過後最長1年
A57: 三井住友銀行 | B57: 三井住友海上火災保険 | C57: 8大疾病保障付ライト（45） | E57: 0.001 | G57: 18 | H57: 45 | I57: 79 | J57: 2億円 | L57: △1年 | M57: 最長1年 | Q57: △1年 | R57: 最長1年 | S57: △1年 | T57: 最長1年 | W57: △1年 | X57: 最長1年 | Y57: △1年 | Z57: 最長1年 | AA57: △1年 | AB57: 最長1年 | AC57: △1年 | AD57: 最長1年 | AE57: △1年 | AF57: 最長1年
A58: 三井住友銀行 | B58: 三井住友海上火災保険 | C58: 8大疾病保障付（55） | E58: 0.003 | G58: 46 | H58: 55 | I58: 79 | J58: 2億円 | L58: △1年 | M58: 最長1年 | Q58: △1年 | R58: 最長1年 | S58: △1年 | T58: 最長1年 | U58: 10万円 | V58: 1カ月分 | W58: △1年 | X58: 最長1年 | Y58: △1年 | Z58: 最長1年 | AA58: △1年 | AB58: 最長1年 | AC58: △1年 | AD58: 最長1年 | AE58: △1年 | AF58: 最長1年
A59: 三井住友銀行 | B59: 三井住友海上火災保険 | C59: 8大疾病保障付＋ケガ病気保障特約（55） | E59: 0.004 | G59: 46 | H59: 55 | I59: 79 | J59: 2億円 | L59: △1年 | M59: 最長1年 | Q59: △1年 | R59: 最長1年 | S59: △1年 | T59: 最長1年 | U59: 10万円 | V59: 1カ月分 | W59: △1年 | X59: 最長1年 | Y59: △1年 | Z59: 最長1年 | AA59: △1年 | AB59: 最長1年 | AC59: △1年 | AD59: 最長1年 | AE59: △1年 | AF59: 最長1年 | AJ59: △13カ月 | AK59: 30日経過後最長1年
A60: イオン銀行 | B60: 日本生命保険 | C60: 一般団信 | E60: 0 | G60: 18 | H60: 70 | I60: 79
A61: イオン銀行 | B61: イオン・アリアンツ生命保険 | C61: ワイド団信 | E61: 0.003 | G61: 18 | H61: 49 | I61: 79 | P61: 〇
A62: イオン銀行 | B62: イオン・アリアンツ生命保険 | C62: がん保障付 | E62: 0.001 | G62: 18 | H62: 49 | I62: 79 | L62: 〇診断 | N62: 上皮内がん・皮膚がん30万円 | O62: 1000万円 | P62: 〇
A63: イオン銀行 | B63: カーディフ生命保険、カーディフ損害保険 | C63: 8大疾病保障 | E63: 0.003 | G63: 18 | H63: 49 | I63: 79 | L63: 〇診断 | N63: 上皮内がん・皮膚がん30万円 | O63: 1000万円 | P63: 〇 | Q63: 〇60日 | R63: 最長2か月 | S63: 〇60日 | T63: 最長2か月 | W63: △1年 | X63: 最長1年 | Y63: △1年 | Z63: 最長1年 | AA63: △1年 | AB63: 最長1年 | AC63: △1年 | AD63: 最長1年 | AE63: △1年 | AF63: 最長1年 | AI63: 1カ月経過後最長6カ月
A64: イオン銀行 | B64: カーディフ生命保険、カーディフ損害保険 | C64: 8大疾病保障プラス | E64: 0.0035 | G64: 18 | H64: 49 | I64: 79 | L64: 〇診断 | N64: 上皮内がん・皮膚がん30万円 | O64: 1000万円 | P64: 〇 | Q64: 〇60日 | R64: 最長2か月 | S64: 〇60日 | T64: 最長2か月 | W64: △1年 | X64: 最長1年 | Y64: △1年 | Z64: 最長1年 | AA64: △1年 | AB64: 最長1年 | AC64: △1年 | AD64: 最長1年 | AE64: △1年 | AF64: 最長1年 | AI64: 1カ月経過後最長6カ月 | AM64: 最長6カ月
A65: イオン銀行 | B65: イオン・アリアンツ生命保険 | C65: 全疾病団信 | E65: 0 | G65: 18 | H65: 49 | I65: 79 | P65: 〇 | AJ65: △1年 | AK65: 15日以上で返済分、回数制限なし
A66: SBI新生銀行 | B66: 第一生命保険 | C66: 一般団信 | E66: 0 | H66: 65 | I66: 79
A67: SBI新生銀行 | B67: 第一生命保険 | C67: がん団信 | E67: 0.001 | H67: 49 | I67: 79 | L67: 〇診断 | P67: 〇
A68: SBI新生銀行 | B68: ＳＢＩ生命保険 | C68: 安心保障付団信 | F68: 110000 | H68: 65 | I68: 79 | AL68: 介護状態180日以上または要介護3以上
A69: 楽天銀行 | B69: 住友生命保険 | C69: 一般団信 | E69: 0 | G69: 15 | H69: 64 | I69: 79 | Q69: 〇 | S69: 〇
A70: 楽天銀行 | B70: 住友生命保険 | C70: 一般団信／夫婦連生 | E70: 0.002 | G70: 15 | H70: 64 | I70: 79 | Q70: 〇 | S70: 〇
A71: 楽天銀行 | B71: 楽天生命保険 | C71: がん保障（50％）特約・全疾病特約付団信 | E71: 0 | G71: 20 | H71: 50 | I71: 79 | L71: △50％ 診断 | M71: 重度ガン前払い | P71: 〇 | AJ71: △1年 | AK71: 通算36カ月
A72: 楽天銀行 | B72: 楽天生命保険 | C72: がん保障（50％）特約・全疾病特約付団信/夫婦連生 | E72: 0.002 | G72: 20 | H72: 50 | I72: 79 | L72: △50％ 診断 | M72: 重度ガン前払い | P72: 〇 | AJ72: △1年 | AK72: 通算36カ月
A73: 楽天銀行 | B73: 楽天生命保険 | C73: がん保障（100％保障）特約・全疾病特約付団信 | E73: 0.002 | G73: 20 | H73: 50 | I73: 79 | L73: 〇診断 | P73: 〇 | AJ73: △1年 | AK73: 通算36カ月
A74: 楽天銀行 | B74: 楽天生命保険 | C74: がん保障（100％保障）特約・全疾病特約付団信/夫婦連生 | E74: 0.004 | G74: 20 | H74: 50 | I74: 79 | L74: 〇診断 | P74: 〇 | AJ74: △1年 | AK74: 通算36カ月
A75: 楽天銀行 | B75: 楽天生命保険 | C75: 全疾病特約付団信 | E75: 0 | G75: 20 | H75: 51 | I75: 79 | M75: 重度ガン前払い | P75: 〇 | AJ75: △1年 | AK75: 通算36カ月
A76: 楽天銀行 | B76: 住友生命保険 | C76: 全疾病特約付団信/夫婦連生 | E76: 0.002 | G76: 20 | H76: 51 | I76: 79 | M76: 重度ガン前払い | P76: 〇 | AJ76: △1年 | AK76: 通算36カ月
A77: 楽天銀行 | B77: 楽天生命保険 | C77: 一般団信 | D77: 固定と変動 | E77: 0.002 | H77: 69 | I77: 79 | P77: 〇
A78: 楽天銀行 | B78: 楽天生命保険 | C78: 100％保障がん団信（全疾病特約付） | D78: 固定と変動 | E78: 0.003 | H78: 50 | I78: 79 | P78: 〇 | AJ78: △1年 | AK78: 15日を超えて継続
A79: ARUHI | B79: クレディ・アグリコル生命保険 | C79: 一般団信 | E79: 0 | G79: 18 | H79: 65 | J79: 2億円 | P79: 〇
A80: ARUHI | B80: クレディ・アグリコル生命保険 | C80: 連生団信 | E80: 0.0028 | G80: 18 | H80: 65 | J80: 2億円 | P80: 〇
A81: ARUHI | B81: クレディ・アグリコル生命保険 | C81: ワイド団信 | E81: 0.003 | G81: 18 | H81: 50 | J81: 2億円 | P81: 〇
A82: ARUHI | B82: クレディ・アグリコル生命保険 | C82: がん団信（がん50％保障プラン） | E82: 0.0005 | G82: 18 | H82: 50 | J82: 2億円 | L82: △50％ 診断 | P82: 〇
A83: ARUHI | B83: クレディ・アグリコル生命保険 | C83: がん団信プラス（がん100％保障プラン） | E83: 0.0015 | G83: 18 | H83: 50 | J83: 2億円 | L83: 〇 | M83: △上皮内・皮膚がんは180日以上入院で前払い | N83: 100万円／上皮内がん・皮膚がん50万円 | P83: 〇
A84: ARUHI | B84: クレディ・アグリコル生命保険 | C84: がん団信プラス（がん100％保障プラン）/夫婦連生 | E84: 0.0058 | G84: 18 | H84: 50 | J84: 2億円 | L84: 〇 | P84: 〇
A85: ARUHI | B85: クレディ・アグリコル生命保険 | C85: 生活習慣病団信習慣病団信＜入院プラスα＞ | E85: 0.0025 | G85: 18 | H85: 50 | J85: 2億円 | L85: 〇 | N85: 100万円／上皮内がん・皮膚がん50万円 | P85: 〇 | Q85: △180日 | S85: △180日 | U85: 10万円 | V85: 31日以上毎月返済 | W85: △180日 | Y85: △180日 | AA85: △180日 | AC85: △180日 | AE85: △180日 | AG85: △180日 | AH85: △180日 | AK85: 31日以上返済額
A86: SMBC信託銀行 | B86: 三井住友海上あいおい生命保険 | C86: 団体信用生命保険＜障害特約付＞ | D86: 死亡保障は最大2億円 | E86: 0 | H86: 70.5 | I86: 79 | J86: 2億円 | AL86: △障害等級１級
A87: SBIマネープラザ | B87: ＳＢＩ生命保険 | C87: スゴ団信 3大疾病100プラン（39） | E87: 0.002 | H87: 39 | I87: 79 | L87: 〇診断 | O87: 1000万円 | P87: 〇 | Q87: 〇60日又は手術 | R87: 最長1年 | S87: 〇60日又は手術 | T87: 最長1年 | W87: △1年 | X87: 最長1年 | Y87: △1年 | Z87: 最長1年 | AA87: △1年 | AB87: 最長1年 | AC87: △1年 | AD87: 最長1年 | AE87: △1年 | AF87: 最長1年 | AJ87: △2年 | AK87: 3カ月経過後、最長21カ月
A88: SBIマネープラザ | B88: ＳＢＩ生命保険 | C88: スゴ団信 3大疾病50プラン（39） | E88: 0 | H88: 39 | I88: 79 | L88: △50％ 診断 | M88: 重度がん前払い金 | O88: 1000万円 | Q88: △50％ 60日または手術 | R88: 最長1年 | S88: △50％ 60日または手術 | T88: 最長1年 | W88: △1年 | X88: 最長1年 | Y88: △1年 | Z88: 最長1年 | AA88: △1年 | AB88: 最長1年 | AC88: △1年 | AD88: 最長1年 | AE88: △1年 | AF88: 最長1年 | AJ88: △2年 | AK88: 3カ月経過後、最長21カ月
A89: SBIマネープラザ | B89: ＳＢＩ生命保険 | C89: スゴ団信 3大疾病100プラン（40才以上） | E89: 0.004 | G89: 40 | H89: 64 | I89: 79 | L89: 〇診断 | O89: 1000万円 | P89: 〇 | Q89: 〇60日又は手術 | R89: 最長1年 | S89: 〇60日又は手術 | T89: 最長1年 | W89: △1年 | X89: 最長1年 | Y89: △1年 | Z89: 最長1年 | AA89: △1年 | AB89: 最長1年 | AC89: △1年 | AD89: 最長1年 | AE89: △1年 | AF89: 最長1年 | AJ89: △2年 | AK89: 3カ月経過後、最長21カ月
A90: SBIマネープラザ | B90: ＳＢＩ生命保険 | C90: スゴ団信 3大疾病50プラン（40才以上） | E90: 0.0025 | G90: 40 | H90: 64 | I90: 79 | L90: △50％ 診断 | M90: 重度がん前払い金 | O90: 1000万円 | Q90: △50％ 60日または手術 | R90: 最長1年 | S90: △50％ 60日または手術 | T90: 最長1年 | W90: △1年 | X90: 最長1年 | Y90: △1年 | Z90: 最長1年 | AA90: △1年 | AB90: 最長1年 | AC90: △1年 | AD90: 最長1年 | AE90: △1年 | AF90: 最長1年 | AJ90: △2年 | AK90: 3カ月経過後、最長21カ月
A91: SBIマネープラザ | B91: ＳＢＩ生命保険 | C91: ワイド団信 | E91: 0.003 | H91: 69 | I91: 79 | L91: △1年 | M91: 最長1年
A92: SBIマネープラザ | B92: ＳＢＩ生命保険 | C92: 全疾病保障 | E92: 0 | H92: 64 | I92: 79 | Q92: △1年 | R92: 最長1年 | S92: △1年 | T92: 最長1年 | W92: △1年 | X92: 最長1年 | Y92: △1年 | Z92: 最長1年 | AA92: △1年 | AB92: 最長1年 | AC92: △1年 | AD92: 最長1年 | AE92: △1年 | AF92: 最長1年 | AJ92: △2年 | AK92: 3カ月経過後、最長21カ月
A93: PayPay銀行 | B93: クレディ・アグリコル生命保険 | C93: 一般団信 | E93: 0 | H93: 64 | I93: 79 | P93: 〇
A94: PayPay銀行 | B94: クレディ・アグリコル生命保険 | C94: 一般団信プラス | E94: 0 | H94: 50 | I94: 79 | N94: 100万円 | O94: 1000万円 | P94: 〇
A95: PayPay銀行 | B95: クレディ・アグリコル生命保険 | C95: ワイド団信 | E95: 0.003 | H95: 64 | I95: 79 | P95: 〇
A96: PayPay銀行 | B96: クレディ・アグリコル生命保険 | C96: がん50％保障団信 | E96: 0 | H96: 50 | I96: 79 | L96: △50％ 診断 | P96: 〇
A97: PayPay銀行 | B97: クレディ・アグリコル生命保険 | C97: がん100％保障団信 | E97: 0.001 | H97: 50 | I97: 79 | L97: 〇診断 | N97: 100万円／上皮内がん・皮膚がん50万円 | P97: 〇
A98: PayPay銀行 | B98: クレディ・アグリコル生命保険 | C98: がん100％保障団信＋10疾病保障団信 | E98: 0.003 | H98: 50 | I98: 79 | L98: 〇診断 | M98: 上皮内180日以上 | N98: 100万円／上皮内がん・皮膚がん50万円 | P98: 〇 | U98: 10万円（通算10回） | V98: 31日経過後毎月（入院5回、通算36回） | W98: △180日 | Y98: △180日 | AA98: △180日 | AC98: △180日 | AE98: △180日 | AG98: △180日 | AH98: △180日
A99: 北陸銀行 | B99: 明治生命他協同引き受け | C99: 地銀協団信 | E99: 0 | G99: 18 | H99: 70 | P99: 〇
A100: 北陸銀行 | B100: 明治生命他協同引き受け | C100: 地銀協ライフサポート団信 | E100: 0.0025 | G100: 18 | H100: 50 | L100: 〇診断 | P100: 〇 | Q100: 〇手術又は60日 | S100: 〇手術又は60日 | W100: △1年 | X100: 3カ月経過後、最長9カ月 | Y100: △1年 | Z100: 3カ月経過後、最長9カ月 | AA100: △1年 | AB100: 3カ月経過後、最長9カ月 | AC100: △1年 | AD100: 3カ月経過後、最長9カ月 | AE100: △1年 | AF100: 3カ月経過後、最長9カ月 | AJ100: △1年 | AK100: 3カ月経過後、最長9カ月
A101: 北陸銀行 | B101: カーディフ生命保険 | C101: 一般団信 | E101: 0 | H101: 70
A102: 北陸銀行 | B102: カーディフ生命保険、カーディフ損害保険 | C102: ８大疾病保障（50才以下） | E102: 0.002 | H102: 50 | L102: 〇診断 | N102: ▲配偶者、女性特有のがん100万円 | Q102: 〇60日 | R102: 通算2カ月分 | S102: 〇60日 | T102: 通算2カ月分 | W102: △1年 | X102: 最長12カ月、通算36カ月 | Y102: △1年 | Z102: 最長12カ月、通算36カ月 | AA102: △1年 | AB102: 最長12カ月、通算36カ月 | AC102: △1年 | AD102: 最長12カ月、通算36カ月 | AE102: △1年 | AF102: 最長12カ月、通算36カ月
A103: 北陸銀行 | B103: カーディフ生命保険、カーディフ損害保険 | C103: ８大疾病保障（70） | E103: 0.003 | H103: 70 | L103: 〇診断 | N103: ▲配偶者、女性特有のがん100万円 | Q103: 〇60日 | R103: 通算2カ月分 | S103: 〇60日 | T103: 通算2カ月分 | W103: △1年 | X103: 最長12カ月、通算36カ月 | Y103: △1年 | Z103: 最長12カ月、通算36カ月 | AA103: △1年 | AB103: 最長12カ月、通算36カ月 | AC103: △1年 | AD103: 最長12カ月、通算36カ月 | AE103: △1年 | AF103: 最長12カ月、通算36カ月
A104: 北陸銀行 | B104: カーディフ生命保険、カーディフ損害保険 | C104: 全疾病保障（50才以下） | E104: 0.003 | H104: 50 | L104: 〇診断 | N104: ▲配偶者、女性特有のがん100万円 | Q104: 〇60日 | R104: 通算2カ月分 | S104: 〇60日 | T104: 通算2カ月分 | U104: 10万円（最大12回） | W104: △1年 | X104: 最長12カ月、通算36カ月 | Y104: △1年 | Z104: 最長12カ月、通算36カ月 | AA104: △1年 | AB104: 最長12カ月、通算36カ月 | AC104: △1年 | AD104: 最長12カ月、通算36カ月 | AE104: △1年 | AF104: 最長12カ月、通算36カ月 | AG104: △1年 | AH104: △1年 | AJ104: △1年 | AK104: 通算12カ月
A105: 北陸銀行 | B105: カーディフ生命保険、カーディフ損害保険 | C105: 全疾病保障（70） | E105: 0.004 | H105: 70 | L105: 〇診断 | N105: ▲配偶者、女性特有のがん100万円 | Q105: 〇60日 | R105: 通算2カ月分 | S105: 〇60日 | T105: 通算2カ月分 | U105: 10万円（最大12回） | W105: △1年 | X105: 最長12カ月、通算36カ月 | Y105: △1年 | Z105: 最長12カ月、通算36カ月 | AA105: △1年 | AB105: 最長12カ月、通算36カ月 | AC105: △1年 | AD105: 最長12カ月、通算36カ月 | AE105: △1年 | AF105: 最長12カ月、通算36カ月 | AG105: △1年 | AH105: △1年 | AJ105: △1年 | AK105: 通算12カ月
A106: 北陸銀行 | B106: カーディフ生命保険、カーディフ損害保険 | C106: 夫婦連生保障（プラン１） | E106: 0.0035 | H106: 70 | I106: 79 | K106: 主債務者 | L106: 〇診断 | Q106: 〇60日 | R106: 最長2か月、通算36カ月分 | S106: 〇60日 | T106: 最長2か月、通算36カ月分 | W106: △1年 | X106: 最長12カ月、通算36カ月 | Y106: △1年 | Z106: 最長12カ月、通算36カ月 | AA106: △1年 | AB106: 最長12カ月、通算36カ月 | AC106: △1年 | AD106: 最長12カ月、通算36カ月 | AE106: △1年 | AF106: 最長12カ月、通算36カ月
A107: 北陸銀行 | H107: 70 | I107: 79 | K107: 従債務者 | L107: 〇診断 | Q107: 〇60日 | R107: 最長2か月、通算36カ月分 | S107: 〇60日 | T107: 最長2か月、通算36カ月分 | W107: △1年 | X107: 最長12カ月、通算36カ月 | Y107: △1年 | Z107: 最長12カ月、通算36カ月 | AA107: △1年 | AB107: 最長12カ月、通算36カ月 | AC107: △1年 | AD107: 最長12カ月、通算36カ月 | AE107: △1年 | AF107: 最長12カ月、通算36カ月
A108: 北陸銀行 | B108: カーディフ生命保険、カーディフ損害保険 | C108: 夫婦連生保障（プラン２） | E108: 0.003 | H108: 70 | I108: 79 | K108: 主債務者 | L108: 〇診断 | Q108: 〇60日 | R108: 最長2か月、通算36カ月分 | S108: 〇60日 | T108: 最長2か月、通算36カ月分 | W108: △1年 | X108: 最長12カ月、通算36カ月 | Y108: △1年 | Z108: 最長12カ月、通算36カ月 | AA108: △1年 | AB108: 最長12カ月、通算36カ月 | AC108: △1年 | AD108: 最長12カ月、通算36カ月 | AE108: △1年 | AF108: 最長12カ月、通算36カ月
A109: 北陸銀行 | H109: 70 | I109: 79 | K109: 従債務者 | L109: 〇診断
A110: 北國銀行 | B110: 明治生命他協同引き受け | C110: 地銀協団信 | E110: 0 | H110: 65 | P110: 〇
A111: 北國銀行 | B111: 明治生命他協同引き受け | C111: 地銀協夫婦連生 | E111: 0.0015 | H111: 65 | P111: 〇
A112: 北國銀行 | B112: 明治生命他協同引き受け | C112: 地銀協がん団信 | E112: 0.001 | H112: 50 | L112: 〇診断 | P112: 〇
A113: 北國銀行 | B113: 明治生命他協同引き受け | C113: 8大疾病保障付債務返済支援保険 | E113: 0.001 | H113: 50 | L113: △13カ月 | Q113: △13カ月 | S113: △13カ月 | W113: △13カ月 | Y113: △13カ月 | AA113: △13カ月 | AC113: △13カ月 | AE113: △13カ月 | AK113: 1カ月経過後最長12カ月
A114: 北國銀行 | B114: 明治生命他協同引き受け | C114: 地銀協ダブルサポート団信 | E114: 0.0025 | H114: 50 | L114: 〇診断 | N114: 100万円 | P114: 〇 | Q114: 〇60日 | S114: 〇60日 | U114: 10万円 | W114: △1年 | Y114: △1年 | AA114: △1年 | AC114: △1年 | AE114: △1年
A115: 北國銀行 | B115: 明治生命他協同引き受け | C115: 地銀協ワイド団信 | E115: 0.004 | H115: 65 | P115: 〇
A116: 北陸ろうきん | B116: 日本生命他協同引き受け | C116: ろうきん団信 | E116: 0 | F116: 1億円 | G116: 18 | H116: 65 | I116: 75 | J116: 1億円
A117: 北陸ろうきん | B117: 日本生命他協同引き受け | C117: 夫婦連生団信 | E117: 0.001 | F117: 1億円 | G117: 18 | H117: 65 | I117: 75 | J117: 1億円
A118: 北陸ろうきん | B118: 日本生命他協同引き受け | C118: 就業不能保証団信 | E118: 0.001 | F118: 1億円 | G118: 18 | H118: 65 | I118: 75 | J118: 1億円 | AJ118: △15カ月 | AK118: 3カ月経過後最長12カ月
A119: 北陸ろうきん | B119: 日本生命他協同引き受け | C119: 就業不能保証団信/夫婦連生 | E119: 0.002 | F119: 1億円 | G119: 18 | H119: 65 | I119: 75 | J119: 1億円 | AJ119: △15カ月 | AK119: 3カ月経過後最長12カ月
A120: 北陸ろうきん | B120: 日本生命他協同引き受け | C120: ろうきんオールマイティ保障型団信 | E120: 0.002 | F120: 1億円 | G120: 18 | H120: 50 | I120: 75 | J120: 1億円 | L120: 〇診断 | Q120: 〇60日又は手術 | S120: 〇60日又は手術 | AJ120: 〇所定の障害
A121: 北陸ろうきん | B121: 日本生命他協同引き受け | C121: 引受緩和団信 | E121: 0.004 | F121: 1億円 | G121: 18 | H121: 65 | I121: 75 | J121: 1億円
A122: 中央ろうきん | B122: 日本生命他協同引き受け | C122: ろうきん団信 | E122: 0 | F122: 1億円 | G122: 18 | H122: 65 | I122: 75 | J122: 1億円
A123: 中央ろうきん | B123: 日本生命他協同引き受け | C123: 夫婦連生団信 | E123: 0.001 | F123: 1億円 | G123: 18 | H123: 65 | I123: 75 | J123: 1億円
A124: 中央ろうきん | B124: 日本生命他協同引き受け | C124: 就業不能保証団信 | E124: 0.001 | F124: 1億円 | G124: 18 | H124: 65 | I124: 75 | J124: 1億円 | AJ124: △1年
A125: 中央ろうきん | B125: 日本生命他協同引き受け | C125: 就業不能保証団信/夫婦連生 | E125: 0.004 | F125: 1億円 | G125: 18 | H125: 65 | I125: 75 | J125: 1億円 | AJ125: △1年
A126: 中央ろうきん | B126: 日本生命他協同引き受け | C126: がん団信 | E126: 0.001 | F126: 1億円 | G126: 18 | H126: 50 | I126: 75 | J126: 1億円 | L126: 〇診断 | P126: 〇
A127: 中央ろうきん | B127: 日本生命他協同引き受け | C127: がん団信/夫婦連生 | E127: 0.003 | F127: 1億円 | G127: 18 | H127: 50 | I127: 75 | J127: 1億円 | L127: 〇診断 | P127: 〇
A128: 中央ろうきん | B128: 日本生命他協同引き受け | C128: ろうきんオールマイティ保障型団信 | E128: 0.003 | F128: 1億円 | G128: 18 | H128: 50 | I128: 75 | J128: 1億円 | L128: 〇診断 | Q128: 〇60日又は手術 | S128: 〇60日又は手術 | AJ128: 〇所定の障害
A129: 中央ろうきん | B129: 日本生命他協同引き受け | C129: 引受緩和団信 | E129: 0.003 | G129: 18 | H129: 65 | I129: 75 | J129: 1億円
A130: 常陽銀行 | C130: 一般団信 | E130: 0 | H130: 70 | I130: 79
A131: 常陽銀行 | C131: がん保障付 | D131: めぶきで変動と全期間が0％ | E131: 0.001 | G131: 18 | H131: 50 | I131: 79 | J131: 1億円 | L131: 〇診断 | P131: 〇
A132: 常陽銀行 | B132: 明治安田生命保険＆日本生命保険 | C132: ライフサポート団信付 | E132: 0.002 | G132: 18 | H132: 50 | I132: 74 | J132: 1億円 | L132: 〇診断 | Q132: 〇60日 | S132: 〇60日 | AJ132: △15カ月 | AK132: 3カ月経過後最長12カ月
A133: 常陽銀行 | B133: クレディ・アグリコル生命保険 | C133: ワイド団信付 | E133: 0.003 | G133: 18 | H133: 50 | I133: 79
A134: 横浜銀行 | B134: 明治安田生命協同引き受け | C134: 地銀協一般団信 | E134: 0 | G134: 15 | H134: 70 | I134: 81 | J134: 1億円 | P134: 〇
A135: 横浜銀行 | B135: カーディフ生命保険・カーディフ損害保険 | C135: ガン保障特約付団信 | E135: 0.002 | G135: 18 | H135: 50 | I135: 75 | J135: 1億円 | L135: 〇診断 | P135: 〇 | U135: 10万円 | V135: 3カ月経過後、最長3カ月返済 | AJ135: 最長3カ月分
A136: 横浜銀行 | B136: 明治生命他協同引き受け | C136: 3大疾病保障特約付団信 | E136: 0.0025 | G136: 15 | H136: 50 | I136: 75 | J136: 1億円 | L136: 〇診断 | P136: 〇 | Q136: 〇60日又は手術 | S136: 〇60日又は手術
A137: 横浜銀行 | B137: カーディフ生命保険・カーディフ損害保険 | C137: 8大疾病保障特約付団信 | E137: 0.003 | G137: 18 | H137: 50 | I137: 81 | J137: 1億円 | L137: 〇診断 | N137: 奥様ガン診断100万円 | P137: 〇 | Q137: 〇60日 | S137: 〇60日 | U137: 10万円 | W137: △1年 | X137: 3カ月経過後、最長9カ月 | Y137: △1年 | Z137: 3カ月経過後、最長9カ月 | AA137: △1年 | AB137: 3カ月経過後、最長9カ月 | AC137: △1年 | AD137: 3カ月経過後、最長9カ月 | AE137: △1年 | AF137: 3カ月経過後、最長9カ月 | AJ137: 最長3カ月分
A138: 横浜銀行 | B138: 明治安田生命・損保ジャパン | C138: 全疾病保障特約付団信 | E138: 0.0035 | G138: 18 | H138: 50 | I138: 81 | J138: 1億円 | L138: 〇診断 | N138: 10万円 | P138: 〇 | Q138: 〇60日 | R138: 最長2か月 | S138: 〇60日 | T138: 最長2か月 | U138: 10万円 | W138: △1年 | Y138: △1年 | AA138: △1年 | AC138: △1年 | AE138: △1年 | AG138: △1年 | AH138: △1年 | AJ138: △1年
A139: 横浜銀行 | B139: カーディフ生命保険 | C139: ワイド団信 | E139: 0.003 | G139: 18 | H139: 50 | I139: 81 | J139: 1億円 | P139: 〇
A140: 静岡銀行 | C140: 一般団信 | E140: 0 | H140: 70 | I140: 75
A141: 静岡銀行 | B141: カーディフ生命保険 | C141: 全疾病保障奥様ワイド | E141: 0.004 | G141: 18 | H141: 55 | I141: 81 | J141: 2億円 | L141: 〇診断 | N141: 上皮内がん・皮膚がん30万円 奥様のがん100万円 | O141: 2000万円更に1時金10万円 | P141: 〇 | Q141: 〇60日 | R141: 最長2か月 | S141: 〇60日 | T141: 最長2か月 | W141: △1年 | X141: 最長12カ月、通算36カ月 | Y141: △1年 | Z141: 最長12カ月、通算36カ月 | AA141: △1年 | AB141: 最長12カ月、通算36カ月 | AC141: △1年 | AD141: 最長12カ月、通算36カ月 | AE141: △1年 | AF141: 最長12カ月、通算36カ月 | AJ141: △1年 | AK141: 最長12カ月、通算36カ月
A142: 静岡銀行 | B142: カーディフ生命保険・カーディフ損害保険 | C142: ベーシック8疾病保障 | E142: 0.002 | G142: 18 | H142: 55 | I142: 81 | J142: 2億円 | L142: 〇診断 | N142: 奥様のがん100万円 | P142: 〇 | Q142: 〇60日 | R142: 最長2か月 | S142: 〇60日 | T142: 最長2か月 | W142: △1年 | X142: 最長12カ月、通算36カ月 | Y142: △1年 | Z142: 最長12カ月、通算36カ月 | AA142: △1年 | AB142: 最長12カ月、通算36カ月 | AC142: △1年 | AD142: 最長12カ月、通算36カ月 | AE142: △1年 | AF142: 最長12カ月、通算36カ月
A143: 静岡銀行 | B143: カーディフ生命保険・カーディフ損害保険 | C143: アドアバンスト8疾病保障 | E143: 0.003 | G143: 18 | H143: 55 | I143: 81 | J143: 2億円 | L143: 〇診断 | N143: 上皮内がん・皮膚がん30万円 奥様のがん100万円 | O143: 2000万円更に1時金10万円 | P143: 〇 | Q143: 〇60日 | R143: 最長2か月 | S143: 〇60日 | T143: 最長2か月 | W143: △1年 | X143: 最長12カ月、通算36カ月 | Y143: △1年 | Z143: 最長12カ月、通算36カ月 | AA143: △1年 | AB143: 最長12カ月、通算36カ月 | AC143: △1年 | AD143: 最長12カ月、通算36カ月 | AE143: △1年 | AF143: 最長12カ月、通算36カ月 | AJ143: △1年 | AK143: 最長12カ月、通算36カ月
A144: 静岡銀行 | B144: カーディフ生命保険・カーディフ損害保険 | C144: ガン保障付夫婦連生団信 | E144: 0.001 | G144: 18 | H144: 55 | I144: 81 | J144: 1億円 | L144: △12カ月 | M144: 最長12カ月返済、重度ガン前払い | P144: 〇 | AJ144: がん最長12カ月
A145: 静岡銀行 | B145: カーディフ生命保険 | C145: しずぎん ハーフがん全疾病保障 | E145: 0.001 | G145: 18 | H145: 55 | I145: 81 | J145: 1億円 | L145: △50％診断、12カ月超で100％ | M145: 重度がん前払い | P145: 〇 | Q145: △1年 | R145: 最長12カ月、通算36カ月 | S145: △1年 | T145: 最長12カ月、通算36カ月 | W145: △1年 | X145: 最長12カ月、通算36カ月 | Y145: △1年 | Z145: 最長12カ月、通算36カ月 | AA145: △1年 | AB145: 最長12カ月、通算36カ月 | AC145: △1年 | AD145: 最長12カ月、通算36カ月 | AE145: △1年 | AF145: 最長12カ月、通算36カ月 | AJ145: △1年 | AK145: 最長12カ月、通算36カ月
A146: 静岡銀行 | C146: ワイド団信 | E146: 0.003 | H146: 50 | I146: 80
A147: 北洋銀行 | B147: 日本生命保険主幹事 | C147: 第二地銀協団信 | E147: 0.003 | H147: 64 | I147: 81
A148: 北洋銀行 | B148: 三井住友海上あいおい生命保険 | C148: 死亡・高度障害保障付 | E148: 0 | H148: 64 | I148: 81
A149: 北洋銀行 | B149: 三井住友海上あいおい生命保険 | C149: がん保障付 | E149: 0.002 | H149: 50 | L149: 〇診断 | P149: 〇
A150: 北洋銀行 | B150: 三井住友海上あいおい生命保険 | C150: 三大疾病保障付 | E150: 0.003 | H150: 50 | L150: 〇診断 | P150: 〇 | Q150: 〇60日又は手術 | S150: 〇60日又は手術
A151: 北洋銀行 | B151: 三井住友海上あいおい生命保険 | C151: 八大疾病保障付 | E151: 0.003 | H151: 50 | L151: 〇診断 | P151: 〇 | Q151: 〇60日又は手術 | S151: 〇60日又は手術 | W151: △180日 | Y151: △180日 | AA151: △180日 | AC151: △180日 | AE151: △180日 | AJ151: △180日 | AK151: 2か月経過後、最長6カ月
A152: 北洋銀行 | B152: 三井住友海上あいおい生命保険、あいおいニッセイ同和損額保険 | C152: ほくよう住実団信 | E152: 0.004 | H152: 50 | L152: 〇診断 | P152: 〇 | Q152: 〇60日又は手術 | S152: 〇60日又は手術 | W152: △180日 | Y152: △180日 | AA152: △180日 | AC152: △180日 | AE152: △180日 | AJ152: △180日 | AK152: 2か月経過後、最長6カ月
A153: 北洋銀行 | B153: 三井住友海上あいおい生命保険 | C153: ハートルフル | D153: おそらくワイド団信 | E153: 0.006 | G153: 18 | H153: 50 | I153: 81 | P153: 〇 | AJ153: △180日（10種類） | AK153: 1か月経過後、最長6カ月
A154: 北洋銀行 | B154: クレディ・アグリコル生命保険 | C154: 11疾病団信 生活習慣病団信＜入院プラスα＞ | E154: 0.003 | G154: 20 | H154: 50 | L154: 〇診断 | N154: 100万円、上皮内がん・皮膚がん50万円奥様のがん100万円 | U154: 5日以上で10万円
A155: 北洋銀行 | B155: クレディ・アグリコル生命保険 | C155: 11疾病団信 生活習慣病団信＜入院プラスα＞ | E155: 0.0045 | G155: 51 | H155: 60 | L155: 〇診断 | N155: 100万円、上皮内がん・皮膚がん50万円奥様のがん100万円 | U155: 5日以上で10万円

Sheet table (hidden)
A1: 収入印紙 | U1: 0
B2: 契約額（円） | C2: 税額 | E2: フラット35 | G2: 変動金利 | H2: 0.5 | I2: 0.5 | K2: 0 | L2: 現状 | N2: 0 | P2: なし | T2: =住宅ローン!J10 -> 0 | U2: 1
B3: 10000 | C3: 200 | E3: メガバンク | G3: 1年固定 | H3: 1 | I3: 5 | K3: =住宅ローン!J10*100 -> 0 | L3: 資産運用 | N3: 1 | P3: 普通団信 | R3: 含めない | T3: =住宅ローン!K10 -> 0 | U3: 2 | AI3: 15 | AJ3: 16 | AK3: 17 | AL3: 18 | AM3: 19 | AN3: 20 | AO3: 21 | AP3: 22 | AQ3: 23 | AR3: 24 | AS3: 25 | AT3: 26 | AU3: 27 | AV3: 28 | AW3: 29 | AX3: 30 | AY3: 31 | AZ3: 32 | BA3: 33 | BB3: 34 | BC3: 35 | BD3: 36 | BE3: 37 | BF3: 38 | BG3: 39 | BH3: 40 | BI3: 41 | BJ3: 42 | BK3: 43 | BL3: 44 | BM3: 45 | BN3: 46 | BO3: 47 | BP3: 48 | BQ3: 49 | BR3: 50
B4: 100000 | C4: 400 | G4: 2年固定 | H4: 2 | I4: 10 | K4: =住宅ローン!K10*100 -> 0 | L4: 家計見直し | N4: 2 | P4: がん団信 | R4: 含める | T4: =住宅ローン!L10 -> 0 | U4: 3 | AH4: 保証料率 | AI4: 0.011982 | AJ4: 0.0125526 | AK4: 0.0131232 | AL4: 0.0136938 | AM4: 0.0142644 | AN4: 0.014835 | AO4: 0.0153198 | AP4: 0.0158046 | AQ4: 0.0162894 | AR4: 0.0167742 | AS4: 0.017259 | AT4: 0.0176342 | AU4: 0.0180094 | AV4: 0.0183846 | AW4: 0.0187598 | AX4: 0.019135 | AY4: 0.0194302 | AZ4: 0.0197254 | BA4: 0.0200206 | BB4: 0.0203158 | BC4: 0.020611
B5: 500000 | C5: 1000 | E5: マンション | G5: 3年固定 | H5: 3 | K5: =住宅ローン!L10*100 -> 0 | L5: 見直し＋資産運用 | N5: 3 | P5: 疾病保障付団信 | AH5: 常陽銀行 | AI5: 0.005985 | AJ5: =AI5+(AN5-AI5)/5 -> 0.0062696 | AK5: =AI5+(AN5-AI5)/5*2 -> 0.0065542 | AL5: =AI5+(AN5-AI5)/5*3 -> 0.0068388 | AM5: =AI5+(AN5-AI5)/5*4 -> 0.0071234 | AN5: 0.007408 | AO5: =AN5+(AS5-AN5)/5 -> 0.0076496 | AP5: =AN5+(AS5-AN5)/5*2 -> 0.0078912 | AQ5: =AN5+(AS5-AN5)/5*3 -> 0.0081328 | AR5: =AN5+(AS5-AN5)/5*4 -> 0.0083744 | AS5: 0.008616 | AT5: =AS5+(AX5-AS5)/5 -> 0.0088042 | AU5: =AS5+(AX5-AS5)/5*2 -> 0.0089924 | AV5: =AS5+(AX5-AS5)/5*3 -> 0.0091806 | AW5: =AS5+(AX5-AS5)/5*4 -> 0.0093688 | AX5: 0.009557 | AY5: =AX5+(BC5-AX5)/5 -> 0.0097036 | AZ5: =AX5+(BC5-AX5)/5*2 -> 0.0098502 | BA5: =AX5+(BC5-AX5)/5*3 -> 0.0099968 | BB5: =AX5+(BC5-AX5)/5*4 -> 0.0101434 | BC5: 0.01029 | BD5: =BC5+(BH5-BC5)/5 -> 0.0104038 | BE5: =BC5+(BH5-BC5)/5*2 -> 0.0105176 | BF5: =BC5+(BH5-BC5)/5*3 -> 0.0106314 | BG5: =BC5+(BH5-BC5)/5*4 -> 0.0107452 | BH5: 0.010859 | BI5: =BH5+(BM5-BH5)/5 -> 0.010945 | BJ5: =BH5+(BM5-BH5)/5*2 -> 0.011031 | BK5: =BH5+(BM5-BH5)/5*3 -> 0.011117 | BL5: =BH5+(BM5-BH5)/5*4 -> 0.011203 | BM5: 0.011289 | BN5: =BM5+(BR5-BM5)/5 -> 0.0113534 | BO5: =BM5+(BR5-BM5)/5*2 -> 0.0114178 | BP5: =BM5+(BR5-BM5)/5*3 -> 0.0114822 | BQ5: =BM5+(BR5-BM5)/5*4 -> 0.0115466 | BR5: 0.011611
B6: 1000000 | C6: 2000 | E6: 戸建て | G6: 5年固定 | H6: 5 | N6: 4 | P6: 夫婦連生 | AH6: 北陸銀行 | AI6: 0.013138 | AJ6: 0.013897 | AK6: 0.014641 | AL6: 0.015368 | AM6: 0.016078 | AN6: 0.016773 | AO6: 0.017449 | AP6: 0.018105 | AQ6: 0.018754 | AR6: 0.019379 | AS6: 0.019995 | AT6: 0.020581 | AU6: 0.021165 | AV6: 0.021728 | AW6: 0.022271 | AX6: 0.022799 | AY6: 0.023322 | AZ6: 0.023816 | BA6: 0.024298 | BB6: 0.024774 | BC6: 0.025221
B7: 5000000 | C7: 10000 | G7: 7年固定 | H7: 7 | J7: 弊社報酬 | K7: 0 | N7: 5 | P7: ワイド団信 | AH7: 中央ろうきん | AI7: =0.3809%+(AN7-0.3809%)/10*5 -> 0.005517 | AJ7: =0.3809%+(AN7-0.3809%)/10*6 -> 0.0058586 | AK7: =0.3809%+(AN7-0.3809%)/10*7 -> 0.0062002 | AL7: =0.3809%+(AN7-0.3809%)/10*8 -> 0.0065418 | AM7: =0.3809%+(AN7-0.3809%)/10*9 -> 0.0068834 | AN7: 0.007225 | AO7: =AN7+(AX7-AN7)/10 -> 0.0075388 | AP7: =AN7+(AX7-AN7)/10*2 -> 0.0078526 | AQ7: =AN7+(AX7-AN7)/10*3 -> 0.0081664 | AR7: =AN7+(AX7-AN7)/10*4 -> 0.0084802 | AS7: =AN7+(AX7-AN7)/10*5 -> 0.008794 | AT7: =AN7+(AX7-AN7)/10*6 -> 0.0091078 | AU7: =AN7+(AX7-AN7)/10*7 -> 0.0094216 | AV7: =AN7+(AX7-AN7)/10*8 -> 0.0097354 | AW7: =AN7+(AX7-AN7)/10*9 -> 0.0100492 | AX7: 0.010363 | AY7: =AX7+(BC7-AX7)/5 -> 0.0106594 | AZ7: =AX7+(BC7-AX7)/5*2 -> 0.0109558 | BA7: =AX7+(BC7-AX7)/5*3 -> 0.0112522 | BB7: =AX7+(BC7-AX7)/5*4 -> 0.0115486 | BC7: 0.011845
B8: 10000000 | C8: 20000 | G8: 10年固定 | H8: 10 | AH8: 横浜銀行 | AI8: 0.011982 | AJ8: =AI8+(AN8-AI8)/5 -> 0.0125524 | AK8: =AI8+(AN8-AI8)/5*2 -> 0.0131228 | AL8: =AI8+(AN8-AI8)/5*3 -> 0.0136932 | AM8: =AI8+(AN8-AI8)/5*4 -> 0.0142636 | AN8: 0.014834 | AO8: =AN8+(AS8-AN8)/5 -> 0.015318 | AP8: =AN8+(AS8-AN8)/5*2 -> 0.015802 | AQ8: =AN8+(AS8-AN8)/5*3 -> 0.016286 | AR8: =AN8+(AS8-AN8)/5*4 -> 0.01677 | AS8: 0.017254 | AT8: =AS8+(AX8-AS8)/5 -> 0.0176306 | AU8: =AS8+(AX8-AS8)/5*2 -> 0.0180072 | AV8: =AS8+(AX8-AS8)/5*3 -> 0.0183838 | AW8: =AS8+(AX8-AS8)/5*4 -> 0.0187604 | AX8: 0.019137 | AY8: =AX8+(BC8-AX8)/5 -> 0.0194458 | AZ8: =AX8+(BC8-AX8)/5*2 -> 0.0197546 | BA8: =AX8+(BC8-AX8)/5*3 -> 0.0200634 | BB8: =AX8+(BC8-AX8)/5*4 -> 0.0203722 | BC8: 0.020681
B9: 50000000 | C9: 60000 | G9: 15年固定 | H9: 15 | AH9: 静岡銀行 | AI9: 0.011982 | AJ9: =AJ8 -> 0.0125524 | AK9: =AK8 -> 0.0131228 | AL9: 0.0136932 | AM9: 0.0142636 | AN9: 0.014834 | AO9: 0.015318 | AP9: 0.015802 | AQ9: 0.016286 | AR9: 0.01677 | AS9: 0.017254 | AT9: 0.0176306 | AU9: 0.0180072 | AV9: 0.0183838 | AW9: 0.0187604 | AX9: 0.019137 | AY9: =AY8 -> 0.0194458 | AZ9: 0.0197546 | BA9: 0.0200634 | BB9: 0.0203722 | BC9: 0.020681
B10: 100000000 | C10: 100000 | G10: 20年固定 | H10: 20
B11: 500000000 | C11: 200000 | G11: 35年固定 | H11: 35 | I11: 戸建ては、30年間で930万円（日経新聞調べ）
G12: 全期間固定 | H12: 35 | I12: マンションは329万円（住宅リフォーム推進協議会調べ） | J12: 中央ろうきん
G13: ｽﾃｯﾌﾟﾀﾞｳﾝ
A14: 教育費等
C15: 児童手当 | D15: 第1子 | E15: 第2子 | F15: 第3子 | G15: 第4子 | H15: 第5子 | I15: 教育費相当分 | K15: 住居購入費 | M15: 修繕費 | N15: =お客様情報1!E103 ->  | O15: 火災保険 | P15: 固定資産税 | R15: 昭和63年 | S15: 1988 | T15: =TEXT(S15,0)&TEXT(" ",)&R15 -> 1988 昭和63年 | W15: 北陸銀行
B16: -7 | C16: 0 | D16: 0 | E16: 0 | F16: 0 | G16: 0 | H16: 0 | J16: =お客様情報1!E95 -> 0 | K16: =-(お客様情報1!E99+お客様情報1!E101)*IF(お客様情報1!E93="戸建て",1.08,1.05) -> 0 | L16: 1 | P16: =IF(お客様情報1!$E$97="",-(お客様情報1!$E$99/2+お客様情報1!$E$101/2)*1.7%/2,-お客様情報1!$E$97) -> 0 | R16: 平成元年 | S16: 1989 | T16: =TEXT(S16,0)&TEXT(" ",)&R16 -> 1989 平成元年
B17: -6 | C17: 0 | D17: 0 | E17: 0 | F17: 0 | G17: 0 | H17: 0 | J17: =J16+1 -> 1 | L17: 2 | P17: =IF(お客様情報1!$E$97="",-(お客様情報1!$E$99/2+お客様情報1!$E$101/2)*1.7%/2,-お客様情報1!$E$97) -> 0 | R17: 平成2年 | S17: 1990 | T17: 1990 平成2年
A18: 公立 | B18: -5 | C18: 0 | D18: 0 | E18: 0 | F18: 0 | G18: 0 | H18: 0 | J18: =J17+1 -> 2 | L18: 3 | P18: =IF(お客様情報1!$E$97="",-(お客様情報1!$E$99/2+お客様情報1!$E$101/2)*1.7%/2,-お客様情報1!$E$97) -> 0 | R18: 平成3年 | S18: 1991 | T18: 1991 平成3年
A19: 私立 | B19: -4 | C19: 0 | D19: 0 | E19: 0 | F19: 0 | G19: 0 | H19: 0 | J19: 3 | L19: 4 | P19: =IF(お客様情報1!$E$97="",-(お客様情報1!$E$99/2+お客様情報1!$E$101/2)*1.7%/2,-お客様情報1!$E$97) -> 0 | R19: 平成4年 | S19: 1992 | T19: 1992 平成4年
B20: -3 | C20: 0 | D20: 0 | E20: 0 | F20: 0 | G20: 0 | H20: 0 | J20: 4 | L20: 5 | O20: =-お客様情報2!D12*12*5/10000 -> 0 | P20: =IF(お客様情報1!$E$97="",-(お客様情報1!$E$99/2+お客様情報1!$E$101/2)*1.7%/2,-お客様情報1!$E$97) -> 0 | R20: 平成5年 | S20: 1993 | T20: 1993 平成5年
A21: 国公立 | B21: -2 | C21: 0 | D21: 0 | E21: 0 | F21: 0 | G21: 0 | H21: 0 | J21: 5 | L21: 6 | P21: =IF(お客様情報1!$E$97="",-(お客様情報1!$E$99/2+お客様情報1!$E$101/2)*1.7%/2,-お客様情報1!$E$97) -> 0 | R21: 平成6年 | S21: 1994 | T21: 1994 平成6年
A22: 私立文系 | B22: -1 | C22: 0 | D22: 0 | E22: 0 | F22: 0 | G22: 0 | H22: 0 | J22: 6 | L22: 7 | P22: =IF(お客様情報1!$E$97="",-(お客様情報1!$E$99/2+お客様情報1!$E$101/2)*1.7%/2,-お客様情報1!$E$97) -> 0 | R22: 平成7年 | S22: 1995 | T22: 1995 平成7年
A23: 私立理系 | B23: 0 | C23: 0 | D23: 0 | E23: 0 | F23: 0 | G23: 0 | H23: 0 | J23: 7 | L23: 8 | P23: =IF(お客様情報1!$E$97="",-(お客様情報1!$E$99/2+お客様情報1!$E$101/2)*1.7%/2,-お客様情報1!$E$97) -> 0 | R23: 平成8年 | S23: 1996 | T23: 1996 平成8年
A24: 国立医学部 | B24: 1 | C24: =1.5*12 -> 18 | D24: 0 | E24: 0 | F24: 0 | G24: 0 | H24: 0 | J24: 8 | L24: 9 | P24: =IF(お客様情報1!$E$97="",-(お客様情報1!$E$99/2+お客様情報1!$E$101/2)*1.7%/2,-お客様情報1!$E$97) -> 0 | R24: 平成9年 | S24: 1997 | T24: 1997 平成9年
A25: 私立医学部 | B25: 2 | C25: =1.5*12 -> 18 | D25: =-IF(お客様情報1!E65="",0,IF(お客様情報1!$E65="公立",'CF01'!$P7,'CF01'!$P8)) -> 0 | E25: =-IF(お客様情報1!E67="",0,IF(お客様情報1!$E67="公立",'CF01'!$P7,'CF01'!$P8)) -> 0 | F25: =-IF(お客様情報1!E69="",0,IF(お客様情報1!$E69="公立",'CF01'!$P7,'CF01'!$P8)) -> 0 | G25: =-IF(お客様情報1!E71="",0,IF(お客様情報1!$E71="公立",'CF01'!$P7,'CF01'!$P8)) -> 0 | H25: =-IF(お客様情報1!E73="",0,IF(お客様情報1!$E73="公立",'CF01'!$P7,'CF01'!$P8)) -> 0 | J25: 9 | L25: 10 | O25: =O20 -> 0 | P25: =IF(お客様情報1!$E$97="",-(お客様情報1!$E$99/2+お客様情報1!$E$101/2)*1.7%/2,-お客様情報1!$E$97) -> 0 | R25: 平成10年 | S25: 1998 | T25: 1998 平成10年
A26: 私立歯学部 | B26: 3 | C26: =1.5*12 -> 18 | D26: =D25 -> 0 | E26: =E25 -> 0 | F26: =F25 -> 0 | G26: =G25 -> 0 | H26: =H25 -> 0 | I26: 30 | J26: 10 | L26: 11 | P26: =IF(お客様情報1!$E$97="",-(お客様情報1!$E$99/2+お客様情報1!$E$101/2)*1.7%/2,-お客様情報1!$E$97) -> 0 | R26: 平成11年 | S26: 1999 | T26: 1999 平成11年
B27: 4 | C27: =1*12 -> 12 | D27: =D25 -> 0 | E27: =E25 -> 0 | F27: =F25 -> 0 | G27: =G25 -> 0 | H27: =H25 -> 0 | I27: 30 | J27: 11 | L27: 12 | P27: =IF(お客様情報1!$E$97="",-(お客様情報1!$E$99/2+お客様情報1!$E$101/2)*1.7%/2,-お客様情報1!$E$97) -> 0 | R27: 平成12年 | S27: 2000 | T27: 2000 平成12年
A28: 自宅 | B28: 5 | C28: 12 | D28: =D27 -> 0 | E28: =E27 -> 0 | F28: =F27 -> 0 | G28: =G27 -> 0 | H28: =H27 -> 0 | I28: 30 | J28: 12 | L28: 13 | P28: =IF(お客様情報1!$E$97="",-(お客様情報1!$E$99/2+お客様情報1!$E$101/2)*1.7%/2,-お客様情報1!$E$97) -> 0 | R28: 平成13年 | S28: 2001 | T28: 2001 平成13年
A29: 下宿 | B29: 6 | C29: 12 | D29: =-IF(お客様情報1!F65="",0,IF(お客様情報1!$F65="公立",'CF01'!$Q7,'CF01'!$Q8)) -> 0 | E29: =-IF(お客様情報1!F67="",0,IF(お客様情報1!$F67="公立",'CF01'!$Q7,'CF01'!$Q8)) -> 0 | F29: =-IF(お客様情報1!F69="",0,IF(お客様情報1!F69="公立",'CF01'!$Q7,'CF01'!$Q8)) -> 0 | G29: =-IF(お客様情報1!F71="",0,IF(お客様情報1!F71="公立",'CF01'!$Q7,'CF01'!$Q8)) -> 0 | H29: =-IF(お客様情報1!F73="",0,IF(お客様情報1!F73="公立",'CF01'!$Q7,'CF01'!$Q8)) -> 0 | I29: 30 | J29: 13 | L29: 14 | P29: =IF(お客様情報1!$E$97="",-(お客様情報1!$E$99/2+お客様情報1!$E$101/2)*1.7%/2,-お客様情報1!$E$97) -> 0 | R29: 平成14年 | S29: 2002 | T29: 2002 平成14年
B30: 7 | C30: 12 | D30: =D29 -> 0 | E30: 0 | F30: 0 | G30: 0 | H30: 0 | I30: 30 | J30: 14 | L30: 15 | M30: =-お客様情報1!E$103*N30/N$15 ->  | N30: 150 | O30: =O25 -> 0 | P30: =IF(お客様情報1!$E$97="",-(お客様情報1!$E$99/2+お客様情報1!$E$101/2)*1.7%/2,-お客様情報1!$E$97) -> 0 | R30: 平成15年 | S30: 2003 | T30: 2003 平成15年
B31: 8 | C31: 12 | D31: 0 | E31: 0 | F31: 0 | G31: 0 | H31: 0 | I31: 30 | J31: 15 | L31: 16 | P31: =IF(お客様情報1!$E$97="",-(お客様情報1!$E$99/2+お客様情報1!$E$101/2)*1.7%/2,-お客様情報1!$E$97) -> 0 | R31: 平成16年 | S31: 2004 | T31: 2004 平成16年
B32: 9 | C32: 12 | D32: 0 | E32: 0 | F32: 0 | G32: 0 | H32: 0 | I32: 30 | J32: 16 | L32: 17 | P32: =IF(お客様情報1!$E$97="",-(お客様情報1!$E$99/2+お客様情報1!$E$101/2)*1.7%/2,-お客様情報1!$E$97) -> 0 | R32: 平成17年 | S32: 2005 | T32: 2005 平成17年
B33: 10 | C33: 12 | D33: 0 | E33: 0 | F33: 0 | G33: 0 | H33: 0 | I33: 30 | J33: 17 | L33: 18 | P33: =IF(お客様情報1!$E$97="",-(お客様情報1!$E$99/2+お客様情報1!$E$101/2)*1.7%/2,-お客様情報1!$E$97) -> 0 | R33: 平成18年 | S33: 2006 | T33: 2006 平成18年
B34: 11 | C34: 12 | D34: 0 | E34: 0 | F34: 0 | G34: 0 | H34: 0 | I34: 30 | J34: 18 | L34: 19 | P34: =IF(お客様情報1!$E$97="",-(お客様情報1!$E$99/2+お客様情報1!$E$101/2)*1.7%/2,-お客様情報1!$E$97) -> 0 | R34: 平成19年 | S34: 2007 | T34: 2007 平成19年
B35: 12 | C35: 12 | D35: =-IF(お客様情報1!G65="",0,IF(お客様情報1!$G65="公立",'CF01'!$R7,'CF01'!$R8)) -> 0 | E35: =-IF(お客様情報1!G67="",0,IF(お客様情報1!$G67="公立",'CF01'!$R7,'CF01'!$R8)) -> 0 | F35: =-IF(お客様情報1!G69="",0,IF(お客様情報1!G69="公立",'CF01'!$R7,'CF01'!$R8)) -> 0 | G35: =-IF(お客様情報1!G71="",0,IF(お客様情報1!G71="公立",'CF01'!$R7,'CF01'!$R8)) -> 0 | H35: =-IF(お客様情報1!G73="",0,IF(お客様情報1!G73="公立",'CF01'!$R7,'CF01'!$R8)) -> 0 | I35: 30 | J35: 19 | L35: 20 | M35: =-お客様情報1!E$103*N35/N$15 ->  | N35: 100 | O35: =O30 -> 0 | P35: =IF(お客様情報1!$E$97="",-(お客様情報1!$E$99/2+お客様情報1!$E$101/2)*1.7%/2,-お客様情報1!$E$97) -> 0 | R35: 平成20年 | S35: 2008 | T35: 2008 平成20年
B36: 13 | C36: 12 | D36: =D35 -> 0 | E36: =E35 -> 0 | F36: =F35 -> 0 | G36: =G35 -> 0 | H36: =H35 -> 0 | I36: 30 | J36: 20 | L36: 21 | P36: =IF(お客様情報1!$E$97="",-(お客様情報1!$E$99/2+お客様情報1!$E$101/2)*1.7%/2,-お客様情報1!$E$97) -> 0 | R36: 平成21年 | S36: 2009 | T36: 2009 平成21年
B37: 14 | C37: 12 | D37: =D35 -> 0 | E37: =E35 -> 0 | F37: =F35 -> 0 | G37: =G35 -> 0 | H37: =H35 -> 0 | I37: 30 | J37: 21 | L37: 22 | P37: =IF(お客様情報1!$E$97="",-(お客様情報1!$E$99/2+お客様情報1!$E$101/2)*1.7%/2,-お客様情報1!$E$97) -> 0 | R37: 平成22年 | S37: 2010 | T37: 2010 平成22年
B38: 15 | C38: 12 | D38: =-IF(お客様情報1!H65="",0,IF(お客様情報1!$H65="公立",'CF01'!$S7,'CF01'!$S8)) -> 0 | E38: =-IF(お客様情報1!H67="",0,IF(お客様情報1!$H67="公立",'CF01'!$S7,'CF01'!$S8)) -> 0 | F38: =-IF(お客様情報1!H69="",0,IF(お客様情報1!H69="公立",'CF01'!$S7,'CF01'!$S8)) -> 0 | G38: =-IF(お客様情報1!H71="",0,IF(お客様情報1!H71="公立",'CF01'!$S7,'CF01'!$S8)) -> 0 | H38: =-IF(お客様情報1!H73="",0,IF(お客様情報1!H73="公立",'CF01'!$S7,'CF01'!$S8)) -> 0 | I38: 30 | J38: 22 | L38: 23 | P38: =IF(お客様情報1!$E$97="",-(お客様情報1!$E$99/2+お客様情報1!$E$101/2)*1.7%/2,-お客様情報1!$E$97) -> 0 | R38: 平成23年 | S38: 2011 | T38: 2011 平成23年
B39: 16 | D39: =D38 -> 0 | E39: 0 | F39: 0 | G39: 0 | H39: 0 | I39: 30 | J39: 23 | L39: 24 | P39: =IF(お客様情報1!$E$97="",-(お客様情報1!$E$99/2+お客様情報1!$E$101/2)*1.7%/2,-お客様情報1!$E$97) -> 0 | R39: 平成24年 | S39: 2012 | T39: 2012 平成24年
B40: 17 | D40: 0 | E40: 0 | F40: 0 | G40: 0 | H40: 0 | I40: 30 | J40: 24 | L40: 25 | M40: =-お客様情報1!E$103*N40/N$15 ->  | N40: 150 | O40: =O35 -> 0 | P40: =IF(お客様情報1!$E$97="",-(お客様情報1!$E$99/2+お客様情報1!$E$101/2)*1.7%/2,-お客様情報1!$E$97) -> 0 | R40: 平成25年 | S40: 2013 | T40: 2013 平成25年
B41: 18 | D41: =-IF(お客様情報1!I65="",0,IF(お客様情報1!$I65="国公立",お客様情報1!$D86,IF(お客様情報1!$I65="私立文系",お客様情報1!$D87,IF(お客様情報1!$I65="私立理系",お客様情報1!$D88,IF(お客様情報1!$I65="国立医学部",お客様情報1!$G86,IF(お客様情報1!$I65="私立医学部",お客様情報1!$G87,お客様情報1!$G88))))))-IF(お客様情報1!$J65="",0,IF(お客様情報1!$J65="自宅",0,'CF01'!$V7)) -> 0 | E41: =-IF(お客様情報1!I67="",0,IF(お客様情報1!$I67="国公立",お客様情報1!$D86,IF(お客様情報1!$I67="私立文系",お客様情報1!$D87,IF(お客様情報1!$I67="私立理系",お客様情報1!$D88,IF(お客様情報1!$I67="国立医学部",お客様情報1!$G86,IF(お客様情報1!$I67="私立医学部",お客様情報1!$G87,お客様情報1!$G88))))))-IF(お客様情報1!$J67="",0,IF(お客様情報1!$J67="自宅",0,'CF01'!$V7)) -> 0 | F41: =-IF(お客様情報1!I69="",0,IF(お客様情報1!$I69="国公立",お客様情報1!$D86,IF(お客様情報1!$I69="私立文系",お客様情報1!$D87,IF(お客様情報1!$I69="私立理系",お客様情報1!$D88,IF(お客様情報1!$I69="国立医学部",お客様情報1!$G86,IF(お客様情報1!$I69="私立医学部",お客様情報1!$G87,お客様情報1!$G88))))))-IF(お客様情報1!$J69="",0,IF(お客様情報1!$J69="自宅",0,'CF01'!$V7)) -> 0 | G41: =-IF(お客様情報1!I71="",0,IF(お客様情報1!$I71="国公立",お客様情報1!$D86,IF(お客様情報1!$I71="私立文系",お客様情報1!$D87,IF(お客様情報1!$I71="私立理系",お客様情報1!$D88,IF(お客様情報1!$I71="国立医学部",お客様情報1!$G86,IF(お客様情報1!$I71="私立医学部",お客様情報1!$G87,お客様情報1!$G88))))))-IF(お客様情報1!$J71="",0,IF(お客様情報1!$J71="自宅",0,'CF01'!$V7)) -> 0 | H41: =-IF(お客様情報1!I73="",0,IF(お客様情報1!$I73="国公立",お客様情報1!$D86,IF(お客様情報1!$I73="私立文系",お客様情報1!$D87,IF(お客様情報1!$I73="私立理系",お客様情報1!$D88,IF(お客様情報1!$I73="国立医学部",お客様情報1!$G86,IF(お客様情報1!$I73="私立医学部",お客様情報1!$G87,お客様情報1!$G88))))))-IF(お客様情報1!$J73="",0,IF(お客様情報1!$J73="自宅",0,'CF01'!$V7)) -> 0 | I41: 30 | J41: 25 | L41: 26 | P41: =IF(お客様情報1!$E$97="",-(お客様情報1!$E$99/2+お客様情報1!$E$101/2)*1.7%/2,-お客様情報1!$E$97) -> 0 | R41: 平成26年 | S41: 2014 | T41: 2014 平成26年
B42: 19 | D42: =D41 -> 0 | E42: =E41 -> 0 | F42: 0 | G42: 0 | H42: 0 | I42: 30 | J42: 26 | L42: 27 | P42: =IF(お客様情報1!$E$97="",-(お客様情報1!$E$99/2+お客様情報1!$E$101/2)*1.7%/2,-お客様情報1!$E$97) -> 0 | R42: 平成27年 | S42: 2015 | T42: 2015 平成27年
B43: 20 | D43: =D42 -> 0 | E43: 0 | F43: 0 | G43: 0 | H43: 0 | I43: 30 | J43: 27 | L43: 28 | P43: =IF(お客様情報1!$E$97="",-(お客様情報1!$E$99/2+お客様情報1!$E$101/2)*1.7%/2,-お客様情報1!$E$97) -> 0 | R43: 平成28年 | S43: 2016 | T43: 2016 平成28年
B44: 21 | D44: =D43 -> 0 | E44: 0 | F44: 0 | G44: 0 | H44: 0 | I44: 30 | J44: 28 | L44: 29 | P44: =IF(お客様情報1!$E$97="",-(お客様情報1!$E$99/2+お客様情報1!$E$101/2)*1.7%/2,-お客様情報1!$E$97) -> 0 | R44: 平成29年 | S44: 2017 | T44: 2017 平成29年
B45: 22 | D45: =IF(OR(お客様情報1!$I65="国立医学部",お客様情報1!$I65="私立医学部",お客様情報1!$I65="私立歯学部"),D44,0) -> 0 | E45: =IF(OR(お客様情報1!$I67="国立医学部",お客様情報1!$I67="私立医学部",お客様情報1!$I67="私立歯学部"),E44,0) -> 0 | F45: =IF(OR(お客様情報1!$I69="国立医学部",お客様情報1!$I69="私立医学部",お客様情報1!$I69="私立歯学部"),F44,0) -> 0 | G45: =IF(OR(お客様情報1!$I71="国立医学部",お客様情報1!$I71="私立医学部",お客様情報1!$I71="私立歯学部"),G44,0) -> 0 | H45: =IF(OR(お客様情報1!$I71="国立医学部",お客様情報1!$I71="私立医学部",お客様情報1!$I71="私立歯学部"),H44,0) -> 0 | I45: =IF(SUM(D45:H45)<0,30,0) -> 0 | J45: 29 | L45: 30 | M45: =-お客様情報1!E$103*N45/N$15 ->  | N45: 150 | O45: =O40 -> 0 | P45: =IF(お客様情報1!$E$97="",-(お客様情報1!$E$99/2+お客様情報1!$E$101/2)*1.7%/2,-お客様情報1!$E$97) -> 0 | R45: 平成30年 | S45: 2018 | T45: 2018 平成30年
B46: 23 | D46: =D45 -> 0 | E46: =E45 -> 0 | F46: 0 | G46: 0 | H46: 0 | I46: =IF(SUM(D46:H46)<0,30,0) -> 0 | J46: 30 | L46: 31 | P46: =IF(お客様情報1!$E$97="",-(お客様情報1!$E$99/2+お客様情報1!$E$101/2)*1.7%/2,-お客様情報1!$E$97) -> 0 | R46: 令和元年 | S46: 2019 | T46: 2019 令和元年
B47: 24 | J47: 31 | L47: 32 | P47: =IF(お客様情報1!$E$97="",-(お客様情報1!$E$99/2+お客様情報1!$E$101/2)*1.7%/2,-お客様情報1!$E$97) -> 0 | R47: 令和2年 | S47: 2020 | T47: 2020 令和2年
B48: 25 | J48: 32 | L48: 33 | P48: =IF(お客様情報1!$E$97="",-(お客様情報1!$E$99/2+お客様情報1!$E$101/2)*1.7%/2,-お客様情報1!$E$97) -> 0 | R48: 令和3年 | S48: 2021 | T48: 2021 令和3年
B49: 26 | J49: 33 | L49: 34 | P49: =IF(お客様情報1!$E$97="",-(お客様情報1!$E$99/2+お客様情報1!$E$101/2)*1.7%/2,-お客様情報1!$E$97) -> 0 | R49: 令和4年 | S49: 2022 | T49: 2022 令和4年
B50: 27 | J50: 34 | L50: 35 | M50: =-お客様情報1!E$103*N50/N$15 ->  | N50: 200 | O50: =O45 -> 0 | P50: =IF(お客様情報1!$E$97="",-(お客様情報1!$E$99/2+お客様情報1!$E$101/2)*1.7%/2,-お客様情報1!$E$97) -> 0 | R50: 令和5年 | S50: 2023 | T50: 2023 令和5年
B51: 28 | J51: 35 | L51: 36 | P51: =IF(お客様情報1!$E$97="",-(お客様情報1!$E$99/2+お客様情報1!$E$101/2)*1.7%/2,-お客様情報1!$E$97) -> 0 | R51: 令和6年 | S51: 2024 | T51: 2024 令和6年 | V51: =T51 -> 2024 令和6年
B52: 29 | J52: 36 | L52: 37 | P52: =IF(お客様情報1!$E$97="",-(お客様情報1!$E$99/2+お客様情報1!$E$101/2)*1.7%/2,-お客様情報1!$E$97) -> 0 | R52: 令和7年 | S52: 2025 | T52: =TEXT(S52,0)&TEXT(" ",)&R52 -> 2025 令和7年 | V52: =T52 -> 2025 令和7年
B53: 30 | J53: 37 | L53: 38 | P53: =IF(お客様情報1!$E$97="",-(お客様情報1!$E$99/2+お客様情報1!$E$101/2)*1.7%/2,-お客様情報1!$E$97) -> 0 | R53: 令和8年 | S53: 2026 | T53: 2026 令和8年 | V53: 2026 令和8年
B54: 31 | J54: 38 | L54: 39 | P54: =IF(お客様情報1!$E$97="",-(お客様情報1!$E$99/2+お客様情報1!$E$101/2)*1.7%/2,-お客様情報1!$E$97) -> 0 | R54: 令和9年 | S54: 2027 | T54: 2027 令和9年 | V54: 2027 令和9年
B55: 32 | J55: 39 | L55: 40 | M55: =-お客様情報1!E$103*N55/N$15 ->  | N55: 150 | O55: =O50 -> 0 | P55: =IF(お客様情報1!$E$97="",-(お客様情報1!$E$99/2+お客様情報1!$E$101/2)*1.7%/2,-お客様情報1!$E$97) -> 0 | R55: 令和10年 | S55: 2028 | T55: 2028 令和10年 | V55: 2028 令和10年
B56: 33 | J56: 40 | L56: 41 | P56: =IF(お客様情報1!$E$97="",-(お客様情報1!$E$99/2+お客様情報1!$E$101/2)*1.7%/2,-お客様情報1!$E$97) -> 0 | R56: 令和11年 | S56: 2029 | T56: 2029 令和11年 | V56: 2029 令和11年
B57: 34 | J57: 41 | L57: 42 | P57: =IF(お客様情報1!$E$97="",-(お客様情報1!$E$99/2+お客様情報1!$E$101/2)*1.7%/2,-お客様情報1!$E$97) -> 0 | R57: 令和12年 | S57: 2030 | T57: 2030 令和12年 | V57: 2030 令和12年
B58: 35 | J58: 42 | L58: 43 | P58: =IF(お客様情報1!$E$97="",-(お客様情報1!$E$99/2+お客様情報1!$E$101/2)*1.7%/2,-お客様情報1!$E$97) -> 0 | R58: 令和13年 | S58: 2031 | T58: 2031 令和13年 | V58: 2031 令和13年
B59: 36 | J59: 43 | L59: 44 | P59: =IF(お客様情報1!$E$97="",-(お客様情報1!$E$99/2+お客様情報1!$E$101/2)*1.7%/2,-お客様情報1!$E$97) -> 0 | R59: 令和14年 | S59: 2032 | T59: 2032 令和14年 | V59: 2032 令和14年
B60: 37 | J60: 44 | L60: 45 | M60: =-お客様情報1!E$103*N60/N$15 ->  | N60: 100 | O60: =O55 -> 0 | P60: =IF(お客様情報1!$E$97="",-(お客様情報1!$E$99/2+お客様情報1!$E$101/2)*1.7%/2,-お客様情報1!$E$97) -> 0 | R60: 令和15年 | S60: 2033 | T60: 2033 令和15年 | V60: 2033 令和15年
B61: 38 | J61: 45 | L61: 46 | P61: =IF(お客様情報1!$E$97="",-(お客様情報1!$E$99/2+お客様情報1!$E$101/2)*1.7%/2,-お客様情報1!$E$97) -> 0 | R61: 令和16年 | S61: 2034 | T61: 2034 令和16年 | V61: 2034 令和16年
B62: 39 | J62: 46 | L62: 47 | P62: =IF(お客様情報1!$E$97="",-(お客様情報1!$E$99/2+お客様情報1!$E$101/2)*1.7%/2,-お客様情報1!$E$97) -> 0 | R62: 令和17年 | S62: 2035 | T62: 2035 令和17年 | V62: 2035 令和17年
B63: 40 | J63: 47 | L63: 48 | P63: =IF(お客様情報1!$E$97="",-(お客様情報1!$E$99/2+お客様情報1!$E$101/2)*1.7%/2,-お客様情報1!$E$97) -> 0 | R63: 令和18年 | S63: 2036 | T63: 2036 令和18年 | V63: 2036 令和18年
B64: 41 | J64: 48 | L64: 49 | P64: =IF(お客様情報1!$E$97="",-(お客様情報1!$E$99/2+お客様情報1!$E$101/2)*1.7%/2,-お客様情報1!$E$97) -> 0 | R64: 令和19年 | S64: 2037 | T64: 2037 令和19年 | V64: 2037 令和19年
B65: 42 | J65: 49 | L65: 50 | M65: =-お客様情報1!E$103*N65/N$15 ->  | N65: 100 | O65: =O60 -> 0 | P65: =IF(お客様情報1!$E$97="",-(お客様情報1!$E$99/2+お客様情報1!$E$101/2)*1.7%/2,-お客様情報1!$E$97) -> 0 | R65: 令和20年 | S65: 2038 | T65: 2038 令和20年 | V65: 2038 令和20年
B66: 43 | J66: 50 | L66: 51 | P66: =IF(お客様情報1!$E$97="",-(お客様情報1!$E$99/2+お客様情報1!$E$101/2)*1.7%/2,-お客様情報1!$E$97) -> 0 | R66: 令和21年 | S66: 2039 | T66: 2039 令和21年 | V66: 2039 令和21年
B67: 44 | J67: 51 | L67: 52 | P67: =IF(お客様情報1!$E$97="",-(お客様情報1!$E$99/2+お客様情報1!$E$101/2)*1.7%/2,-お客様情報1!$E$97) -> 0 | R67: 令和22年 | S67: 2040 | T67: 2040 令和22年 | V67: 2040 令和22年
B68: 45 | J68: 52 | L68: 53 | P68: =IF(お客様情報1!$E$97="",-(お客様情報1!$E$99/2+お客様情報1!$E$101/2)*1.7%/2,-お客様情報1!$E$97) -> 0 | R68: 令和23年 | S68: 2041 | T68: 2041 令和23年 | V68: 2041 令和23年
B69: 46 | J69: 53 | L69: 54 | P69: =IF(お客様情報1!$E$97="",-(お客様情報1!$E$99/2+お客様情報1!$E$101/2)*1.7%/2,-お客様情報1!$E$97) -> 0 | R69: 令和24年 | S69: 2042 | T69: 2042 令和24年 | V69: 2042 令和24年
B70: 47 | J70: 54 | L70: 55 | M70: =-お客様情報1!E$103*N70/N$15 ->  | N70: 50 | O70: =O65 -> 0 | P70: =IF(お客様情報1!$E$97="",-(お客様情報1!$E$99/2+お客様情報1!$E$101/2)*1.7%/2,-お客様情報1!$E$97) -> 0 | R70: 令和25年 | S70: 2043 | T70: 2043 令和25年 | V70: 2043 令和25年
B71: 48 | J71: 55 | L71: 56 | P71: =IF(お客様情報1!$E$97="",-(お客様情報1!$E$99/2+お客様情報1!$E$101/2)*1.7%/2,-お客様情報1!$E$97) -> 0 | R71: 令和26年 | S71: 2044 | T71: 2044 令和26年 | V71: 2044 令和26年
B72: 49 | J72: 56 | L72: 57 | P72: =IF(お客様情報1!$E$97="",-(お客様情報1!$E$99/2+お客様情報1!$E$101/2)*1.7%/2,-お客様情報1!$E$97) -> 0 | R72: 令和27年 | S72: 2045 | T72: 2045 令和27年 | V72: 2045 令和27年
B73: 50 | J73: 57 | L73: 58 | P73: =IF(お客様情報1!$E$97="",-(お客様情報1!$E$99/2+お客様情報1!$E$101/2)*1.7%/2,-お客様情報1!$E$97) -> 0 | R73: 令和28年 | S73: 2046 | T73: 2046 令和28年 | V73: 2046 令和28年
B74: 51 | J74: 58 | L74: 59 | P74: =IF(お客様情報1!$E$97="",-(お客様情報1!$E$99/2+お客様情報1!$E$101/2)*1.7%/2,-お客様情報1!$E$97) -> 0 | R74: 令和29年 | S74: 2047 | T74: 2047 令和29年 | V74: 2047 令和29年
B75: 52 | J75: 59 | L75: 60 | M75: =-お客様情報1!E$103*N75/N$15 ->  | N75: 50 | O75: =O70 -> 0 | P75: =IF(お客様情報1!$E$97="",-(お客様情報1!$E$99/2+お客様情報1!$E$101/2)*1.7%/2,-お客様情報1!$E$97) -> 0 | R75: 令和30年 | S75: 2048 | T75: 2048 令和30年 | V75: 2048 令和30年
B76: 53 | J76: 60 | L76: 61 | P76: =IF(お客様情報1!$E$97="",-(お客様情報1!$E$99/2+お客様情報1!$E$101/2)*1.7%/2,-お客様情報1!$E$97) -> 0 | R76: 令和31年 | S76: 2049 | T76: 2049 令和31年 | V76: 2049 令和31年
B77: 54 | J77: 61 | L77: 62 | P77: =IF(お客様情報1!$E$97="",-(お客様情報1!$E$99/2+お客様情報1!$E$101/2)*1.7%/2,-お客様情報1!$E$97) -> 0 | R77: 令和32年 | S77: 2050 | T77: 2050 令和32年 | V77: 2050 令和32年
B78: 55 | J78: 62 | L78: 63 | P78: =IF(お客様情報1!$E$97="",-(お客様情報1!$E$99/2+お客様情報1!$E$101/2)*1.7%/2,-お客様情報1!$E$97) -> 0 | R78: 令和33年 | S78: 2051 | T78: 2051 令和33年 | V78: 2051 令和33年
B79: 56 | J79: 63 | L79: 64 | P79: =IF(お客様情報1!$E$97="",-(お客様情報1!$E$99/2+お客様情報1!$E$101/2)*1.7%/2,-お客様情報1!$E$97) -> 0 | R79: 令和34年 | S79: 2052 | T79: 2052 令和34年 | V79: 2052 令和34年
B80: 57 | J80: 64 | L80: 65 | M80: =-お客様情報1!E$103*N80/N$15 ->  | N80: 150 | O80: =O75 -> 0 | P80: =IF(お客様情報1!$E$97="",-(お客様情報1!$E$99/2+お客様情報1!$E$101/2)*1.7%/2,-お客様情報1!$E$97) -> 0 | R80: 令和35年 | S80: 2053 | T80: 2053 令和35年 | V80: 2053 令和35年
B81: 58 | J81: 65 | L81: 66 | P81: =IF(お客様情報1!$E$97="",-(お客様情報1!$E$99/2+お客様情報1!$E$101/2)*1.7%/2,-お客様情報1!$E$97) -> 0 | R81: 令和36年 | S81: 2054 | T81: 2054 令和36年 | V81: 2054 令和36年
B82: 59 | J82: =J81+1 -> 66 | L82: 67 | P82: =IF(お客様情報1!$E$97="",-(お客様情報1!$E$99/2+お客様情報1!$E$101/2)*1.7%/2,-お客様情報1!$E$97) -> 0 | R82: 令和37年 | S82: 2055 | T82: 2055 令和37年 | V82: 2055 令和37年
B83: 60 | J83: 67 | L83: 68 | P83: =IF(お客様情報1!$E$97="",-(お客様情報1!$E$99/2+お客様情報1!$E$101/2)*1.7%/2,-お客様情報1!$E$97) -> 0 | R83: 令和38年 | S83: 2056 | T83: 2056 令和38年 | V83: 2056 令和38年
B84: 61 | J84: 68 | L84: 69 | P84: =IF(お客様情報1!$E$97="",-(お客様情報1!$E$99/2+お客様情報1!$E$101/2)*1.7%/2,-お客様情報1!$E$97) -> 0 | R84: 令和39年 | S84: 2057 | T84: 2057 令和39年 | V84: 2057 令和39年
B85: 62 | J85: 69 | L85: 70 | M85: =-お客様情報1!E$103*N85/N$15 ->  | N85: 50 | O85: =O80 -> 0 | P85: =IF(お客様情報1!$E$97="",-(お客様情報1!$E$99/2+お客様情報1!$E$101/2)*1.7%/2,-お客様情報1!$E$97) -> 0 | R85: 令和40年 | S85: 2058 | T85: 2058 令和40年 | V85: 2058 令和40年
B86: 63 | J86: 70 | L86: 71 | P86: =IF(お客様情報1!$E$97="",-(お客様情報1!$E$99/2+お客様情報1!$E$101/2)*1.7%/2,-お客様情報1!$E$97) -> 0 | R86: 令和41年 | S86: 2059 | T86: 2059 令和41年 | V86: 2059 令和41年
B87: 64 | J87: 71 | L87: 72 | P87: =IF(お客様情報1!$E$97="",-(お客様情報1!$E$99/2+お客様情報1!$E$101/2)*1.7%/2,-お客様情報1!$E$97) -> 0 | R87: 令和42年 | S87: 2060 | T87: 2060 令和42年 | V87: 2060 令和42年
B88: 65 | J88: 72 | L88: 73 | P88: =IF(お客様情報1!$E$97="",-(お客様情報1!$E$99/2+お客様情報1!$E$101/2)*1.7%/2,-お客様情報1!$E$97) -> 0 | R88: 令和43年 | S88: 2061 | T88: 2061 令和43年 | V88: 2061 令和43年
B89: 66 | J89: 73 | L89: 74 | P89: =IF(お客様情報1!$E$97="",-(お客様情報1!$E$99/2+お客様情報1!$E$101/2)*1.7%/2,-お客様情報1!$E$97) -> 0 | R89: 令和44年 | S89: 2062 | T89: 2062 令和44年 | V89: 2062 令和44年
B90: 67 | J90: 74 | L90: 75 | M90: =-お客様情報1!E$103*N90/N$15 ->  | N90: 50 | O90: =O85 -> 0 | P90: =IF(お客様情報1!$E$97="",-(お客様情報1!$E$99/2+お客様情報1!$E$101/2)*1.7%/2,-お客様情報1!$E$97) -> 0 | R90: 令和45年 | S90: 2063 | T90: 2063 令和45年 | V90: 2063 令和45年
B91: 68 | J91: 75 | L91: 76 | P91: =IF(お客様情報1!$E$97="",-(お客様情報1!$E$99/2+お客様情報1!$E$101/2)*1.7%/2,-お客様情報1!$E$97) -> 0 | R91: 令和46年 | S91: 2064 | T91: 2064 令和46年 | V91: 2064 令和46年
B92: 69 | J92: 76 | L92: 77 | P92: =IF(お客様情報1!$E$97="",-(お客様情報1!$E$99/2+お客様情報1!$E$101/2)*1.7%/2,-お客様情報1!$E$97) -> 0 | R92: 令和47年 | S92: 2065 | T92: 2065 令和47年 | V92: 2065 令和47年
B93: 70 | J93: 77 | L93: 78 | P93: =IF(お客様情報1!$E$97="",-(お客様情報1!$E$99/2+お客様情報1!$E$101/2)*1.7%/2,-お客様情報1!$E$97) -> 0 | R93: 令和48年 | S93: 2066 | T93: 2066 令和48年 | V93: 2066 令和48年
B94: 71 | J94: 78 | L94: 79 | P94: =IF(お客様情報1!$E$97="",-(お客様情報1!$E$99/2+お客様情報1!$E$101/2)*1.7%/2,-お客様情報1!$E$97) -> 0 | R94: 令和49年 | S94: 2067 | T94: 2067 令和49年 | V94: 2067 令和49年
B95: 72 | J95: 79 | L95: 80 | M95: =-お客様情報1!E$103*N95/N$15 ->  | N95: 200 | O95: =O90 -> 0 | P95: =IF(お客様情報1!$E$97="",-(お客様情報1!$E$99/2+お客様情報1!$E$101/2)*1.7%/2,-お客様情報1!$E$97) -> 0 | R95: 令和50年 | S95: 2068 | T95: 2068 令和50年 | V95: 2068 令和50年
B96: 73 | J96: 80 | L96: 81 | P96: =IF(お客様情報1!$E$97="",-(お客様情報1!$E$99/2+お客様情報1!$E$101/2)*1.7%/2,-お客様情報1!$E$97) -> 0 | R96: 令和51年 | S96: 2069 | T96: =TEXT(S96,0)&TEXT(" ",)&R96 -> 2069 令和51年 | V96: =T96 -> 2069 令和51年
B97: 74 | J97: 81 | L97: 82 | P97: =IF(お客様情報1!$E$97="",-(お客様情報1!$E$99/2+お客様情報1!$E$101/2)*1.7%/2,-お客様情報1!$E$97) -> 0 | R97: 令和52年 | S97: 2070 | T97: 2070 令和52年 | V97: 2070 令和52年
B98: 75 | J98: 82 | L98: 83 | P98: =IF(お客様情報1!$E$97="",-(お客様情報1!$E$99/2+お客様情報1!$E$101/2)*1.7%/2,-お客様情報1!$E$97) -> 0 | R98: 令和53年 | S98: 2071 | T98: 2071 令和53年 | V98: 2071 令和53年
B99: 76 | J99: 83 | L99: 84 | P99: =IF(お客様情報1!$E$97="",-(お客様情報1!$E$99/2+お客様情報1!$E$101/2)*1.7%/2,-お客様情報1!$E$97) -> 0 | R99: 令和54年 | S99: 2072 | T99: 2072 令和54年 | V99: 2072 令和54年
B100: 77 | J100: 84 | L100: 85 | M100: =-お客様情報1!E$103*N100/N$15 ->  | N100: 50 | O100: =O95 -> 0 | P100: =IF(お客様情報1!$E$97="",-(お客様情報1!$E$99/2+お客様情報1!$E$101/2)*1.7%/2,-お客様情報1!$E$97) -> 0 | R100: 令和55年 | S100: 2073 | T100: 2073 令和55年 | V100: 2073 令和55年
B101: 78 | J101: 85 | L101: 86 | P101: =IF(お客様情報1!$E$97="",-(お客様情報1!$E$99/2+お客様情報1!$E$101/2)*1.7%/2,-お客様情報1!$E$97) -> 0 | R101: 令和56年 | S101: 2074 | T101: 2074 令和56年 | V101: 2074 令和56年
B102: 79 | J102: 86 | L102: 87 | P102: =IF(お客様情報1!$E$97="",-(お客様情報1!$E$99/2+お客様情報1!$E$101/2)*1.7%/2,-お客様情報1!$E$97) -> 0 | R102: 令和57年 | S102: 2075 | T102: 2075 令和57年 | V102: 2075 令和57年
B103: 80 | J103: 87 | L103: 88 | P103: =IF(お客様情報1!$E$97="",-(お客様情報1!$E$99/2+お客様情報1!$E$101/2)*1.7%/2,-お客様情報1!$E$97) -> 0 | R103: 令和58年 | S103: 2076 | T103: 2076 令和58年 | V103: 2076 令和58年
R104: 令和59年 | S104: 2077 | T104: 2077 令和59年 | V104: 2077 令和59年
R105: 令和60年 | S105: 2078 | T105: =TEXT(S105,0)&TEXT(" ",)&R105 -> 2078 令和60年 | V105: =T105 -> 2078 令和60年

Sheet 住宅ローン
B10: 将来の金利上昇時期 | F10: 年後 | G10: 金利上昇幅
E13: 金融機関 | F13: 商品名 | G13: 借入残高 | H13: 残存期間 | J13: 金利タイプ | K13: 金利 | L13: 毎月返済額 | S13: 初回 | T13: 次回 | U13: 次々回
G14: （円） | H14: 年 | I14: カ月 | L14: （円） | Q14: 商品１ | R14: 金利タイプ | S14: =J16 -> 0
A16: 現在 | B16: 商品1 | R16: 固定期間
R17: 適用金利 | S17: =K16 -> 0
B18: 商品2 | Q18: 商品２ | R18: 金利タイプ | S18: =J18 -> 0
R19: 固定期間
B20: 商品3 | R20: 適用金利 | S20: =K18 -> 0
Q21: 商品３ | R21: 金利タイプ | S21: =J20 -> 0
D22: 合計 | G22: =IF(G16="",0,G16)+IF(G18="",0,G18)+IF(G20="",0,G20) -> 0 | H22: =IFERROR(INT((G16*(H16*12+I16)+IFERROR(G18*(H18*12+I18),0)+IFERROR(G20*(H20*12+I20),0))/(G16+G18+G20)/12),0) -> 0 | I22: =IFERROR(H23-H22*12,0) -> 0 | R22: 固定期間
H23: =(G16*(H16*12+I16)+G18*(H18*12+I18)+G20*(H20*12+I20))/(G16+G18+G20) ->  | R23: 適用金利 | S23: =K20 -> 0
G40: 借入金額 | H40: 残存期間 | K40: 年齢 | L40: 年収１ | M40: 年収２
G41: （円） | H41: 年 | I41: カ月 | K41: （才） | L41: （万円） | M41: （万円）
B42: 借換の希望条件 | E42: 借換条件
F43: =IF(G16="","","参考 ") ->  | G43: =IF(G16="","",G22) ->  | H43: =IF(H16="","",H22) -> 
E44: 団体信用生命保険について
E46: 借換時に諸費用を含めますか | K46: =IF(G46="含める",2,IF(G46="含めない",1,0)) -> 0
E48: 借換対象にフラット20は含めますか | K48: =IF(G48="含める",2,IF(G48="含めない",1,0)) -> 0
B50: 借換にかかる審査チェック
J51: 審査金利
D52: 返済負担率 | F52: メガバンク | G52: =IFERROR((INT(PMT(J52/12,H42*12+I42,-G42,,))+J58)*12/(L42+M42)/10000,"") ->  | J52: 0.033 | L52: =IF(G52="","",IF(G52>40%,"借換は難しいでしょう","")) -> 
F53: フラット35 | G53: =IFERROR(INT(PMT(J53/12,H42*12+I42,-G42,,))*12/(L42+M42)/10000,"") ->  | J53: =IF(H42>20,当月!P419,当月!M425) -> 0.0145 | L53: =IF(G53="","",IF(G53>=IF(お客様情報1!Q18+お客様情報1!E43>=400,35%,30%),"借換は難しいでしょう","")) -> 
D55: 借入時と比べて収入が減少していませんか | H55: FALSE | L55: =IF(H55=TRUE,"返済負担率が重要となります","") -> 
D56: 借入時と就業状況が変わっていませんか | H56: FALSE | L56: =IF(H56=TRUE,"勤続年数が1年未満であれば借換えが制限されます","") -> 
D57: 借入時と健康状態は変わっていませんか | H57: FALSE | J57: 申告の毎月返済額合計 | L57: =IF(H57=TRUE,"団信が承認されない場合は、借換えができないことがあります","") -> 
D58: 借入時と比べて借入金が増えていませんか | H58: FALSE | J58: =お客様情報1!G45 -> 0 | K58: 万円 | L58: =IF(H58=TRUE,"借入金をすべて入力しているか確認してください","") -> 
D59: 現在の住宅ローンについて、1年以内に延滞していませんか | H59: FALSE | L59: =IF(H59=TRUE,"借換えができません","") -> 
D60: 借入からいままでに、3カ月以上の延滞等をしていませんか | H60: FALSE | L60: =IF(H60=TRUE,"延滞の状況によっては借り換えできないことがあります","") -> 
D61: 債務者は、借入した住宅に住んでいますか？ | H61: FALSE | L61: =IF(H61=TRUE,"債務者が当該住宅に住んでいない場合、借換えできないことがあります","") -> 
D62: 借入してから1年経過していない | H62: FALSE | L62: =IF(H62=TRUE,"借換え後1年経過していなければ借換えできないことがあります","") -> 
B68: =TODAY() -> 2024-07-11
A80: =TEXT(B68,"yyyy")&"年"&TEXT(B68,"m")&"月現在のランキング" -> 2024年7月現在のランキング
C81: 金利上昇 | E81: 金融機関 | F81: 商品名 | G81: 借入金額 | H81: 借入期間 | J81: 金利タイプ | K81: 金利 | M81: 毎月返済額（円） | O81: TC（万円）
H82: 年 | I82: 月 | K82: 当初 | L82: 0.02 | M82: 当初 | N82: =L82 -> 0.02 | O82: 当初 | P82: =L82 -> 0.02 | R82: =_xlfn.XLOOKUP(L82,table!T1:T4,table!U1:U4) ->  | Z82: 1 | AA82: 2 | AB82: 3 | AC82: 4 | AD82: 5 | AE82: 6 | AF82: 7 | AG82: 8 | AH82: 9 | AI82: 10 | AJ82: 11 | AK82: 12 | AL82: 13 | AM82: 14 | AN82: 15 | AO82: 16 | AP82: 17 | AQ82: 18 | AR82: 19 | AS82: 20 | AT82: 21 | AU82: 22 | AV82: 23 | AW82: 24 | AX82: 25 | AY82: 26 | AZ82: 27 | BA82: 28 | BB82: 29 | BC82: 30 | BD82: 31 | BE82: 32 | BF82: 33 | BG82: 34 | BH82: 35 | BI82: 36 | BJ82: 37 | BK82: 38 | BL82: 39 | BM82: 40 | BN82: 41 | BO82: 42 | BP82: 43 | BQ82: 44 | BR82: 45 | BS82: 46 | BT82: 47
C83: なし | D83: 1位 | E83: =CONCATENATE(作業0!B$2,作業0!C$2) -> 住信ＳＢＩネット銀行 | F83: =作業0!D$2 -> 通期引下げプラン | G83: =作業0!G$2 -> 69800000 | H83: =作業0!H$2 -> 24 | I83: =作業0!I$2 -> 10 | J83: =作業0!J$2 -> 変動金利 | K83: =作業0!K$2 -> 0.0072 | L83: =IF(R$82=1,作業0!M$2,IF(R$82=2,作業0!O$2,IF(R$82=3,作業0!Q$2,K83))) ->  | M83: =作業0!L$2 -> 255861 | N83: =IF(R$82=1,作業0!N$2,IF(R$82=2,作業0!P$2,IF(R$82=3,作業0!R$2,M83))) ->  | O83: =作業0!AG$2/10000 -> 14427.6084 | P83: =IF(R$82=1,作業0!AH$2,IF(R$82=2,作業0!AI$2,IF(R$82=3,作業0!AJ$2,O83*10000)))/10000 ->  | R83: FALSE | S83: FALSE | T83: =IF(R83=TRUE,作業0!A$2,"") ->  | U83: =IF(S83=TRUE,作業0!A$2,"") ->  | Z83: =IF(AND($T83="",$U83=""),"",作業0!A2) ->  | AA83: =IF(AND($T83="",$U83=""),"",作業0!B2) ->  | AB83: =IF(AND($T83="",$U83=""),"",作業0!C2) ->  | AC83: =IF(AND($T83="",$U83=""),"",作業0!D2) ->  | AD83: =IF(AND($T83="",$U83=""),"",作業0!E2) ->  | AE83: =IF(AND($T83="",$U83=""),"",作業0!F2) ->  | AF83: =IF(AND($T83="",$U83=""),"",作業0!G2) ->  | AG83: =IF(AND($T83="",$U83=""),"",作業0!H2) ->  | AH83: =IF(AND($T83="",$U83=""),"",作業0!I2) ->  | AI83: =IF(AND($T83="",$U83=""),"",作業0!J2) ->  | AJ83: =IF(AND($T83="",$U83=""),"",作業0!K2) ->  | AK83: =IF(AND($T83="",$U83=""),"",作業0!L2) ->  | AL83: =IF(AND($T83="",$U83=""),"",作業0!M2) ->  | AM83: =IF(AND($T83="",$U83=""),"",作業0!N2) ->  | AN83: =IF(AND($T83="",$U83=""),"",作業0!O2) ->  | AO83: =IF(AND($T83="",$U83=""),"",作業0!P2) ->  | AP83: =IF(AND($T83="",$U83=""),"",作業0!Q2) ->  | AQ83: =IF(AND($T83="",$U83=""),"",作業0!R2) ->  | AR83: =IF(AND($T83="",$U83=""),"",作業0!S2) ->  | AS83: =IF(AND($T83="",$U83=""),"",作業0!T2) ->  | AT83: =IF(AND($T83="",$U83=""),"",作業0!U2) ->  | AU83: =IF(AND($T83="",$U83=""),"",作業0!V2) ->  | AV83: =IF(AND($T83="",$U83=""),"",作業0!W2) ->  | AW83: =IF(AND($T83="",$U83=""),"",作業0!X2) ->  | AX83: =IF(AND($T83="",$U83=""),"",作業0!Y2) ->  | AY83: =IF(AND($T83="",$U83=""),"",作業0!Z2) ->  | AZ83: =IF(AND($T83="",$U83=""),"",作業0!AA2) ->  | BA83: =IF(AND($T83="",$U83=""),"",作業0!AB2) ->  | BB83: =IF(AND($T83="",$U83=""),"",作業0!AC2) ->  | BC83: =IF(AND($T83="",$U83=""),"",作業0!AD2) ->  | BD83: =IF(AND($T83="",$U83=""),"",作業0!AE2) ->  | BE83: =IF(AND($T83="",$U83=""),"",作業0!AF2) ->  | BF83: =IF(AND($T83="",$U83=""),"",作業0!AG2) ->  | BG83: =IF(AND($T83="",$U83=""),"",作業0!AH2) ->  | BH83: =IF(AND($T83="",$U83=""),"",作業0!AI2) ->  | BI83: =IF(AND($T83="",$U83=""),"",作業0!AJ2) ->  | BJ83: =IF(AND($T83="",$U83=""),"",作業0!AK2) ->  | BK83: =IF(AND($T83="",$U83=""),"",作業0!AL2) ->  | BL83: =IF(AND($T83="",$U83=""),"",作業0!AM2) ->  | BM83: =IF(AND($T83="",$U83=""),"",作業0!AN2) ->  | BN83: =IF(AND($T83="",$U83=""),"",作業0!AO2) ->  | BO83: =IF(AND($T83="",$U83=""),"",作業0!AP2) ->  | BP83: =IF(AND($T83="",$U83=""),"",作業0!AQ2) ->  | BQ83: =IF(AND($T83="",$U83=""),"",作業0!AR2) ->  | BR83: =IF(AND($T83="",$U83=""),"",作業0!AS2) ->  | BS83: =IF(AND($T83="",$U83=""),"",作業0!AT2) ->  | BT83: =IF(AND($T83="",$U83=""),"",作業0!AU2) -> 
D84: 2位 | E84: =CONCATENATE(作業0!B$3,作業0!C$3) -> 北陸銀行 | F84: =作業0!D$3 -> 手数料定率型（地域限定） | G84: =作業0!G$3 -> 69000000 | H84: =作業0!H$3 -> 24 | I84: =作業0!I$3 -> 10 | J84: =作業0!J$3 -> 5年固定 | K84: =作業0!K$3 -> 0.0081 | L84: =IF(R$82=1,作業0!M$3,IF(R$82=2,作業0!O$3,IF(R$82=3,作業0!Q3,K84))) ->  | M84: =作業0!L$3 -> 255689 | N84: =IF(R$82=1,作業0!N$3,IF(R$82=2,作業0!P$3,IF(R$82=3,作業0!R$3,M84))) ->  | O84: =作業0!AG$3/10000 -> 14702.5182 | P84: =IF(R$82=1,作業0!AH$3,IF(R$82=2,作業0!AI$3,IF(R$82=3,作業0!AJ$3,O84*10000)))/10000 ->  | R84: FALSE | S84: FALSE | T84: =IF(R84=TRUE,作業0!A$3,"") ->  | U84: =IF(S84=TRUE,作業0!A$3,"") ->  | Z84: =IF(AND($T84="",$U84=""),"",作業0!A3) ->  | AA84: =IF(AND($T84="",$U84=""),"",作業0!B3) ->  | AB84: =IF(AND($T84="",$U84=""),"",作業0!C3) ->  | AC84: =IF(AND($T84="",$U84=""),"",作業0!D3) ->  | AD84: =IF(AND($T84="",$U84=""),"",作業0!E3) ->  | AE84: =IF(AND($T84="",$U84=""),"",作業0!F3) ->  | AF84: =IF(AND($T84="",$U84=""),"",作業0!G3) ->  | AG84: =IF(AND($T84="",$U84=""),"",作業0!H3) ->  | AH84: =IF(AND($T84="",$U84=""),"",作業0!I3) ->  | AI84: =IF(AND($T84="",$U84=""),"",作業0!J3) ->  | AJ84: =IF(AND($T84="",$U84=""),"",作業0!K3) ->  | AK84: =IF(AND($T84="",$U84=""),"",作業0!L3) ->  | AL84: =IF(AND($T84="",$U84=""),"",作業0!M3) ->  | AM84: =IF(AND($T84="",$U84=""),"",作業0!N3) ->  | AN84: =IF(AND($T84="",$U84=""),"",作業0!O3) ->  | AO84: =IF(AND($T84="",$U84=""),"",作業0!P3) ->  | AP84: =IF(AND($T84="",$U84=""),"",作業0!Q3) ->  | AQ84: =IF(AND($T84="",$U84=""),"",作業0!R3) ->  | AR84: =IF(AND($T84="",$U84=""),"",作業0!S3) ->  | AS84: =IF(AND($T84="",$U84=""),"",作業0!T3) ->  | AT84: =IF(AND($T84="",$U84=""),"",作業0!U3) ->  | AU84: =IF(AND($T84="",$U84=""),"",作業0!V3) ->  | AV84: =IF(AND($T84="",$U84=""),"",作業0!W3) ->  | AW84: =IF(AND($T84="",$U84=""),"",作業0!X3) ->  | AX84: =IF(AND($T84="",$U84=""),"",作業0!Y3) ->  | AY84: =IF(AND($T84="",$U84=""),"",作業0!Z3) ->  | AZ84: =IF(AND($T84="",$U84=""),"",作業0!AA3) ->  | BA84: =IF(AND($T84="",$U84=""),"",作業0!AB3) ->  | BB84: =IF(AND($T84="",$U84=""),"",作業0!AC3) ->  | BC84: =IF(AND($T84="",$U84=""),"",作業0!AD3) ->  | BD84: =IF(AND($T84="",$U84=""),"",作業0!AE3) ->  | BE84: =IF(AND($T84="",$U84=""),"",作業0!AF3) ->  | BF84: =IF(AND($T84="",$U84=""),"",作業0!AG3) ->  | BG84: =IF(AND($T84="",$U84=""),"",作業0!AH3) ->  | BH84: =IF(AND($T84="",$U84=""),"",作業0!AI3) ->  | BI84: =IF(AND($T84="",$U84=""),"",作業0!AJ3) ->  | BJ84: =IF(AND($T84="",$U84=""),"",作業0!AK3) ->  | BK84: =IF(AND($T84="",$U84=""),"",作業0!AL3) ->  | BL84: =IF(AND($T84="",$U84=""),"",作業0!AM3) ->  | BM84: =IF(AND($T84="",$U84=""),"",作業0!AN3) ->  | BN84: =IF(AND($T84="",$U84=""),"",作業0!AO3) ->  | BO84: =IF(AND($T84="",$U84=""),"",作業0!AP3) ->  | BP84: =IF(AND($T84="",$U84=""),"",作業0!AQ3) ->  | BQ84: =IF(AND($T84="",$U84=""),"",作業0!AR3) ->  | BR84: =IF(AND($T84="",$U84=""),"",作業0!AS3) ->  | BS84: =IF(AND($T84="",$U84=""),"",作業0!AT3) ->  | BT84: =IF(AND($T84="",$U84=""),"",作業0!AU3) -> 
D85: 3位 | E85: =CONCATENATE(作業0!B$4,作業0!C$4) -> 北陸銀行 | F85: =作業0!D$4 -> 手数料定率型（地域限定） | G85: =作業0!G$4 -> 69000000 | H85: =作業0!H$4 -> 24 | I85: =作業0!I$4 -> 10 | J85: =作業0!J$4 -> 3年固定 | K85: =作業0!K$4 -> 0.0065 | L85: =IF(R$82=1,作業0!M$4,IF(R$82=2,作業0!O$4,IF(R$82=3,作業0!Q4,K85))) ->  | M85: =作業0!L$4 -> 250796 | N85: =IF(R$82=1,作業0!N$4,IF(R$82=2,作業0!P$4,IF(R$82=3,作業0!R$4,M85))) ->  | O85: =作業0!AG$4/10000 -> 14727.3002 | P85: =IF(R$82=1,作業0!AH$4,IF(R$82=2,作業0!AI$4,IF(R$82=3,作業0!AJ$4,O85*10000)))/10000 ->  | R85: FALSE | S85: FALSE | T85: =IF(R85=TRUE,作業0!A$4,"") ->  | U85: =IF(S85=TRUE,作業0!A$4,"") ->  | Z85: =IF(AND($T85="",$U85=""),"",作業0!A4) ->  | AA85: =IF(AND($T85="",$U85=""),"",作業0!B4) ->  | AB85: =IF(AND($T85="",$U85=""),"",作業0!C4) ->  | AC85: =IF(AND($T85="",$U85=""),"",作業0!D4) ->  | AD85: =IF(AND($T85="",$U85=""),"",作業0!E4) ->  | AE85: =IF(AND($T85="",$U85=""),"",作業0!F4) ->  | AF85: =IF(AND($T85="",$U85=""),"",作業0!G4) ->  | AG85: =IF(AND($T85="",$U85=""),"",作業0!H4) ->  | AH85: =IF(AND($T85="",$U85=""),"",作業0!I4) ->  | AI85: =IF(AND($T85="",$U85=""),"",作業0!J4) ->  | AJ85: =IF(AND($T85="",$U85=""),"",作業0!K4) ->  | AK85: =IF(AND($T85="",$U85=""),"",作業0!L4) ->  | AL85: =IF(AND($T85="",$U85=""),"",作業0!M4) ->  | AM85: =IF(AND($T85="",$U85=""),"",作業0!N4) ->  | AN85: =IF(AND($T85="",$U85=""),"",作業0!O4) ->  | AO85: =IF(AND($T85="",$U85=""),"",作業0!P4) ->  | AP85: =IF(AND($T85="",$U85=""),"",作業0!Q4) ->  | AQ85: =IF(AND($T85="",$U85=""),"",作業0!R4) ->  | AR85: =IF(AND($T85="",$U85=""),"",作業0!S4) ->  | AS85: =IF(AND($T85="",$U85=""),"",作業0!T4) ->  | AT85: =IF(AND($T85="",$U85=""),"",作業0!U4) ->  | AU85: =IF(AND($T85="",$U85=""),"",作業0!V4) ->  | AV85: =IF(AND($T85="",$U85=""),"",作業0!W4) ->  | AW85: =IF(AND($T85="",$U85=""),"",作業0!X4) ->  | AX85: =IF(AND($T85="",$U85=""),"",作業0!Y4) ->  | AY85: =IF(AND($T85="",$U85=""),"",作業0!Z4) ->  | AZ85: =IF(AND($T85="",$U85=""),"",作業0!AA4) ->  | BA85: =IF(AND($T85="",$U85=""),"",作業0!AB4) ->  | BB85: =IF(AND($T85="",$U85=""),"",作業0!AC4) ->  | BC85: =IF(AND($T85="",$U85=""),"",作業0!AD4) ->  | BD85: =IF(AND($T85="",$U85=""),"",作業0!AE4) ->  | BE85: =IF(AND($T85="",$U85=""),"",作業0!AF4) ->  | BF85: =IF(AND($T85="",$U85=""),"",作業0!AG4) ->  | BG85: =IF(AND($T85="",$U85=""),"",作業0!AH4) ->  | BH85: =IF(AND($T85="",$U85=""),"",作業0!AI4) ->  | BI85: =IF(AND($T85="",$U85=""),"",作業0!AJ4) ->  | BJ85: =IF(AND($T85="",$U85=""),"",作業0!AK4) ->  | BK85: =IF(AND($T85="",$U85=""),"",作業0!AL4) ->  | BL85: =IF(AND($T85="",$U85=""),"",作業0!AM4) ->  | BM85: =IF(AND($T85="",$U85=""),"",作業0!AN4) ->  | BN85: =IF(AND($T85="",$U85=""),"",作業0!AO4) ->  | BO85: =IF(AND($T85="",$U85=""),"",作業0!AP4) ->  | BP85: =IF(AND($T85="",$U85=""),"",作業0!AQ4) ->  | BQ85: =IF(AND($T85="",$U85=""),"",作業0!AR4) ->  | BR85: =IF(AND($T85="",$U85=""),"",作業0!AS4) ->  | BS85: =IF(AND($T85="",$U85=""),"",作業0!AT4) ->  | BT85: =IF(AND($T85="",$U85=""),"",作業0!AU4) -> 
D86: =IF(E86="","",_xlfn.XLOOKUP($E86,作業0!B$2:B$600,作業0!AV$2:AV$600)) ->  | F86: =IF(E86="","",_xlfn.XLOOKUP($E86,作業0!B$2:B$600,作業0!D$2:D$600)) ->  | G86: =IF(E86="","",_xlfn.XLOOKUP($E86,作業0!B$2:B$600,作業0!G$2:G$600)) ->  | H86: =IF(E86="","",_xlfn.XLOOKUP($E86,作業0!B$2:B$600,作業0!H$2:H$600)) ->  | I86: =IF(E86="","",_xlfn.XLOOKUP($E86,作業0!B$2:B$600,作業0!I$2:I$600)) ->  | J86: =IF(E86="","",_xlfn.XLOOKUP($E86,作業0!B$2:B$600,作業0!J$2:J$600)) ->  | K86: =IF(E86="","",_xlfn.XLOOKUP($E86,作業0!B$2:B$600,作業0!K$2:K$600)) ->  | L86: =IF(E86="","",IF(R$82=1,_xlfn.XLOOKUP($E86,作業0!B$2:B$600,作業0!M$2:M$600),IF(R$82=2,_xlfn.XLOOKUP($E86,作業0!B$2:B$600,作業0!O$2:O$600),IF(R$82=3,_xlfn.XLOOKUP($E86,作業0!B$2:B$600,作業0!Q$2:Q$600),K86)))) ->  | M86: =IF(E86="","",_xlfn.XLOOKUP($E86,作業0!B$2:B$600,作業0!L$2:L$600)) ->  | N86: =IF(E86="","",IF(R$82=1,_xlfn.XLOOKUP($E86,作業0!B$2:B$600,作業0!N$2:N$600),IF(R$82=2,_xlfn.XLOOKUP($E86,作業0!B$2:B$600,作業0!P$2:P$600),IF(R$82=3,_xlfn.XLOOKUP($E86,作業0!B$2:B$600,作業0!R$2:R$600),M86)))) ->  | O86: =IF(E86="","",_xlfn.XLOOKUP($E86,作業0!B$2:B$600,作業0!AG$2:AG$600)/10000) ->  | P86: =IF(E86="","",IF(R$82=1,_xlfn.XLOOKUP($E86,作業0!B$2:B$600,作業0!AH$2:AH$600),IF(R$82=2,_xlfn.XLOOKUP($E86,作業0!B$2:B$600,作業0!AI$2:AI$600),IF(R$82=3,_xlfn.XLOOKUP($E86,作業0!B$2:B$600,作業0!AJ$2:AJ$600),O86*10000)))/10000) ->  | T86: =IF(R86=TRUE,作業0!A$2,"") ->  | U86: =IF(S86=TRUE,作業0!A$2,"") -> 
C87: =TEXT(E10,0)&"年後に "&TEXT(J10,"0.0%")&"上昇" -> 0年後に 0.0%上昇 | D87: 1位 | E87: =CONCATENATE(作業1!B$2,作業1!C$2) -> 住信ＳＢＩネット銀行 | F87: =作業1!D$2 -> 通期引下げプラン | G87: =作業1!G$2 -> 69800000 | H87: =作業1!H$2 -> 24 | I87: =作業1!I$2 -> 10 | J87: =作業1!J$2 -> 変動金利 | K87: =作業1!K$2 -> 0.0072 | L87: =IF(R$82=1,作業1!M$2,IF(R$82=2,作業1!O$2,IF(R$82=3,作業1!Q$2,K87))) ->  | M87: =作業1!L$2 -> 255861 | N87: =IF(R$82=1,作業1!N$2,IF(R$82=2,作業1!P$2,IF(R$82=3,作業1!R$2,M87))) ->  | O87: =作業1!AG$2/10000 -> 14427.6084 | P87: =IF(R$82=1,作業1!AH$2,IF(R$82=2,作業1!AI$2,IF(R$82=3,作業1!AJ$2,O87*10000)))/10000 ->  | R87: FALSE | S87: FALSE | T87: =IF(R87=TRUE,作業1!A$2,"") ->  | U87: =IF(S87=TRUE,作業1!A$2,"") ->  | Z87: =IF(AND($T87="",$U87=""),"",作業1!A2) ->  | AA87: =IF(AND($T87="",$U87=""),"",作業1!B2) ->  | AB87: =IF(AND($T87="",$U87=""),"",作業1!C2) ->  | AC87: =IF(AND($T87="",$U87=""),"",作業1!D2) ->  | AD87: =IF(AND($T87="",$U87=""),"",作業1!E2) ->  | AE87: =IF(AND($T87="",$U87=""),"",作業1!F2) ->  | AF87: =IF(AND($T87="",$U87=""),"",作業1!G2) ->  | AG87: =IF(AND($T87="",$U87=""),"",作業1!H2) ->  | AH87: =IF(AND($T87="",$U87=""),"",作業1!I2) ->  | AI87: =IF(AND($T87="",$U87=""),"",作業1!J2) ->  | AJ87: =IF(AND($T87="",$U87=""),"",作業1!K2) ->  | AK87: =IF(AND($T87="",$U87=""),"",作業1!L2) ->  | AL87: =IF(AND($T87="",$U87=""),"",作業1!M2) ->  | AM87: =IF(AND($T87="",$U87=""),"",作業1!N2) ->  | AN87: =IF(AND($T87="",$U87=""),"",作業1!O2) ->  | AO87: =IF(AND($T87="",$U87=""),"",作業1!P2) ->  | AP87: =IF(AND($T87="",$U87=""),"",作業1!Q2) ->  | AQ87: =IF(AND($T87="",$U87=""),"",作業1!R2) ->  | AR87: =IF(AND($T87="",$U87=""),"",作業1!S2) ->  | AS87: =IF(AND($T87="",$U87=""),"",作業1!T2) ->  | AT87: =IF(AND($T87="",$U87=""),"",作業1!U2) ->  | AU87: =IF(AND($T87="",$U87=""),"",作業1!V2) ->  | AV87: =IF(AND($T87="",$U87=""),"",作業1!W2) ->  | AW87: =IF(AND($T87="",$U87=""),"",作業1!X2) ->  | AX87: =IF(AND($T87="",$U87=""),"",作業1!Y2) ->  | AY87: =IF(AND($T87="",$U87=""),"",作業1!Z2) ->  | AZ87: =IF(AND($T87="",$U87=""),"",作業1!AA2) ->  | BA87: =IF(AND($T87="",$U87=""),"",作業1!AB2) ->  | BB87: =IF(AND($T87="",$U87=""),"",作業1!AC2) ->  | BC87: =IF(AND($T87="",$U87=""),"",作業1!AD2) ->  | BD87: =IF(AND($T87="",$U87=""),"",作業1!AE2) ->  | BE87: =IF(AND($T87="",$U87=""),"",作業1!AF2) ->  | BF87: =IF(AND($T87="",$U87=""),"",作業1!AG2) ->  | BG87: =IF(AND($T87="",$U87=""),"",作業1!AH2) ->  | BH87: =IF(AND($T87="",$U87=""),"",作業1!AI2) ->  | BI87: =IF(AND($T87="",$U87=""),"",作業1!AJ2) ->  | BJ87: =IF(AND($T87="",$U87=""),"",作業1!AK2) ->  | BK87: =IF(AND($T87="",$U87=""),"",作業1!AL2) ->  | BL87: =IF(AND($T87="",$U87=""),"",作業1!AM2) ->  | BM87: =IF(AND($T87="",$U87=""),"",作業1!AN2) ->  | BN87: =IF(AND($T87="",$U87=""),"",作業1!AO2) ->  | BO87: =IF(AND($T87="",$U87=""),"",作業1!AP2) ->  | BP87: =IF(AND($T87="",$U87=""),"",作業1!AQ2) ->  | BQ87: =IF(AND($T87="",$U87=""),"",作業1!AR2) ->  | BR87: =IF(AND($T87="",$U87=""),"",作業1!AS2) ->  | BS87: =IF(AND($T87="",$U87=""),"",作業1!AT2) ->  | BT87: =IF(AND($T87="",$U87=""),"",作業1!AU2) -> 
D88: 2位 | E88: =CONCATENATE(作業1!B$3,作業1!C$3) -> 北陸銀行 | F88: =作業1!D$3 -> 手数料定率型（地域限定） | G88: =作業1!G$3 -> 69000000 | H88: =作業1!H$3 -> 24 | I88: =作業1!I$3 -> 10 | J88: =作業1!J$3 -> 5年固定 | K88: =作業1!K$3 -> 0.0081 | L88: =IF(R$82=1,作業1!M$3,IF(R$82=2,作業1!O$3,IF(R$82=3,作業1!Q3,K88))) ->  | M88: =作業1!L$3 -> 255689 | N88: =IF(R$82=1,作業1!N$3,IF(R$82=2,作業1!P$3,IF(R$82=3,作業1!R$3,M88))) ->  | O88: =作業1!AG$3/10000 -> 14702.5182 | P88: =IF(R$82=1,作業1!AH$3,IF(R$82=2,作業1!AI$3,IF(R$82=3,作業1!AJ$3,O88*10000)))/10000 ->  | R88: FALSE | S88: FALSE | T88: =IF(R88=TRUE,作業1!A$3,"") ->  | U88: =IF(S88=TRUE,作業1!A$3,"") ->  | Z88: =IF(AND($T88="",$U88=""),"",作業1!A3) ->  | AA88: =IF(AND($T88="",$U88=""),"",作業1!B3) ->  | AB88: =IF(AND($T88="",$U88=""),"",作業1!C3) ->  | AC88: =IF(AND($T88="",$U88=""),"",作業1!D3) ->  | AD88: =IF(AND($T88="",$U88=""),"",作業1!E3) ->  | AE88: =IF(AND($T88="",$U88=""),"",作業1!F3) ->  | AF88: =IF(AND($T88="",$U88=""),"",作業1!G3) ->  | AG88: =IF(AND($T88="",$U88=""),"",作業1!H3) ->  | AH88: =IF(AND($T88="",$U88=""),"",作業1!I3) ->  | AI88: =IF(AND($T88="",$U88=""),"",作業1!J3) ->  | AJ88: =IF(AND($T88="",$U88=""),"",作業1!K3) ->  | AK88: =IF(AND($T88="",$U88=""),"",作業1!L3) ->  | AL88: =IF(AND($T88="",$U88=""),"",作業1!M3) ->  | AM88: =IF(AND($T88="",$U88=""),"",作業1!N3) ->  | AN88: =IF(AND($T88="",$U88=""),"",作業1!O3) ->  | AO88: =IF(AND($T88="",$U88=""),"",作業1!P3) ->  | AP88: =IF(AND($T88="",$U88=""),"",作業1!Q3) ->  | AQ88: =IF(AND($T88="",$U88=""),"",作業1!R3) ->  | AR88: =IF(AND($T88="",$U88=""),"",作業1!S3) ->  | AS88: =IF(AND($T88="",$U88=""),"",作業1!T3) ->  | AT88: =IF(AND($T88="",$U88=""),"",作業1!U3) ->  | AU88: =IF(AND($T88="",$U88=""),"",作業1!V3) ->  | AV88: =IF(AND($T88="",$U88=""),"",作業1!W3) ->  | AW88: =IF(AND($T88="",$U88=""),"",作業1!X3) ->  | AX88: =IF(AND($T88="",$U88=""),"",作業1!Y3) ->  | AY88: =IF(AND($T88="",$U88=""),"",作業1!Z3) ->  | AZ88: =IF(AND($T88="",$U88=""),"",作業1!AA3) ->  | BA88: =IF(AND($T88="",$U88=""),"",作業1!AB3) ->  | BB88: =IF(AND($T88="",$U88=""),"",作業1!AC3) ->  | BC88: =IF(AND($T88="",$U88=""),"",作業1!AD3) ->  | BD88: =IF(AND($T88="",$U88=""),"",作業1!AE3) ->  | BE88: =IF(AND($T88="",$U88=""),"",作業1!AF3) ->  | BF88: =IF(AND($T88="",$U88=""),"",作業1!AG3) ->  | BG88: =IF(AND($T88="",$U88=""),"",作業1!AH3) ->  | BH88: =IF(AND($T88="",$U88=""),"",作業1!AI3) ->  | BI88: =IF(AND($T88="",$U88=""),"",作業1!AJ3) ->  | BJ88: =IF(AND($T88="",$U88=""),"",作業1!AK3) ->  | BK88: =IF(AND($T88="",$U88=""),"",作業1!AL3) ->  | BL88: =IF(AND($T88="",$U88=""),"",作業1!AM3) ->  | BM88: =IF(AND($T88="",$U88=""),"",作業1!AN3) ->  | BN88: =IF(AND($T88="",$U88=""),"",作業1!AO3) ->  | BO88: =IF(AND($T88="",$U88=""),"",作業1!AP3) ->  | BP88: =IF(AND($T88="",$U88=""),"",作業1!AQ3) ->  | BQ88: =IF(AND($T88="",$U88=""),"",作業1!AR3) ->  | BR88: =IF(AND($T88="",$U88=""),"",作業1!AS3) ->  | BS88: =IF(AND($T88="",$U88=""),"",作業1!AT3) ->  | BT88: =IF(AND($T88="",$U88=""),"",作業1!AU3) -> 
D89: 3位 | E89: =CONCATENATE(作業1!B$4,作業1!C$4) -> 北陸銀行 | F89: =作業1!D$4 -> 住宅ローン | G89: =作業1!G$4 -> 68900000 | H89: =作業1!H$4 -> 24 | I89: =作業1!I$4 -> 10 | J89: =作業1!J$4 -> 10年固定 | K89: =作業1!K$4 -> 0.016 | L89: =IF(R$82=1,作業1!M$4,IF(R$82=2,作業1!O$4,IF(R$82=3,作業1!Q4,K89))) ->  | M89: =作業1!L$4 -> 280327 | N89: =IF(R$82=1,作業1!N$4,IF(R$82=2,作業1!P$4,IF(R$82=3,作業1!R$4,M89))) ->  | O89: =作業1!AG$4/10000 -> 15037.7535 | P89: =IF(R$82=1,作業1!AH$4,IF(R$82=2,作業1!AI$4,IF(R$82=3,作業1!AJ$4,O89*10000)))/10000 ->  | R89: FALSE | S89: FALSE | T89: =IF(R89=TRUE,作業1!A$4,"") ->  | U89: =IF(S89=TRUE,作業1!A$4,"") ->  | Z89: =IF(AND($T89="",$U89=""),"",作業1!A4) ->  | AA89: =IF(AND($T89="",$U89=""),"",作業1!B4) ->  | AB89: =IF(AND($T89="",$U89=""),"",作業1!C4) ->  | AC89: =IF(AND($T89="",$U89=""),"",作業1!D4) ->  | AD89: =IF(AND($T89="",$U89=""),"",作業1!E4) ->  | AE89: =IF(AND($T89="",$U89=""),"",作業1!F4) ->  | AF89: =IF(AND($T89="",$U89=""),"",作業1!G4) ->  | AG89: =IF(AND($T89="",$U89=""),"",作業1!H4) ->  | AH89: =IF(AND($T89="",$U89=""),"",作業1!I4) ->  | AI89: =IF(AND($T89="",$U89=""),"",作業1!J4) ->  | AJ89: =IF(AND($T89="",$U89=""),"",作業1!K4) ->  | AK89: =IF(AND($T89="",$U89=""),"",作業1!L4) ->  | AL89: =IF(AND($T89="",$U89=""),"",作業1!M4) ->  | AM89: =IF(AND($T89="",$U89=""),"",作業1!N4) ->  | AN89: =IF(AND($T89="",$U89=""),"",作業1!O4) ->  | AO89: =IF(AND($T89="",$U89=""),"",作業1!P4) ->  | AP89: =IF(AND($T89="",$U89=""),"",作業1!Q4) ->  | AQ89: =IF(AND($T89="",$U89=""),"",作業1!R4) ->  | AR89: =IF(AND($T89="",$U89=""),"",作業1!S4) ->  | AS89: =IF(AND($T89="",$U89=""),"",作業1!T4) ->  | AT89: =IF(AND($T89="",$U89=""),"",作業1!U4) ->  | AU89: =IF(AND($T89="",$U89=""),"",作業1!V4) ->  | AV89: =IF(AND($T89="",$U89=""),"",作業1!W4) ->  | AW89: =IF(AND($T89="",$U89=""),"",作業1!X4) ->  | AX89: =IF(AND($T89="",$U89=""),"",作業1!Y4) ->  | AY89: =IF(AND($T89="",$U89=""),"",作業1!Z4) ->  | AZ89: =IF(AND($T89="",$U89=""),"",作業1!AA4) ->  | BA89: =IF(AND($T89="",$U89=""),"",作業1!AB4) ->  | BB89: =IF(AND($T89="",$U89=""),"",作業1!AC4) ->  | BC89: =IF(AND($T89="",$U89=""),"",作業1!AD4) ->  | BD89: =IF(AND($T89="",$U89=""),"",作業1!AE4) ->  | BE89: =IF(AND($T89="",$U89=""),"",作業1!AF4) ->  | BF89: =IF(AND($T89="",$U89=""),"",作業1!AG4) ->  | BG89: =IF(AND($T89="",$U89=""),"",作業1!AH4) ->  | BH89: =IF(AND($T89="",$U89=""),"",作業1!AI4) ->  | BI89: =IF(AND($T89="",$U89=""),"",作業1!AJ4) ->  | BJ89: =IF(AND($T89="",$U89=""),"",作業1!AK4) ->  | BK89: =IF(AND($T89="",$U89=""),"",作業1!AL4) ->  | BL89: =IF(AND($T89="",$U89=""),"",作業1!AM4) ->  | BM89: =IF(AND($T89="",$U89=""),"",作業1!AN4) ->  | BN89: =IF(AND($T89="",$U89=""),"",作業1!AO4) ->  | BO89: =IF(AND($T89="",$U89=""),"",作業1!AP4) ->  | BP89: =IF(AND($T89="",$U89=""),"",作業1!AQ4) ->  | BQ89: =IF(AND($T89="",$U89=""),"",作業1!AR4) ->  | BR89: =IF(AND($T89="",$U89=""),"",作業1!AS4) ->  | BS89: =IF(AND($T89="",$U89=""),"",作業1!AT4) ->  | BT89: =IF(AND($T89="",$U89=""),"",作業1!AU4) -> 
D90: =IF(E90="","",_xlfn.XLOOKUP($E86,作業1!B$2:B$600,作業1!AV$2:AV$600)) ->  | E90: =IF(E86="","",E86) ->  | F90: =IF(E90="","",_xlfn.XLOOKUP($E90,作業1!B$2:B$600,作業1!D$2:D$600)) ->  | G90: =IF(E90="","",_xlfn.XLOOKUP($E90,作業1!B$2:B$600,作業1!G$2:G$600)) ->  | H90: =IF(E90="","",_xlfn.XLOOKUP($E90,作業1!B$2:B$600,作業1!H$2:H$600)) ->  | I90: =IF(E90="","",_xlfn.XLOOKUP($E90,作業1!B$2:B$600,作業1!I$2:I$600)) ->  | J90: =IF(E90="","",_xlfn.XLOOKUP($E90,作業1!B$2:B$600,作業1!J$2:J$600)) ->  | K90: =IF(E90="","",_xlfn.XLOOKUP($E90,作業1!B$2:B$600,作業1!K$2:K$600)) ->  | L90: =IF(E90="","",IF(R$82=1,_xlfn.XLOOKUP($E90,作業1!B$2:B$600,作業1!M$2:M$600),IF(R$82=2,_xlfn.XLOOKUP($E90,作業1!B$2:B$600,作業1!O$2:O$600),IF(R$82=3,_xlfn.XLOOKUP($E90,作業1!B$2:B$600,作業1!Q$2:Q$600),K90)))) ->  | M90: =IF(E90="","",_xlfn.XLOOKUP($E90,作業1!B$2:B$600,作業1!L$2:L$600)) ->  | N90: =IF(E90="","",IF(R$82=1,_xlfn.XLOOKUP($E90,作業1!B$2:B$600,作業1!N$2:N$600),IF(R$82=2,_xlfn.XLOOKUP($E90,作業1!B$2:B$600,作業1!P$2:P$600),IF(R$82=3,_xlfn.XLOOKUP($E90,作業1!B$2:B$600,作業1!R$2:R$600),M90)))) ->  | O90: =IF(E90="","",_xlfn.XLOOKUP($E90,作業1!B$2:B$600,作業1!AG$2:AG$600)/10000) ->  | P90: =IF(E90="","",IF(R$82=1,_xlfn.XLOOKUP($E90,作業1!B$2:B$600,作業1!AH$2:AH$600),IF(R$82=2,_xlfn.XLOOKUP($E90,作業1!B$2:B$600,作業1!AI$2:AI$600),IF(R$82=3,_xlfn.XLOOKUP($E90,作業1!B$2:B$600,作業1!AJ$2:AJ$600),O90*10000)))/10000) ->  | T90: =IF(R90=TRUE,作業0!A$2,"") ->  | U90: =IF(S90=TRUE,作業0!A$2,"") -> 
C91: =TEXT(E10,0)&"年後に "&TEXT(K10,"0.0%")&"上昇" -> 0年後に 0.0%上昇 | D91: 1位 | E91: =CONCATENATE(作業2!B$2,作業2!C$2) -> 北陸銀行 | F91: =作業2!D$2 -> 住宅ローン | G91: =作業2!G$2 -> 68900000 | H91: =作業2!H$2 -> 24 | I91: =作業2!I$2 -> 10 | J91: =作業2!J$2 -> 10年固定 | K91: =作業2!K$2 -> 0.016 | L91: =IF(R$82=1,作業2!M$2,IF(R$82=2,作業2!O$2,IF(R$82=3,作業2!Q$2,K91))) ->  | M91: =作業2!L$2 -> 280327 | N91: =IF(R$82=1,作業2!N$2,IF(R$82=2,作業2!P$2,IF(R$82=3,作業2!R$2,M91))) ->  | O91: =作業2!AG$2/10000 -> 15037.7535 | P91: =IF(R$82=1,作業2!AH$2,IF(R$82=2,作業2!AI$2,IF(R$82=3,作業2!AJ$2,O91*10000)))/10000 ->  | R91: FALSE | S91: FALSE | T91: =IF(R91=TRUE,作業2!A$2,"") ->  | U91: =IF(S91=TRUE,作業2!A$2,"") ->  | Z91: =IF(AND($T91="",$U91=""),"",作業2!A2) ->  | AA91: =IF(AND($T91="",$U91=""),"",作業2!B2) ->  | AB91: =IF(AND($T91="",$U91=""),"",作業2!C2) ->  | AC91: =IF(AND($T91="",$U91=""),"",作業2!D2) ->  | AD91: =IF(AND($T91="",$U91=""),"",作業2!E2) ->  | AE91: =IF(AND($T91="",$U91=""),"",作業2!F2) ->  | AF91: =IF(AND($T91="",$U91=""),"",作業2!G2) ->  | AG91: =IF(AND($T91="",$U91=""),"",作業2!H2) ->  | AH91: =IF(AND($T91="",$U91=""),"",作業2!I2) ->  | AI91: =IF(AND($T91="",$U91=""),"",作業2!J2) ->  | AJ91: =IF(AND($T91="",$U91=""),"",作業2!K2) ->  | AK91: =IF(AND($T91="",$U91=""),"",作業2!L2) ->  | AL91: =IF(AND($T91="",$U91=""),"",作業2!M2) ->  | AM91: =IF(AND($T91="",$U91=""),"",作業2!N2) ->  | AN91: =IF(AND($T91="",$U91=""),"",作業2!O2) ->  | AO91: =IF(AND($T91="",$U91=""),"",作業2!P2) ->  | AP91: =IF(AND($T91="",$U91=""),"",作業2!Q2) ->  | AQ91: =IF(AND($T91="",$U91=""),"",作業2!R2) ->  | AR91: =IF(AND($T91="",$U91=""),"",作業2!S2) ->  | AS91: =IF(AND($T91="",$U91=""),"",作業2!T2) ->  | AT91: =IF(AND($T91="",$U91=""),"",作業2!U2) ->  | AU91: =IF(AND($T91="",$U91=""),"",作業2!V2) ->  | AV91: =IF(AND($T91="",$U91=""),"",作業2!W2) ->  | AW91: =IF(AND($T91="",$U91=""),"",作業2!X2) ->  | AX91: =IF(AND($T91="",$U91=""),"",作業2!Y2) ->  | AY91: =IF(AND($T91="",$U91=""),"",作業2!Z2) ->  | AZ91: =IF(AND($T91="",$U91=""),"",作業2!AA2) ->  | BA91: =IF(AND($T91="",$U91=""),"",作業2!AB2) ->  | BB91: =IF(AND($T91="",$U91=""),"",作業2!AC2) ->  | BC91: =IF(AND($T91="",$U91=""),"",作業2!AD2) ->  | BD91: =IF(AND($T91="",$U91=""),"",作業2!AE2) ->  | BE91: =IF(AND($T91="",$U91=""),"",作業2!AF2) ->  | BF91: =IF(AND($T91="",$U91=""),"",作業2!AG2) ->  | BG91: =IF(AND($T91="",$U91=""),"",作業2!AH2) ->  | BH91: =IF(AND($T91="",$U91=""),"",作業2!AI2) ->  | BI91: =IF(AND($T91="",$U91=""),"",作業2!AJ2) ->  | BJ91: =IF(AND($T91="",$U91=""),"",作業2!AK2) ->  | BK91: =IF(AND($T91="",$U91=""),"",作業2!AL2) ->  | BL91: =IF(AND($T91="",$U91=""),"",作業2!AM2) ->  | BM91: =IF(AND($T91="",$U91=""),"",作業2!AN2) ->  | BN91: =IF(AND($T91="",$U91=""),"",作業2!AO2) ->  | BO91: =IF(AND($T91="",$U91=""),"",作業2!AP2) ->  | BP91: =IF(AND($T91="",$U91=""),"",作業2!AQ2) ->  | BQ91: =IF(AND($T91="",$U91=""),"",作業2!AR2) ->  | BR91: =IF(AND($T91="",$U91=""),"",作業2!AS2) ->  | BS91: =IF(AND($T91="",$U91=""),"",作業2!AT2) ->  | BT91: =IF(AND($T91="",$U91=""),"",作業2!AU2) -> 
D92: 2位 | E92: =CONCATENATE(作業2!B$3,作業2!C$3) -> 住信ＳＢＩネット銀行 | F92: =作業2!D$3 -> フラット35（保証型）お借換え | G92: =作業2!G$3 -> 69820000 | H92: =作業2!H$3 -> 24 | I92: =作業2!I$3 -> 0 | J92: =作業2!J$3 -> 全期間固定 | K92: =作業2!K$3 -> 0.0223 | L92: =IF(R$82=1,作業2!M$3,IF(R$82=2,作業2!O$3,IF(R$82=3,作業2!Q3,K92))) ->  | M92: =作業2!L$3 -> 313284 | N92: =IF(R$82=1,作業2!N$3,IF(R$82=2,作業2!P$3,IF(R$82=3,作業2!R$3,M92))) ->  | O92: =作業2!AG$3/10000 -> 15823.5818 | P92: =IF(R$82=1,作業2!AH$3,IF(R$82=2,作業2!AI$3,IF(R$82=3,作業2!AJ$3,O92*10000)))/10000 ->  | R92: FALSE | S92: FALSE | T92: =IF(R92=TRUE,作業2!A$3,"") ->  | U92: =IF(S92=TRUE,作業2!A$3,"") ->  | Z92: =IF(AND($T92="",$U92=""),"",作業2!A3) ->  | AA92: =IF(AND($T92="",$U92=""),"",作業2!B3) ->  | AB92: =IF(AND($T92="",$U92=""),"",作業2!C3) ->  | AC92: =IF(AND($T92="",$U92=""),"",作業2!D3) ->  | AD92: =IF(AND($T92="",$U92=""),"",作業2!E3) ->  | AE92: =IF(AND($T92="",$U92=""),"",作業2!F3) ->  | AF92: =IF(AND($T92="",$U92=""),"",作業2!G3) ->  | AG92: =IF(AND($T92="",$U92=""),"",作業2!H3) ->  | AH92: =IF(AND($T92="",$U92=""),"",作業2!I3) ->  | AI92: =IF(AND($T92="",$U92=""),"",作業2!J3) ->  | AJ92: =IF(AND($T92="",$U92=""),"",作業2!K3) ->  | AK92: =IF(AND($T92="",$U92=""),"",作業2!L3) ->  | AL92: =IF(AND($T92="",$U92=""),"",作業2!M3) ->  | AM92: =IF(AND($T92="",$U92=""),"",作業2!N3) ->  | AN92: =IF(AND($T92="",$U92=""),"",作業2!O3) ->  | AO92: =IF(AND($T92="",$U92=""),"",作業2!P3) ->  | AP92: =IF(AND($T92="",$U92=""),"",作業2!Q3) ->  | AQ92: =IF(AND($T92="",$U92=""),"",作業2!R3) ->  | AR92: =IF(AND($T92="",$U92=""),"",作業2!S3) ->  | AS92: =IF(AND($T92="",$U92=""),"",作業2!T3) ->  | AT92: =IF(AND($T92="",$U92=""),"",作業2!U3) ->  | AU92: =IF(AND($T92="",$U92=""),"",作業2!V3) ->  | AV92: =IF(AND($T92="",$U92=""),"",作業2!W3) ->  | AW92: =IF(AND($T92="",$U92=""),"",作業2!X3) ->  | AX92: =IF(AND($T92="",$U92=""),"",作業2!Y3) ->  | AY92: =IF(AND($T92="",$U92=""),"",作業2!Z3) ->  | AZ92: =IF(AND($T92="",$U92=""),"",作業2!AA3) ->  | BA92: =IF(AND($T92="",$U92=""),"",作業2!AB3) ->  | BB92: =IF(AND($T92="",$U92=""),"",作業2!AC3) ->  | BC92: =IF(AND($T92="",$U92=""),"",作業2!AD3) ->  | BD92: =IF(AND($T92="",$U92=""),"",作業2!AE3) ->  | BE92: =IF(AND($T92="",$U92=""),"",作業2!AF3) ->  | BF92: =IF(AND($T92="",$U92=""),"",作業2!AG3) ->  | BG92: =IF(AND($T92="",$U92=""),"",作業2!AH3) ->  | BH92: =IF(AND($T92="",$U92=""),"",作業2!AI3) ->  | BI92: =IF(AND($T92="",$U92=""),"",作業2!AJ3) ->  | BJ92: =IF(AND($T92="",$U92=""),"",作業2!AK3) ->  | BK92: =IF(AND($T92="",$U92=""),"",作業2!AL3) ->  | BL92: =IF(AND($T92="",$U92=""),"",作業2!AM3) ->  | BM92: =IF(AND($T92="",$U92=""),"",作業2!AN3) ->  | BN92: =IF(AND($T92="",$U92=""),"",作業2!AO3) ->  | BO92: =IF(AND($T92="",$U92=""),"",作業2!AP3) ->  | BP92: =IF(AND($T92="",$U92=""),"",作業2!AQ3) ->  | BQ92: =IF(AND($T92="",$U92=""),"",作業2!AR3) ->  | BR92: =IF(AND($T92="",$U92=""),"",作業2!AS3) ->  | BS92: =IF(AND($T92="",$U92=""),"",作業2!AT3) ->  | BT92: =IF(AND($T92="",$U92=""),"",作業2!AU3) -> 
D93: 3位 | E93: =CONCATENATE(作業2!B$4,作業2!C$4) -> 北陸銀行保証料上乗せ | F93: =作業2!D$4 -> 住宅ローン | G93: =作業2!G$4 -> 68300000 | H93: =作業2!H$4 -> 24 | I93: =作業2!I$4 -> 10 | J93: =作業2!J$4 -> 10年固定 | K93: =作業2!K$4 -> 0.018 | L93: =IF(R$82=1,作業2!M$4,IF(R$82=2,作業2!O$4,IF(R$82=3,作業2!Q4,K93))) ->  | M93: =作業2!L$4 -> 284392 | N93: =IF(R$82=1,作業2!N$4,IF(R$82=2,作業2!P$4,IF(R$82=3,作業2!R$4,M93))) ->  | O93: =作業2!AG$4/10000 -> 15160.7204 | P93: =IF(R$82=1,作業2!AH$4,IF(R$82=2,作業2!AI$4,IF(R$82=3,作業2!AJ$4,O93*10000)))/10000 ->  | R93: FALSE | S93: FALSE | T93: =IF(R93=TRUE,作業2!A$4,"") ->  | U93: =IF(S93=TRUE,作業2!A$4,"") ->  | Z93: =IF(AND($T93="",$U93=""),"",作業2!A4) ->  | AA93: =IF(AND($T93="",$U93=""),"",作業2!B4) ->  | AB93: =IF(AND($T93="",$U93=""),"",作業2!C4) ->  | AC93: =IF(AND($T93="",$U93=""),"",作業2!D4) ->  | AD93: =IF(AND($T93="",$U93=""),"",作業2!E4) ->  | AE93: =IF(AND($T93="",$U93=""),"",作業2!F4) ->  | AF93: =IF(AND($T93="",$U93=""),"",作業2!G4) ->  | AG93: =IF(AND($T93="",$U93=""),"",作業2!H4) ->  | AH93: =IF(AND($T93="",$U93=""),"",作業2!I4) ->  | AI93: =IF(AND($T93="",$U93=""),"",作業2!J4) ->  | AJ93: =IF(AND($T93="",$U93=""),"",作業2!K4) ->  | AK93: =IF(AND($T93="",$U93=""),"",作業2!L4) ->  | AL93: =IF(AND($T93="",$U93=""),"",作業2!M4) ->  | AM93: =IF(AND($T93="",$U93=""),"",作業2!N4) ->  | AN93: =IF(AND($T93="",$U93=""),"",作業2!O4) ->  | AO93: =IF(AND($T93="",$U93=""),"",作業2!P4) ->  | AP93: =IF(AND($T93="",$U93=""),"",作業2!Q4) ->  | AQ93: =IF(AND($T93="",$U93=""),"",作業2!R4) ->  | AR93: =IF(AND($T93="",$U93=""),"",作業2!S4) ->  | AS93: =IF(AND($T93="",$U93=""),"",作業2!T4) ->  | AT93: =IF(AND($T93="",$U93=""),"",作業2!U4) ->  | AU93: =IF(AND($T93="",$U93=""),"",作業2!V4) ->  | AV93: =IF(AND($T93="",$U93=""),"",作業2!W4) ->  | AW93: =IF(AND($T93="",$U93=""),"",作業2!X4) ->  | AX93: =IF(AND($T93="",$U93=""),"",作業2!Y4) ->  | AY93: =IF(AND($T93="",$U93=""),"",作業2!Z4) ->  | AZ93: =IF(AND($T93="",$U93=""),"",作業2!AA4) ->  | BA93: =IF(AND($T93="",$U93=""),"",作業2!AB4) ->  | BB93: =IF(AND($T93="",$U93=""),"",作業2!AC4) ->  | BC93: =IF(AND($T93="",$U93=""),"",作業2!AD4) ->  | BD93: =IF(AND($T93="",$U93=""),"",作業2!AE4) ->  | BE93: =IF(AND($T93="",$U93=""),"",作業2!AF4) ->  | BF93: =IF(AND($T93="",$U93=""),"",作業2!AG4) ->  | BG93: =IF(AND($T93="",$U93=""),"",作業2!AH4) ->  | BH93: =IF(AND($T93="",$U93=""),"",作業2!AI4) ->  | BI93: =IF(AND($T93="",$U93=""),"",作業2!AJ4) ->  | BJ93: =IF(AND($T93="",$U93=""),"",作業2!AK4) ->  | BK93: =IF(AND($T93="",$U93=""),"",作業2!AL4) ->  | BL93: =IF(AND($T93="",$U93=""),"",作業2!AM4) ->  | BM93: =IF(AND($T93="",$U93=""),"",作業2!AN4) ->  | BN93: =IF(AND($T93="",$U93=""),"",作業2!AO4) ->  | BO93: =IF(AND($T93="",$U93=""),"",作業2!AP4) ->  | BP93: =IF(AND($T93="",$U93=""),"",作業2!AQ4) ->  | BQ93: =IF(AND($T93="",$U93=""),"",作業2!AR4) ->  | BR93: =IF(AND($T93="",$U93=""),"",作業2!AS4) ->  | BS93: =IF(AND($T93="",$U93=""),"",作業2!AT4) ->  | BT93: =IF(AND($T93="",$U93=""),"",作業2!AU4) -> 
D94: =IF(E94="","",_xlfn.XLOOKUP($E86,作業2!B$2:B$600,作業2!AV$2:AV$600)) ->  | E94: =IF(E90="","",E90) ->  | F94: =IF(E94="","",_xlfn.XLOOKUP($E94,作業2!B$2:B$600,作業2!D$2:D$600)) ->  | G94: =IF(E94="","",_xlfn.XLOOKUP($E94,作業2!B$2:B$600,作業2!G$2:G$600)) ->  | H94: =IF(E94="","",_xlfn.XLOOKUP($E94,作業2!B$2:B$600,作業2!H$2:H$600)) ->  | I94: =IF(E94="","",_xlfn.XLOOKUP($E94,作業2!B$2:B$600,作業2!I$2:I$600)) ->  | J94: =IF(E94="","",_xlfn.XLOOKUP($E94,作業2!B$2:B$600,作業2!J$2:J$600)) ->  | K94: =IF(E94="","",_xlfn.XLOOKUP($E94,作業2!B$2:B$600,作業2!K$2:K$600)) ->  | L94: =IF(E94="","",IF(R$82=1,_xlfn.XLOOKUP($E94,作業2!B$2:B$600,作業2!M$2:M$600),IF(R$82=2,_xlfn.XLOOKUP($E94,作業2!B$2:B$600,作業2!O$2:O$600),IF(R$82=3,_xlfn.XLOOKUP($E94,作業2!B$2:B$600,作業2!Q$2:Q$600),K94)))) ->  | M94: =IF(E94="","",_xlfn.XLOOKUP($E94,作業2!B$2:B$600,作業2!L$2:L$600)) ->  | N94: =IF(E94="","",IF(R$82=1,_xlfn.XLOOKUP($E94,作業2!B$2:B$600,作業2!N$2:N$600),IF(R$82=2,_xlfn.XLOOKUP($E94,作業2!B$2:B$600,作業2!P$2:P$600),IF(R$82=3,_xlfn.XLOOKUP($E94,作業2!B$2:B$600,作業2!R$2:R$600),M94)))) ->  | O94: =IF(E94="","",_xlfn.XLOOKUP($E94,作業2!B$2:B$600,作業2!AG$2:AG$600)/10000) ->  | P94: =IF(E94="","",IF(R$82=1,_xlfn.XLOOKUP($E94,作業2!B$2:B$600,作業2!AH$2:AH$600),IF(R$82=2,_xlfn.XLOOKUP($E94,作業2!B$2:B$600,作業2!AI$2:AI$600),IF(R$82=3,_xlfn.XLOOKUP($E94,作業2!B$2:B$600,作業2!AJ$2:AJ$600),O94*10000)))/10000) ->  | T94: =IF(R94=TRUE,作業0!A$2,"") ->  | U94: =IF(S94=TRUE,作業0!A$2,"") -> 
C95: =TEXT(E10,0)&"年後に "&TEXT(L10,"0.0%")&"上昇" -> 0年後に 0.0%上昇 | D95: 1位 | E95: =CONCATENATE(作業3!B$2,作業3!C$2) -> 住信ＳＢＩネット銀行 | F95: =作業3!D$2 -> フラット35（保証型）お借換え | G95: =作業3!G$2 -> 69820000 | H95: =作業3!H$2 -> 24 | I95: =作業1!I$2 -> 10 | J95: =作業3!J$2 -> 全期間固定 | K95: =作業3!K$2 -> 0.0223 | L95: =IF(R$82=1,作業3!M$2,IF(R$82=2,作業3!O$2,IF(R$82=3,作業3!Q$2,K95))) ->  | M95: =作業3!L$2 -> 313284 | N95: =IF(R$82=1,作業3!N$2,IF(R$82=2,作業3!P$2,IF(R$82=3,作業3!R$2,M95))) ->  | O95: =作業3!AG$2/10000 -> 15823.5818 | P95: =IF(R$82=1,作業3!AH$2,IF(R$82=2,作業3!AI$2,IF(R$82=3,作業3!AJ$2,O95*10000)))/10000 ->  | R95: FALSE | S95: FALSE | T95: =IF(R95=TRUE,作業3!A$2,"") ->  | U95: =IF(S95=TRUE,作業3!A$2,"") ->  | Z95: =IF(AND($T95="",$U95=""),"",作業3!A2) ->  | AA95: =IF(AND($T95="",$U95=""),"",作業3!B2) ->  | AB95: =IF(AND($T95="",$U95=""),"",作業3!C2) ->  | AC95: =IF(AND($T95="",$U95=""),"",作業3!D2) ->  | AD95: =IF(AND($T95="",$U95=""),"",作業3!E2) ->  | AE95: =IF(AND($T95="",$U95=""),"",作業3!F2) ->  | AF95: =IF(AND($T95="",$U95=""),"",作業3!G2) ->  | AG95: =IF(AND($T95="",$U95=""),"",作業3!H2) ->  | AH95: =IF(AND($T95="",$U95=""),"",作業3!I2) ->  | AI95: =IF(AND($T95="",$U95=""),"",作業3!J2) ->  | AJ95: =IF(AND($T95="",$U95=""),"",作業3!K2) ->  | AK95: =IF(AND($T95="",$U95=""),"",作業3!L2) ->  | AL95: =IF(AND($T95="",$U95=""),"",作業3!M2) ->  | AM95: =IF(AND($T95="",$U95=""),"",作業3!N2) ->  | AN95: =IF(AND($T95="",$U95=""),"",作業3!O2) ->  | AO95: =IF(AND($T95="",$U95=""),"",作業3!P2) ->  | AP95: =IF(AND($T95="",$U95=""),"",作業3!Q2) ->  | AQ95: =IF(AND($T95="",$U95=""),"",作業3!R2) ->  | AR95: =IF(AND($T95="",$U95=""),"",作業3!S2) ->  | AS95: =IF(AND($T95="",$U95=""),"",作業3!T2) ->  | AT95: =IF(AND($T95="",$U95=""),"",作業3!U2) ->  | AU95: =IF(AND($T95="",$U95=""),"",作業3!V2) ->  | AV95: =IF(AND($T95="",$U95=""),"",作業3!W2) ->  | AW95: =IF(AND($T95="",$U95=""),"",作業3!X2) ->  | AX95: =IF(AND($T95="",$U95=""),"",作業3!Y2) ->  | AY95: =IF(AND($T95="",$U95=""),"",作業3!Z2) ->  | AZ95: =IF(AND($T95="",$U95=""),"",作業3!AA2) ->  | BA95: =IF(AND($T95="",$U95=""),"",作業3!AB2) ->  | BB95: =IF(AND($T95="",$U95=""),"",作業3!AC2) ->  | BC95: =IF(AND($T95="",$U95=""),"",作業3!AD2) ->  | BD95: =IF(AND($T95="",$U95=""),"",作業3!AE2) ->  | BE95: =IF(AND($T95="",$U95=""),"",作業3!AF2) ->  | BF95: =IF(AND($T95="",$U95=""),"",作業3!AG2) ->  | BG95: =IF(AND($T95="",$U95=""),"",作業3!AH2) ->  | BH95: =IF(AND($T95="",$U95=""),"",作業3!AI2) ->  | BI95: =IF(AND($T95="",$U95=""),"",作業3!AJ2) ->  | BJ95: =IF(AND($T95="",$U95=""),"",作業3!AK2) ->  | BK95: =IF(AND($T95="",$U95=""),"",作業3!AL2) ->  | BL95: =IF(AND($T95="",$U95=""),"",作業3!AM2) ->  | BM95: =IF(AND($T95="",$U95=""),"",作業3!AN2) ->  | BN95: =IF(AND($T95="",$U95=""),"",作業3!AO2) ->  | BO95: =IF(AND($T95="",$U95=""),"",作業3!AP2) ->  | BP95: =IF(AND($T95="",$U95=""),"",作業3!AQ2) ->  | BQ95: =IF(AND($T95="",$U95=""),"",作業3!AR2) ->  | BR95: =IF(AND($T95="",$U95=""),"",作業3!AS2) ->  | BS95: =IF(AND($T95="",$U95=""),"",作業3!AT2) ->  | BT95: =IF(AND($T95="",$U95=""),"",作業3!AU2) -> 
D96: 2位 | E96: =CONCATENATE(作業3!B$3,作業3!C$3) -> 住信ＳＢＩネット銀行 | F96: =作業3!D$3 -> 当初引下げプラン | G96: =作業3!G$3 -> 69800000 | H96: =作業3!H$3 -> 24 | I96: =作業1!I$3 -> 10 | J96: =作業3!J$3 -> 20年固定 | K96: =作業3!K$3 -> 0.02155 | L96: =IF(R$82=1,作業3!M$3,IF(R$82=2,作業3!O$3,IF(R$82=3,作業3!Q3,K96))) ->  | M96: =作業3!L$3 -> 302671 | N96: =IF(R$82=1,作業3!N$3,IF(R$82=2,作業3!P$3,IF(R$82=3,作業3!R$3,M96))) ->  | O96: =作業3!AG$3/10000 -> 15827.6562 | P96: =IF(R$82=1,作業3!AH$3,IF(R$82=2,作業3!AI$3,IF(R$82=3,作業3!AJ$3,O96*10000)))/10000 ->  | R96: FALSE | S96: FALSE | T96: =IF(R96=TRUE,作業3!A$3,"") ->  | U96: =IF(S96=TRUE,作業3!A$3,"") ->  | Z96: =IF(AND($T96="",$U96=""),"",作業3!A3) ->  | AA96: =IF(AND($T96="",$U96=""),"",作業3!B3) ->  | AB96: =IF(AND($T96="",$U96=""),"",作業3!C3) ->  | AC96: =IF(AND($T96="",$U96=""),"",作業3!D3) ->  | AD96: =IF(AND($T96="",$U96=""),"",作業3!E3) ->  | AE96: =IF(AND($T96="",$U96=""),"",作業3!F3) ->  | AF96: =IF(AND($T96="",$U96=""),"",作業3!G3) ->  | AG96: =IF(AND($T96="",$U96=""),"",作業3!H3) ->  | AH96: =IF(AND($T96="",$U96=""),"",作業3!I3) ->  | AI96: =IF(AND($T96="",$U96=""),"",作業3!J3) ->  | AJ96: =IF(AND($T96="",$U96=""),"",作業3!K3) ->  | AK96: =IF(AND($T96="",$U96=""),"",作業3!L3) ->  | AL96: =IF(AND($T96="",$U96=""),"",作業3!M3) ->  | AM96: =IF(AND($T96="",$U96=""),"",作業3!N3) ->  | AN96: =IF(AND($T96="",$U96=""),"",作業3!O3) ->  | AO96: =IF(AND($T96="",$U96=""),"",作業3!P3) ->  | AP96: =IF(AND($T96="",$U96=""),"",作業3!Q3) ->  | AQ96: =IF(AND($T96="",$U96=""),"",作業3!R3) ->  | AR96: =IF(AND($T96="",$U96=""),"",作業3!S3) ->  | AS96: =IF(AND($T96="",$U96=""),"",作業3!T3) ->  | AT96: =IF(AND($T96="",$U96=""),"",作業3!U3) ->  | AU96: =IF(AND($T96="",$U96=""),"",作業3!V3) ->  | AV96: =IF(AND($T96="",$U96=""),"",作業3!W3) ->  | AW96: =IF(AND($T96="",$U96=""),"",作業3!X3) ->  | AX96: =IF(AND($T96="",$U96=""),"",作業3!Y3) ->  | AY96: =IF(AND($T96="",$U96=""),"",作業3!Z3) ->  | AZ96: =IF(AND($T96="",$U96=""),"",作業3!AA3) ->  | BA96: =IF(AND($T96="",$U96=""),"",作業3!AB3) ->  | BB96: =IF(AND($T96="",$U96=""),"",作業3!AC3) ->  | BC96: =IF(AND($T96="",$U96=""),"",作業3!AD3) ->  | BD96: =IF(AND($T96="",$U96=""),"",作業3!AE3) ->  | BE96: =IF(AND($T96="",$U96=""),"",作業3!AF3) ->  | BF96: =IF(AND($T96="",$U96=""),"",作業3!AG3) ->  | BG96: =IF(AND($T96="",$U96=""),"",作業3!AH3) ->  | BH96: =IF(AND($T96="",$U96=""),"",作業3!AI3) ->  | BI96: =IF(AND($T96="",$U96=""),"",作業3!AJ3) ->  | BJ96: =IF(AND($T96="",$U96=""),"",作業3!AK3) ->  | BK96: =IF(AND($T96="",$U96=""),"",作業3!AL3) ->  | BL96: =IF(AND($T96="",$U96=""),"",作業3!AM3) ->  | BM96: =IF(AND($T96="",$U96=""),"",作業3!AN3) ->  | BN96: =IF(AND($T96="",$U96=""),"",作業3!AO3) ->  | BO96: =IF(AND($T96="",$U96=""),"",作業3!AP3) ->  | BP96: =IF(AND($T96="",$U96=""),"",作業3!AQ3) ->  | BQ96: =IF(AND($T96="",$U96=""),"",作業3!AR3) ->  | BR96: =IF(AND($T96="",$U96=""),"",作業3!AS3) ->  | BS96: =IF(AND($T96="",$U96=""),"",作業3!AT3) ->  | BT96: =IF(AND($T96="",$U96=""),"",作業3!AU3) -> 
D97: 3位 | E97: =CONCATENATE(作業3!B$4,作業3!C$4) -> 北陸銀行 | F97: =作業3!D$4 -> 住宅ローン | G97: =作業3!G$4 -> 68900000 | H97: =作業3!H$4 -> 24 | I97: =作業3!I$4 -> 10 | J97: =作業3!J$4 -> 10年固定 | K97: =作業3!K$4 -> 0.016 | L97: =IF(R$82=1,作業3!M$4,IF(R$82=2,作業3!O$4,IF(R$82=3,作業3!Q4,K97))) ->  | M97: =作業3!L$4 -> 280327 | N97: =IF(R$82=1,作業3!N$4,IF(R$82=2,作業3!P$4,IF(R$82=3,作業3!R$4,M97))) ->  | O97: =作業3!AG$4/10000 -> 15037.7535 | P97: =IF(R$82=1,作業3!AH$4,IF(R$82=2,作業3!AI$4,IF(R$82=3,作業3!AJ$4,O97*10000)))/10000 ->  | R97: FALSE | S97: FALSE | T97: =IF(R97=TRUE,作業3!A$4,"") ->  | U97: =IF(S97=TRUE,作業3!A$4,"") ->  | Z97: =IF(AND($T97="",$U97=""),"",作業3!A4) ->  | AA97: =IF(AND($T97="",$U97=""),"",作業3!B4) ->  | AB97: =IF(AND($T97="",$U97=""),"",作業3!C4) ->  | AC97: =IF(AND($T97="",$U97=""),"",作業3!D4) ->  | AD97: =IF(AND($T97="",$U97=""),"",作業3!E4) ->  | AE97: =IF(AND($T97="",$U97=""),"",作業3!F4) ->  | AF97: =IF(AND($T97="",$U97=""),"",作業3!G4) ->  | AG97: =IF(AND($T97="",$U97=""),"",作業3!H4) ->  | AH97: =IF(AND($T97="",$U97=""),"",作業3!I4) ->  | AI97: =IF(AND($T97="",$U97=""),"",作業3!J4) ->  | AJ97: =IF(AND($T97="",$U97=""),"",作業3!K4) ->  | AK97: =IF(AND($T97="",$U97=""),"",作業3!L4) ->  | AL97: =IF(AND($T97="",$U97=""),"",作業3!M4) ->  | AM97: =IF(AND($T97="",$U97=""),"",作業3!N4) ->  | AN97: =IF(AND($T97="",$U97=""),"",作業3!O4) ->  | AO97: =IF(AND($T97="",$U97=""),"",作業3!P4) ->  | AP97: =IF(AND($T97="",$U97=""),"",作業3!Q4) ->  | AQ97: =IF(AND($T97="",$U97=""),"",作業3!R4) ->  | AR97: =IF(AND($T97="",$U97=""),"",作業3!S4) ->  | AS97: =IF(AND($T97="",$U97=""),"",作業3!T4) ->  | AT97: =IF(AND($T97="",$U97=""),"",作業3!U4) ->  | AU97: =IF(AND($T97="",$U97=""),"",作業3!V4) ->  | AV97: =IF(AND($T97="",$U97=""),"",作業3!W4) ->  | AW97: =IF(AND($T97="",$U97=""),"",作業3!X4) ->  | AX97: =IF(AND($T97="",$U97=""),"",作業3!Y4) ->  | AY97: =IF(AND($T97="",$U97=""),"",作業3!Z4) ->  | AZ97: =IF(AND($T97="",$U97=""),"",作業3!AA4) ->  | BA97: =IF(AND($T97="",$U97=""),"",作業3!AB4) ->  | BB97: =IF(AND($T97="",$U97=""),"",作業3!AC4) ->  | BC97: =IF(AND($T97="",$U97=""),"",作業3!AD4) ->  | BD97: =IF(AND($T97="",$U97=""),"",作業3!AE4) ->  | BE97: =IF(AND($T97="",$U97=""),"",作業3!AF4) ->  | BF97: =IF(AND($T97="",$U97=""),"",作業3!AG4) ->  | BG97: =IF(AND($T97="",$U97=""),"",作業3!AH4) ->  | BH97: =IF(AND($T97="",$U97=""),"",作業3!AI4) ->  | BI97: =IF(AND($T97="",$U97=""),"",作業3!AJ4) ->  | BJ97: =IF(AND($T97="",$U97=""),"",作業3!AK4) ->  | BK97: =IF(AND($T97="",$U97=""),"",作業3!AL4) ->  | BL97: =IF(AND($T97="",$U97=""),"",作業3!AM4) ->  | BM97: =IF(AND($T97="",$U97=""),"",作業3!AN4) ->  | BN97: =IF(AND($T97="",$U97=""),"",作業3!AO4) ->  | BO97: =IF(AND($T97="",$U97=""),"",作業3!AP4) ->  | BP97: =IF(AND($T97="",$U97=""),"",作業3!AQ4) ->  | BQ97: =IF(AND($T97="",$U97=""),"",作業3!AR4) ->  | BR97: =IF(AND($T97="",$U97=""),"",作業3!AS4) ->  | BS97: =IF(AND($T97="",$U97=""),"",作業3!AT4) ->  | BT97: =IF(AND($T97="",$U97=""),"",作業3!AU4) -> 
D98: =IF(E98="","",_xlfn.XLOOKUP($E86,作業3!B$2:B$600,作業3!AV$2:AV$600)) ->  | E98: =IF(E94="","",E94) ->  | F98: =IF(E98="","",_xlfn.XLOOKUP($E98,作業3!B$2:B$600,作業3!D$2:D$600)) ->  | G98: =IF(E98="","",_xlfn.XLOOKUP($E98,作業3!B$2:B$600,作業3!G$2:G$600)) ->  | H98: =IF(E98="","",_xlfn.XLOOKUP($E98,作業3!B$2:B$600,作業3!H$2:H$600)) ->  | I98: =IF(E98="","",_xlfn.XLOOKUP($E98,作業3!B$2:B$600,作業3!I$2:I$600)) ->  | J98: =IF(E98="","",_xlfn.XLOOKUP($E98,作業3!B$2:B$600,作業3!J$2:J$600)) ->  | K98: =IF(E98="","",_xlfn.XLOOKUP($E98,作業3!B$2:B$600,作業3!K$2:K$600)) ->  | L98: =IF(E98="","",IF(R$82=1,_xlfn.XLOOKUP($E98,作業3!B$2:B$600,作業3!M$2:M$600),IF(R$82=2,_xlfn.XLOOKUP($E98,作業3!B$2:B$600,作業3!O$2:O$600),IF(R$82=3,_xlfn.XLOOKUP($E98,作業3!B$2:B$600,作業3!Q$2:Q$600),K98)))) ->  | M98: =IF(E98="","",_xlfn.XLOOKUP($E98,作業3!B$2:B$600,作業3!L$2:L$600)) ->  | N98: =IF(E98="","",IF(R$82=1,_xlfn.XLOOKUP($E98,作業3!B$2:B$600,作業3!N$2:N$600),IF(R$82=2,_xlfn.XLOOKUP($E98,作業3!B$2:B$600,作業3!P$2:P$600),IF(R$82=3,_xlfn.XLOOKUP($E98,作業3!B$2:B$600,作業3!R$2:R$600),M98)))) ->  | O98: =IF(E98="","",_xlfn.XLOOKUP($E98,作業3!B$2:B$600,作業3!AG$2:AG$600)/10000) ->  | P98: =IF(E98="","",IF(R$82=1,_xlfn.XLOOKUP($E98,作業3!B$2:B$600,作業3!AH$2:AH$600),IF(R$82=2,_xlfn.XLOOKUP($E98,作業3!B$2:B$600,作業3!AI$2:AI$600),IF(R$82=3,_xlfn.XLOOKUP($E98,作業3!B$2:B$600,作業3!AJ$2:AJ$600),O98*10000)))/10000) ->  | T98: =SUM(T83:T97) -> 0 | U98: =SUM(U83:U97) -> 0
H105: 借入期間 | J105: 金利タイプ | K105: 適用金利 | L105: 毎月返済額 | M105: 固定期間 | N105: 店頭金利 | O105: 優遇金利
A107: 借換 | B107: 候補１ | C107: 商品A | E107: =_xlfn.XLOOKUP(T98,Z83:Z98,AA83:AA98) ->  | F107: =_xlfn.XLOOKUP(T98,Z83:Z98,AC83:AC98) ->  | G107: =_xlfn.XLOOKUP(T98,Z83:Z98,AF83:AF98) ->  | H107: =_xlfn.XLOOKUP(T98,Z83:Z98,AG83:AG98) ->  | I107: =_xlfn.XLOOKUP(T98,Z83:Z98,AH83:AH98) ->  | J107: =_xlfn.XLOOKUP(T98,Z83:Z98,AI83:AI98) ->  | K107: =_xlfn.XLOOKUP(T98,Z83:Z98,AJ83:AJ98) ->  | L107: =_xlfn.XLOOKUP(T98,Z83:Z98,AK83:AK98) ->  | M107: =IF(OR(J107="変動金利",J107="全期間固定"),H107,_xlfn.XLOOKUP(T98,Z83:Z98,BJ83:BJ98)) ->  | N107: =_xlfn.XLOOKUP(T98,Z83:Z98,BA83:BA98) ->  | O107: =_xlfn.XLOOKUP(T98,Z83:Z98,BL83:BL98)-N107 ->  | Q107: =INT(FV(K107/12,M107*12,L107,-G107,)) -> 
J108: =IF(J107="変動金利","",IF(RIGHT(J107,3)="年固定","変動金利","")) ->  | K108: =IF(J108="","",VLOOKUP(T98,Z83:BT97,39)) ->  | L108: =IF(J108="","",VLOOKUP(T98,Z83:BT97,40)) ->  | M108: =IF(J108="","",H107-M107+I107/12) ->  | Q108: =INT(FV(K108/12,M108*12,L108,-Q107,)) -> 
L109: =IF(K109="","",INT(PMT(K109/12,(H107-M107-M108)*12+I107,-Q108,,))) -> 
C110: 商品B | L110: =IF(G110="","",INT(PMT(K110/12,H110*12+I110,-G110,,))) ->  | Q110: =INT(FV(K110/12,M110*12,L110,-G110,)) -> 
L111: =IF(K111="","",INT(PMT(K111/12,(H110-M110)*12+I110,-Q110,,))) ->  | Q111: =INT(FV(K111/12,M111*12,L111,-Q110,)) -> 
L112: =IF(K112="","",INT(PMT(K112/12,(H110-M110-M111)*12+I110,-Q111,,))) -> 
C113: 商品C | L113: =IF(G113="","",INT(PMT(K113/12,H113*12+I113,-G113,,))) ->  | Q113: =INT(FV(K113/12,M113*12,L113,-G113,)) -> 
L114: =IF(K114="","",INT(PMT(K114/12,(H113-M113)*12+I113,-Q113,,))) ->  | Q114: =INT(FV(K114/12,M114*12,L114,-Q113,)) -> 
L115: =IF(K115="","",INT(PMT(K115/12,(H113-M113-M114)*12+I113,-Q114,,))) -> 
B117: 候補２ | C117: 商品a | E117: =VLOOKUP(U98,Z83:BT97,2) ->  | F117: =VLOOKUP(U98,Z83:BT97,4) ->  | G117: =VLOOKUP(U98,Z83:BT97,7) ->  | H117: =VLOOKUP(U98,Z83:BT97,8) ->  | I117: =VLOOKUP(U98,Z83:BT97,9) ->  | J117: =VLOOKUP(U98,Z83:BT97,10) ->  | K117: =VLOOKUP(U98,Z83:BT97,11) ->  | L117: =VLOOKUP(U98,Z83:BT97,12) ->  | M117: =IF(OR(J117="変動金利",J117="全期間固定"),H117,VLOOKUP(U98,Z83:BT97,37)) -> 
J118: =IF(J117="変動金利","",IF(RIGHT(J117,3)="年固定","変動金利","")) ->  | K118: =IF(J118="","",VLOOKUP(U98,Z83:BT97,39)) ->  | L118: =IF(J118="","",VLOOKUP(U98,Z83:BT97,40)) ->  | M118: =IF(J118="","",H117-M117+I117/12) -> 
C120: 商品b | L120: =IF(G120="","",INT(PMT(K120/12,H120*12+I120,-G120,,))) ->  | Q120: =INT(FV(K120/12,M120*12,L120,-G120,)) -> 
L121: =IF(K121="","",INT(PMT(K121/12,(H120-M120)*12+I120,-Q120,,))) ->  | Q121: =INT(FV(K121/12,M121*12,L121,-Q120,)) -> 
L122: =IF(K122="","",INT(PMT(K122/12,(H120-M120-M121)*12+I120,-Q121,,))) -> 
C123: 商品c | L123: =IF(G123="","",INT(PMT(K123/12,H123*12+I123,-G123,,))) ->  | Q123: =INT(FV(K123/12,M123*12,L123,-G123,)) -> 
L124: =IF(K124="","",INT(PMT(K124/12,(H123-M123)*12+I123,-Q123,,))) ->  | Q124: =INT(FV(K124/12,M124*12,L124,-Q123,)) -> 
L125: =IF(K125="","",INT(PMT(K125/12,(H123-M123-M124)*12+I123,-Q124,,))) -> 
H128: 借入期間 | J128: 金利タイプ | K128: 適用金利 | L128: 毎月返済額 | M128: 固定期間 | N128: 店頭金利 | O128: 優遇金利
A130: 借換 | B130: 候補１ | D130: 商品A | E130: =IF(借換!$T$31=TRUE,E107,IF(借換!$T$32=TRUE,E117,E107)) ->  | G130: =IF(借換!$T$31=TRUE,G107,IF(借換!$T$32=TRUE,G117,G107)) ->  | H130: =IF(借換!$T$31=TRUE,H107,IF(借換!$T$32=TRUE,H117,H107)) ->  | I130: =IF(借換!$T$31=TRUE,I107,IF(借換!$T$32=TRUE,I117,I107)) ->  | J130: =IF(借換!$T$31=TRUE,J107,IF(借換!$T$32=TRUE,J117,J107)) ->  | K130: =IF(借換!$T$31=TRUE,K107,IF(借換!$T$32=TRUE,K117,K107)) ->  | L130: =IF(借換!$T$31=TRUE,L107,IF(借換!$T$32=TRUE,L117,L107)) ->  | M130: =IF(借換!$T$31=TRUE,M107,IF(借換!$T$32=TRUE,M117,M107)) ->  | N130: =IF(借換!$T$31=TRUE,N107,IF(借換!$T$32=TRUE,N117,N107)) ->  | O130: =IF(借換!$T$31=TRUE,O107,IF(借換!$T$32=TRUE,O117,O107)) ->  | Q130: =INT(FV(K130/12,M130*12,L130,-G130,)) -> 
J131: =IF(借換!$T$31=TRUE,J108,IF(借換!$T$32=TRUE,J118,J108)) ->  | K131: =IF(借換!$T$31=TRUE,K108,IF(借換!$T$32=TRUE,K118,K108)) ->  | L131: =IF(借換!$T$31=TRUE,L108,IF(借換!$T$32=TRUE,L118,L108)) ->  | M131: =IF(借換!$T$31=TRUE,M108,IF(借換!$T$32=TRUE,M118,M108)) ->  | Q131: =INT(FV(K131/12,M131*12,L131,-Q130,)) -> 
J132: =IF(借換!$T$31=TRUE,J109,IF(借換!$T$32=TRUE,J119,J109)) -> 0 | K132: =IF(借換!$T$31=TRUE,K109,IF(借換!$T$32=TRUE,K119,K109)) -> 0 | L132: =IF(借換!$T$31=TRUE,L109,IF(借換!$T$32=TRUE,L119,L109)) ->  | M132: =IF(借換!$T$31=TRUE,M109,IF(借換!$T$32=TRUE,M119,M109)) -> 0
D133: 商品B | E133: =IF(借換!$T$31=TRUE,E110,IF(借換!$T$32=TRUE,E120,E110)) -> 0 | G133: =IF(借換!$T$31=TRUE,G110,IF(借換!$T$32=TRUE,G120,G110)) -> 0 | H133: =IF(借換!$T$31=TRUE,H110,IF(借換!$T$32=TRUE,H120,H110)) -> 0 | I133: =IF(借換!$T$31=TRUE,I110,IF(借換!$T$32=TRUE,I120,I110)) -> 0 | J133: =IF(借換!$T$31=TRUE,J110,IF(借換!$T$32=TRUE,J120,J110)) -> 0 | K133: =IF(借換!$T$31=TRUE,K110,IF(借換!$T$32=TRUE,K120,K110)) -> 0 | L133: =IF(借換!$T$31=TRUE,L110,IF(借換!$T$32=TRUE,L120,L110)) ->  | M133: =IF(借換!$T$31=TRUE,M110,IF(借換!$T$32=TRUE,M120,M110)) -> 0 | N133: =IF(借換!$T$31=TRUE,N110,IF(借換!$T$32=TRUE,N120,N110)) -> 0 | O133: =IF(借換!$T$31=TRUE,O110,IF(借換!$T$32=TRUE,O120,O110)) -> 0
J134: =IF(借換!$T$31=TRUE,J111,IF(借換!$T$32=TRUE,J121,J111)) -> 0 | K134: =IF(借換!$T$31=TRUE,K111,IF(借換!$T$32=TRUE,K121,K111)) -> 0 | L134: =IF(借換!$T$31=TRUE,L111,IF(借換!$T$32=TRUE,L121,L111)) ->  | M134: =IF(借換!$T$31=TRUE,M111,IF(借換!$T$32=TRUE,M121,M111)) -> 0
J135: =IF(借換!$T$31=TRUE,J112,IF(借換!$T$32=TRUE,J122,J112)) -> 0 | K135: =IF(借換!$T$31=TRUE,K112,IF(借換!$T$32=TRUE,K122,K112)) -> 0 | L135: =IF(借換!$T$31=TRUE,L112,IF(借換!$T$32=TRUE,L122,L112)) ->  | M135: =IF(借換!$T$31=TRUE,M112,IF(借換!$T$32=TRUE,M122,M112)) -> 0
D136: 商品C | E136: =IF(借換!$T$31=TRUE,E113,IF(借換!$T$32=TRUE,E123,E113)) -> 0 | G136: =IF(借換!$T$31=TRUE,G113,IF(借換!$T$32=TRUE,G123,G113)) -> 0 | H136: =IF(借換!$T$31=TRUE,H113,IF(借換!$T$32=TRUE,H123,H113)) -> 0 | I136: =IF(借換!$T$31=TRUE,I113,IF(借換!$T$32=TRUE,I123,I113)) -> 0 | J136: =IF(借換!$T$31=TRUE,J113,IF(借換!$T$32=TRUE,J123,J113)) -> 0 | K136: =IF(借換!$T$31=TRUE,K113,IF(借換!$T$32=TRUE,K123,K113)) -> 0 | L136: =IF(借換!$T$31=TRUE,L113,IF(借換!$T$32=TRUE,L123,L113)) ->  | M136: =IF(借換!$T$31=TRUE,M113,IF(借換!$T$32=TRUE,M123,M113)) -> 0 | N136: =IF(借換!$T$31=TRUE,N113,IF(借換!$T$32=TRUE,N123,N113)) -> 0 | O136: =IF(借換!$T$31=TRUE,O113,IF(借換!$T$32=TRUE,O123,O113)) -> 0
J137: =IF(借換!$T$31=TRUE,J114,IF(借換!$T$32=TRUE,J124,J114)) -> 0 | K137: =IF(借換!$T$31=TRUE,K114,IF(借換!$T$32=TRUE,K124,K114)) -> 0 | L137: =IF(借換!$T$31=TRUE,L114,IF(借換!$T$32=TRUE,L124,L114)) ->  | M137: =IF(借換!$T$31=TRUE,M114,IF(借換!$T$32=TRUE,M124,M114)) -> 0
J138: =IF(借換!$T$31=TRUE,J115,IF(借換!$T$32=TRUE,J125,J115)) -> 0 | K138: =IF(借換!$T$31=TRUE,K115,IF(借換!$T$32=TRUE,K125,K115)) -> 0 | L138: =IF(借換!$T$31=TRUE,L115,IF(借換!$T$32=TRUE,L125,L115)) ->  | M138: =IF(借換!$T$31=TRUE,M115,IF(借換!$T$32=TRUE,M125,M115)) -> 0

Sheet 質問
C11: 変動金利について、以下の内容を理解している
D13: 変動金利が将来上昇する可能性がある
D15: 変動金利は30年以上、ほぼ金利が下がり続けていて、ほとんど上昇していない
D17: 変動金利が現在では変動していないが、変動幅が他の金利タイプと比べて大きい
C20: 変動金利と固定金利について
D22: 変動金利は、固定金利に比べ、上がり始めるのは遅く、下がる時は早く下がる
D24: 変動金利は、固定金利よりも高くなることがある
D26: 変動金利はいつでも金利タイプを変更できるが、全期間固定に変更するのは難しい
C29: 「5年ルール」と「125％ルール」について
D31: 急速な金利上昇時には、変動金利のみ「5年ルール」と「125％ルール」が適用される
D33: 「5年ルール」と「125％ルール」は、当面の金利上昇による返済額の変化を抑えるが、金利上昇は適用される
D35: 「5年ルール」と「125％ルール」は、金利が上昇すると、当面は毎月返済額の上昇を抑えるが、総返済額は増える
C39: 金利について
D41: 金利タイプの変更を考えるならば、変動金利だけでなく固定金利も定期的に確認すべきである
D43: 固定期間選択型の金利の優遇制度は、当初固定期間終了後に優遇金利が変わることがある
D45: 金利上昇リスクを回避するため、全期間固定に借換えるのが最も安全、確実である
C48: 変動金利が上昇した場合の対策について、以下の内容を理解している
D50: 繰上返済を行う | G50: 現在の資産残高 | I50: =お客様情報1!E43+お客様情報2!D23+お客様情報2!D24+お客様情報2!D25 -> 0 | J50: 万円
D52: 固定金利に変更する（金利タイプの変更、借換えなど）
D54: 家計の見直し、資産運用など | O54: FALSE | P54: =IF(O54=TRUE,1,0) -> 0

Sheet ローン選択
C2: 北陸銀行 | E2: FALSE | F2: =IF(E2=TRUE,1,2) -> 2 | I2: みずほ銀行 | L2: TRUE | M2: =IF(L2=TRUE,1,2) -> 1 | P2: auじぶん銀行 | R2: TRUE | S2: =IF(R2=TRUE,1,2) -> 1
C4: 北國銀行 | E4: FALSE | F4: =IF(E4=TRUE,1,2) -> 2 | I4: 三菱UFJ銀行 | L4: TRUE | M4: =IF(L4=TRUE,1,2) -> 1 | P4: イオン銀行 | R4: TRUE | S4: =IF(R4=TRUE,1,2) -> 1
C6: 北陸ろうきん | E6: FALSE | F6: =IF(E6=TRUE,1,2) -> 2 | I6: 三井住友銀行 | L6: TRUE | M6: =IF(L6=TRUE,1,2) -> 1 | P6: 三菱UFJ信託銀行 | R6: TRUE | S6: =IF(R6=TRUE,1,2) -> 1
C8: 中央ろうきん | E8: FALSE | F8: =IF(E8=TRUE,1,2) -> 2 | I8: りそな銀行 | L8: TRUE | M8: =IF(L8=TRUE,1,2) -> 1 | P8: 三井住友信託銀行 | R8: TRUE | S8: =IF(R8=TRUE,1,2) -> 1
C10: 常陽銀行 | E10: FALSE | F10: =IF(E10=TRUE,1,2) -> 2 | I10: PayPay銀行 | L10: TRUE | M10: =IF(L10=TRUE,1,2) -> 1 | P10: SBI新生銀行 | R10: TRUE | S10: =IF(R10=TRUE,1,2) -> 1
C12: 横浜銀行 | E12: FALSE | F12: =IF(E12=TRUE,1,2) -> 2 | I12: ソニー銀行 | L12: TRUE | M12: =IF(L12=TRUE,1,2) -> 1 | P12: SBIアルヒ | R12: TRUE | S12: =IF(R12=TRUE,1,2) -> 1
C14: 静岡銀行 | E14: FALSE | F14: =IF(E14=TRUE,1,2) -> 2 | I14: 楽天銀行 | L14: TRUE | M14: =IF(L14=TRUE,1,2) -> 1 | P14: 優良住宅ローン | R14: TRUE | S14: =IF(R14=TRUE,1,2) -> 1
C16: 北洋銀行 | E16: FALSE | F16: =IF(E16=TRUE,1,2) -> 2 | I16: 住信SBIネット銀行 | L16: TRUE | M16: =IF(L16=TRUE,1,2) -> 1 | P16: カシワバラ・アシスト | R16: TRUE | S16: =IF(R16=TRUE,1,2) -> 1
A23: キャンペーン
C25: auじぶん銀行 | E25: FALSE | F25: =IF(E25=TRUE,1,2) -> 2 | G25: 住宅ローン金利優遇割 | H25: =AJ25 -> 0 | K25: モバイル ▲0.07% | L25: TRUE | M25: =IF(L25=TRUE,1,2) -> 1 | Q25: でんき ▲0.03％ | R25: TRUE | S25: =IF(R25=TRUE,1,2) -> 1 | V25: ネット ▲0.03％ | Y25: ＴＶ ▲0.02％ | AF25: FALSE | AG25: FALSE | AH25: FALSE | AI25: FALSE | AJ25: =IF(AF25=TRUE,-0.07%,0)+IF(AG25=TRUE,-0.03%,0)+IF(AH25=TRUE,-0.03%,0)+IF(AI25=TRUE,-0.02%,0) -> 0

Sheet 診断結果 (hidden)
C4: 総合判定 | M4: 判定の概要
F5: =_xlfn.XLOOKUP(D18,コメント!D3:D6,コメント!E3:E6) -> 
N6: A1 | O6: 安心、安全
C7: =_xlfn.XLOOKUP(コメント!P23&コメント!O23,コメント!R3:AY3&コメント!R4:AY4,コメント!R5:AY5) ->  | F7: =_xlfn.XLOOKUP(D23,コメント!D8:D11,コメント!E8:E11) ->  | N7: B1 | O7: 家計改善要検討
N8: C1 | O8: 家計改善＋資産運用が必要
F9: =_xlfn.XLOOKUP(D43,コメント!D13:D16,コメント!E13:E16) -> 金利が 0.0%％上昇したとしても、目標資産を達成可能。 | N9: D1 | O9: 家計の抜本的改善
N10: A2 | O10: 上記に加え リスク管理の学習が必要
F11: =_xlfn.XLOOKUP(D67,コメント!D18:D21,コメント!E18:E21) -> 金利が 0.0%上昇したとしても、目標資産を達成可能。 | N11: B2
N12: C2
F13: =IF(コメント!C23>10,コメント!E23,コメント!E24) -> リスク管理について、知識を深め、リスク対策と管理を今すぐ初めてください。 | N13: D2
C18: 借り過ぎ判定 | D18: =IF(H18>=10%,"Ａ",IF(H18>=7.5%,"Ｂ",IF(H18>=5%,"Ｃ","Ｄ"))) ->  | G18: FCF | H18: =お客様情報2!D16*12/(お客様情報1!Q18+お客様情報1!D30)/10000 ->  | J18: =IF(H18>=10%,コメント!D27,IF(H18>=7.5%,コメント!D28,IF(H18>=5%,コメント!D29,コメント!D30))) -> 
C23: 返済額判定 | D23: =IF(コメント!C8>0,"Ａ",IF(コメント!C8>-10,"Ｂ",IF(コメント!C8>-20,"Ｃ","Ｄ"))) ->  | G23: 毎月返済額 | I23: =CF00!C7 ->  | M23: 元利総返済額 | O23: =SUM(CF00!C218:BK218) -> 0
G25: FCF | H25: 0%上昇 | I25: =CF00!C11 -> 0 | K25: =IF(I25>0,"〇","×") -> × | N25: 0%上昇
H26: =TEXT(住宅ローン!$J$10,"0.0%")&"上昇" -> 0.0%上昇 | I26: =I25-CF00!D8 ->  | K26: =IF(I26>0,"〇","×") ->  | N26: =H26 -> 0.0%上昇 | O26: =SUM(CF00!C219:BN219)-O$23 -> 0
H27: =TEXT(住宅ローン!$K$10,"0.0%")&"上昇" -> 0.0%上昇 | I27: =I25-CF00!D9 ->  | K27: =IF(I27>0,"〇","×") ->  | N27: =H27 -> 0.0%上昇 | O27: =SUM(CF00!C220:BN220)-O$23 -> 0
H28: =TEXT(住宅ローン!$L$10,"0.0%")&"上昇" -> 0.0%上昇 | I28: =I25-CF00!D10 ->  | K28: =IF(I28>0,"〇","×") ->  | N28: 0.0%上昇 | O28: =SUM(CF00!C221:BN221)-O$23 -> 0
M31: 月次収支は、金利が
M33: そのままでも | O33: =CFまとめ!E110 ->  | P33: =IF(O33>0,"回赤字になります","赤字がなく安泰です") -> 
M34: =" "&TEXT(住宅ローン!$J$10,"0.0%")&"上昇すると" -> 0.0%上昇すると | O34: =CFまとめ!E114 ->  | P34: =IF(O34>0,"回赤字になります","赤字がなく安泰です") -> 
M35: =" "&TEXT(住宅ローン!$K$10,"0.0%")&"上昇すると" -> 0.0%上昇すると | O35: =CFまとめ!E118 -> 
M36: =" "&TEXT(住宅ローン!$L$10,"0.0%")&"上昇すると" -> 0.0%上昇すると | O36: =CFまとめ!E122 -> 
C43: 退職時純資産 | D43: =IF(コメント!C13=0,"Ａ",IF(コメント!C13>-10,"Ｂ",IF(コメント!C13>-23,"Ｃ","Ｄ"))) -> Ａ | G43: 退職時純資産 | I43: 目標 | J43: =お客様情報1!D$110 -> 0 | AA43: 退職前 | AB43: 退職後
AA44: =IFERROR(_xlfn.XLOOKUP(1,CFまとめ!$F113:$BD113,CFまとめ!$F$1:$BD$1),0) -> 0 | AB44: =IFERROR(_xlfn.XLOOKUP(1,CFまとめ!$F112:$BD112,CFまとめ!$F$1:$BD$1),0) -> 0 | AC44: =IF(AA44=0,"",IF(AA44<AB$56,"退職前にマイナスがあり","")) ->  | AD44: =" "&IF(AB44=0,"90才まで問題なし"," "&TEXT(AB44,0)&"才から資産がマイナスに") -> 90才まで問題なし
C45: 純資産 | D45: 0%上昇 | F45: =AD56 -> 0 | G45: =IF(F45<0,"×",IF(F45-J$43<0,"△","〇")) -> 〇 | H45: =TEXT(IF(F45>お客様情報1!D$110,"目標達成！","目標未達!!"),)&AC44&AD44 -> 目標未達!! 90才まで問題なし | AA45: =IFERROR(_xlfn.XLOOKUP(1,CFまとめ!$F117:$BD117,CFまとめ!$F$1:$BD$1),0) -> 0 | AB45: =IFERROR(_xlfn.XLOOKUP(1,CFまとめ!$F116:$BD116,CFまとめ!$F$1:$BD$1),0) -> 0 | AC45: =IF(AA45=0,"",IF(AA45<AB$56," 退職前にマイナスがあり","")) ->  | AD45: =" "&IF(AB45=0,"90才まで問題なし","、"&TEXT(AB45,0)&"才から資産がマイナスに") -> 90才まで問題なし
D46: =H26 -> 0.0%上昇 | F46: =AD57 -> 0 | G46: =IF(F46<0,"×",IF(F46-J$43<0,"△","〇")) -> 〇 | H46: =TEXT(IF(F46>お客様情報1!D$110,"目標達成！","目標未達!!"),)&AC45&AD45 -> 目標未達!! 90才まで問題なし | AA46: =IFERROR(_xlfn.XLOOKUP(1,CFまとめ!$F121:$BD121,CFまとめ!$F$1:$BD$1),0) -> 0 | AB46: =IFERROR(_xlfn.XLOOKUP(1,CFまとめ!$F120:$BD120,CFまとめ!$F$1:$BD$1),0) -> 0 | AC46: =IF(AA46=0,"",IF(AA46<AB$56," 退職前にマイナスがあり","")) ->  | AD46: =" "&IF(AB46=0,"90才まで問題なし","、"&TEXT(AB46,0)&"才から資産がマイナスに") -> 90才まで問題なし
D47: =H27 -> 0.0%上昇 | F47: =AD58 -> 0 | G47: =IF(F47<0,"×",IF(F47-J$43<0,"△","〇")) -> 〇 | H47: =TEXT(IF(F47>お客様情報1!D$110,"目標達成！","目標未達!!"),)&AC46&AD46 -> 目標未達!! 90才まで問題なし | AA47: =IFERROR(_xlfn.XLOOKUP(1,CFまとめ!$F125:$BD125,CFまとめ!$F$1:$BD$1),0) -> 0 | AB47: =IFERROR(_xlfn.XLOOKUP(1,CFまとめ!$F124:$BD124,CFまとめ!$F$1:$BD$1),0) -> 0 | AC47: =IF(AA47=0,"",IF(AA47<AB$56," 退職前にマイナスがあり","")) ->  | AD47: =" "&IF(AB47=0,"90才まで問題なし","、"&TEXT(AB47,0)&"才から資産がマイナスに") -> 90才まで問題なし
D48: 0.0%上昇 | F48: =AD59 -> 0 | G48: =IF(F48<0,"×",IF(F48-J$43<0,"△","〇")) -> 〇 | H48: =TEXT(IF(F48>お客様情報1!D$110,"目標達成！","目標未達!!"),)&AC47&AD47 -> 目標未達!! 90才まで問題なし
AD54: 物価現状のまま | AE54: 物価上昇の場合
AB56: =お客様情報1!D24 -> 0 | AC56: =D45 -> 0%上昇 | AD56: =AF56-AG56 -> 0 | AE56: 0 | AF56: =_xlfn.XLOOKUP($AB$56,CFまとめ!$F$1:$BD$1,CFまとめ!$F6:$BD6) -> 0 | AG56: =_xlfn.XLOOKUP($AB$56,CF00!$C$17:$BK$17,CF00!$C213:$BK213) -> 0
AC57: =D46 -> 0.0%上昇 | AD57: =AF57-AG57 -> 0 | AE57: 0 | AF57: =_xlfn.XLOOKUP($AB$56,CFまとめ!$F$1:$BD$1,CFまとめ!$F10:$BD10) -> 0 | AG57: =_xlfn.XLOOKUP($AB$56,CF00!$C$17:$BK$17,CF00!$C214:$BK214) -> 0
AC58: 0.0%上昇 | AD58: 0 | AE58: 0 | AF58: =_xlfn.XLOOKUP($AB$56,CFまとめ!$F$1:$BD$1,CFまとめ!$F14:$BD14) -> 0 | AG58: =_xlfn.XLOOKUP($AB$56,CF00!$C$17:$BK$17,CF00!$C215:$BK215) -> 0
AC59: 0.0%上昇 | AD59: 0 | AE59: 0 | AF59: =_xlfn.XLOOKUP($AB$56,CFまとめ!$F$1:$BD$1,CFまとめ!$F18:$BD18) -> 0 | AG59: =_xlfn.XLOOKUP($AB$56,CF00!$C$17:$BK$17,CF00!$C216:$BK216) -> 0
AB60: =O67 -> 0 | AC60: =AC56 -> 0%上昇
AC61: =AC57 -> 0.0%上昇
AC62: 0.0%上昇
AC63: 0.0%上昇
C67: 物価上昇分析 | D67: =IF(コメント!C18=0,"Ａ",IF(コメント!C18>-10,"Ｂ",IF(コメント!C18>-20,"Ｃ","Ｄ"))) -> Ａ | G67: 退職時純資産 | I67: 目標 | J67: =お客様情報1!D$110 -> 0 | P67: 才の資産残高
F68: 純資産残高 | O68: 物価まま | P68: 物価上昇 | AA68: 退職前 | AB68: 退職後
C69: 純資産 | D69: 0%上昇 | F69: =AE78 -> 0 | G69: =IF(F69<0,"×",IF(F69-J$67<0,"△","〇")) -> 〇 | H69: =TEXT(IF(F69>お客様情報1!D$110,"目標達成！","目標未達!!"),)&AC69&AD69 -> 目標未達!! 、90才から資産がマイナスに | O69: =_xlfn.XLOOKUP(O67,CFまとめ!$F$1:$BD$1,CFまとめ!$F6:$BD6) ->  | P69: =_xlfn.XLOOKUP(O67,CFまとめ!$F$1:$BD$1,CFまとめ!$F54:$BD54) ->  | AA69: =IFERROR(_xlfn.XLOOKUP(1,CFまとめ!$F130:$BD130,CFまとめ!$F$1:$BD$1),0) -> 0 | AB69: =IFERROR(_xlfn.XLOOKUP(1,CFまとめ!$F129:$BD129,CFまとめ!$F$1:$BD$1),90) -> 90 | AC69: =IF(AA69=0,"",IF(AA69<AB$56," 退職前にマイナスがあり","")) ->  | AD69: =" "&IF(AB69=0,"90才まで問題なし","、"&TEXT(AB69,0)&"才から資産がマイナスに") -> 、90才から資産がマイナスに
D70: =D46 -> 0.0%上昇 | F70: =AE79 -> 0 | G70: =IF(F70<0,"×",IF(F70-J$67<0,"△","〇")) -> 〇 | H70: =TEXT(IF(F70>お客様情報1!D$110,"目標達成！","目標未達!!"),)&AC70&AD70 -> 目標未達!! 、90才から資産がマイナスに | O70: =_xlfn.XLOOKUP(O67,CFまとめ!$F$1:$BD$1,CFまとめ!$F10:$BD10) ->  | P70: =_xlfn.XLOOKUP(O67,CFまとめ!$F$1:$BD$1,CFまとめ!$F58:$BD58) ->  | AA70: =IFERROR(_xlfn.XLOOKUP(1,CFまとめ!$F134:$BD134,CFまとめ!$F$1:$BD$1),0) -> 0 | AB70: =IFERROR(_xlfn.XLOOKUP(1,CFまとめ!$F133:$BD133,CFまとめ!$F$1:$BD$1),90) -> 90 | AC70: =IF(AA70=0,"",IF(AA70<AB$56," 退職前にマイナスがあり","")) ->  | AD70: =" "&IF(AB70=0,"90才まで問題なし","、"&TEXT(AB70,0)&"才から資産がマイナスに") -> 、90才から資産がマイナスに
D71: =D47 -> 0.0%上昇 | F71: =AE80 -> 0 | G71: =IF(F71<0,"×",IF(F71-J$67<0,"△","〇")) -> 〇 | H71: =TEXT(IF(F71>お客様情報1!D$110,"目標達成！","目標未達!!"),)&AC71&AD71 -> 目標未達!! 、90才から資産がマイナスに | O71: =_xlfn.XLOOKUP(O67,CFまとめ!$F$1:$BD$1,CFまとめ!$F14:$BD14) ->  | P71: =_xlfn.XLOOKUP(O67,CFまとめ!$F$1:$BD$1,CFまとめ!$F62:$BD62) ->  | AA71: =IFERROR(_xlfn.XLOOKUP(1,CFまとめ!$F138:$BD138,CFまとめ!$F$1:$BD$1),0) -> 0 | AB71: =IFERROR(_xlfn.XLOOKUP(1,CFまとめ!$F137:$BD137,CFまとめ!$F$1:$BD$1),90) -> 90 | AC71: =IF(AA71=0,"",IF(AA71<AB$56," 退職前にマイナスがあり","")) ->  | AD71: =" "&IF(AB71=0,"90才まで問題なし","、"&TEXT(AB71,0)&"才から資産がマイナスに") -> 、90才から資産がマイナスに
D72: 0.0%上昇 | F72: =AE81 -> 0 | G72: =IF(F72<0,"×",IF(F72-J$67<0,"△","〇")) -> 〇 | H72: =TEXT(IF(F72>お客様情報1!D$110,"目標達成！","目標未達!!"),)&AC72&AD72 -> 目標未達!! 、90才から資産がマイナスに | O72: =_xlfn.XLOOKUP(O67,CFまとめ!$F$1:$BD$1,CFまとめ!$F18:$BD18) ->  | P72: =_xlfn.XLOOKUP(O67,CFまとめ!$F$1:$BD$1,CFまとめ!$F66:$BD66) ->  | AA72: =IFERROR(_xlfn.XLOOKUP(1,CFまとめ!$F142:$BD142,CFまとめ!$F$1:$BD$1),0) -> 0 | AB72: =IFERROR(_xlfn.XLOOKUP(1,CFまとめ!$F141:$BD141,CFまとめ!$F$1:$BD$1),90) -> 90 | AC72: =IF(AA72=0,"",IF(AA72<AB$56," 退職前にマイナスがあり","")) ->  | AD72: =" "&IF(AB72=0,"90才まで問題なし","、"&TEXT(AB72,0)&"才から資産がマイナスに") -> 、90才から資産がマイナスに
D74: =IF(CFまとめ!E126>0,"金利の推移によっては、500万円以上の赤字に陥る可能性が高いです。","") -> 
AD77: 物価現状のまま | AE77: 物価上昇の場合
AC78: =D69 -> 0%上昇 | AD78: =AD56 -> 0 | AE78: =AF78-AG78 -> 0 | AF78: =_xlfn.XLOOKUP($AB$56,CFまとめ!$F$1:$BD$1,CFまとめ!$F54:$BD54) -> 0 | AG78: =_xlfn.XLOOKUP($AB$56,'CF01'!$C$17:$BK$17,'CF01'!$C213:$BK213) -> 0
AC79: =D70 -> 0.0%上昇 | AD79: =AD57 -> 0 | AE79: =AF79-AG79 -> 0 | AF79: =_xlfn.XLOOKUP($AB$56,CFまとめ!$F$1:$BD$1,CFまとめ!$F58:$BD58) -> 0 | AG79: =_xlfn.XLOOKUP($AB$56,'CF01'!$C$17:$BK$17,'CF01'!$C214:$BK214) -> 0
AC80: 0.0%上昇 | AD80: =AD58 -> 0 | AE80: 0 | AF80: =_xlfn.XLOOKUP($AB$56,CFまとめ!$F$1:$BD$1,CFまとめ!$F62:$BD62) -> 0 | AG80: =_xlfn.XLOOKUP($AB$56,'CF01'!$C$17:$BK$17,'CF01'!$C215:$BK215) -> 0
AC81: 0.0%上昇 | AD81: =AD59 -> 0 | AE81: 0 | AF81: =_xlfn.XLOOKUP($AB$56,CFまとめ!$F$1:$BD$1,CFまとめ!$F66:$BD66) -> 0 | AG81: =_xlfn.XLOOKUP($AB$56,'CF01'!$C$17:$BK$17,'CF01'!$C216:$BK216) -> 0
M90: 金利上昇対策
M92: 物価＆金利上昇対策

Sheet 住宅ローン控除 (hidden)
C1: 最大年数 | D1: 控除率 | E1: 最大残高
B2: 2010 | C2: 10 | D2: 0.01 | E2: 5000
B3: 2011 | C3: 10 | D3: 0.01 | E3: 5000 | F3: 4000
B4: 2012 | C4: 10 | D4: 0.01 | E4: 4000 | F4: 3000
B5: 2013 | C5: 10 | D5: 0.01 | E5: 3000 | F5: 2000
B6: 2014 | C6: 10 | D6: 0.01 | E6: 3000 | F6: 2000
B7: 2015 | C7: 10 | D7: 0.01 | E7: 5000 | F7: 4000 | G7: 2000
B8: 2016 | C8: 10 | D8: 0.01 | E8: 5000 | F8: 4000 | G8: 2000
B9: 2017 | C9: 10 | D9: 0.01 | E9: 5000 | F9: 4000 | G9: 2000
B10: 2018 | C10: 10 | D10: 0.01 | E10: 5000 | F10: 4000 | G10: 2000
B11: 2019 | C11: 10 | D11: 0.01 | E11: 5000 | F11: 4000 | G11: 2000 | I11: 10月消費税増税
B12: 2020 | C12: 10 | D12: 0.01 | E12: 5000 | F12: 4000 | G12: 2000
B13: 2021 | C13: 13 | D13: 0.01 | E13: 5000 | F13: 4000 | G13: 2000
B14: 2022 | C14: 13 | D14: 0.007 | E14: 5000 | F14: 4500 | G14: 4000 | H14: 3000
B15: 2023 | C15: 13 | D15: 0.007 | E15: 5000 | F15: 4500 | G15: 4000 | H15: 3000
B16: 2024 | C16: 13 | D16: 0.007 | E16: 4500 | F16: 3500 | G16: 3000 | H16: 2000
B17: 2025 | C17: 13 | D17: 0.007 | E17: 4500 | F17: 3500 | G17: 3000 | H17: 2000
A19: 購入年 | B19: =お客様情報1!E95 -> 0 | D19: =IFERROR(_xlfn.XLOOKUP($B19,$B$2:$B$17,D2:D17),0) -> 0 | E19: =IFERROR(_xlfn.XLOOKUP($B19,$B$2:$B$17,E2:E17),0) -> 0
B25: ２人の場合の対応 | D25: 対応しない | F25: 別ファイルで対応する？
B27: 控除の限度額の入力の修正 | F27: 控除テーブルの作成
B28: 合計金額によるキャップの導入
B30: 地域対応
B31: 繰上返済への対応
B33: 収入アップの対応
B34: 物価上昇の最後のページでの変更

Sheet 1-0 (hidden)
H1: 金利判定 | O1: 5年ルール | R1: 金利 | S1: 適用金利 | T1: 毎月返済額 | W1: 利息 | X1: 未収利息 | Y1: 元金 | Z1: 残高 | AB1: 繰上あり | AC1: 元金 | AD1: 累計 | AE1: 判定 | AF1: 繰上判定 | AG1: 繰上後 | AH1: 金利判定 | AO1: 5年ルール | AR1: 適用金利 | AS1: 毎月返済額 | AV1: 利息 | AW1: 未収利息 | AX1: 元金返済 | AY1: 残高 | BA1: 繰上返済後
B2: =住宅ローン!J16 -> 0 | C2: =住宅ローン!T14 -> 0 | D2: =住宅ローン!U14 -> 0 | H2: 金利変更 | U2: 単純計算 | V2: 1.25倍 | AH2: 金利変更 | AT2: 単純計算 | AU2: 1.25倍 | BB2: 毎月返済額 | BC2: 残高 | BF2: 毎月返済額 | BH2: 残高 | BJ2: =住宅ローン控除!E19*10000 -> 0 | BK2: 繰上 | BP2: 2019
A3: 借入金額 | B3: =住宅ローン!G16/10000 -> 0 | C3: 万円 | H3: 初 | I3: 2 | J3: 3 | K3: 4 | L3: 5 | M3: 6 | N3: 合計 | O3: 変動 | P3: 経過月数 | Q3: 判定 | T3: =SUM(T4:T603) -> 0 | W3: =SUM(W4:W423) -> 0 | X3: =SUM(X4:X423) -> 0 | Z3: =B3*10000 -> 0 | AE3: =SUM(AE4:AE423) -> 0 | AF3: =SUM(AF4:AF423) -> 0 | AH3: 初 | AI3: 2 | AJ3: 3 | AK3: 4 | AL3: 5 | AM3: 6 | AN3: 合計 | AO3: 変動 | AP3: 経過月数 | AQ3: 判定 | AV3: =SUM(AV4:AV423) -> 0 | AW3: =SUM(AW4:AW423) -> 0 | AY3: =Z3 -> 0 | BF3: 繰上なし | BG3: 繰上あり | BH3: 繰上なし | BI3: 繰上あり | BJ3: 税金 | BK3: 税金 | BL3: 減税期間 | BM3: 経過期間 | BN3: 残存期間 | BO3: =YEAR(TODAY()) -> 2024 | BP3: 2020
A4: 借入期間 | B4: =住宅ローン!H16 -> 0 | C4: 年 | D4: =住宅ローン!I16 -> 0 | E4: カ月 | G4: 1 | H4: 1 | N4: =SUM(H4:M4) -> 1 | O4: =IF(N4=1,IF(E$7=1,1,0),IF(N4=2,IF(E$8=1,1,0),IF(N4=3,IF(E$9=1,1,0),IF(N4=4,IF(E$10=1,1,0),IF(N4=5,IF(E$11=1,1,0),IF(N4=6,IF(E$12=1,1,0),0)))))) -> 0 | P4: =IF(O4=0,O4,1) -> 0 | Q4: =E7 -> 0 | R4: =IF(N4=1,C$7,IF(N4=2,C$8,IF(N4=3,C$9,IF(N4=4,C$10,IF(N4=5,C$11,IF(N4=6,$C$12,0)))))) -> 0 | S4: =IF($B$4*12+D$4>=G4,R4,"") ->  | T4: =U4 ->  | U4: =IF(Z3="","",IF(Z3>0,INT(PMT(S4/12,B$4*12+D$4-G3,-Z3,)),"")) ->  | W4: =IF(S4="","",INT(Z3*S4/12)) ->  | X4: =IF(T4="","",IF(T4>W4,"",W4-T4)) ->  | Y4: =IF(S4="","",IF(X4="",T4-W4,0)) ->  | Z4: =IF(S4="","",Z3-Y4) ->  | AB4: =IF(B$15*12<G4,1,"") -> 1 | AC4: =IF(AB4=1,Y4,"") ->  | AD4: =IF(AC4="","",IF(AC4=0,"",IF(AD3="",0,AD3)+AC4)) ->  | AE4: =IF(AD4="","",IF(B$16*10000>=AD4,1000,)) ->  | AF4: =IF(B15*12=G4,AF3,IF(AE4=1,AC4,0)) -> 0 | AG4: =G4 -> 1 | AH4: 1 | AN4: =SUM(AH4:AM4) -> 1 | AO4: =IF(AN4=1,IF(E$7=1,1,0),IF(AN4=2,IF(E$8=1,1,0),IF(AN4=3,IF(E$9=1,1,0),IF(AN4=4,IF(E$10=1,1,0),IF(AN4=5,IF(E$11=1,1,0),IF(AN4=6,IF(E$12=1,1,0),0)))))) -> 0 | AP4: =IF(AO4=0,AO4,1) -> 0 | AQ4: =E7 -> 0 | AR4: =IF(S4="","",_xlfn.XLOOKUP(AG4,G$4:G$604,S$4:S$604)) ->  | AS4: =IF(AR4="","",IF(AR5="",IF(AY3<0,"",AY3+AV4),IF(AQ4=2,MIN(AT4:AU4),IF(AP4>1,AS3,IF(AR4=AR3,AS3,AT4))))) ->  | AT4: =IF(AY3="","",IF(AY3>0,INT(PMT(AR4/12,B$4*12+D$4-AG3,-AY3,)),"")) ->  | AV4: =IF(S4="","",IF(AE4=1,0,INT(AY3*AR4/12))) ->  | AX4: =IF(S4="","",IF(AE4=1,0,AS4-AV4)) ->  | AY4: =IF(S4="","",IF(AX4=0,IF(AF3=0,AY3-$B$16*10000,AY3-AX4),AY3-AX4)) ->  | BA4: 1 | BB4: =IFERROR(_xlfn.XLOOKUP(BA4,AG$4:AG$603,AS$4:AS$603),"") ->  | BC4: =IFERROR(_xlfn.XLOOKUP(BA4,AG$4:AG$603,AY$4:AY$603),"") ->  | BE4: 1 | BF4: =SUM(T4:T15)+IF(BF5=0,IF(BF6=0,0,X$3),0) -> 0 | BG4: =SUM(BB4:BB15) -> 0 | BH4: =IF(_xlfn.XLOOKUP(BE4*12,G$4:G$603,Z$4:Z$603)="",0,_xlfn.XLOOKUP(BE4*12,G$4:G$603,Z$4:Z$603)) -> 0 | BI4: =IF(_xlfn.XLOOKUP(BE4*12,BA$4:BA$603,BC$4:BC$603)="",0,_xlfn.XLOOKUP(BE4*12,BA$4:BA$603,BC$4:BC$603)) -> 0 | BJ4: =IFERROR(IF(BN$4-BE4<0,0,INT(IF(BH4>BJ2,BJ2,BH4)*IF(お客様情報1!$E$95>2020,1%,0.7%)))+MIN(BR4:BS4),0) -> 0 | BK4: =IFERROR(IF(BN$4-BE4<0,0,INT(IF(BI4>BJ$2,BJ$2,BI4)*IF(お客様情報1!$E$95>2020,1%,0.7%)))+MIN(BR4,BT4),0) -> 0 | BL4: =IF(お客様情報1!E95<2014,0,IF(お客様情報1!E95<2021,10,13)) -> 0 | BM4: =YEAR(TODAY())-お客様情報1!E95 -> 2024 | BN4: =BL4-BM4+1 -> -2023 | BO4: =BO3-お客様情報1!E95 -> 2024 | BP4: =IF(お客様情報1!E$95=BP$2,1,IF(お客様情報1!E$95=BP$3,1,0)) -> 0 | BQ4: =IF(BO4>10,IF(BO4>13,0,1),0) -> 0 | BR4: =(IF(お客様情報1!E$93="戸建て",お客様情報1!E$101,お客様情報1!E$99)*2%*BQ4*10000/3) -> 0 | BS4: =IFERROR(INT(IF(BH4>BJ2,BJ2,BH4)*IF(お客様情報1!$E$95>2020,1%,0.7%))*BQ4,0) -> 0 | BT4: =IFERROR(INT(IF(BI4>BJ2,BJ2,BI4)*IF(お客様情報1!$E$95>2020,1%,0.7%))*BQ4,0) -> 0
A5: 金利上昇 | B5: =住宅ローン!E10 -> 0 | C5: 年後 | G5: 2 | H5: 1 | N5: =SUM(H5:M5) -> 1 | O5: =IF(N5=1,IF(E$7=1,1,0),IF(N5=2,IF(E$8=1,1,0),IF(N5=3,IF(E$9=1,1,0),IF(N5=4,IF(E$10=1,1,0),IF(N5=5,IF(E$11=1,1,0),IF(N5=6,IF(E$12=1,1,0),0)))))) -> 0 | P5: =IF(O5=0,O5,IF(P4+O5>60,P4+O5-60,P4+O5)) -> 0 | Q5: =IF(P4>0,IF(P5=1,IF(U4-T4>100,2,1),IF(P5>0,1,0)),0) -> 0 | R5: =IF(N5=1,C$7,IF(N5=2,C$8,IF(N5=3,C$9,IF(N5=4,C$10,IF(N5=5,C$11,IF(N5=6,$C$12,0)))))) -> 0 | S5: =IF($B$4*12+D$4>=G5,R5,"") ->  | T5: =IF(S5="","",IF(S6="",IF(Z4<0,"",Z4+W5),IF(Q5=2,MIN(U5:V5),IF(P5>1,T4,IF(S5=S4,T4,U5))))) ->  | U5: =IF(Z4="","",IF(Z4>0,INT(PMT(S5/12,B$4*12+D$4-G4,-Z4,)),"")) ->  | V5: =IF(S5="","",INT(T4*1.25)) ->  | W5: =IF(S5="","",INT(Z4*S5/12)) ->  | X5: =IF(T5="","",IF(T5>W5,"",W5-T5)) ->  | Y5: =IF(S5="","",IF(X5="",T5-W5,0)) ->  | Z5: =IF(S5="","",Z4-Y5) ->  | AB5: 1 | AD5: =IF(AC5="","",IF(AC5=0,"",IF(AD4="",0,AD4)+AC5)) ->  | AE5: =IF(AD5="","",IF(B$16*10000>=AD5,1,0)) ->  | AF5: =IF(AE5=1,AC5,0) -> 0 | AG5: =AG4+IF(AE5=1,0,1) -> 2 | AH5: 1 | AN5: =SUM(AH5:AM5) -> 1 | AO5: =IF(AN5=1,IF(E$7=1,1,0),IF(AN5=2,IF(E$8=1,1,0),IF(AN5=3,IF(E$9=1,1,0),IF(AN5=4,IF(E$10=1,1,0),IF(AN5=5,IF(E$11=1,1,0),IF(AN5=6,IF(E$12=1,1,0),0)))))) -> 0 | AP5: =IF(AO5=0,AO5,IF(AP4+AO5>60,AP4+IF(AE4>0,1,AO5)-60,AP4+IF(AE4>0,1,AO5))) -> 0 | AQ5: =IF(AP4>0,IF(AP5=1,IF(AT4-AS4>100,2,1),IF(AP5>0,1,0)),0) -> 0 | AR5: =IF(S5="","",_xlfn.XLOOKUP(AG5,G$4:G$604,S$4:S$604)) ->  | AS5: =IF(AR5="","",IF(AR6="",IF(AY4<0,"",AY4+AV5),IF(AQ5=2,MIN(AT5:AU5),IF(AP5>1,AS4,IF(AR5=AR4,AS4,AT5))))) ->  | AT5: =IF(AY4="","",IF(AY4>0,INT(PMT(AR5/12,B$4*12+D$4-AG4-IF(AE5="",0,AE$3),-AY4,)),"")) ->  | AU5: =IF(AR5="","",INT(AS4*1.25)) ->  | AW5: =IF(AS5="","",IF(AS5>AV5,"",AV5-AS5)) ->  | BA5: 2 | BC5: =IFERROR(_xlfn.XLOOKUP(BA5,AG$4:AG$603,AY$4:AY$603),"") ->  | BE5: 2 | BF5: =SUM(T16:T27)+IF(BF6=0,IF(BF7=0,0,X$3),0) -> 0 | BG5: =SUM(BB16:BB27) -> 0 | BH5: =IF(_xlfn.XLOOKUP(BE5*12,G$4:G$603,Z$4:Z$603)="",0,_xlfn.XLOOKUP(BE5*12,G$4:G$603,Z$4:Z$603)) -> 0 | BI5: =IF(_xlfn.XLOOKUP(BE5*12,BA$4:BA$603,BC$4:BC$603)="",0,_xlfn.XLOOKUP(BE5*12,BA$4:BA$603,BC$4:BC$603)) -> 0 | BJ5: =IFERROR(IF(BN$4-BE5<0,0,INT(IF(BH5>BJ3,BJ3,BH5)*IF(お客様情報1!$E$95>2020,1%,0.7%)))+MIN(BR5:BS5),0) -> 0 | BK5: =IFERROR(IF(BN$4-BE5<0,0,INT(IF(BI5>BJ$2,BJ$2,BI5)*IF(お客様情報1!$E$95>2020,1%,0.7%)))+MIN(BR5,BT5),0) -> 0 | BO5: =BO4+1 -> 2025 | BP5: =IF(お客様情報1!E$95=BP$2,1,IF(お客様情報1!E$95=BP$3,1,0)) -> 0 | BQ5: =IF(BO5>10,IF(BO5>13,0,1),0) -> 0 | BR5: =(IF(お客様情報1!E$93="戸建て",お客様情報1!E$101,お客様情報1!E$99)*2%*BQ5*10000/3) -> 0 | BS5: =IFERROR(INT(IF(BH5>BJ3,BJ3,BH5)*IF(お客様情報1!$E$95>2020,1%,0.7%))*BQ5,0) -> 0 | BT5: =IFERROR(INT(IF(BI5>BJ3,BJ3,BI5)*IF(お客様情報1!$E$95>2020,1%,0.7%))*BQ5,0) -> 0
A6: 変動金利 | E6: 変動判定 | G6: 3 | H6: 1 | N6: 1 | O6: 0 | P6: 0 | Q6: =IF(P5>0,IF(P6=1,IF(U5-T5>100,2,1),IF(P6>0,1,0)),0) -> 0 | R6: 0 | V6: =IF(S6="","",INT(T5*1.25)) ->  | X6: =IF(T6="","",IF(T6>W6,"",W6-T6)) ->  | AB6: 1 | AF6: 0 | AG6: =AG5+IF(AE6=1,0,1) -> 3 | AH6: 1 | AN6: 1 | AO6: 0 | AP6: =IF(AO6=0,AO6,IF(AP5+AO6>60,AP5+IF(AE5>0,1,AO6)-60,AP5+IF(AE5>0,1,AO6))) -> 0 | AQ6: =IF(AP5>0,IF(AP6=1,IF(AT5-AS5>100,2,1),IF(AP6>0,1,0)),0) -> 0 | AT6: =IF(AY5="","",IF(AY5>0,INT(PMT(AR6/12,B$4*12+D$4-AG5-IF(AE6="",0,AE$3),-AY5,)),"")) ->  | AU6: =IF(AR6="","",INT(AS5*1.25)) ->  | AW6: =IF(AS6="","",IF(AS6>AV6,"",AV6-AS6)) ->  | BA6: 3 | BE6: 3 | BF6: =SUM(T28:T39)+IF(BF7=0,IF(BF8=0,0,X$3),0) -> 0 | BG6: =SUM(BB28:BB39) -> 0 | BH6: 0 | BI6: 0 | BJ6: =IFERROR(IF(BN$4-BE6<0,0,INT(IF(BH6>BJ4,BJ4,BH6)*IF(お客様情報1!$E$95>2020,1%,0.7%)))+MIN(BR6:BS6),0) -> 0 | BK6: =IFERROR(IF(BN$4-BE6<0,0,INT(IF(BI6>BJ$2,BJ$2,BI6)*IF(お客様情報1!$E$95>2020,1%,0.7%)))+MIN(BR6,BT6),0) -> 0 | BO6: =BO5+1 -> 2026 | BP6: =IF(お客様情報1!E$95=BP$2,1,IF(お客様情報1!E$95=BP$3,1,0)) -> 0 | BQ6: 0 | BR6: =(IF(お客様情報1!E$93="戸建て",お客様情報1!E$101,お客様情報1!E$99)*2%*BQ6*10000/3) -> 0 | BS6: =IFERROR(INT(IF(BH6>BJ4,BJ4,BH6)*IF(お客様情報1!$E$95>2020,1%,0.7%))*BQ6,0) -> 0 | BT6: =IFERROR(INT(IF(BI6>BJ4,BJ4,BI6)*IF(お客様情報1!$E$95>2020,1%,0.7%))*BQ6,0) -> 0
A7: =IF(B2="変動金利",B4,住宅ローン!S16) -> 0 | B7: =IF(B2="変動金利",0.5,住宅ローン!S16) -> 0 | C7: =住宅ローン!K16 -> 0 | D7: =IFERROR(D24,0) ->  | E7: =IF(B7=0.5,1,0) -> 0 | G7: 4 | H7: 1 | N7: 1 | O7: 0 | P7: 0 | Q7: 0 | R7: 0 | AB7: 1 | AF7: 0 | AG7: 4 | AH7: 1 | AN7: 1 | AO7: 0 | AP7: 0 | AQ7: 0 | AS7: =IF(AR7="","",IF(AR8="",IF(AY6<0,"",AY6+AV7),IF(AQ7=2,MIN(AT7:AU7),IF(AP7>1,AS6,IF(AR7=AR6,AS6,AT7))))) ->  | BA7: 4 | BE7: 4 | BF7: =SUM(T40:T51)+IF(BF8=0,IF(BF9=0,0,X$3),0) -> 0 | BG7: =SUM(BB40:BB51) -> 0 | BH7: 0 | BI7: 0 | BJ7: =IFERROR(IF(BN$4-BE7<0,0,INT(IF(BH7>BJ5,BJ5,BH7)*IF(お客様情報1!$E$95>2020,1%,0.7%)))+MIN(BR7:BS7),0) -> 0 | BK7: =IFERROR(IF(BN$4-BE7<0,0,INT(IF(BI7>BJ$2,BJ$2,BI7)*IF(お客様情報1!$E$95>2020,1%,0.7%)))+MIN(BR7,BT7),0) -> 0 | BO7: 2027 | BP7: =IF(お客様情報1!E$95=BP$2,1,IF(お客様情報1!E$95=BP$3,1,0)) -> 0 | BQ7: 0 | BR7: =(IF(お客様情報1!E$93="戸建て",お客様情報1!E$101,お客様情報1!E$99)*2%*BQ7*10000/3) -> 0 | BS7: =IFERROR(INT(IF(BH7>BJ5,BJ5,BH7)*IF(お客様情報1!$E$95>2020,1%,0.7%))*BQ7,0) -> 0 | BT7: =IFERROR(INT(IF(BI7>BJ5,BJ5,BI7)*IF(お客様情報1!$E$95>2020,1%,0.7%))*BQ7,0) -> 0
A8: =住宅ローン!T16 -> 0 | B8: =IF(C2="変動金利",0.5,A8) -> 0 | C8: =住宅ローン!T17 -> 0 | D8: =IFERROR(_xlfn.XLOOKUP(A7+1,A24:A30,D24:D30),0) -> 0 | E8: =IF(B8=0.5,1,0) -> 0 | G8: 5 | H8: 1 | N8: 1 | O8: 0 | P8: 0 | Q8: 0 | R8: 0 | AB8: 1 | AF8: 0 | AG8: 5 | AH8: 1 | AN8: 1 | AO8: 0 | AP8: 0 | AQ8: 0 | AS8: =IF(AR8="","",IF(AR9="",IF(AY7<0,"",AY7+AV8),IF(AQ8=2,MIN(AT8:AU8),IF(AP8>1,AS7,IF(AR8=AR7,AS7,AT8))))) ->  | BA8: 5 | BE8: 5 | BF8: =SUM(T52:T63)+IF(BF9=0,IF(BF10=0,0,X$3),0) -> 0 | BG8: =SUM(BB52:BB63) -> 0 | BH8: 0 | BI8: 0 | BJ8: =IFERROR(IF(BN$4-BE8<0,0,INT(IF(BH8>BJ6,BJ6,BH8)*IF(お客様情報1!$E$95>2020,1%,0.7%)))+MIN(BR8:BS8),0) -> 0 | BK8: =IFERROR(IF(BN$4-BE8<0,0,INT(IF(BI8>BJ$2,BJ$2,BI8)*IF(お客様情報1!$E$95>2020,1%,0.7%)))+MIN(BR8,BT8),0) -> 0 | BO8: 2028 | BP8: =IF(お客様情報1!E$95=BP$2,1,IF(お客様情報1!E$95=BP$3,1,0)) -> 0 | BQ8: 0 | BR8: =(IF(お客様情報1!E$93="戸建て",お客様情報1!E$101,お客様情報1!E$99)*2%*BQ8*10000/3) -> 0 | BS8: =IFERROR(INT(IF(BH8>BJ6,BJ6,BH8)*IF(お客様情報1!$E$95>2020,1%,0.7%))*BQ8,0) -> 0 | BT8: =IFERROR(INT(IF(BI8>BJ6,BJ6,BI8)*IF(お客様情報1!$E$95>2020,1%,0.7%))*BQ8,0) -> 0
A9: =住宅ローン!U16 -> 0 | B9: =IF(D2="変動金利",0.5,A9) -> 0 | C9: =住宅ローン!U17 -> 0 | D9: =IFERROR(IF(B17>0,_xlfn.XLOOKUP(C9,AR$4:AR$603,AS$4:AS$603),(_xlfn.XLOOKUP(C9,S$4:S$603,T$4:T$603))),0) -> 0 | E9: =IF(B9=0.5,1,0) -> 0 | G9: 6 | H9: 1 | N9: 1 | O9: 0 | P9: 0 | Q9: =IF(P8>0,IF(P9=1,IF(U8-T8>100,2,1),IF(P9>0,1,0)),0) -> 0 | R9: 0 | AB9: 1 | AF9: 0 | AG9: 6 | AH9: 1 | AN9: 1 | AO9: 0 | AP9: 0 | AQ9: 0 | BA9: 6 | BE9: 6 | BF9: =SUM(T64:T75)+IF(BF10=0,IF(BF11=0,0,X$3),0) -> 0 | BG9: =SUM(BB64:BB75) -> 0 | BH9: 0 | BI9: 0 | BJ9: =IFERROR(IF(BN$4-BE9<0,0,INT(IF(BH9>BJ7,BJ7,BH9)*IF(お客様情報1!$E$95>2020,1%,0.7%)))+MIN(BR9:BS9),0) -> 0 | BK9: =IFERROR(IF(BN$4-BE9<0,0,INT(IF(BI9>BJ$2,BJ$2,BI9)*IF(お客様情報1!$E$95>2020,1%,0.7%)))+MIN(BR9,BT9),0) -> 0 | BO9: 2029 | BP9: =IF(お客様情報1!E$95=BP$2,1,IF(お客様情報1!E$95=BP$3,1,0)) -> 0 | BQ9: 0 | BR9: =(IF(お客様情報1!E$93="戸建て",お客様情報1!E$101,お客様情報1!E$99)*2%*BQ9*10000/3) -> 0 | BS9: =IFERROR(INT(IF(BH9>BJ7,BJ7,BH9)*IF(お客様情報1!$E$95>2020,1%,0.7%))*BQ9,0) -> 0 | BT9: =IFERROR(INT(IF(BI9>BJ7,BJ7,BI9)*IF(お客様情報1!$E$95>2020,1%,0.7%))*BQ9,0) -> 0
A10: =IF(B$4>A$7+A$8+A$9,IF(B$2="ｽﾃｯﾌﾟﾀﾞｳﾝ",IF(B$4-A$7-A$8-A$9>5,5,B$4-A$7-A$8-A$9),""),0) -> 0 | B10: =IF(A10>0,IF(B$2="ｽﾃｯﾌﾟﾀﾞｳﾝ",A10,""),"") ->  | C10: =IF(A10>0,IF(B$2="ｽﾃｯﾌﾟﾀﾞｳﾝ",C$7*0.7,""),"") ->  | E10: =IF(B10=0.5,1,0) -> 0 | G10: 7 | H10: 1 | N10: 1 | O10: 0 | P10: 0 | Q10: 0 | R10: 0 | AB10: 1 | AF10: 0 | AG10: 7 | AH10: 1 | AN10: 1 | AO10: 0 | AP10: 0 | AQ10: 0 | BA10: 7 | BE10: 7 | BF10: =SUM(T76:T87)+IF(BF11=0,IF(BF12=0,0,X$3),0) -> 0 | BG10: =SUM(BB76:BB87) -> 0 | BH10: 0 | BI10: 0 | BJ10: =IFERROR(IF(BN$4-BE10<0,0,INT(IF(BH10>BJ8,BJ8,BH10)*IF(お客様情報1!$E$95>2020,1%,0.7%)))+MIN(BR10:BS10),0) -> 0 | BK10: =IFERROR(IF(BN$4-BE10<0,0,INT(IF(BI10>BJ$2,BJ$2,BI10)*IF(お客様情報1!$E$95>2020,1%,0.7%)))+MIN(BR10,BT10),0) -> 0 | BO10: 2030 | BP10: =IF(お客様情報1!E$95=BP$2,1,IF(お客様情報1!E$95=BP$3,1,0)) -> 0 | BQ10: 0 | BR10: =(IF(お客様情報1!E$93="戸建て",お客様情報1!E$101,お客様情報1!E$99)*2%*BQ10*10000/3) -> 0 | BS10: =IFERROR(INT(IF(BH10>BJ8,BJ8,BH10)*IF(お客様情報1!$E$95>2020,1%,0.7%))*BQ10,0) -> 0 | BT10: =IFERROR(INT(IF(BI10>BJ8,BJ8,BI10)*IF(お客様情報1!$E$95>2020,1%,0.7%))*BQ10,0) -> 0
A11: =IF(B$4>A$7+A$8+A$9+A$10,IF(B$2="ｽﾃｯﾌﾟﾀﾞｳﾝ",IF(B$4-A$7-A$8-A$9-A$10>5,5,B$4-A$7-A$8-A$9-A$10),""),0) -> 0 | B11: =IF(A11>0,IF(B$2="ｽﾃｯﾌﾟﾀﾞｳﾝ",A11,""),"") ->  | C11: =IF(A11>0,IF(B$2="ｽﾃｯﾌﾟﾀﾞｳﾝ",C$7*0.6,""),"") ->  | E11: 0 | G11: 8 | H11: 1 | N11: 1 | O11: 0 | P11: 0 | Q11: 0 | R11: 0 | AB11: 1 | AF11: 0 | AG11: 8 | AH11: 1 | AN11: 1 | AO11: 0 | AP11: 0 | AQ11: 0 | BA11: 8 | BE11: 8 | BF11: =SUM(T88:T99)+IF(BF12=0,IF(BF13=0,0,X$3),0) -> 0 | BG11: =SUM(BB88:BB99) -> 0 | BH11: 0 | BI11: 0 | BJ11: =IFERROR(IF(BN$4-BE11<0,0,INT(IF(BH11>BJ9,BJ9,BH11)*IF(お客様情報1!$E$95>2020,1%,0.7%)))+MIN(BR11:BS11),0) -> 0 | BK11: =IFERROR(IF(BN$4-BE11<0,0,INT(IF(BI11>BJ$2,BJ$2,BI11)*IF(お客様情報1!$E$95>2020,1%,0.7%)))+MIN(BR11,BT11),0) -> 0 | BO11: 2031 | BP11: =IF(お客様情報1!E$95=BP$2,1,IF(お客様情報1!E$95=BP$3,1,0)) -> 0 | BQ11: 0 | BR11: =(IF(お客様情報1!E$93="戸建て",お客様情報1!E$101,お客様情報1!E$99)*2%*BQ11*10000/3) -> 0 | BS11: =IFERROR(INT(IF(BH11>BJ9,BJ9,BH11)*IF(お客様情報1!$E$95>2020,1%,0.7%))*BQ11,0) -> 0 | BT11: =IFERROR(INT(IF(BI11>BJ9,BJ9,BI11)*IF(お客様情報1!$E$95>2020,1%,0.7%))*BQ11,0) -> 0
A12: =IF(B$4>A$7+A$8+A$9+A$10+A$11,IF(B$2="ｽﾃｯﾌﾟﾀﾞｳﾝ",IF(B$4-A$7-A$8-A$9-A10-A11>5,5,B$4-A$7-A$8-A$9-A10-A11),""),0) -> 0 | B12: =IF(A12>0,IF(B$2="ｽﾃｯﾌﾟﾀﾞｳﾝ",A12,""),"") ->  | C12: =IF(A12>0,IF(B$2="ｽﾃｯﾌﾟﾀﾞｳﾝ",C$7*0.5,""),"") ->  | E12: 0 | G12: 9 | H12: 1 | N12: 1 | O12: 0 | P12: 0 | Q12: 0 | R12: 0 | AB12: 1 | AF12: 0 | AG12: 9 | AH12: 1 | AN12: 1 | AO12: 0 | AP12: 0 | AQ12: 0 | BA12: 9 | BE12: 9 | BF12: =SUM(T100:T111)+IF(BF13=0,IF(BF14=0,0,X$3),0) -> 0 | BG12: =SUM(BB100:BB111) -> 0 | BH12: 0 | BI12: 0 | BJ12: =IFERROR(IF(BN$4-BE12<0,0,INT(IF(BH12>BJ10,BJ10,BH12)*IF(お客様情報1!$E$95>2020,1%,0.7%)))+MIN(BR12:BS12),0) -> 0 | BK12: =IFERROR(IF(BN$4-BE12<0,0,INT(IF(BI12>BJ$2,BJ$2,BI12)*IF(お客様情報1!$E$95>2020,1%,0.7%)))+MIN(BR12,BT12),0) -> 0 | BO12: 2032 | BP12: =IF(お客様情報1!E$95=BP$2,1,IF(お客様情報1!E$95=BP$3,1,0)) -> 0 | BQ12: 0 | BR12: =(IF(お客様情報1!E$93="戸建て",お客様情報1!E$101,お客様情報1!E$99)*2%*BQ12*10000/3) -> 0 | BS12: =IFERROR(INT(IF(BH12>BJ10,BJ10,BH12)*IF(お客様情報1!$E$95>2020,1%,0.7%))*BQ12,0) -> 0 | BT12: =IFERROR(INT(IF(BI12>BJ10,BJ10,BI12)*IF(お客様情報1!$E$95>2020,1%,0.7%))*BQ12,0) -> 0
G13: 10 | H13: 1 | N13: 1 | O13: 0 | P13: 0 | Q13: 0 | R13: 0 | AB13: 1 | AF13: 0 | AG13: 10 | AH13: 1 | AN13: 1 | AO13: 0 | AP13: 0 | AQ13: 0 | BA13: 10 | BE13: 10 | BF13: =SUM(T112:T123)+IF(BF14=0,IF(BF15=0,0,X$3),0) -> 0 | BG13: =SUM(BB112:BB123) -> 0 | BH13: 0 | BI13: 0 | BJ13: =IFERROR(IF(BN$4-BE13<0,0,INT(IF(BH13>BJ11,BJ11,BH13)*IF(お客様情報1!$E$95>2020,1%,0.7%)))+MIN(BR13:BS13),0) -> 0 | BK13: =IFERROR(IF(BN$4-BE13<0,0,INT(IF(BI13>BJ$2,BJ$2,BI13)*IF(お客様情報1!$E$95>2020,1%,0.7%)))+MIN(BR13,BT13),0) -> 0 | BO13: 2033 | BP13: =IF(お客様情報1!E$95=BP$2,1,IF(お客様情報1!E$95=BP$3,1,0)) -> 0 | BQ13: 0 | BR13: =(IF(お客様情報1!E$93="戸建て",お客様情報1!E$101,お客様情報1!E$99)*2%*BQ13*10000/3) -> 0 | BS13: =IFERROR(INT(IF(BH13>BJ11,BJ11,BH13)*IF(お客様情報1!$E$95>2020,1%,0.7%))*BQ13,0) -> 0 | BT13: =IFERROR(INT(IF(BI13>BJ11,BJ11,BI13)*IF(お客様情報1!$E$95>2020,1%,0.7%))*BQ13,0) -> 0
A14: 繰上返済 | G14: 11 | H14: 1 | N14: 1 | O14: 0 | P14: 0 | Q14: 0 | R14: 0 | AB14: 1 | AF14: 0 | AG14: 11 | AH14: 1 | AN14: 1 | AO14: 0 | AP14: 0 | AQ14: 0 | BA14: 11 | BE14: 11 | BF14: =SUM(T124:T135)+IF(BF15=0,IF(BF16=0,0,X$3),0) -> 0 | BG14: =SUM(BB124:BB135) -> 0 | BH14: 0 | BI14: 0 | BJ14: =IFERROR(IF(BN$4-BE14<0,0,INT(IF(BH14>BJ12,BJ12,BH14)*IF(お客様情報1!$E$95>2020,1%,0.7%)))+MIN(BR14:BS14),0) -> 0 | BK14: =IFERROR(IF(BN$4-BE14<0,0,INT(IF(BI14>BJ$2,BJ$2,BI14)*IF(お客様情報1!$E$95>2020,1%,0.7%)))+MIN(BR14,BT14),0) -> 0 | BO14: 2034 | BP14: =IF(お客様情報1!E$95=BP$2,1,IF(お客様情報1!E$95=BP$3,1,0)) -> 0 | BQ14: 0 | BR14: =(IF(お客様情報1!E$93="戸建て",お客様情報1!E$101,お客様情報1!E$99)*2%*BQ14*10000/3) -> 0 | BS14: =IFERROR(INT(IF(BH14>BJ12,BJ12,BH14)*IF(お客様情報1!$E$95>2020,1%,0.7%))*BQ14,0) -> 0 | BT14: =IFERROR(INT(IF(BI14>BJ12,BJ12,BI14)*IF(お客様情報1!$E$95>2020,1%,0.7%))*BQ14,0) -> 0
A15: 時期 | C15: 年後 | G15: 12 | H15: 1 | N15: 1 | O15: 0 | P15: 0 | Q15: 0 | R15: 0 | AB15: 1 | AF15: 0 | AG15: 12 | AH15: 1 | AN15: 1 | AO15: 0 | AP15: 0 | AQ15: 0 | BA15: 12 | BE15: 12 | BF15: =SUM(T136:T147)+IF(BF16=0,IF(BF17=0,0,X$3),0) -> 0 | BG15: =SUM(BB136:BB147) -> 0 | BH15: 0 | BI15: 0 | BJ15: =IFERROR(IF(BN$4-BE15<0,0,INT(IF(BH15>BJ13,BJ13,BH15)*IF(お客様情報1!$E$95>2020,1%,0.7%)))+MIN(BR15:BS15),0) -> 0 | BK15: =IFERROR(IF(BN$4-BE15<0,0,INT(IF(BI15>BJ$2,BJ$2,BI15)*IF(お客様情報1!$E$95>2020,1%,0.7%)))+MIN(BR15,BT15),0) -> 0 | BO15: 2035 | BP15: =IF(お客様情報1!E$95=BP$2,1,IF(お客様情報1!E$95=BP$3,1,0)) -> 0 | BQ15: 0 | BR15: =(IF(お客様情報1!E$93="戸建て",お客様情報1!E$101,お客様情報1!E$99)*2%*BQ15*10000/3) -> 0 | BS15: =IFERROR(INT(IF(BH15>BJ13,BJ13,BH15)*IF(お客様情報1!$E$95>2020,1%,0.7%))*BQ15,0) -> 0 | BT15: =IFERROR(INT(IF(BI15>BJ13,BJ13,BI15)*IF(お客様情報1!$E$95>2020,1%,0.7%))*BQ15,0) -> 0
A16: 金額 | C16: 万円 | G16: 13 | H16: 1 | I16: =IF(A$8="",0,IF(A$7*12-G16<0,1,0)) -> 1 | N16: 2 | O16: 0 | P16: 0 | Q16: 0 | R16: 0 | AB16: 1 | AF16: 0 | AG16: 13 | AH16: 1 | AI16: =IF(A$8="",0,IF(A$7*12-AG16<0,1,0)) -> 1 | AN16: 2 | AO16: 0 | AP16: 0 | AQ16: 0 | BA16: 13 | BE16: 13 | BF16: =SUM(T148:T159)+IF(BF17=0,IF(BF18=0,0,X$3),0) -> 0 | BG16: =SUM(BB148:BB159) -> 0 | BH16: 0 | BI16: 0 | BJ16: =IFERROR(IF(BN$4-BE16<0,0,INT(IF(BH16>BJ14,BJ14,BH16)*IF(お客様情報1!$E$95>2020,1%,0.7%)))+MIN(BR16:BS16),0) -> 0 | BK16: =IFERROR(IF(BN$4-BE16<0,0,INT(IF(BI16>BJ$2,BJ$2,BI16)*IF(お客様情報1!$E$95>2020,1%,0.7%)))+MIN(BR16,BT16),0) -> 0 | BO16: 2036 | BP16: =IF(お客様情報1!E$95=BP$2,1,IF(お客様情報1!E$95=BP$3,1,0)) -> 0 | BQ16: 0 | BR16: =(IF(お客様情報1!E$93="戸建て",お客様情報1!E$101,お客様情報1!E$99)*2%*BQ16*10000/3) -> 0 | BS16: =IFERROR(INT(IF(BH16>BJ14,BJ14,BH16)*IF(お客様情報1!$E$95>2020,1%,0.7%))*BQ16,0) -> 0 | BT16: =IFERROR(INT(IF(BI16>BJ14,BJ14,BI16)*IF(お客様情報1!$E$95>2020,1%,0.7%))*BQ16,0) -> 0
A17: 繰上返済額 | B17: =AF3 -> 0 | C17: 円 | G17: 14 | H17: 1 | I17: =IF(A$8="",0,IF(A$7*12-G17<0,1,0)) -> 1 | N17: 2 | O17: 0 | P17: 0 | Q17: 0 | R17: 0 | AB17: 1 | AF17: 0 | AG17: 14 | AH17: 1 | AI17: =IF(A$8="",0,IF(A$7*12-AG17<0,1,0)) -> 1 | AN17: 2 | AO17: 0 | AP17: 0 | AQ17: 0 | BA17: 14 | BE17: 14 | BF17: =SUM(T160:T171)+IF(BF18=0,IF(BF19=0,0,X$3),0) -> 0 | BG17: =SUM(BB160:BB171) -> 0 | BH17: 0 | BI17: 0
A18: 繰上前利息 | B18: =W3 -> 0 | C18: 円 | G18: 15 | H18: 1 | I18: 1 | N18: 2 | O18: 0 | P18: 0 | Q18: 0 | R18: 0 | AB18: 1 | AF18: 0 | AG18: 15 | AH18: 1 | AI18: 1 | AN18: 2 | AO18: 0 | AP18: 0 | AQ18: 0 | BA18: 15 | BE18: 15 | BF18: =SUM(T172:T183)+IF(BF19=0,IF(BF20=0,0,X$3),0) -> 0 | BG18: =SUM(BB172:BB183) -> 0 | BH18: 0 | BI18: 0
A19: 繰上後利息 | B19: =AV3 -> 0 | C19: 円 | G19: 16 | H19: 1 | I19: 1 | N19: 2 | O19: 0 | P19: 0 | Q19: 0 | R19: 0 | AB19: 1 | AF19: 0 | AG19: 16 | AH19: 1 | AI19: 1 | AN19: 2 | AO19: 0 | AP19: 0 | AQ19: 0 | BA19: 16 | BE19: 16 | BF19: =SUM(T184:T195)+IF(BF20=0,IF(BF21=0,0,X$3),0) -> 0 | BG19: =SUM(BB184:BB195) -> 0 | BH19: 0 | BI19: 0
G20: 17 | H20: 1 | I20: 1 | N20: 2 | O20: 0 | P20: 0 | Q20: 0 | R20: 0 | AB20: 1 | AF20: 0 | AG20: 17 | AH20: 1 | AI20: 1 | AN20: 2 | AO20: 0 | AP20: 0 | AQ20: 0 | BA20: 17 | BE20: 17 | BF20: =SUM(T196:T207)+IF(BF21=0,IF(BF22=0,0,X$3),0) -> 0 | BG20: =SUM(BB196:BB207) -> 0 | BH20: 0 | BI20: 0
A21: 借入期間 | B21: 繰上後 | C21: =INT((B4*12-AE3)/12) -> 0 | G21: 18 | H21: 1 | I21: 1 | N21: 2 | O21: 0 | P21: 0 | Q21: 0 | R21: 0 | AB21: 1 | AF21: 0 | AG21: 18 | AH21: 1 | AI21: 1 | AN21: 2 | AO21: 0 | AP21: 0 | AQ21: 0 | BA21: 18 | BE21: 18 | BF21: =SUM(T208:T219)+IF(BF22=0,IF(BF23=0,0,X$3),0) -> 0 | BG21: =SUM(BB208:BB219) -> 0 | BH21: 0 | BI21: 0
C22: =B4*12-AE3-C21*12 -> 0 | G22: 19 | H22: 1 | I22: 1 | N22: 2 | O22: 0 | P22: 0 | Q22: 0 | R22: 0 | AB22: 1 | AF22: 0 | AG22: 19 | AH22: 1 | AI22: 1 | AN22: 2 | AO22: 0 | AP22: 0 | AQ22: 0 | BA22: 19 | BE22: 19 | BF22: =SUM(T220:T231)+IF(BF23=0,IF(BF24=0,0,X$3),0) -> 0 | BG22: =SUM(BB220:BB231) -> 0 | BH22: 0 | BI22: 0
G23: 20 | H23: 1 | I23: 1 | N23: 2 | O23: 0 | P23: 0 | Q23: 0 | R23: 0 | AB23: 1 | AF23: 0 | AG23: 20 | AH23: 1 | AI23: 1 | AN23: 2 | AO23: 0 | AP23: 0 | AQ23: 0 | BA23: 20 | BE23: 20 | BF23: =SUM(T232:T243)+IF(BF24=0,IF(BF25=0,0,X$3),0) -> 0 | BG23: =SUM(BB232:BB243) -> 0 | BH23: 0 | BI23: 0
A24: =IF(C24="","",ROUNDUP(C24,)) ->  | B24: =IF(A25="","",IF(A25="最終回",B$4,IF(A24="最終回","",IF(C24="","",A25-1)))) ->  | C24: =_xlfn._xlws.SORT(A31:C37,1,1,) ->  | G24: 21 | H24: 1 | I24: 1 | N24: 2 | O24: 0 | P24: =IF(O24=0,O24,IF(P23+O24>60,P23+O24-60,P23+O24)) -> 0 | Q24: 0 | R24: 0 | W24: =IF(S24="","",INT(Z23*S24/12)) ->  | Z24: =IF(S24="","",Z23-Y24) ->  | AB24: 1 | AD24: =IF(AC24="","",IF(AC24=0,"",IF(AD23="",0,AD23)+AC24)) ->  | AF24: 0 | AG24: =AG23+IF(AE24=1,0,1) -> 21 | AH24: 1 | AI24: 1 | AN24: 2 | AO24: 0 | AP24: 0 | AQ24: 0 | BA24: 21 | BE24: 21 | BF24: =SUM(T244:T255)+IF(BF25=0,IF(BF26=0,0,X$3),0) -> 0 | BG24: =SUM(BB244:BB255) -> 0 | BH24: 0 | BI24: 0
A25: =IF(C25="","",IF(C25=B$4,"最終回",ROUNDUP(C25,))) ->  | G25: 22 | H25: 1 | I25: 1 | N25: 2 | O25: 0 | P25: =IF(O25=0,O25,IF(P24+O25>60,P24+O25-60,P24+O25)) -> 0 | Q25: 0 | R25: 0 | W25: =IF(S25="","",INT(Z24*S25/12)) ->  | Z25: =IF(S25="","",Z24-Y25) ->  | AB25: 1 | AD25: =IF(AC25="","",IF(AC25=0,"",IF(AD24="",0,AD24)+AC25)) ->  | AF25: 0 | AG25: =AG24+IF(AE25=1,0,1) -> 22 | AH25: 1 | AI25: 1 | AN25: 2 | AO25: 0 | AP25: 0 | AQ25: 0 | BA25: 22 | BE25: 22 | BF25: =SUM(T256:T267)+IF(BF26=0,IF(BF27=0,0,X$3),0) -> 0 | BG25: =SUM(BB256:BB267) -> 0 | BH25: 0 | BI25: 0
A26: =IF(C26="","",IF(C26=B$4,"最終回",ROUNDUP(C26,))) ->  | G26: 23 | H26: 1 | I26: 1 | N26: 2 | O26: 0 | P26: 0 | Q26: 0 | R26: 0 | AB26: 1 | AF26: 0 | AG26: 23 | AH26: 1 | AI26: 1 | AN26: 2 | AO26: 0 | AP26: 0 | AQ26: 0 | BA26: 23 | BE26: 23 | BF26: =SUM(T268:T279)+IF(BF27=0,IF(BF28=0,0,X$3),0) -> 0 | BG26: =SUM(BB268:BB279) -> 0 | BH26: 0 | BI26: 0
G27: 24 | H27: 1 | I27: 1 | N27: 2 | O27: 0 | P27: 0 | Q27: 0 | R27: 0 | AB27: 1 | AF27: 0 | AG27: 24 | AH27: 1 | AI27: 1 | AN27: 2 | AO27: 0 | AP27: 0 | AQ27: 0 | BA27: 24 | BE27: 24 | BF27: =SUM(T280:T291)+IF(BF28=0,IF(BF29=0,0,X$3),0) -> 0 | BG27: =SUM(BB280:BB291) -> 0 | BH27: 0 | BI27: 0
G28: 25 | H28: 1 | I28: 1 | J28: =IF($A$9="",0,IF(SUM($A$7:$A$8)*12-G28<0,1,0)) -> 1 | N28: 3 | O28: 0 | P28: 0 | Q28: 0 | R28: 0 | AB28: 1 | AF28: 0 | AG28: 25 | AH28: 1 | AI28: 1 | AJ28: =IF($A$9="",0,IF(SUM($A$7:$A$8)*12-AG28<0,1,0)) -> 1 | AN28: 3 | AO28: 0 | AP28: 0 | AQ28: 0 | BA28: 25 | BE28: 25 | BF28: =SUM(T292:T303)+IF(BF29=0,IF(BF30=0,0,X$3),0) -> 0 | BG28: =SUM(BB292:BB303) -> 0 | BH28: 0 | BI28: 0
G29: 26 | H29: 1 | I29: 1 | J29: =IF($A$9="",0,IF(SUM($A$7:$A$8)*12-G29<0,1,0)) -> 1 | N29: 3 | O29: 0 | P29: 0 | Q29: 0 | R29: 0 | AB29: 1 | AF29: 0 | AG29: 26 | AH29: 1 | AI29: 1 | AJ29: =IF($A$9="",0,IF(SUM($A$7:$A$8)*12-AG29<0,1,0)) -> 1 | AN29: 3 | AO29: 0 | AP29: 0 | AQ29: 0 | BA29: 26 | BE29: 26 | BF29: =SUM(T304:T315)+IF(BF30=0,IF(BF31=0,0,X$3),0) -> 0 | BG29: =SUM(BB304:BB315) -> 0 | BH29: 0 | BI29: 0
B30: =IF(A31="","",IF(A31="最終回",B$4,IF(A30="最終回","",IF(C30="","",A31-1)))) ->  | G30: 27 | H30: 1 | I30: 1 | J30: 1 | N30: 3 | O30: 0 | P30: 0 | Q30: 0 | R30: 0 | AB30: 1 | AF30: 0 | AG30: 27 | AH30: 1 | AI30: 1 | AJ30: 1 | AN30: 3 | AO30: 0 | AP30: 0 | AQ30: 0 | BA30: 27 | BE30: 27 | BF30: =SUM(T316:T327)+IF(BF31=0,IF(BF32=0,0,X$3),0) -> 0 | BG30: =SUM(BB316:BB327) -> 0 | BH30: 0 | BI30: 0
A31: =IF(D31="","",D31/12) ->  | B31: =IFERROR(SMALL(_xlfn.UNIQUE(T$4:T$604),1),"") ->  | C31: =IF(B31="","",_xlfn.XLOOKUP(D31,G$4:G$604,S$4:S$604,,0,1)) ->  | D31: =IF(B31="","",_xlfn.XLOOKUP(B31,T$4:T$604,G$4:G$604,,0,1)) ->  | G31: 28 | H31: 1 | I31: 1 | J31: 1 | N31: 3 | O31: 0 | P31: 0 | Q31: 0 | R31: 0 | AB31: 1 | AF31: 0 | AG31: 28 | AH31: 1 | AI31: 1 | AJ31: 1 | AN31: 3 | AO31: 0 | AP31: 0 | AQ31: 0 | BA31: 28 | BE31: 28 | BF31: =SUM(T328:T339)+IF(BF32=0,IF(BF33=0,0,X$3),0) -> 0 | BG31: =SUM(BB328:BB339) -> 0 | BH31: 0 | BI31: 0
B32: =IFERROR(SMALL(_xlfn.UNIQUE(T$4:T$604),2),"") ->  | C32: =IF(B32="","",_xlfn.XLOOKUP(D32,G$4:G$604,S$4:S$604,,0,1)) ->  | D32: =IF(B32="","",_xlfn.XLOOKUP(B32,T$4:T$604,G$4:G$604,,0,1)) ->  | G32: 29 | H32: 1 | I32: 1 | J32: 1 | N32: 3 | O32: 0 | P32: 0 | Q32: 0 | R32: 0 | AB32: 1 | AF32: 0 | AG32: 29 | AH32: 1 | AI32: 1 | AJ32: 1 | AN32: 3 | AO32: 0 | AP32: 0 | AQ32: 0 | BA32: 29 | BE32: 29 | BF32: =SUM(T340:T351)+IF(BF33=0,IF(BF34=0,0,X$3),0) -> 0 | BG32: =SUM(BB340:BB351) -> 0 | BH32: 0 | BI32: 0
B33: =IFERROR(SMALL(_xlfn.UNIQUE(T$4:T$604),3),"") ->  | G33: 30 | H33: 1 | I33: 1 | J33: 1 | N33: 3 | O33: 0 | P33: 0 | Q33: 0 | R33: 0 | AB33: 1 | AF33: 0 | AG33: 30 | AH33: 1 | AI33: 1 | AJ33: 1 | AN33: 3 | AO33: 0 | AP33: 0 | AQ33: 0 | BA33: 30 | BE33: 30 | BF33: =SUM(T352:T363)+IF(BF34=0,IF(BF35=0,0,X$3),0) -> 0 | BG33: =SUM(BB352:BB363) -> 0 | BH33: 0 | BI33: 0
B34: =IFERROR(SMALL(_xlfn.UNIQUE(T$4:T$604),4),"") ->  | G34: 31 | H34: 1 | I34: 1 | J34: 1 | N34: 3 | O34: 0 | P34: 0 | Q34: 0 | R34: 0 | AB34: 1 | AF34: 0 | AG34: 31 | AH34: 1 | AI34: 1 | AJ34: 1 | AN34: 3 | AO34: 0 | AP34: 0 | AQ34: 0 | BA34: 31 | BE34: 31 | BF34: =SUM(T364:T375)+IF(BF35=0,IF(BF36=0,0,X$3),0) -> 0 | BG34: =SUM(BB364:BB375) -> 0 | BH34: 0 | BI34: 0
B35: =IFERROR(SMALL(_xlfn.UNIQUE(T$4:T$604),5),"") ->  | G35: 32 | H35: 1 | I35: 1 | J35: 1 | N35: 3 | O35: 0 | P35: 0 | Q35: 0 | R35: 0 | AB35: 1 | AF35: 0 | AG35: 32 | AH35: 1 | AI35: 1 | AJ35: 1 | AN35: 3 | AO35: 0 | AP35: 0 | AQ35: 0 | BA35: 32 | BE35: 32 | BF35: =SUM(T376:T387)+IF(BF36=0,IF(BF37=0,0,X$3),0) -> 0 | BG35: =SUM(BB376:BB387) -> 0 | BH35: 0 | BI35: 0
B36: =IFERROR(SMALL(_xlfn.UNIQUE(T$4:T$604),6),"") ->  | G36: 33 | H36: 1 | I36: 1 | J36: 1 | N36: 3 | O36: 0 | P36: 0 | Q36: 0 | R36: 0 | AB36: 1 | AF36: 0 | AG36: 33 | AH36: 1 | AI36: 1 | AJ36: 1 | AN36: 3 | AO36: 0 | AP36: 0 | AQ36: 0 | BA36: 33 | BE36: 33 | BF36: =SUM(T388:T399)+IF(BF37=0,IF(BF38=0,0,X$3),0) -> 0 | BG36: =SUM(BB388:BB399) -> 0 | BH36: 0 | BI36: 0
B37: =IFERROR(SMALL(_xlfn.UNIQUE(T$4:T$604),7),"") ->  | G37: 34 | H37: 1 | I37: 1 | J37: 1 | N37: 3 | O37: 0 | P37: 0 | Q37: 0 | R37: 0 | AB37: 1 | AF37: 0 | AG37: 34 | AH37: 1 | AI37: 1 | AJ37: 1 | AN37: 3 | AO37: 0 | AP37: 0 | AQ37: 0 | BA37: 34 | BE37: 34 | BF37: =SUM(T400:T411)+IF(BF38=0,IF(BF39=0,0,X$3),0) -> 0 | BG37: =SUM(BB400:BB411) -> 0 | BH37: 0 | BI37: 0
G38: 35 | H38: 1 | I38: 1 | J38: 1 | N38: 3 | O38: 0 | P38: 0 | Q38: 0 | R38: 0 | AB38: 1 | AF38: 0 | AG38: 35 | AH38: 1 | AI38: 1 | AJ38: 1 | AN38: 3 | AO38: 0 | AP38: 0 | AQ38: 0 | BA38: 35 | BE38: 35 | BF38: =SUM(T412:T423)+IF(BF39=0,IF(BF40=0,0,X$3),0) -> 0 | BG38: =SUM(BB412:BB423) -> 0 | BH38: 0 | BI38: 0
G39: 36 | H39: 1 | I39: 1 | J39: 1 | N39: 3 | O39: 0 | P39: 0 | Q39: 0 | R39: 0 | AB39: 1 | AF39: 0 | AG39: 36 | AH39: 1 | AI39: 1 | AJ39: 1 | AN39: 3 | AO39: 0 | AP39: 0 | AQ39: 0 | BA39: 36 | BE39: 36 | BF39: =SUM(T424:T435)+IF(BF40=0,IF(BF41=0,0,X$3),0) -> 0 | BG39: =SUM(BB424:BB435) -> 0 | BH39: 0 | BI39: 0
G40: 37 | H40: 1 | I40: 1 | J40: 1 | K40: =IF($A$9="",0,IF(SUM($A$7:$A$9)*12-G40<0,1,0)) -> 1 | N40: 4 | O40: 0 | P40: 0 | Q40: 0 | T40: =IF(S40="","",IF(S41="",IF(Z39<0,"",Z39+W40),IF(Q40=2,MIN(U40:V40),IF(P40>1,T39,IF(S40=S39,T39,U40))))) ->  | AB40: 1 | AF40: 0 | AG40: 37 | AH40: 1 | AI40: 1 | AJ40: 1 | AK40: =IF($A$9="",0,IF(SUM($A$7:$A$9)*12-AG40<0,1,0)) -> 1 | AN40: 4 | AO40: 0 | AP40: 0 | AQ40: 0 | BA40: 37 | BE40: 37 | BF40: =SUM(T436:T447)+IF(BF41=0,IF(BF42=0,0,X$3),0) -> 0 | BG40: =SUM(BB436:BB447) -> 0 | BH40: 0 | BI40: 0
G41: 38 | H41: 1 | I41: 1 | J41: 1 | K41: =IF($A$9="",0,IF(SUM($A$7:$A$9)*12-G41<0,1,0)) -> 1 | N41: 4 | O41: 0 | P41: 0 | Q41: 0 | AB41: 1 | AF41: 0 | AG41: 38 | AH41: 1 | AI41: 1 | AJ41: 1 | AK41: =IF($A$9="",0,IF(SUM($A$7:$A$9)*12-AG41<0,1,0)) -> 1 | AN41: 4 | AO41: 0 | AP41: 0 | AQ41: 0 | BA41: 38 | BE41: 38 | BF41: =SUM(T448:T459)+IF(BF42=0,IF(BF43=0,0,X$3),0) -> 0 | BG41: =SUM(BB448:BB459) -> 0 | BH41: 0 | BI41: 0
G42: 39 | H42: 1 | I42: 1 | J42: 1 | K42: 1 | N42: 4 | O42: 0 | P42: 0 | Q42: 0 | AB42: 1 | AF42: 0 | AG42: 39 | AH42: 1 | AI42: 1 | AJ42: 1 | AK42: 1 | AN42: 4 | AO42: 0 | AP42: 0 | AQ42: 0 | BA42: 39 | BE42: 39 | BF42: =SUM(T460:T471)+IF(BF43=0,IF(BF44=0,0,X$3),0) -> 0 | BG42: =SUM(BB460:BB471) -> 0 | BH42: 0 | BI42: 0
G43: 40 | H43: 1 | I43: 1 | J43: 1 | K43: 1 | N43: 4 | O43: 0 | P43: 0 | Q43: 0 | AB43: 1 | AF43: 0 | AG43: 40 | AH43: 1 | AI43: 1 | AJ43: 1 | AK43: 1 | AN43: 4 | AO43: 0 | AP43: 0 | AQ43: 0 | BA43: 40 | BE43: 40 | BF43: =SUM(T472:T483)+IF(BF44=0,IF(BF45=0,0,X$3),0) -> 0 | BG43: =SUM(BB472:BB483) -> 0 | BH43: 0 | BI43: 0
G44: 41 | H44: 1 | I44: 1 | J44: 1 | K44: 1 | N44: 4 | O44: 0 | P44: 0 | Q44: 0 | AB44: 1 | AF44: 0 | AG44: 41 | AH44: 1 | AI44: 1 | AJ44: 1 | AK44: 1 | AN44: 4 | AO44: 0 | AP44: 0 | AQ44: 0 | BA44: 41 | BE44: 41 | BF44: =SUM(T484:T495)+IF(BF45=0,IF(BF46=0,0,X$3),0) -> 0 | BG44: =SUM(BB484:BB495) -> 0 | BH44: 0 | BI44: 0
G45: 42 | H45: 1 | I45: 1 | J45: 1 | K45: 1 | N45: 4 | O45: 0 | P45: 0 | Q45: 0 | AB45: 1 | AF45: 0 | AG45: 42 | AH45: 1 | AI45: 1 | AJ45: 1 | AK45: 1 | AN45: 4 | AO45: 0 | AP45: 0 | AQ45: 0 | BA45: 42 | BE45: 42 | BF45: =SUM(T496:T507)+IF(BF46=0,IF(BF47=0,0,X$3),0) -> 0 | BG45: =SUM(BB496:BB507) -> 0 | BH45: 0 | BI45: 0
G46: 43 | H46: 1 | I46: 1 | J46: 1 | K46: 1 | N46: 4 | O46: 0 | P46: 0 | Q46: 0 | AB46: 1 | AF46: 0 | AG46: 43 | AH46: 1 | AI46: 1 | AJ46: 1 | AK46: 1 | AN46: 4 | AO46: 0 | AP46: 0 | AQ46: 0 | BA46: 43 | BE46: 43 | BF46: =SUM(T508:T519)+IF(BF47=0,IF(BF48=0,0,X$3),0) -> 0 | BG46: =SUM(BB508:BB519) -> 0 | BH46: 0 | BI46: 0
G47: 44 | H47: 1 | I47: 1 | J47: 1 | K47: 1 | N47: 4 | O47: 0 | P47: 0 | Q47: 0 | AB47: 1 | AF47: 0 | AG47: 44 | AH47: 1 | AI47: 1 | AJ47: 1 | AK47: 1 | AN47: 4 | AO47: 0 | AP47: 0 | AQ47: 0 | BA47: 44 | BE47: 44 | BF47: =SUM(T520:T531)+IF(BF48=0,IF(BF49=0,0,X$3),0) -> 0 | BG47: =SUM(BB520:BB531) -> 0 | BH47: 0 | BI47: 0
G48: 45 | H48: 1 | I48: 1 | J48: 1 | K48: 1 | N48: 4 | O48: 0 | P48: 0 | Q48: 0 | AB48: 1 | AF48: 0 | AG48: 45 | AH48: 1 | AI48: 1 | AJ48: 1 | AK48: 1 | AN48: 4 | AO48: 0 | AP48: 0 | AQ48: 0 | BA48: 45 | BE48: 45 | BF48: =SUM(T532:T543)+IF(BF49=0,IF(BF50=0,0,X$3),0) -> 0 | BG48: =SUM(BB532:BB543) -> 0 | BH48: 0 | BI48: 0
G49: 46 | H49: 1 | I49: 1 | J49: 1 | K49: 1 | N49: 4 | O49: 0 | P49: 0 | Q49: 0 | AB49: 1 | AF49: 0 | AG49: 46 | AH49: 1 | AI49: 1 | AJ49: 1 | AK49: 1 | AN49: 4 | AO49: 0 | AP49: 0 | AQ49: 0 | BA49: 46 | BE49: 46 | BF49: =SUM(T544:T555)+IF(BF50=0,IF(BF51=0,0,X$3),0) -> 0 | BG49: =SUM(BB544:BB555) -> 0 | BH49: 0 | BI49: 0
G50: 47 | H50: 1 | I50: 1 | J50: 1 | K50: 1 | N50: 4 | O50: 0 | P50: 0 | Q50: 0 | AB50: 1 | AF50: 0 | AG50: 47 | AH50: 1 | AI50: 1 | AJ50: 1 | AK50: 1 | AN50: 4 | AO50: 0 | AP50: 0 | AQ50: 0 | BA50: 47 | BE50: 47 | BF50: =SUM(T556:T567)+IF(BF51=0,IF(BF52=0,0,X$3),0) -> 0 | BG50: =SUM(BB556:BB567) -> 0 | BH50: 0 | BI50: 0
G51: 48 | H51: 1 | I51: 1 | J51: 1 | K51: 1 | N51: 4 | O51: 0 | P51: 0 | Q51: 0 | AB51: 1 | AF51: 0 | AG51: 48 | AH51: 1 | AI51: 1 | AJ51: 1 | AK51: 1 | AN51: 4 | AO51: 0 | AP51: 0 | AQ51: 0 | BA51: 48 | BE51: 48 | BF51: =SUM(T568:T579)+IF(BF52=0,IF(BF53=0,0,X$3),0) -> 0 | BG51: =SUM(BB568:BB579) -> 0 | BH51: 0 | BI51: 0
G52: 49 | H52: 1 | I52: 1 | J52: 1 | K52: 1 | L52: =IF($A$9="",0,IF(SUM($A$7:$A$10)*12-G52<0,1,0)) -> 1 | N52: 5 | O52: 0 | P52: 0 | Q52: 0 | AB52: 1 | AF52: 0 | AG52: 49 | AH52: 1 | AI52: 1 | AJ52: 1 | AK52: 1 | AL52: =IF($A$9="",0,IF(SUM($A$7:$A$10)*12-AG52<0,1,0)) -> 1 | AN52: 5 | AO52: 0 | AP52: 0 | AQ52: 0 | BA52: 49 | BE52: 49 | BF52: =SUM(T580:T591)+IF(BF53=0,IF(BF54=0,0,X$3),0) -> 0 | BG52: =SUM(BB580:BB591) -> 0 | BH52: 0 | BI52: 0
G53: 50 | H53: 1 | I53: 1 | J53: 1 | K53: 1 | L53: =IF($A$9="",0,IF(SUM($A$7:$A$10)*12-G53<0,1,0)) -> 1 | N53: 5 | O53: 0 | P53: 0 | Q53: 0 | AB53: 1 | AF53: 0 | AG53: 50 | AH53: 1 | AI53: 1 | AJ53: 1 | AK53: 1 | AL53: =IF($A$9="",0,IF(SUM($A$7:$A$10)*12-AG53<0,1,0)) -> 1 | AN53: 5 | AO53: 0 | AP53: 0 | AQ53: 0 | BA53: 50 | BE53: 50 | BF53: =SUM(T592:T603)+IF(BF54=0,IF(BF55=0,0,X$3),0) -> 0 | BG53: =SUM(BB592:BB603) -> 0 | BH53: 0 | BI53: 0
G54: 51 | H54: 1 | I54: 1 | J54: 1 | K54: 1 | L54: 1 | N54: 5 | O54: 0 | P54: 0 | Q54: 0 | AB54: 1 | AF54: 0 | AG54: 51 | AH54: 1 | AI54: 1 | AJ54: 1 | AK54: 1 | AL54: 1 | AN54: 5 | AO54: 0 | AP54: 0 | AQ54: 0 | BA54: 51
G55: 52 | H55: 1 | I55: 1 | J55: 1 | K55: 1 | L55: 1 | N55: 5 | O55: 0 | P55: 0 | Q55: 0 | AB55: 1 | AF55: 0 | AG55: 52 | AH55: 1 | AI55: 1 | AJ55: 1 | AK55: 1 | AL55: 1 | AN55: 5 | AO55: 0 | AP55: 0 | AQ55: 0 | BA55: 52
G56: 53 | H56: 1 | I56: 1 | J56: 1 | K56: 1 | L56: 1 | N56: 5 | O56: 0 | P56: 0 | Q56: 0 | AB56: 1 | AF56: 0 | AG56: 53 | AH56: 1 | AI56: 1 | AJ56: 1 | AK56: 1 | AL56: 1 | AN56: 5 | AO56: 0 | AP56: 0 | AQ56: 0 | BA56: 53
G57: 54 | H57: 1 | I57: 1 | J57: 1 | K57: 1 | L57: 1 | N57: 5 | O57: 0 | P57: 0 | Q57: 0 | AB57: 1 | AF57: 0 | AG57: 54 | AH57: 1 | AI57: 1 | AJ57: 1 | AK57: 1 | AL57: 1 | AN57: 5 | AO57: 0 | AP57: 0 | AQ57: 0 | BA57: 54
G58: 55 | H58: 1 | I58: 1 | J58: 1 | K58: 1 | L58: 1 | N58: 5 | O58: 0 | P58: 0 | Q58: 0 | AB58: 1 | AF58: 0 | AG58: 55 | AH58: 1 | AI58: 1 | AJ58: 1 | AK58: 1 | AL58: 1 | AN58: 5 | AO58: 0 | AP58: 0 | AQ58: 0 | BA58: 55
G59: 56 | H59: 1 | I59: 1 | J59: 1 | K59: 1 | L59: 1 | N59: 5 | O59: 0 | P59: 0 | Q59: 0 | AB59: 1 | AF59: 0 | AG59: 56 | AH59: 1 | AI59: 1 | AJ59: 1 | AK59: 1 | AL59: 1 | AN59: 5 | AO59: 0 | AP59: 0 | AQ59: 0 | BA59: 56
G60: 57 | H60: 1 | I60: 1 | J60: 1 | K60: 1 | L60: 1 | N60: 5 | O60: 0 | P60: 0 | Q60: 0 | AB60: 1 | AF60: 0 | AG60: 57 | AH60: 1 | AI60: 1 | AJ60: 1 | AK60: 1 | AL60: 1 | AN60: 5 | AO60: 0 | AP60: 0 | AQ60: 0 | BA60: 57
G61: 58 | H61: 1 | I61: 1 | J61: 1 | K61: 1 | L61: 1 | N61: 5 | O61: 0 | P61: 0 | Q61: 0 | AB61: 1 | AF61: 0 | AG61: 58 | AH61: 1 | AI61: 1 | AJ61: 1 | AK61: 1 | AL61: 1 | AN61: 5 | AO61: 0 | AP61: 0 | AQ61: 0 | BA61: 58
G62: 59 | H62: 1 | I62: 1 | J62: 1 | K62: 1 | L62: 1 | N62: 5 | O62: 0 | P62: 0 | Q62: 0 | AB62: 1 | AF62: 0 | AG62: 59 | AH62: 1 | AI62: 1 | AJ62: 1 | AK62: 1 | AL62: 1 | AN62: 5 | AO62: 0 | AP62: 0 | AQ62: 0 | BA62: 59
G63: 60 | H63: 1 | I63: 1 | J63: 1 | K63: 1 | L63: 1 | N63: 5 | O63: 0 | P63: 0 | Q63: 0 | AB63: 1 | AF63: 0 | AG63: 60 | AH63: 1 | AI63: 1 | AJ63: 1 | AK63: 1 | AL63: 1 | AN63: 5 | AO63: 0 | AP63: 0 | AQ63: 0 | BA63: 60
G64: 61 | H64: 1 | I64: 1 | J64: 1 | K64: 1 | L64: 1 | M64: =IF($A$9="",0,IF(SUM($A$7:$A$11)*12-G64<0,1,0)) -> 1 | N64: 6 | O64: 0 | P64: 0 | Q64: 0 | T64: =IF(S64="","",IF(S65="",IF(Z63<0,"",Z63+W64),IF(Q64=2,MIN(U64:V64),IF(P64>1,T63,IF(S64=S63,T63,U64))))) ->  | AB64: 1 | AF64: 0 | AG64: 61 | AH64: 1 | AI64: 1 | AJ64: 1 | AK64: 1 | AL64: 1 | AM64: =IF($A$9="",0,IF(SUM($A$7:$A$11)*12-AG64<0,1,0)) -> 1 | AN64: 6 | AO64: 0 | AP64: 0 | AQ64: 0 | BA64: 61
G65: 62 | H65: 1 | I65: 1 | J65: 1 | K65: 1 | L65: 1 | M65: =IF($A$9="",0,IF(SUM($A$7:$A$11)*12-G65<0,1,0)) -> 1 | N65: 6 | O65: 0 | P65: 0 | Q65: 0 | AB65: 1 | AF65: 0 | AG65: 62 | AH65: 1 | AI65: 1 | AJ65: 1 | AK65: 1 | AL65: 1 | AM65: =IF($A$9="",0,IF(SUM($A$7:$A$11)*12-AG65<0,1,0)) -> 1 | AN65: 6 | AO65: 0 | AP65: 0 | AQ65: 0 | BA65: 62
G66: 63 | H66: 1 | I66: 1 | J66: 1 | K66: 1 | L66: 1 | M66: 1 | N66: 6 | O66: 0 | P66: 0 | Q66: 0 | AB66: 1 | AF66: 0 | AG66: 63 | AH66: 1 | AI66: 1 | AJ66: 1 | AK66: 1 | AL66: 1 | AM66: 1 | AN66: 6 | AO66: 0 | AP66: 0 | AQ66: 0 | BA66: 63
G67: 64 | H67: 1 | I67: 1 | J67: 1 | K67: 1 | L67: 1 | M67: 1 | N67: 6 | O67: 0 | P67: 0 | Q67: 0 | AB67: 1 | AF67: 0 | AG67: 64 | AH67: 1 | AI67: 1 | AJ67: 1 | AK67: 1 | AL67: 1 | AM67: 1 | AN67: 6 | AO67: 0 | AP67: 0 | AQ67: 0 | BA67: 64
G68: 65 | H68: 1 | I68: 1 | J68: 1 | K68: 1 | L68: 1 | M68: 1 | N68: 6 | O68: 0 | P68: 0 | Q68: 0 | T68: =IF(S68="","",IF(S69="",IF(Z67<0,"",Z67+W68),IF(Q68=2,MIN(U68:V68),IF(P68>1,T67,IF(S68=S67,T67,U68))))) ->  | AB68: =IF(B$15*12<G68,1,"") -> 1 | AC68: =IF(AB68=1,Y68,"") ->  | AF68: 0 | AG68: 65 | AH68: 1 | AI68: 1 | AJ68: 1 | AK68: 1 | AL68: 1 | AM68: 1 | AN68: 6 | AO68: 0 | AP68: 0 | AQ68: 0 | AV68: =IF(S68="","",IF(AE68=1,0,INT(AY67*AR68/12))) ->  | AX68: =IF(S68="","",IF(AE68=1,0,AS68-AV68)) ->  | AY68: =IF(S68="","",IF(AX68=0,IF(AF67=0,AY67-$B$16*10000,AY67-AX68),AY67-AX68)) ->  | BA68: 65 | BB68: =IFERROR(_xlfn.XLOOKUP(BA68,AG$4:AG$603,AS$4:AS$603),"") -> 
G69: 66 | H69: 1 | I69: 1 | J69: 1 | K69: 1 | L69: 1 | M69: 1 | N69: =SUM(H69:M69) -> 6 | O69: =IF(N69=1,IF(E$7=1,1,0),IF(N69=2,IF(E$8=1,1,0),IF(N69=3,IF(E$9=1,1,0),IF(N69=4,IF(E$10=1,1,0),IF(N69=5,IF(E$11=1,1,0),IF(N69=6,IF(E$12=1,1,0),0)))))) -> 0 | P69: =IF(O69=0,O69,IF(P68+O69>60,P68+O69-60,P68+O69)) -> 0 | Q69: 0 | R69: =IF(N69=1,C$7,IF(N69=2,C$8,IF(N69=3,C$9,IF(N69=4,C$10,IF(N69=5,C$11,IF(N69=6,$C$12,0)))))) ->  | S69: =IF($B$4*12+D$4>=G69,R69,"") ->  | U69: =IF(Z68="","",IF(Z68>0,INT(PMT(S69/12,B$4*12+D$4-G68,-Z68,)),"")) ->  | W69: =IF(S69="","",INT(Z68*S69/12)) ->  | Y69: =IF(S69="","",IF(X69="",T69-W69,0)) ->  | Z69: =IF(S69="","",Z68-Y69) ->  | AB69: 1 | AD69: =IF(AC69="","",IF(AC69=0,"",IF(AD68="",0,AD68)+AC69)) ->  | AE69: =IF(AD69="","",IF(B$16*10000>=AD69,1,0)) ->  | AF69: =IF(AE69=1,AC69,0) -> 0 | AG69: 66 | AH69: 1 | AI69: 1 | AJ69: 1 | AK69: 1 | AL69: 1 | AM69: 1 | AN69: =SUM(AH69:AM69) -> 6 | AO69: =IF(AN69=1,IF(E$7=1,1,0),IF(AN69=2,IF(E$8=1,1,0),IF(AN69=3,IF(E$9=1,1,0),IF(AN69=4,IF(E$10=1,1,0),IF(AN69=5,IF(E$11=1,1,0),IF(AN69=6,IF(E$12=1,1,0),0)))))) -> 0 | AP69: 0 | AQ69: 0 | AR69: =IF(S69="","",_xlfn.XLOOKUP(AG69,G$4:G$604,S$4:S$604)) ->  | BA69: 66 | BC69: =IFERROR(_xlfn.XLOOKUP(BA69,AG$4:AG$603,AY$4:AY$603),"") -> 
G70: 67 | H70: 1 | I70: 1 | J70: 1 | K70: 1 | L70: 1 | M70: 1 | N70: 6 | O70: 0 | P70: 0 | Q70: =IF(P69>0,IF(P70=1,IF(U69-T69>100,2,1),IF(P70>0,1,0)),0) -> 0 | V70: =IF(S70="","",INT(T69*1.25)) ->  | X70: =IF(T70="","",IF(T70>W70,"",W70-T70)) ->  | AB70: 1 | AF70: 0 | AG70: =AG69+IF(AE70=1,0,1) -> 67 | AH70: 1 | AI70: 1 | AJ70: 1 | AK70: 1 | AL70: 1 | AM70: 1 | AN70: 6 | AO70: 0 | AP70: =IF(AO70=0,AO70,IF(AP69+AO70>60,AP69+IF(AE69>0,1,AO70)-60,AP69+IF(AE69>0,1,AO70))) -> 0 | AQ70: =IF(AP69>0,IF(AP70=1,IF(AT69-AS69>100,2,1),IF(AP70>0,1,0)),0) -> 0 | AT70: =IF(AY69="","",IF(AY69>0,INT(PMT(AR70/12,B$4*12+D$4-AG69-IF(AE70="",0,AE$3),-AY69,)),"")) ->  | AU70: =IF(AR70="","",INT(AS69*1.25)) ->  | AW70: =IF(AS70="","",IF(AS70>AV70,"",AV70-AS70)) ->  | BA70: 67
G71: 68 | H71: 1 | I71: 1 | J71: 1 | K71: 1 | L71: 1 | M71: 1 | N71: 6 | O71: 0 | P71: 0 | Q71: 0 | AB71: 1 | AF71: 0 | AG71: 68 | AH71: 1 | AI71: 1 | AJ71: 1 | AK71: 1 | AL71: 1 | AM71: 1 | AN71: 6 | AO71: 0 | AP71: 0 | AQ71: 0 | BA71: 68
G72: 69 | H72: 1 | I72: 1 | J72: 1 | K72: 1 | L72: 1 | M72: 1 | N72: 6 | O72: 0 | P72: 0 | Q72: 0 | AB72: 1 | AF72: 0 | AG72: 69 | AH72: 1 | AI72: 1 | AJ72: 1 | AK72: 1 | AL72: 1 | AM72: 1 | AN72: 6 | AO72: 0 | AP72: 0 | AQ72: 0 | AS72: =IF(AR72="","",IF(AR73="",IF(AY71<0,"",AY71+AV72),IF(AQ72=2,MIN(AT72:AU72),IF(AP72>1,AS71,IF(AR72=AR71,AS71,AT72))))) ->  | BA72: 69
G73: 70 | H73: 1 | I73: 1 | J73: =IF($A$9="",0,IF(SUM($A$7:$A$8)*12-G73<0,1,0)) -> 1 | K73: 1 | L73: 1 | M73: 1 | N73: 6 | O73: 0 | P73: 0 | Q73: 0 | AB73: 1 | AF73: 0 | AG73: 70 | AH73: 1 | AI73: 1 | AJ73: =IF($A$9="",0,IF(SUM($A$7:$A$8)*12-AG73<0,1,0)) -> 1 | AK73: 1 | AL73: 1 | AM73: 1 | AN73: 6 | AO73: 0 | AP73: 0 | AQ73: 0 | BA73: 70
G74: 71 | H74: 1 | I74: 1 | J74: 1 | K74: 1 | L74: 1 | M74: 1 | N74: 6 | O74: 0 | P74: 0 | Q74: 0 | AB74: 1 | AF74: 0 | AG74: 71 | AH74: 1 | AI74: 1 | AJ74: =IF($A$9="",0,IF(SUM($A$7:$A$8)*12-AG74<0,1,0)) -> 1 | AK74: 1 | AL74: 1 | AM74: 1 | AN74: 6 | AO74: 0 | AP74: 0 | AQ74: 0 | BA74: 71
G75: 72 | H75: 1 | I75: 1 | J75: 1 | K75: 1 | L75: 1 | M75: 1 | N75: 6 | O75: 0 | P75: 0 | Q75: 0 | AB75: 1 | AF75: 0 | AG75: 72 | AH75: 1 | AI75: 1 | AJ75: 1 | AK75: 1 | AL75: 1 | AM75: 1 | AN75: 6 | AO75: 0 | AP75: 0 | AQ75: 0 | BA75: 72
G76: 73 | H76: 1 | I76: 1 | J76: 1 | K76: 1 | L76: 1 | M76: 1 | N76: 6 | O76: 0 | P76: 0 | Q76: 0 | AB76: 1 | AF76: 0 | AG76: 73 | AH76: 1 | AI76: 1 | AJ76: 1 | AK76: 1 | AL76: 1 | AM76: 1 | AN76: 6 | AO76: 0 | AP76: 0 | AQ76: 0 | BA76: 73
G77: 74 | H77: 1 | I77: 1 | J77: 1 | K77: 1 | L77: 1 | M77: 1 | N77: 6 | O77: 0 | P77: 0 | Q77: 0 | AB77: 1 | AF77: 0 | AG77: 74 | AH77: 1 | AI77: 1 | AJ77: 1 | AK77: 1 | AL77: 1 | AM77: 1 | AN77: 6 | AO77: 0 | AP77: 0 | AQ77: 0 | BA77: 74
G78: 75 | H78: 1 | I78: 1 | J78: 1 | K78: 1 | L78: 1 | M78: 1 | N78: 6 | O78: 0 | P78: 0 | Q78: 0 | AB78: 1 | AF78: 0 | AG78: 75 | AH78: 1 | AI78: 1 | AJ78: 1 | AK78: 1 | AL78: 1 | AM78: 1 | AN78: 6 | AO78: 0 | AP78: 0 | AQ78: 0 | BA78: 75
G79: 76 | H79: 1 | I79: 1 | J79: 1 | K79: 1 | L79: 1 | M79: 1 | N79: 6 | O79: 0 | P79: 0 | Q79: 0 | AB79: 1 | AF79: 0 | AG79: 76 | AH79: 1 | AI79: 1 | AJ79: 1 | AK79: 1 | AL79: 1 | AM79: 1 | AN79: 6 | AO79: 0 | AP79: 0 | AQ79: 0 | BA79: 76
G80: 77 | H80: 1 | I80: 1 | J80: 1 | K80: 1 | L80: 1 | M80: 1 | N80: 6 | O80: 0 | P80: 0 | Q80: 0 | AB80: 1 | AF80: 0 | AG80: 77 | AH80: 1 | AI80: 1 | AJ80: 1 | AK80: 1 | AL80: 1 | AM80: 1 | AN80: 6 | AO80: 0 | AP80: 0 | AQ80: 0 | BA80: 77
G81: 78 | H81: 1 | I81: =IF(A$8="",0,IF(A$7*12-G81<0,1,0)) -> 1 | J81: 1 | K81: 1 | L81: 1 | M81: 1 | N81: 6 | O81: 0 | P81: 0 | Q81: 0 | AB81: 1 | AF81: 0 | AG81: 78 | AH81: 1 | AI81: =IF(A$8="",0,IF(A$7*12-AG81<0,1,0)) -> 1 | AJ81: 1 | AK81: 1 | AL81: 1 | AM81: 1 | AN81: 6 | AO81: 0 | AP81: 0 | AQ81: 0 | BA81: 78
G82: 79 | H82: 1 | I82: 1 | J82: 1 | K82: 1 | L82: 1 | M82: 1 | N82: 6 | O82: 0 | P82: 0 | Q82: 0 | AB82: 1 | AF82: 0 | AG82: 79 | AH82: 1 | AI82: 1 | AJ82: 1 | AK82: 1 | AL82: 1 | AM82: 1 | AN82: 6 | AO82: 0 | AP82: 0 | AQ82: 0 | BA82: 79
G83: 80 | H83: 1 | I83: 1 | J83: 1 | K83: 1 | L83: 1 | M83: 1 | N83: 6 | O83: 0 | P83: 0 | Q83: 0 | AB83: 1 | AF83: 0 | AG83: 80 | AH83: 1 | AI83: 1 | AJ83: 1 | AK83: 1 | AL83: 1 | AM83: 1 | AN83: 6 | AO83: 0 | AP83: 0 | AQ83: 0 | BA83: 80
G84: 81 | H84: 1 | I84: 1 | J84: 1 | K84: 1 | L84: 1 | M84: 1 | N84: 6 | O84: 0 | P84: 0 | Q84: 0 | AB84: 1 | AF84: 0 | AG84: 81 | AH84: 1 | AI84: 1 | AJ84: 1 | AK84: 1 | AL84: 1 | AM84: 1 | AN84: 6 | AO84: 0 | AP84: 0 | AQ84: 0 | BA84: 81
G85: 82 | H85: 1 | I85: 1 | J85: 1 | K85: 1 | L85: 1 | M85: 1 | N85: 6 | O85: 0 | P85: 0 | Q85: 0 | AB85: 1 | AF85: 0 | AG85: 82 | AH85: 1 | AI85: 1 | AJ85: 1 | AK85: 1 | AL85: 1 | AM85: 1 | AN85: 6 | AO85: 0 | AP85: 0 | AQ85: 0 | BA85: 82
G86: 83 | H86: 1 | I86: 1 | J86: 1 | K86: 1 | L86: 1 | M86: 1 | N86: 6 | O86: 0 | P86: 0 | Q86: 0 | AB86: 1 | AF86: 0 | AG86: 83 | AH86: 1 | AI86: 1 | AJ86: 1 | AK86: 1 | AL86: 1 | AM86: 1 | AN86: 6 | AO86: 0 | AP86: 0 | AQ86: 0 | BA86: 83
G87: 84 | H87: 1 | I87: 1 | J87: 1 | K87: 1 | L87: 1 | M87: 1 | N87: 6 | O87: 0 | P87: 0 | Q87: 0 | AB87: 1 | AF87: 0 | AG87: 84 | AH87: 1 | AI87: 1 | AJ87: 1 | AK87: 1 | AL87: 1 | AM87: 1 | AN87: 6 | AO87: 0 | AP87: 0 | AQ87: 0 | BA87: 84
G88: 85 | H88: 1 | I88: 1 | J88: 1 | K88: 1 | L88: 1 | M88: 1 | N88: 6 | O88: 0 | P88: 0 | Q88: 0 | AB88: 1 | AF88: 0 | AG88: 85 | AH88: 1 | AI88: 1 | AJ88: 1 | AK88: 1 | AL88: 1 | AM88: 1 | AN88: 6 | AO88: 0 | AP88: 0 | AQ88: 0 | BA88: 85
G89: 86 | H89: 1 | I89: 1 | J89: 1 | K89: 1 | L89: 1 | M89: 1 | N89: 6 | O89: 0 | P89: 0 | Q89: 0 | AB89: 1 | AF89: 0 | AG89: 86 | AH89: 1 | AI89: 1 | AJ89: 1 | AK89: 1 | AL89: 1 | AM89: 1 | AN89: 6 | AO89: 0 | AP89: 0 | AQ89: 0 | BA89: 86
G90: 87 | H90: 1 | I90: 1 | J90: 1 | K90: 1 | L90: 1 | M90: 1 | N90: 6 | O90: 0 | P90: 0 | Q90: 0 | AB90: 1 | AF90: 0 | AG90: 87 | AH90: 1 | AI90: 1 | AJ90: 1 | AK90: 1 | AL90: 1 | AM90: 1 | AN90: 6 | AO90: 0 | AP90: 0 | AQ90: 0 | BA90: 87
G91: 88 | H91: 1 | I91: 1 | J91: 1 | K91: 1 | L91: 1 | M91: 1 | N91: 6 | O91: 0 | P91: 0 | Q91: 0 | AB91: 1 | AF91: 0 | AG91: 88 | AH91: 1 | AI91: 1 | AJ91: 1 | AK91: 1 | AL91: 1 | AM91: 1 | AN91: 6 | AO91: 0 | AP91: 0 | AQ91: 0 | BA91: 88
G92: 89 | H92: 1 | I92: 1 | J92: 1 | K92: 1 | L92: 1 | M92: 1 | N92: 6 | O92: 0 | P92: 0 | Q92: 0 | AB92: 1 | AF92: 0 | AG92: 89 | AH92: 1 | AI92: 1 | AJ92: 1 | AK92: 1 | AL92: 1 | AM92: 1 | AN92: 6 | AO92: 0 | AP92: 0 | AQ92: 0 | BA92: 89
G93: 90 | H93: 1 | I93: 1 | J93: =IF($A$9="",0,IF(SUM($A$7:$A$8)*12-G93<0,1,0)) -> 1 | K93: 1 | L93: 1 | M93: 1 | N93: 6 | O93: 0 | P93: 0 | Q93: 0 | AB93: 1 | AF93: 0 | AG93: 90 | AH93: 1 | AI93: 1 | AJ93: 1 | AK93: 1 | AL93: 1 | AM93: 1 | AN93: 6 | AO93: 0 | AP93: 0 | AQ93: 0 | BA93: 90
G94: 91 | H94: 1 | I94: 1 | J94: 1 | K94: 1 | L94: 1 | M94: 1 | N94: 6 | O94: 0 | P94: 0 | Q94: 0 | AB94: 1 | AF94: 0 | AG94: 91 | AH94: 1 | AI94: 1 | AJ94: 1 | AK94: 1 | AL94: 1 | AM94: 1 | AN94: 6 | AO94: 0 | AP94: 0 | AQ94: 0 | BA94: 91
G95: 92 | H95: 1 | I95: 1 | J95: 1 | K95: 1 | L95: 1 | M95: 1 | N95: 6 | O95: 0 | P95: 0 | Q95: 0 | AB95: 1 | AF95: 0 | AG95: 92 | AH95: 1 | AI95: 1 | AJ95: 1 | AK95: 1 | AL95: 1 | AM95: 1 | AN95: 6 | AO95: 0 | AP95: 0 | AQ95: 0 | BA95: 92
G96: 93 | H96: 1 | I96: 1 | J96: 1 | K96: 1 | L96: 1 | M96: 1 | N96: 6 | O96: 0 | P96: 0 | Q96: 0 | AB96: 1 | AF96: 0 | AG96: 93 | AH96: 1 | AI96: 1 | AJ96: 1 | AK96: 1 | AL96: 1 | AM96: 1 | AN96: 6 | AO96: 0 | AP96: 0 | AQ96: 0 | BA96: 93
G97: 94 | H97: 1 | I97: 1 | J97: 1 | K97: 1 | L97: 1 | M97: 1 | N97: 6 | O97: 0 | P97: 0 | Q97: 0 | AB97: 1 | AF97: 0 | AG97: 94 | AH97: 1 | AI97: 1 | AJ97: 1 | AK97: 1 | AL97: 1 | AM97: 1 | AN97: 6 | AO97: 0 | AP97: 0 | AQ97: 0 | BA97: 94
G98: 95 | H98: 1 | I98: 1 | J98: 1 | K98: 1 | L98: 1 | M98: 1 | N98: 6 | O98: 0 | P98: 0 | Q98: 0 | AB98: 1 | AF98: 0 | AG98: 95 | AH98: 1 | AI98: 1 | AJ98: 1 | AK98: 1 | AL98: 1 | AM98: 1 | AN98: 6 | AO98: 0 | AP98: 0 | AQ98: 0 | BA98: 95
G99: 96 | H99: 1 | I99: 1 | J99: 1 | K99: 1 | L99: 1 | M99: 1 | N99: 6 | O99: 0 | P99: 0 | Q99: 0 | AB99: 1 | AF99: 0 | AG99: 96 | AH99: 1 | AI99: 1 | AJ99: 1 | AK99: 1 | AL99: 1 | AM99: 1 | AN99: 6 | AO99: 0 | AP99: 0 | AQ99: 0 | BA99: 96
G100: 97 | H100: 1 | I100: 1 | J100: 1 | K100: 1 | L100: 1 | M100: 1 | N100: 6 | O100: 0 | P100: 0 | Q100: 0 | AB100: 1 | AF100: 0 | AG100: 97 | AH100: 1 | AI100: 1 | AJ100: 1 | AK100: 1 | AL100: 1 | AM100: 1 | AN100: 6 | AO100: 0 | AP100: 0 | AQ100: 0 | BA100: 97
G101: 98 | H101: 1 | I101: 1 | J101: 1 | K101: 1 | L101: 1 | M101: 1 | N101: 6 | O101: 0 | P101: 0 | Q101: 0 | AB101: 1 | AF101: 0 | AG101: 98 | AH101: 1 | AI101: 1 | AJ101: 1 | AK101: 1 | AL101: 1 | AM101: 1 | AN101: 6 | AO101: 0 | AP101: 0 | AQ101: 0 | BA101: 98
G102: 99 | H102: 1 | I102: 1 | J102: 1 | K102: 1 | L102: 1 | M102: 1 | N102: 6 | O102: 0 | P102: 0 | Q102: 0 | AB102: 1 | AF102: 0 | AG102: 99 | AH102: 1 | AI102: 1 | AJ102: 1 | AK102: 1 | AL102: 1 | AM102: 1 | AN102: 6 | AO102: 0 | AP102: 0 | AQ102: 0 | BA102: 99
G103: 100 | H103: 1 | I103: 1 | J103: 1 | K103: 1 | L103: 1 | M103: 1 | N103: 6 | O103: 0 | P103: 0 | Q103: 0 | AB103: 1 | AF103: 0 | AG103: 100 | AH103: 1 | AI103: 1 | AJ103: 1 | AK103: 1 | AL103: 1 | AM103: 1 | AN103: 6 | AO103: 0 | AP103: 0 | AQ103: 0 | BA103: 100
G104: 101 | H104: 1 | I104: 1 | J104: 1 | K104: 1 | L104: 1 | M104: 1 | N104: 6 | O104: 0 | P104: 0 | Q104: 0 | AB104: 1 | AF104: 0 | AG104: 101 | AH104: 1 | AI104: 1 | AJ104: 1 | AK104: 1 | AL104: 1 | AM104: 1 | AN104: 6 | AO104: 0 | AP104: 0 | AQ104: 0 | BA104: 101
G105: 102 | H105: 1 | I105: 1 | J105: 1 | K105: =IF($A$9="",0,IF(SUM($A$7:$A$9)*12-G105<0,1,0)) -> 1 | L105: 1 | M105: 1 | N105: 6 | O105: 0 | P105: 0 | Q105: 0 | AB105: 1 | AF105: 0 | AG105: 102 | AH105: 1 | AI105: 1 | AJ105: 1 | AK105: =IF($A$9="",0,IF(SUM($A$7:$A$9)*12-AG105<0,1,0)) -> 1 | AL105: 1 | AM105: 1 | AN105: 6 | AO105: 0 | AP105: 0 | AQ105: 0 | BA105: 102
G106: 103 | H106: 1 | I106: 1 | J106: 1 | K106: 1 | L106: 1 | M106: 1 | N106: 6 | O106: 0 | P106: 0 | Q106: 0 | AB106: 1 | AF106: 0 | AG106: 103 | AH106: 1 | AI106: 1 | AJ106: 1 | AK106: 1 | AL106: 1 | AM106: 1 | AN106: 6 | AO106: 0 | AP106: 0 | AQ106: 0 | BA106: 103
G107: 104 | H107: 1 | I107: 1 | J107: 1 | K107: 1 | L107: 1 | M107: 1 | N107: 6 | O107: 0 | P107: 0 | Q107: 0 | AB107: 1 | AF107: 0 | AG107: 104 | AH107: 1 | AI107: 1 | AJ107: 1 | AK107: 1 | AL107: 1 | AM107: 1 | AN107: 6 | AO107: 0 | AP107: 0 | AQ107: 0 | BA107: 104
G108: 105 | H108: 1 | I108: 1 | J108: 1 | K108: 1 | L108: 1 | M108: 1 | N108: 6 | O108: 0 | P108: 0 | Q108: 0 | AB108: 1 | AF108: 0 | AG108: 105 | AH108: 1 | AI108: 1 | AJ108: 1 | AK108: 1 | AL108: 1 | AM108: 1 | AN108: 6 | AO108: 0 | AP108: 0 | AQ108: 0 | BA108: 105
G109: 106 | H109: 1 | I109: 1 | J109: 1 | K109: 1 | L109: 1 | M109: 1 | N109: 6 | O109: 0 | P109: =IF(O109=0,O109,IF(P108+O109>60,P108+O109-60,P108+O109)) -> 0 | Q109: 0 | AB109: 1 | AF109: 0 | AG109: 106 | AH109: 1 | AI109: 1 | AJ109: 1 | AK109: 1 | AL109: 1 | AM109: 1 | AN109: 6 | AO109: 0 | AP109: 0 | AQ109: 0 | BA109: 106
G110: 107 | H110: 1 | I110: 1 | J110: 1 | K110: 1 | L110: 1 | M110: 1 | N110: 6 | O110: 0 | P110: =IF(O110=0,O110,IF(P109+O110>60,P109+O110-60,P109+O110)) -> 0 | Q110: 0 | AB110: 1 | AF110: 0 | AG110: 107 | AH110: 1 | AI110: 1 | AJ110: 1 | AK110: 1 | AL110: 1 | AM110: 1 | AN110: 6 | AO110: 0 | AP110: 0 | AQ110: 0 | BA110: 107
G111: 108 | H111: 1 | I111: 1 | J111: 1 | K111: 1 | L111: 1 | M111: 1 | N111: 6 | O111: 0 | P111: 0 | Q111: 0 | AB111: 1 | AF111: 0 | AG111: 108 | AH111: 1 | AI111: 1 | AJ111: 1 | AK111: 1 | AL111: 1 | AM111: 1 | AN111: 6 | AO111: 0 | AP111: 0 | AQ111: 0 | BA111: 108
G112: 109 | H112: 1 | I112: 1 | J112: 1 | K112: 1 | L112: 1 | M112: 1 | N112: 6 | O112: 0 | P112: 0 | Q112: 0 | AB112: 1 | AF112: 0 | AG112: 109 | AH112: 1 | AI112: 1 | AJ112: 1 | AK112: 1 | AL112: 1 | AM112: 1 | AN112: 6 | AO112: 0 | AP112: 0 | AQ112: 0 | BA112: 109
G113: 110 | H113: 1 | I113: 1 | J113: 1 | K113: 1 | L113: 1 | M113: 1 | N113: 6 | O113: 0 | P113: 0 | Q113: 0 | AB113: 1 | AF113: 0 | AG113: 110 | AH113: 1 | AI113: 1 | AJ113: 1 | AK113: 1 | AL113: 1 | AM113: 1 | AN113: 6 | AO113: 0 | AP113: 0 | AQ113: 0 | BA113: 110
G114: 111 | H114: 1 | I114: 1 | J114: 1 | K114: 1 | L114: 1 | M114: 1 | N114: 6 | O114: 0 | P114: 0 | Q114: 0 | AB114: 1 | AF114: 0 | AG114: 111 | AH114: 1 | AI114: 1 | AJ114: 1 | AK114: 1 | AL114: 1 | AM114: 1 | AN114: 6 | AO114: 0 | AP114: 0 | AQ114: 0 | BA114: 111
G115: 112 | H115: 1 | I115: 1 | J115: 1 | K115: 1 | L115: 1 | M115: 1 | N115: 6 | O115: 0 | P115: 0 | Q115: 0 | AB115: 1 | AF115: 0 | AG115: 112 | AH115: 1 | AI115: 1 | AJ115: 1 | AK115: 1 | AL115: 1 | AM115: 1 | AN115: 6 | AO115: 0 | AP115: 0 | AQ115: 0 | BA115: 112
G116: 113 | H116: 1 | I116: 1 | J116: 1 | K116: 1 | L116: 1 | M116: 1 | N116: 6 | O116: 0 | P116: 0 | Q116: 0 | AB116: 1 | AF116: 0 | AG116: 113 | AH116: 1 | AI116: 1 | AJ116: 1 | AK116: 1 | AL116: 1 | AM116: 1 | AN116: 6 | AO116: 0 | AP116: 0 | AQ116: 0 | BA116: 113
G117: 114 | H117: 1 | I117: 1 | J117: 1 | K117: 1 | L117: =IF($A$9="",0,IF(SUM($A$7:$A$10)*12-G117<0,1,0)) -> 1 | M117: 1 | N117: 6 | O117: 0 | P117: 0 | Q117: 0 | AB117: 1 | AF117: 0 | AG117: 114 | AH117: 1 | AI117: 1 | AJ117: 1 | AK117: 1 | AL117: =IF($A$9="",0,IF(SUM($A$7:$A$10)*12-AG117<0,1,0)) -> 1 | AM117: 1 | AN117: 6 | AO117: 0 | AP117: 0 | AQ117: 0 | BA117: 114
G118: 115 | H118: 1 | I118: 1 | J118: 1 | K118: 1 | L118: 1 | M118: 1 | N118: 6 | O118: 0 | P118: 0 | Q118: 0 | AB118: 1 | AF118: 0 | AG118: 115 | AH118: 1 | AI118: 1 | AJ118: 1 | AK118: 1 | AL118: 1 | AM118: 1 | AN118: 6 | AO118: 0 | AP118: 0 | AQ118: 0 | BA118: 115
G119: 116 | H119: 1 | I119: 1 | J119: 1 | K119: 1 | L119: 1 | M119: 1 | N119: 6 | O119: 0 | P119: 0 | Q119: 0 | AB119: 1 | AF119: 0 | AG119: 116 | AH119: 1 | AI119: 1 | AJ119: 1 | AK119: 1 | AL119: 1 | AM119: 1 | AN119: 6 | AO119: 0 | AP119: 0 | AQ119: 0 | BA119: 116
G120: 117 | H120: 1 | I120: 1 | J120: 1 | K120: 1 | L120: 1 | M120: 1 | N120: 6 | O120: 0 | P120: 0 | Q120: 0 | AB120: 1 | AF120: 0 | AG120: 117 | AH120: 1 | AI120: 1 | AJ120: 1 | AK120: 1 | AL120: 1 | AM120: 1 | AN120: 6 | AO120: 0 | AP120: 0 | AQ120: 0 | BA120: 117
G121: 118 | H121: 1 | I121: 1 | J121: 1 | K121: 1 | L121: 1 | M121: 1 | N121: 6 | O121: 0 | P121: 0 | Q121: 0 | AB121: 1 | AF121: 0 | AG121: 118 | AH121: 1 | AI121: 1 | AJ121: 1 | AK121: 1 | AL121: 1 | AM121: 1 | AN121: 6 | AO121: 0 | AP121: 0 | AQ121: 0 | BA121: 118
G122: 119 | H122: 1 | I122: 1 | J122: 1 | K122: 1 | L122: 1 | M122: 1 | N122: 6 | O122: 0 | P122: 0 | Q122: 0 | AB122: 1 | AF122: 0 | AG122: 119 | AH122: 1 | AI122: 1 | AJ122: 1 | AK122: 1 | AL122: 1 | AM122: 1 | AN122: 6 | AO122: 0 | AP122: 0 | AQ122: 0 | BA122: 119
G123: 120 | H123: 1 | I123: 1 | J123: 1 | K123: 1 | L123: 1 | M123: 1 | N123: 6 | O123: 0 | P123: 0 | Q123: 0 | AB123: 1 | AF123: 0 | AG123: 120 | AH123: 1 | AI123: 1 | AJ123: 1 | AK123: 1 | AL123: 1 | AM123: 1 | AN123: 6 | AO123: 0 | AP123: 0 | AQ123: 0 | BA123: 120
G124: 121 | H124: 1 | I124: 1 | J124: 1 | K124: 1 | L124: 1 | M124: 1 | N124: 6 | O124: 0 | P124: 0 | Q124: 0 | AB124: 1 | AF124: 0 | AG124: 121 | AH124: 1 | AI124: 1 | AJ124: 1 | AK124: 1 | AL124: 1 | AM124: 1 | AN124: 6 | AO124: 0 | AP124: 0 | AQ124: 0 | BA124: 121
G125: 122 | H125: 1 | I125: 1 | J125: 1 | K125: 1 | L125: 1 | M125: 1 | N125: 6 | O125: 0 | P125: 0 | Q125: 0 | AB125: 1 | AF125: 0 | AG125: 122 | AH125: 1 | AI125: 1 | AJ125: 1 | AK125: 1 | AL125: 1 | AM125: 1 | AN125: 6 | AO125: 0 | AP125: 0 | AQ125: 0 | BA125: 122
G126: 123 | H126: 1 | I126: 1 | J126: 1 | K126: 1 | L126: 1 | M126: 1 | N126: 6 | O126: 0 | P126: 0 | Q126: 0 | AB126: 1 | AF126: 0 | AG126: 123 | AH126: 1 | AI126: 1 | AJ126: 1 | AK126: 1 | AL126: 1 | AM126: 1 | AN126: 6 | AO126: 0 | AP126: 0 | AQ126: 0 | BA126: 123
G127: 124 | H127: 1 | I127: 1 | J127: 1 | K127: 1 | L127: 1 | M127: 1 | N127: 6 | O127: 0 | P127: 0 | Q127: 0 | AB127: 1 | AF127: 0 | AG127: 124 | AH127: 1 | AI127: 1 | AJ127: 1 | AK127: 1 | AL127: 1 | AM127: 1 | AN127: 6 | AO127: 0 | AP127: 0 | AQ127: 0 | BA127: 124
G128: 125 | H128: 1 | I128: 1 | J128: 1 | K128: 1 | L128: 1 | M128: 1 | N128: 6 | O128: 0 | P128: 0 | Q128: 0 | AB128: 1 | AF128: 0 | AG128: 125 | AH128: 1 | AI128: 1 | AJ128: 1 | AK128: 1 | AL128: 1 | AM128: 1 | AN128: 6 | AO128: 0 | AP128: 0 | AQ128: 0 | BA128: 125
G129: 126 | H129: 1 | I129: 1 | J129: 1 | K129: 1 | L129: 1 | M129: =IF($A$9="",0,IF(SUM($A$7:$A$11)*12-G129<0,1,0)) -> 1 | N129: 6 | O129: 0 | P129: 0 | Q129: 0 | AB129: 1 | AF129: 0 | AG129: 126 | AH129: 1 | AI129: 1 | AJ129: 1 | AK129: 1 | AL129: 1 | AM129: =IF($A$9="",0,IF(SUM($A$7:$A$11)*12-AG129<0,1,0)) -> 1 | AN129: 6 | AO129: 0 | AP129: 0 | AQ129: 0 | BA129: 126
G130: 127 | H130: 1 | I130: 1 | J130: 1 | K130: 1 | L130: 1 | M130: 1 | N130: 6 | O130: 0 | P130: 0 | Q130: 0 | AB130: 1 | AF130: 0 | AG130: 127 | AH130: 1 | AI130: 1 | AJ130: 1 | AK130: 1 | AL130: 1 | AM130: 1 | AN130: 6 | AO130: 0 | AP130: 0 | AQ130: 0 | BA130: 127
G131: 128 | H131: 1 | I131: 1 | J131: 1 | K131: 1 | L131: 1 | M131: 1 | N131: 6 | O131: 0 | P131: 0 | Q131: 0 | AB131: 1 | AF131: 0 | AG131: 128 | AH131: 1 | AI131: 1 | AJ131: 1 | AK131: 1 | AL131: 1 | AM131: 1 | AN131: 6 | AO131: 0 | AP131: 0 | AQ131: 0 | BA131: 128
G132: 129 | H132: 1 | I132: 1 | J132: 1 | K132: 1 | L132: 1 | M132: 1 | N132: 6 | O132: 0 | P132: 0 | Q132: 0 | T132: =IF(S132="","",IF(S133="",IF(Z131<0,"",Z131+W132),IF(Q132=2,MIN(U132:V132),IF(P132>1,T131,IF(S132=S131,T131,U132))))) ->  | AB132: =IF(B$15*12<G132,1,"") -> 1 | AC132: =IF(AB132=1,Y132,"") ->  | AF132: 0 | AG132: 129 | AH132: 1 | AI132: 1 | AJ132: 1 | AK132: 1 | AL132: 1 | AM132: 1 | AN132: 6 | AO132: 0 | AP132: 0 | AQ132: 0 | AV132: =IF(S132="","",IF(AE132=1,0,INT(AY131*AR132/12))) ->  | AX132: =IF(S132="","",IF(AE132=1,0,AS132-AV132)) ->  | AY132: =IF(S132="","",IF(AX132=0,IF(AF131=0,AY131-$B$16*10000,AY131-AX132),AY131-AX132)) ->  | BA132: 129 | BB132: =IFERROR(_xlfn.XLOOKUP(BA132,AG$4:AG$603,AS$4:AS$603),"") -> 
G133: 130 | H133: 1 | I133: 1 | J133: 1 | K133: 1 | L133: 1 | M133: 1 | N133: =SUM(H133:M133) -> 6 | O133: =IF(N133=1,IF(E$7=1,1,0),IF(N133=2,IF(E$8=1,1,0),IF(N133=3,IF(E$9=1,1,0),IF(N133=4,IF(E$10=1,1,0),IF(N133=5,IF(E$11=1,1,0),IF(N133=6,IF(E$12=1,1,0),0)))))) -> 0 | P133: 0 | Q133: 0 | R133: =IF(N133=1,C$7,IF(N133=2,C$8,IF(N133=3,C$9,IF(N133=4,C$10,IF(N133=5,C$11,IF(N133=6,$C$12,0)))))) ->  | S133: =IF($B$4*12+D$4>=G133,R133,"") ->  | U133: =IF(Z132="","",IF(Z132>0,INT(PMT(S133/12,B$4*12+D$4-G132,-Z132,)),"")) ->  | W133: =IF(S133="","",INT(Z132*S133/12)) ->  | Y133: =IF(S133="","",IF(X133="",T133-W133,0)) ->  | Z133: =IF(S133="","",Z132-Y133) ->  | AB133: 1 | AD133: =IF(AC133="","",IF(AC133=0,"",IF(AD132="",0,AD132)+AC133)) ->  | AE133: =IF(AD133="","",IF(B$16*10000>=AD133,1,0)) ->  | AF133: =IF(AE133=1,AC133,0) -> 0 | AG133: 130 | AH133: 1 | AI133: 1 | AJ133: 1 | AK133: 1 | AL133: 1 | AM133: 1 | AN133: =SUM(AH133:AM133) -> 6 | AO133: =IF(AN133=1,IF(E$7=1,1,0),IF(AN133=2,IF(E$8=1,1,0),IF(AN133=3,IF(E$9=1,1,0),IF(AN133=4,IF(E$10=1,1,0),IF(AN133=5,IF(E$11=1,1,0),IF(AN133=6,IF(E$12=1,1,0),0)))))) -> 0 | AP133: 0 | AQ133: 0 | AR133: =IF(S133="","",_xlfn.XLOOKUP(AG133,G$4:G$604,S$4:S$604)) ->  | BA133: 130 | BC133: =IFERROR(_xlfn.XLOOKUP(BA133,AG$4:AG$603,AY$4:AY$603),"") -> 
G134: 131 | H134: 1 | I134: 1 | J134: 1 | K134: 1 | L134: 1 | M134: 1 | N134: 6 | O134: 0 | P134: 0 | Q134: =IF(P133>0,IF(P134=1,IF(U133-T133>100,2,1),IF(P134>0,1,0)),0) -> 0 | V134: =IF(S134="","",INT(T133*1.25)) ->  | X134: =IF(T134="","",IF(T134>W134,"",W134-T134)) ->  | AB134: 1 | AF134: 0 | AG134: =AG133+IF(AE134=1,0,1) -> 131 | AH134: 1 | AI134: 1 | AJ134: 1 | AK134: 1 | AL134: 1 | AM134: 1 | AN134: 6 | AO134: 0 | AP134: =IF(AO134=0,AO134,IF(AP133+AO134>60,AP133+IF(AE133>0,1,AO134)-60,AP133+IF(AE133>0,1,AO134))) -> 0 | AQ134: =IF(AP133>0,IF(AP134=1,IF(AT133-AS133>100,2,1),IF(AP134>0,1,0)),0) -> 0 | AT134: =IF(AY133="","",IF(AY133>0,INT(PMT(AR134/12,B$4*12+D$4-AG133-IF(AE134="",0,AE$3),-AY133,)),"")) ->  | AU134: =IF(AR134="","",INT(AS133*1.25)) ->  | AW134: =IF(AS134="","",IF(AS134>AV134,"",AV134-AS134)) ->  | BA134: 131
G135: 132 | H135: 1 | I135: 1 | J135: 1 | K135: 1 | L135: 1 | M135: 1 | N135: 6 | O135: 0 | P135: 0 | Q135: 0 | AB135: 1 | AF135: 0 | AG135: 132 | AH135: 1 | AI135: 1 | AJ135: 1 | AK135: 1 | AL135: 1 | AM135: 1 | AN135: 6 | AO135: 0 | AP135: 0 | AQ135: 0 | BA135: 132
G136: 133 | H136: 1 | I136: 1 | J136: 1 | K136: 1 | L136: 1 | M136: 1 | N136: 6 | O136: 0 | P136: 0 | Q136: 0 | AB136: 1 | AF136: 0 | AG136: 133 | AH136: 1 | AI136: 1 | AJ136: 1 | AK136: 1 | AL136: 1 | AM136: 1 | AN136: 6 | AO136: 0 | AP136: 0 | AQ136: 0 | AS136: =IF(AR136="","",IF(AR137="",IF(AY135<0,"",AY135+AV136),IF(AQ136=2,MIN(AT136:AU136),IF(AP136>1,AS135,IF(AR136=AR135,AS135,AT136))))) ->  | BA136: 133
G137: 134 | H137: 1 | I137: 1 | J137: 1 | K137: 1 | L137: 1 | M137: 1 | N137: 6 | O137: 0 | P137: 0 | Q137: 0 | AB137: 1 | AF137: 0 | AG137: 134 | AH137: 1 | AI137: 1 | AJ137: 1 | AK137: 1 | AL137: 1 | AM137: 1 | AN137: 6 | AO137: 0 | AP137: 0 | AQ137: 0 | BA137: 134
G138: 135 | H138: 1 | I138: 1 | J138: 1 | K138: 1 | L138: 1 | M138: 1 | N138: 6 | O138: 0 | P138: 0 | Q138: 0 | AB138: 1 | AF138: 0 | AG138: 135 | AH138: 1 | AI138: 1 | AJ138: =IF($A$9="",0,IF(SUM($A$7:$A$8)*12-AG138<0,1,0)) -> 1 | AK138: 1 | AL138: 1 | AM138: 1 | AN138: 6 | AO138: 0 | AP138: 0 | AQ138: 0 | BA138: 135
G139: 136 | H139: 1 | I139: 1 | J139: 1 | K139: 1 | L139: 1 | M139: 1 | N139: 6 | O139: 0 | P139: 0 | Q139: 0 | AB139: 1 | AF139: 0 | AG139: 136 | AH139: 1 | AI139: 1 | AJ139: 1 | AK139: 1 | AL139: 1 | AM139: 1 | AN139: 6 | AO139: 0 | AP139: 0 | AQ139: 0 | BA139: 136
G140: 137 | H140: 1 | I140: 1 | J140: 1 | K140: 1 | L140: 1 | M140: 1 | N140: 6 | O140: 0 | P140: 0 | Q140: 0 | AB140: 1 | AF140: 0 | AG140: 137 | AH140: 1 | AI140: 1 | AJ140: 1 | AK140: 1 | AL140: 1 | AM140: 1 | AN140: 6 | AO140: 0 | AP140: 0 | AQ140: 0 | BA140: 137
G141: 138 | H141: 1 | I141: 1 | J141: 1 | K141: 1 | L141: 1 | M141: 1 | N141: 6 | O141: 0 | P141: 0 | Q141: 0 | AB141: 1 | AF141: 0 | AG141: 138 | AH141: 1 | AI141: 1 | AJ141: 1 | AK141: 1 | AL141: 1 | AM141: 1 | AN141: 6 | AO141: 0 | AP141: 0 | AQ141: 0 | BA141: 138
G142: 139 | H142: 1 | I142: 1 | J142: 1 | K142: 1 | L142: 1 | M142: 1 | N142: 6 | O142: 0 | P142: 0 | Q142: 0 | AB142: 1 | AF142: 0 | AG142: 139 | AH142: 1 | AI142: 1 | AJ142: 1 | AK142: 1 | AL142: 1 | AM142: 1 | AN142: 6 | AO142: 0 | AP142: 0 | AQ142: 0 | BA142: 139
G143: 140 | H143: 1 | I143: 1 | J143: 1 | K143: 1 | L143: 1 | M143: 1 | N143: 6 | O143: 0 | P143: 0 | Q143: 0 | AB143: 1 | AF143: 0 | AG143: 140 | AH143: 1 | AI143: 1 | AJ143: 1 | AK143: 1 | AL143: 1 | AM143: 1 | AN143: 6 | AO143: 0 | AP143: 0 | AQ143: 0 | BA143: 140
G144: 141 | H144: 1 | I144: 1 | J144: 1 | K144: 1 | L144: 1 | M144: 1 | N144: 6 | O144: 0 | P144: 0 | Q144: 0 | AB144: 1 | AF144: 0 | AG144: 141 | AH144: 1 | AI144: 1 | AJ144: 1 | AK144: 1 | AL144: 1 | AM144: 1 | AN144: 6 | AO144: 0 | AP144: 0 | AQ144: 0 | BA144: 141
G145: 142 | H145: 1 | I145: =IF(A$8="",0,IF(A$7*12-G145<0,1,0)) -> 1 | J145: 1 | K145: 1 | L145: 1 | M145: 1 | N145: 6 | O145: 0 | P145: 0 | Q145: 0 | AB145: 1 | AF145: 0 | AG145: 142 | AH145: 1 | AI145: =IF(A$8="",0,IF(A$7*12-AG145<0,1,0)) -> 1 | AJ145: 1 | AK145: 1 | AL145: 1 | AM145: 1 | AN145: 6 | AO145: 0 | AP145: 0 | AQ145: 0 | BA145: 142
G146: 143 | H146: 1 | I146: 1 | J146: 1 | K146: 1 | L146: 1 | M146: 1 | N146: 6 | O146: 0 | P146: 0 | Q146: 0 | AB146: 1 | AF146: 0 | AG146: 143 | AH146: 1 | AI146: 1 | AJ146: 1 | AK146: 1 | AL146: 1 | AM146: 1 | AN146: 6 | AO146: 0 | AP146: 0 | AQ146: 0 | BA146: 143
G147: 144 | H147: 1 | I147: 1 | J147: 1 | K147: 1 | L147: 1 | M147: 1 | N147: 6 | O147: 0 | P147: 0 | Q147: 0 | AB147: 1 | AF147: 0 | AG147: 144 | AH147: 1 | AI147: 1 | AJ147: 1 | AK147: 1 | AL147: 1 | AM147: 1 | AN147: 6 | AO147: 0 | AP147: 0 | AQ147: 0 | BA147: 144
G148: 145 | H148: 1 | I148: 1 | J148: 1 | K148: 1 | L148: 1 | M148: 1 | N148: 6 | O148: 0 | P148: 0 | Q148: 0 | AB148: 1 | AF148: 0 | AG148: 145 | AH148: 1 | AI148: 1 | AJ148: 1 | AK148: 1 | AL148: 1 | AM148: 1 | AN148: 6 | AO148: 0 | AP148: 0 | AQ148: 0 | BA148: 145
G149: 146 | H149: 1 | I149: 1 | J149: 1 | K149: 1 | L149: 1 | M149: 1 | N149: 6 | O149: 0 | P149: 0 | Q149: 0 | AB149: 1 | AF149: 0 | AG149: 146 | AH149: 1 | AI149: 1 | AJ149: 1 | AK149: 1 | AL149: 1 | AM149: 1 | AN149: 6 | AO149: 0 | AP149: 0 | AQ149: 0 | BA149: 146
G150: 147 | H150: 1 | I150: 1 | J150: 1 | K150: 1 | L150: 1 | M150: 1 | N150: 6 | O150: 0 | P150: 0 | Q150: 0 | AB150: 1 | AF150: 0 | AG150: 147 | AH150: 1 | AI150: 1 | AJ150: 1 | AK150: 1 | AL150: 1 | AM150: 1 | AN150: 6 | AO150: 0 | AP150: 0 | AQ150: 0 | BA150: 147
G151: 148 | H151: 1 | I151: 1 | J151: 1 | K151: 1 | L151: 1 | M151: 1 | N151: 6 | O151: 0 | P151: 0 | Q151: 0 | AB151: 1 | AF151: 0 | AG151: 148 | AH151: 1 | AI151: 1 | AJ151: 1 | AK151: 1 | AL151: 1 | AM151: 1 | AN151: 6 | AO151: 0 | AP151: 0 | AQ151: 0 | BA151: 148
G152: 149 | H152: 1 | I152: 1 | J152: 1 | K152: 1 | L152: 1 | M152: 1 | N152: 6 | O152: 0 | P152: 0 | Q152: 0 | AB152: 1 | AF152: 0 | AG152: 149 | AH152: 1 | AI152: 1 | AJ152: 1 | AK152: 1 | AL152: 1 | AM152: 1 | AN152: 6 | AO152: 0 | AP152: 0 | AQ152: 0 | BA152: 149
G153: 150 | H153: 1 | I153: 1 | J153: 1 | K153: 1 | L153: 1 | M153: 1 | N153: 6 | O153: 0 | P153: 0 | Q153: 0 | AB153: 1 | AF153: 0 | AG153: 150 | AH153: 1 | AI153: 1 | AJ153: 1 | AK153: 1 | AL153: 1 | AM153: 1 | AN153: 6 | AO153: 0 | AP153: 0 | AQ153: 0 | BA153: 150
G154: 151 | H154: 1 | I154: 1 | J154: 1 | K154: 1 | L154: 1 | M154: 1 | N154: 6 | O154: 0 | P154: 0 | Q154: 0 | AB154: 1 | AF154: 0 | AG154: 151 | AH154: 1 | AI154: 1 | AJ154: 1 | AK154: 1 | AL154: 1 | AM154: 1 | AN154: 6 | AO154: 0 | AP154: 0 | AQ154: 0 | BA154: 151
G155: 152 | H155: 1 | I155: 1 | J155: 1 | K155: 1 | L155: 1 | M155: 1 | N155: 6 | O155: 0 | P155: 0 | Q155: 0 | AB155: 1 | AF155: 0 | AG155: 152 | AH155: 1 | AI155: 1 | AJ155: 1 | AK155: 1 | AL155: 1 | AM155: 1 | AN155: 6 | AO155: 0 | AP155: 0 | AQ155: 0 | BA155: 152
G156: 153 | H156: 1 | I156: 1 | J156: 1 | K156: 1 | L156: 1 | M156: 1 | N156: 6 | O156: 0 | P156: 0 | Q156: 0 | AB156: 1 | AF156: 0 | AG156: 153 | AH156: 1 | AI156: 1 | AJ156: 1 | AK156: 1 | AL156: 1 | AM156: 1 | AN156: 6 | AO156: 0 | AP156: 0 | AQ156: 0 | BA156: 153
G157: 154 | H157: 1 | I157: 1 | J157: =IF($A$9="",0,IF(SUM($A$7:$A$8)*12-G157<0,1,0)) -> 1 | K157: 1 | L157: 1 | M157: 1 | N157: 6 | O157: 0 | P157: 0 | Q157: 0 | AB157: 1 | AF157: 0 | AG157: 154 | AH157: 1 | AI157: 1 | AJ157: 1 | AK157: 1 | AL157: 1 | AM157: 1 | AN157: 6 | AO157: 0 | AP157: 0 | AQ157: 0 | BA157: 154
G158: 155 | H158: 1 | I158: 1 | J158: 1 | K158: 1 | L158: 1 | M158: 1 | N158: 6 | O158: 0 | P158: 0 | Q158: 0 | AB158: 1 | AF158: 0 | AG158: 155 | AH158: 1 | AI158: 1 | AJ158: 1 | AK158: 1 | AL158: 1 | AM158: 1 | AN158: 6 | AO158: 0 | AP158: 0 | AQ158: 0 | BA158: 155
G159: 156 | H159: 1 | I159: 1 | J159: 1 | K159: 1 | L159: 1 | M159: 1 | N159: 6 | O159: 0 | P159: 0 | Q159: 0 | AB159: 1 | AF159: 0 | AG159: 156 | AH159: 1 | AI159: 1 | AJ159: 1 | AK159: 1 | AL159: 1 | AM159: 1 | AN159: 6 | AO159: 0 | AP159: 0 | AQ159: 0 | BA159: 156
G160: 157 | H160: 1 | I160: 1 | J160: 1 | K160: 1 | L160: 1 | M160: 1 | N160: 6 | O160: 0 | P160: 0 | Q160: 0 | AB160: 1 | AF160: 0 | AG160: 157 | AH160: 1 | AI160: 1 | AJ160: 1 | AK160: 1 | AL160: 1 | AM160: 1 | AN160: 6 | AO160: 0 | AP160: 0 | AQ160: 0 | BA160: 157
G161: 158 | H161: 1 | I161: 1 | J161: 1 | K161: 1 | L161: 1 | M161: 1 | N161: 6 | O161: 0 | P161: 0 | Q161: 0 | AB161: 1 | AF161: 0 | AG161: 158 | AH161: 1 | AI161: 1 | AJ161: 1 | AK161: 1 | AL161: 1 | AM161: 1 | AN161: 6 | AO161: 0 | AP161: 0 | AQ161: 0 | BA161: 158
G162: 159 | H162: 1 | I162: 1 | J162: 1 | K162: 1 | L162: 1 | M162: 1 | N162: 6 | O162: 0 | P162: 0 | Q162: 0 | AB162: 1 | AF162: 0 | AG162: 159 | AH162: 1 | AI162: 1 | AJ162: 1 | AK162: 1 | AL162: 1 | AM162: 1 | AN162: 6 | AO162: 0 | AP162: 0 | AQ162: 0 | BA162: 159
G163: 160 | H163: 1 | I163: 1 | J163: 1 | K163: 1 | L163: 1 | M163: 1 | N163: 6 | O163: 0 | P163: 0 | Q163: 0 | AB163: 1 | AF163: 0 | AG163: 160 | AH163: 1 | AI163: 1 | AJ163: 1 | AK163: 1 | AL163: 1 | AM163: 1 | AN163: 6 | AO163: 0 | AP163: 0 | AQ163: 0 | BA163: 160
G164: 161 | H164: 1 | I164: 1 | J164: 1 | K164: 1 | L164: 1 | M164: 1 | N164: 6 | O164: 0 | P164: 0 | Q164: 0 | AB164: 1 | AF164: 0 | AG164: 161 | AH164: 1 | AI164: 1 | AJ164: 1 | AK164: 1 | AL164: 1 | AM164: 1 | AN164: 6 | AO164: 0 | AP164: 0 | AQ164: 0 | BA164: 161
G165: 162 | H165: 1 | I165: 1 | J165: 1 | K165: 1 | L165: 1 | M165: 1 | N165: 6 | O165: 0 | P165: 0 | Q165: 0 | AB165: 1 | AF165: 0 | AG165: 162 | AH165: 1 | AI165: 1 | AJ165: 1 | AK165: 1 | AL165: 1 | AM165: 1 | AN165: 6 | AO165: 0 | AP165: 0 | AQ165: 0 | BA165: 162
G166: 163 | H166: 1 | I166: 1 | J166: 1 | K166: 1 | L166: 1 | M166: 1 | N166: 6 | O166: 0 | P166: 0 | Q166: 0 | AB166: 1 | AF166: 0 | AG166: 163 | AH166: 1 | AI166: 1 | AJ166: 1 | AK166: 1 | AL166: 1 | AM166: 1 | AN166: 6 | AO166: 0 | AP166: 0 | AQ166: 0 | BA166: 163
G167: 164 | H167: 1 | I167: 1 | J167: 1 | K167: 1 | L167: 1 | M167: 1 | N167: 6 | O167: 0 | P167: 0 | Q167: 0 | AB167: 1 | AF167: 0 | AG167: 164 | AH167: 1 | AI167: 1 | AJ167: 1 | AK167: 1 | AL167: 1 | AM167: 1 | AN167: 6 | AO167: 0 | AP167: 0 | AQ167: 0 | BA167: 164
G168: 165 | H168: 1 | I168: 1 | J168: 1 | K168: 1 | L168: 1 | M168: 1 | N168: 6 | O168: 0 | P168: 0 | Q168: 0 | AB168: 1 | AF168: 0 | AG168: 165 | AH168: 1 | AI168: 1 | AJ168: 1 | AK168: 1 | AL168: 1 | AM168: 1 | AN168: 6 | AO168: 0 | AP168: 0 | AQ168: 0 | BA168: 165
G169: 166 | H169: 1 | I169: 1 | J169: 1 | K169: =IF($A$9="",0,IF(SUM($A$7:$A$9)*12-G169<0,1,0)) -> 1 | L169: 1 | M169: 1 | N169: 6 | O169: 0 | P169: 0 | Q169: 0 | AB169: 1 | AF169: 0 | AG169: 166 | AH169: 1 | AI169: 1 | AJ169: 1 | AK169: =IF($A$9="",0,IF(SUM($A$7:$A$9)*12-AG169<0,1,0)) -> 1 | AL169: 1 | AM169: 1 | AN169: 6 | AO169: 0 | AP169: 0 | AQ169: 0 | BA169: 166
G170: 167 | H170: 1 | I170: 1 | J170: 1 | K170: 1 | L170: 1 | M170: 1 | N170: 6 | O170: 0 | P170: 0 | Q170: 0 | AB170: 1 | AF170: 0 | AG170: 167 | AH170: 1 | AI170: 1 | AJ170: 1 | AK170: 1 | AL170: 1 | AM170: 1 | AN170: 6 | AO170: 0 | AP170: 0 | AQ170: 0 | BA170: 167
G171: 168 | H171: 1 | I171: 1 | J171: 1 | K171: 1 | L171: 1 | M171: 1 | N171: 6 | O171: 0 | P171: 0 | Q171: 0 | AB171: 1 | AF171: 0 | AG171: 168 | AH171: 1 | AI171: 1 | AJ171: 1 | AK171: 1 | AL171: 1 | AM171: 1 | AN171: 6 | AO171: 0 | AP171: 0 | AQ171: 0 | BA171: 168
G172: 169 | H172: 1 | I172: 1 | J172: 1 | K172: 1 | L172: 1 | M172: 1 | N172: 6 | O172: 0 | P172: 0 | Q172: 0 | AB172: 1 | AF172: 0 | AG172: 169 | AH172: 1 | AI172: 1 | AJ172: 1 | AK172: 1 | AL172: 1 | AM172: 1 | AN172: 6 | AO172: 0 | AP172: 0 | AQ172: 0 | BA172: 169
G173: 170 | H173: 1 | I173: 1 | J173: 1 | K173: 1 | L173: 1 | M173: 1 | N173: 6 | O173: 0 | P173: 0 | Q173: 0 | AB173: 1 | AF173: 0 | AG173: 170 | AH173: 1 | AI173: 1 | AJ173: 1 | AK173: 1 | AL173: 1 | AM173: 1 | AN173: 6 | AO173: 0 | AP173: 0 | AQ173: 0 | BA173: 170
G174: 171 | H174: 1 | I174: 1 | J174: 1 | K174: 1 | L174: 1 | M174: 1 | N174: 6 | O174: 0 | P174: =IF(O174=0,O174,IF(P173+O174>60,P173+O174-60,P173+O174)) -> 0 | Q174: 0 | AB174: 1 | AF174: 0 | AG174: 171 | AH174: 1 | AI174: 1 | AJ174: 1 | AK174: 1 | AL174: 1 | AM174: 1 | AN174: 6 | AO174: 0 | AP174: 0 | AQ174: 0 | BA174: 171
G175: 172 | H175: 1 | I175: 1 | J175: 1 | K175: 1 | L175: 1 | M175: 1 | N175: 6 | O175: 0 | P175: 0 | Q175: 0 | AB175: 1 | AF175: 0 | AG175: 172 | AH175: 1 | AI175: 1 | AJ175: 1 | AK175: 1 | AL175: 1 | AM175: 1 | AN175: 6 | AO175: 0 | AP175: 0 | AQ175: 0 | BA175: 172
G176: 173 | H176: 1 | I176: 1 | J176: 1 | K176: 1 | L176: 1 | M176: 1 | N176: 6 | O176: 0 | P176: 0 | Q176: 0 | AB176: 1 | AF176: 0 | AG176: 173 | AH176: 1 | AI176: 1 | AJ176: 1 | AK176: 1 | AL176: 1 | AM176: 1 | AN176: 6 | AO176: 0 | AP176: 0 | AQ176: 0 | BA176: 173
G177: 174 | H177: 1 | I177: 1 | J177: 1 | K177: 1 | L177: 1 | M177: 1 | N177: 6 | O177: 0 | P177: 0 | Q177: 0 | AB177: 1 | AF177: 0 | AG177: 174 | AH177: 1 | AI177: 1 | AJ177: 1 | AK177: 1 | AL177: 1 | AM177: 1 | AN177: 6 | AO177: 0 | AP177: 0 | AQ177: 0 | BA177: 174
G178: 175 | H178: 1 | I178: 1 | J178: 1 | K178: 1 | L178: 1 | M178: 1 | N178: 6 | O178: 0 | P178: 0 | Q178: 0 | AB178: 1 | AF178: 0 | AG178: 175 | AH178: 1 | AI178: 1 | AJ178: 1 | AK178: 1 | AL178: 1 | AM178: 1 | AN178: 6 | AO178: 0 | AP178: 0 | AQ178: 0 | BA178: 175
G179: 176 | H179: 1 | I179: 1 | J179: 1 | K179: 1 | L179: 1 | M179: 1 | N179: 6 | O179: 0 | P179: 0 | Q179: 0 | AB179: 1 | AF179: 0 | AG179: 176 | AH179: 1 | AI179: 1 | AJ179: 1 | AK179: 1 | AL179: 1 | AM179: 1 | AN179: 6 | AO179: 0 | AP179: 0 | AQ179: 0 | BA179: 176
G180: 177 | H180: 1 | I180: 1 | J180: 1 | K180: 1 | L180: 1 | M180: 1 | N180: 6 | O180: 0 | P180: 0 | Q180: 0 | AB180: 1 | AF180: 0 | AG180: 177 | AH180: 1 | AI180: 1 | AJ180: 1 | AK180: 1 | AL180: 1 | AM180: 1 | AN180: 6 | AO180: 0 | AP180: 0 | AQ180: 0 | BA180: 177
G181: 178 | H181: 1 | I181: 1 | J181: 1 | K181: 1 | L181: =IF($A$9="",0,IF(SUM($A$7:$A$10)*12-G181<0,1,0)) -> 1 | M181: 1 | N181: 6 | O181: 0 | P181: 0 | Q181: 0 | AB181: 1 | AF181: 0 | AG181: 178 | AH181: 1 | AI181: 1 | AJ181: 1 | AK181: 1 | AL181: =IF($A$9="",0,IF(SUM($A$7:$A$10)*12-AG181<0,1,0)) -> 1 | AM181: 1 | AN181: 6 | AO181: 0 | AP181: 0 | AQ181: 0 | BA181: 178
G182: 179 | H182: 1 | I182: 1 | J182: 1 | K182: 1 | L182: 1 | M182: 1 | N182: 6 | O182: 0 | P182: 0 | Q182: 0 | AB182: 1 | AF182: 0 | AG182: 179 | AH182: 1 | AI182: 1 | AJ182: 1 | AK182: 1 | AL182: 1 | AM182: 1 | AN182: 6 | AO182: 0 | AP182: 0 | AQ182: 0 | BA182: 179
G183: 180 | H183: 1 | I183: 1 | J183: 1 | K183: 1 | L183: 1 | M183: 1 | N183: 6 | O183: 0 | P183: 0 | Q183: 0 | AB183: 1 | AF183: 0 | AG183: 180 | AH183: 1 | AI183: 1 | AJ183: 1 | AK183: 1 | AL183: 1 | AM183: 1 | AN183: 6 | AO183: 0 | AP183: 0 | AQ183: 0 | BA183: 180
G184: 181 | H184: 1 | I184: 1 | J184: 1 | K184: 1 | L184: 1 | M184: 1 | N184: 6 | O184: 0 | P184: 0 | Q184: 0 | AB184: 1 | AF184: 0 | AG184: 181 | AH184: 1 | AI184: 1 | AJ184: 1 | AK184: 1 | AL184: 1 | AM184: 1 | AN184: 6 | AO184: 0 | AP184: 0 | AQ184: 0 | BA184: 181
G185: 182 | H185: 1 | I185: 1 | J185: 1 | K185: 1 | L185: 1 | M185: 1 | N185: 6 | O185: 0 | P185: 0 | Q185: 0 | AB185: 1 | AF185: 0 | AG185: 182 | AH185: 1 | AI185: 1 | AJ185: 1 | AK185: 1 | AL185: 1 | AM185: 1 | AN185: 6 | AO185: 0 | AP185: 0 | AQ185: 0 | BA185: 182
G186: 183 | H186: 1 | I186: 1 | J186: 1 | K186: 1 | L186: 1 | M186: 1 | N186: 6 | O186: 0 | P186: 0 | Q186: 0 | AB186: 1 | AF186: 0 | AG186: 183 | AH186: 1 | AI186: 1 | AJ186: 1 | AK186: 1 | AL186: 1 | AM186: 1 | AN186: 6 | AO186: 0 | AP186: 0 | AQ186: 0 | BA186: 183
G187: 184 | H187: 1 | I187: 1 | J187: 1 | K187: 1 | L187: 1 | M187: 1 | N187: 6 | O187: 0 | P187: 0 | Q187: 0 | AB187: 1 | AF187: 0 | AG187: 184 | AH187: 1 | AI187: 1 | AJ187: 1 | AK187: 1 | AL187: 1 | AM187: 1 | AN187: 6 | AO187: 0 | AP187: 0 | AQ187: 0 | BA187: 184
G188: 185 | H188: 1 | I188: 1 | J188: 1 | K188: 1 | L188: 1 | M188: 1 | N188: 6 | O188: 0 | P188: 0 | Q188: 0 | AB188: 1 | AF188: 0 | AG188: 185 | AH188: 1 | AI188: 1 | AJ188: 1 | AK188: 1 | AL188: 1 | AM188: 1 | AN188: 6 | AO188: 0 | AP188: 0 | AQ188: 0 | BA188: 185
G189: 186 | H189: 1 | I189: 1 | J189: 1 | K189: 1 | L189: 1 | M189: 1 | N189: 6 | O189: 0 | P189: 0 | Q189: 0 | AB189: 1 | AF189: 0 | AG189: 186 | AH189: 1 | AI189: 1 | AJ189: 1 | AK189: 1 | AL189: 1 | AM189: 1 | AN189: 6 | AO189: 0 | AP189: 0 | AQ189: 0 | BA189: 186
G190: 187 | H190: 1 | I190: 1 | J190: 1 | K190: 1 | L190: 1 | M190: 1 | N190: 6 | O190: 0 | P190: 0 | Q190: 0 | AB190: 1 | AF190: 0 | AG190: 187 | AH190: 1 | AI190: 1 | AJ190: 1 | AK190: 1 | AL190: 1 | AM190: 1 | AN190: 6 | AO190: 0 | AP190: 0 | AQ190: 0 | BA190: 187
G191: 188 | H191: 1 | I191: 1 | J191: 1 | K191: 1 | L191: 1 | M191: 1 | N191: 6 | O191: 0 | P191: 0 | Q191: 0 | AB191: 1 | AF191: 0 | AG191: 188 | AH191: 1 | AI191: 1 | AJ191: 1 | AK191: 1 | AL191: 1 | AM191: 1 | AN191: 6 | AO191: 0 | AP191: 0 | AQ191: 0 | BA191: 188
G192: 189 | H192: 1 | I192: 1 | J192: 1 | K192: 1 | L192: 1 | M192: 1 | N192: 6 | O192: 0 | P192: 0 | Q192: 0 | AB192: 1 | AF192: 0 | AG192: 189 | AH192: 1 | AI192: 1 | AJ192: 1 | AK192: 1 | AL192: 1 | AM192: 1 | AN192: 6 | AO192: 0 | AP192: 0 | AQ192: 0 | BA192: 189
G193: 190 | H193: 1 | I193: 1 | J193: 1 | K193: 1 | L193: 1 | M193: =IF($A$9="",0,IF(SUM($A$7:$A$11)*12-G193<0,1,0)) -> 1 | N193: 6 | O193: 0 | P193: 0 | Q193: 0 | AB193: 1 | AF193: 0 | AG193: 190 | AH193: 1 | AI193: 1 | AJ193: 1 | AK193: 1 | AL193: 1 | AM193: =IF($A$9="",0,IF(SUM($A$7:$A$11)*12-AG193<0,1,0)) -> 1 | AN193: 6 | AO193: 0 | AP193: 0 | AQ193: 0 | BA193: 190
G194: 191 | H194: 1 | I194: 1 | J194: 1 | K194: 1 | L194: 1 | M194: 1 | N194: 6 | O194: 0 | P194: 0 | Q194: 0 | AB194: 1 | AF194: 0 | AG194: 191 | AH194: 1 | AI194: 1 | AJ194: 1 | AK194: 1 | AL194: 1 | AM194: 1 | AN194: 6 | AO194: 0 | AP194: 0 | AQ194: 0 | BA194: 191
G195: 192 | H195: 1 | I195: 1 | J195: 1 | K195: 1 | L195: 1 | M195: 1 | N195: 6 | O195: 0 | P195: 0 | Q195: 0 | AB195: 1 | AF195: 0 | AG195: 192 | AH195: 1 | AI195: 1 | AJ195: 1 | AK195: 1 | AL195: 1 | AM195: 1 | AN195: 6 | AO195: 0 | AP195: 0 | AQ195: 0 | BA195: 192
G196: 193 | H196: 1 | I196: 1 | J196: 1 | K196: 1 | L196: 1 | M196: 1 | N196: 6 | O196: 0 | P196: 0 | Q196: 0 | T196: =IF(S196="","",IF(S197="",IF(Z195<0,"",Z195+W196),IF(Q196=2,MIN(U196:V196),IF(P196>1,T195,IF(S196=S195,T195,U196))))) ->  | AB196: =IF(B$15*12<G196,1,"") -> 1 | AC196: =IF(AB196=1,Y196,"") ->  | AF196: 0 | AG196: 193 | AH196: 1 | AI196: 1 | AJ196: 1 | AK196: 1 | AL196: 1 | AM196: 1 | AN196: 6 | AO196: 0 | AP196: 0 | AQ196: 0 | AV196: =IF(S196="","",IF(AE196=1,0,INT(AY195*AR196/12))) ->  | AX196: =IF(S196="","",IF(AE196=1,0,AS196-AV196)) ->  | AY196: =IF(S196="","",IF(AX196=0,IF(AF195=0,AY195-$B$16*10000,AY195-AX196),AY195-AX196)) ->  | BA196: 193 | BB196: =IFERROR(_xlfn.XLOOKUP(BA196,AG$4:AG$603,AS$4:AS$603),"") -> 
G197: 194 | H197: 1 | I197: 1 | J197: 1 | K197: 1 | L197: 1 | M197: 1 | N197: =SUM(H197:M197) -> 6 | O197: =IF(N197=1,IF(E$7=1,1,0),IF(N197=2,IF(E$8=1,1,0),IF(N197=3,IF(E$9=1,1,0),IF(N197=4,IF(E$10=1,1,0),IF(N197=5,IF(E$11=1,1,0),IF(N197=6,IF(E$12=1,1,0),0)))))) -> 0 | P197: 0 | Q197: 0 | R197: =IF(N197=1,C$7,IF(N197=2,C$8,IF(N197=3,C$9,IF(N197=4,C$10,IF(N197=5,C$11,IF(N197=6,$C$12,0)))))) ->  | S197: =IF($B$4*12+D$4>=G197,R197,"") ->  | U197: =IF(Z196="","",IF(Z196>0,INT(PMT(S197/12,B$4*12+D$4-G196,-Z196,)),"")) ->  | W197: =IF(S197="","",INT(Z196*S197/12)) ->  | Y197: =IF(S197="","",IF(X197="",T197-W197,0)) ->  | Z197: =IF(S197="","",Z196-Y197) ->  | AB197: 1 | AD197: =IF(AC197="","",IF(AC197=0,"",IF(AD196="",0,AD196)+AC197)) ->  | AE197: =IF(AD197="","",IF(B$16*10000>=AD197,1,0)) ->  | AF197: =IF(AE197=1,AC197,0) -> 0 | AG197: 194 | AH197: 1 | AI197: 1 | AJ197: 1 | AK197: 1 | AL197: 1 | AM197: 1 | AN197: =SUM(AH197:AM197) -> 6 | AO197: =IF(AN197=1,IF(E$7=1,1,0),IF(AN197=2,IF(E$8=1,1,0),IF(AN197=3,IF(E$9=1,1,0),IF(AN197=4,IF(E$10=1,1,0),IF(AN197=5,IF(E$11=1,1,0),IF(AN197=6,IF(E$12=1,1,0),0)))))) -> 0 | AP197: 0 | AQ197: 0 | AR197: =IF(S197="","",_xlfn.XLOOKUP(AG197,G$4:G$604,S$4:S$604)) ->  | BA197: 194 | BC197: =IFERROR(_xlfn.XLOOKUP(BA197,AG$4:AG$603,AY$4:AY$603),"") -> 
G198: 195 | H198: 1 | I198: 1 | J198: 1 | K198: 1 | L198: 1 | M198: 1 | N198: 6 | O198: 0 | P198: 0 | Q198: =IF(P197>0,IF(P198=1,IF(U197-T197>100,2,1),IF(P198>0,1,0)),0) -> 0 | V198: =IF(S198="","",INT(T197*1.25)) ->  | X198: =IF(T198="","",IF(T198>W198,"",W198-T198)) ->  | AB198: 1 | AF198: 0 | AG198: =AG197+IF(AE198=1,0,1) -> 195 | AH198: 1 | AI198: 1 | AJ198: 1 | AK198: 1 | AL198: 1 | AM198: 1 | AN198: 6 | AO198: 0 | AP198: =IF(AO198=0,AO198,IF(AP197+AO198>60,AP197+IF(AE197>0,1,AO198)-60,AP197+IF(AE197>0,1,AO198))) -> 0 | AQ198: =IF(AP197>0,IF(AP198=1,IF(AT197-AS197>100,2,1),IF(AP198>0,1,0)),0) -> 0 | AT198: =IF(AY197="","",IF(AY197>0,INT(PMT(AR198/12,B$4*12+D$4-AG197-IF(AE198="",0,AE$3),-AY197,)),"")) ->  | AU198: =IF(AR198="","",INT(AS197*1.25)) ->  | AW198: =IF(AS198="","",IF(AS198>AV198,"",AV198-AS198)) ->  | BA198: 195
G199: 196 | H199: 1 | I199: 1 | J199: 1 | K199: 1 | L199: 1 | M199: 1 | N199: 6 | O199: 0 | P199: 0 | Q199: 0 | AB199: 1 | AF199: 0 | AG199: 196 | AH199: 1 | AI199: 1 | AJ199: 1 | AK199: 1 | AL199: 1 | AM199: 1 | AN199: 6 | AO199: 0 | AP199: 0 | AQ199: 0 | BA199: 196
G200: 197 | H200: 1 | I200: 1 | J200: 1 | K200: 1 | L200: 1 | M200: 1 | N200: 6 | O200: 0 | P200: 0 | Q200: 0 | AB200: 1 | AF200: 0 | AG200: 197 | AH200: 1 | AI200: 1 | AJ200: 1 | AK200: 1 | AL200: 1 | AM200: 1 | AN200: 6 | AO200: 0 | AP200: 0 | AQ200: 0 | AS200: =IF(AR200="","",IF(AR201="",IF(AY199<0,"",AY199+AV200),IF(AQ200=2,MIN(AT200:AU200),IF(AP200>1,AS199,IF(AR200=AR199,AS199,AT200))))) ->  | BA200: 197
... 362 more rows

Sheet 1-1 (hidden)
H1: 金利判定 | O1: 5年ルール | R1: 金利 | S1: 適用金利 | T1: 毎月返済額 | W1: 利息 | X1: 未収利息 | Y1: 元金 | Z1: 残高 | AB1: 繰上あり | AC1: 元金 | AD1: 累計 | AE1: 判定 | AF1: 繰上判定 | AG1: 繰上後 | AH1: 金利判定 | AO1: 5年ルール | AR1: 適用金利 | AS1: 毎月返済額 | AV1: 利息 | AW1: 未収利息 | AX1: 元金返済 | AY1: 残高 | BA1: 繰上返済後
B2: =住宅ローン!J16 -> 0 | C2: =住宅ローン!T14 -> 0 | D2: =住宅ローン!U14 -> 0 | H2: 金利変更 | U2: 単純計算 | V2: 1.25倍 | AH2: 金利変更 | AT2: 単純計算 | AU2: 1.25倍 | BB2: 毎月返済額 | BC2: 残高 | BF2: 毎月返済額 | BH2: 残高 | BJ2: =住宅ローン控除!E19*10000 -> 0 | BK2: 繰上 | BP2: 2019
A3: 借入金額 | B3: =住宅ローン!G16/10000 -> 0 | C3: 万円 | H3: 初 | I3: 2 | J3: 3 | K3: 4 | L3: 5 | M3: 6 | N3: 合計 | O3: 変動 | P3: 経過月数 | Q3: 判定 | T3: =SUM(T4:T603) -> 0 | W3: =SUM(W4:W423) -> 0 | X3: =SUM(X4:X423) -> 0 | Z3: =B3*10000 -> 0 | AE3: =SUM(AE4:AE423) -> 0 | AF3: =SUM(AF4:AF423) -> 0 | AH3: 初 | AI3: 2 | AJ3: 3 | AK3: 4 | AL3: 5 | AM3: 6 | AN3: 合計 | AO3: 変動 | AP3: 経過月数 | AQ3: 判定 | AV3: =SUM(AV4:AV423) -> 0 | AW3: =SUM(AW4:AW423) -> 0 | AY3: =Z3 -> 0 | BF3: 繰上なし | BG3: 繰上あり | BH3: 繰上なし | BI3: 繰上あり | BJ3: 税金 | BK3: 税金 | BL3: 減税期間 | BM3: 経過期間 | BN3: 残存期間 | BP3: 2020
A4: 借入期間 | B4: =住宅ローン!H16 -> 0 | C4: 年 | D4: =住宅ローン!I16 -> 0 | E4: カ月 | G4: 1 | H4: 1 | N4: =SUM(H4:M4) -> 1 | O4: =IF(N4=1,IF(E$7=1,1,0),IF(N4=2,IF(E$8=1,1,0),IF(N4=3,IF(E$9=1,1,0),IF(N4=4,IF(E$10=1,1,0),IF(N4=5,IF(E$11=1,1,0),IF(N4=6,IF(E$12=1,1,0),0)))))) -> 0 | P4: =IF(O4=0,O4,1) -> 0 | Q4: =E7 -> 0 | R4: =IF(N4=1,C$7,IF(N4=2,C$8,IF(N4=3,C$9,IF(N4=4,C$10,IF(N4=5,C$11,IF(N4=6,$C$12,0)))))) -> 0 | S4: =IF($B$4*12+D$4>=G4,R4,"") ->  | T4: =U4 ->  | U4: =IF(Z3="","",IF(Z3>0,INT(PMT(S4/12,B$4*12+D$4-G3,-Z3,)),"")) ->  | W4: =IF(S4="","",INT(Z3*S4/12)) ->  | X4: =IF(T4="","",IF(T4>W4,"",W4-T4)) ->  | Y4: =IF(S4="","",IF(X4="",T4-W4,0)) ->  | Z4: =IF(S4="","",Z3-Y4) ->  | AB4: =IF(B$15*12<G4,1,"") -> 1 | AC4: =IF(AB4=1,Y4,"") ->  | AD4: =IF(AC4="","",IF(AC4=0,"",IF(AD3="",0,AD3)+AC4)) ->  | AE4: =IF(AD4="","",IF(B$16*10000>=AD4,1000,)) ->  | AF4: =IF(B15*12=G4,AF3,IF(AE4=1,AC4,0)) -> 0 | AG4: =G4 -> 1 | AH4: 1 | AN4: =SUM(AH4:AM4) -> 1 | AO4: =IF(AN4=1,IF(E$7=1,1,0),IF(AN4=2,IF(E$8=1,1,0),IF(AN4=3,IF(E$9=1,1,0),IF(AN4=4,IF(E$10=1,1,0),IF(AN4=5,IF(E$11=1,1,0),IF(AN4=6,IF(E$12=1,1,0),0)))))) -> 0 | AP4: =IF(AO4=0,AO4,1) -> 0 | AQ4: =E7 -> 0 | AR4: =IF(S4="","",_xlfn.XLOOKUP(AG4,G$4:G$604,S$4:S$604)) ->  | AS4: =IF(AR4="","",IF(AR5="",IF(AY3<0,"",AY3+AV4),IF(AQ4=2,MIN(AT4:AU4),IF(AP4>1,AS3,IF(AR4=AR3,AS3,AT4))))) ->  | AT4: =IF(AY3="","",IF(AY3>0,INT(PMT(AR4/12,B$4*12+D$4-AG3,-AY3,)),"")) ->  | AV4: =IF(S4="","",IF(AE4=1,0,INT(AY3*AR4/12))) ->  | AX4: =IF(S4="","",IF(AE4=1,0,AS4-AV4)) ->  | AY4: =IF(S4="","",IF(AX4=0,IF(AF3=0,AY3-$B$16*10000,AY3-AX4),AY3-AX4)) ->  | BA4: 1 | BB4: =IFERROR(_xlfn.XLOOKUP(BA4,AG$4:AG$603,AS$4:AS$603),"") ->  | BC4: =IFERROR(_xlfn.XLOOKUP(BA4,AG$4:AG$603,AY$4:AY$603),"") ->  | BE4: 1 | BF4: =SUM(T4:T15)+IF(BF5=0,IF(BF6=0,0,X$3),0) -> 0 | BG4: =SUM(BB4:BB15) -> 0 | BH4: =IF(_xlfn.XLOOKUP(BE4*12,G$4:G$603,Z$4:Z$603)="",0,_xlfn.XLOOKUP(BE4*12,G$4:G$603,Z$4:Z$603)) -> 0 | BI4: =IF(_xlfn.XLOOKUP(BE4*12,BA$4:BA$603,BC$4:BC$603)="",0,_xlfn.XLOOKUP(BE4*12,BA$4:BA$603,BC$4:BC$603)) -> 0 | BJ4: =IFERROR(IF(BN$4-BE4<0,0,INT(IF(BH4>BJ2,BJ2,BH4)*IF(お客様情報1!$E$95>2020,1%,0.7%)))+MIN(BR4:BS4),0) -> 0 | BK4: =IFERROR(IF(BN$4-BE4<0,0,INT(IF(BI4>BJ$2,BJ$2,BI4)*IF(お客様情報1!$E$95>2020,1%,0.7%)))+MIN(BR4,BT4),0) -> 0 | BL4: =IF(お客様情報1!E95<2014,0,IF(お客様情報1!E95<2021,10,13)) -> 0 | BM4: =YEAR(TODAY())-お客様情報1!E95 -> 2024 | BN4: =BL4-BM4+1 -> -2023 | BO4: =YEAR(TODAY())-お客様情報1!E95 -> 2024 | BP4: =IF(お客様情報1!E$95=BP$2,1,IF(お客様情報1!E$95=BP$3,1,0)) -> 0 | BQ4: =IF(BO4>10,IF(BO4>13,0,1),0) -> 0 | BR4: =(IF(お客様情報1!E$93="戸建て",お客様情報1!E$101,お客様情報1!E$99)*2%*BQ4*10000/3) -> 0 | BS4: =IFERROR(INT(IF(BH4>BJ2,BJ2,BH4)*IF(お客様情報1!$E$95>2020,1%,0.7%))*BQ4,0) -> 0 | BT4: =IFERROR(INT(IF(BI4>BJ2,BJ2,BI4)*IF(お客様情報1!$E$95>2020,1%,0.7%))*BQ4,0) -> 0
A5: 金利上昇 | B5: =住宅ローン!E10 -> 0 | C5: 年後 | G5: 2 | H5: 1 | N5: =SUM(H5:M5) -> 1 | O5: =IF(N5=1,IF(E$7=1,1,0),IF(N5=2,IF(E$8=1,1,0),IF(N5=3,IF(E$9=1,1,0),IF(N5=4,IF(E$10=1,1,0),IF(N5=5,IF(E$11=1,1,0),IF(N5=6,IF(E$12=1,1,0),0)))))) -> 0 | P5: =IF(O5=0,O5,IF(P4+O5>60,P4+O5-60,P4+O5)) -> 0 | Q5: =IF(P4>0,IF(P5=1,IF(U4-T4>100,2,1),IF(P5>0,1,0)),0) -> 0 | R5: =IF(N5=1,C$7,IF(N5=2,C$8,IF(N5=3,C$9,IF(N5=4,C$10,IF(N5=5,C$11,IF(N5=6,$C$12,0)))))) -> 0 | S5: =IF($B$4*12+D$4>=G5,R5,"") ->  | T5: =IF(S5="","",IF(S6="",IF(Z4<0,"",Z4+W5),IF(Q5=2,MIN(U5:V5),IF(P5>1,T4,IF(S5=S4,T4,U5))))) ->  | U5: =IF(Z4="","",IF(Z4>0,INT(PMT(S5/12,B$4*12+D$4-G4,-Z4,)),"")) ->  | V5: =IF(S5="","",INT(T4*1.25)) ->  | W5: =IF(S5="","",INT(Z4*S5/12)) ->  | X5: =IF(T5="","",IF(T5>W5,"",W5-T5)) ->  | Y5: =IF(S5="","",IF(X5="",T5-W5,0)) ->  | Z5: =IF(S5="","",Z4-Y5) ->  | AB5: 1 | AD5: =IF(AC5="","",IF(AC5=0,"",IF(AD4="",0,AD4)+AC5)) ->  | AE5: =IF(AD5="","",IF(B$16*10000>=AD5,1,0)) ->  | AF5: =IF(AE5=1,AC5,0) -> 0 | AG5: =AG4+IF(AE5=1,0,1) -> 2 | AH5: 1 | AN5: =SUM(AH5:AM5) -> 1 | AO5: =IF(AN5=1,IF(E$7=1,1,0),IF(AN5=2,IF(E$8=1,1,0),IF(AN5=3,IF(E$9=1,1,0),IF(AN5=4,IF(E$10=1,1,0),IF(AN5=5,IF(E$11=1,1,0),IF(AN5=6,IF(E$12=1,1,0),0)))))) -> 0 | AP5: =IF(AO5=0,AO5,IF(AP4+AO5>60,AP4+IF(AE4>0,1,AO5)-60,AP4+IF(AE4>0,1,AO5))) -> 0 | AQ5: =IF(AP4>0,IF(AP5=1,IF(AT4-AS4>100,2,1),IF(AP5>0,1,0)),0) -> 0 | AR5: =IF(S5="","",_xlfn.XLOOKUP(AG5,G$4:G$604,S$4:S$604)) ->  | AS5: =IF(AR5="","",IF(AR6="",IF(AY4<0,"",AY4+AV5),IF(AQ5=2,MIN(AT5:AU5),IF(AP5>1,AS4,IF(AR5=AR4,AS4,AT5))))) ->  | AT5: =IF(AY4="","",IF(AY4>0,INT(PMT(AR5/12,B$4*12+D$4-AG4-IF(AE5="",0,AE$3),-AY4,)),"")) ->  | AU5: =IF(AR5="","",INT(AS4*1.25)) ->  | AW5: =IF(AS5="","",IF(AS5>AV5,"",AV5-AS5)) ->  | BA5: 2 | BC5: =IFERROR(_xlfn.XLOOKUP(BA5,AG$4:AG$603,AY$4:AY$603),"") ->  | BE5: 2 | BF5: =SUM(T16:T27)+IF(BF6=0,IF(BF7=0,0,X$3),0) -> 0 | BG5: =SUM(BB16:BB27) -> 0 | BH5: =IF(_xlfn.XLOOKUP(BE5*12,G$4:G$603,Z$4:Z$603)="",0,_xlfn.XLOOKUP(BE5*12,G$4:G$603,Z$4:Z$603)) -> 0 | BI5: =IF(_xlfn.XLOOKUP(BE5*12,BA$4:BA$603,BC$4:BC$603)="",0,_xlfn.XLOOKUP(BE5*12,BA$4:BA$603,BC$4:BC$603)) -> 0 | BJ5: =IFERROR(IF(BN$4-BE5<0,0,INT(IF(BH5>BJ3,BJ3,BH5)*IF(お客様情報1!$E$95>2020,1%,0.7%)))+MIN(BR5:BS5),0) -> 0 | BK5: =IFERROR(IF(BN$4-BE5<0,0,INT(IF(BI5>BJ$2,BJ$2,BI5)*IF(お客様情報1!$E$95>2020,1%,0.7%)))+MIN(BR5,BT5),0) -> 0 | BO5: =BO4+1 -> 2025 | BP5: =IF(お客様情報1!E$95=BP$2,1,IF(お客様情報1!E$95=BP$3,1,0)) -> 0 | BQ5: =IF(BO5>10,IF(BO5>13,0,1),0) -> 0 | BR5: =(IF(お客様情報1!E$93="戸建て",お客様情報1!E$101,お客様情報1!E$99)*2%*BQ5*10000/3) -> 0 | BS5: =IFERROR(INT(IF(BH5>BJ3,BJ3,BH5)*IF(お客様情報1!$E$95>2020,1%,0.7%))*BQ5,0) -> 0 | BT5: =IFERROR(INT(IF(BI5>BJ3,BJ3,BI5)*IF(お客様情報1!$E$95>2020,1%,0.7%))*BQ5,0) -> 0
A6: 変動金利 | E6: 変動判定 | G6: 3 | H6: 1 | N6: 1 | O6: 0 | P6: 0 | Q6: =IF(P5>0,IF(P6=1,IF(U5-T5>100,2,1),IF(P6>0,1,0)),0) -> 0 | R6: 0 | V6: =IF(S6="","",INT(T5*1.25)) ->  | X6: =IF(T6="","",IF(T6>W6,"",W6-T6)) ->  | AB6: 1 | AF6: 0 | AG6: =AG5+IF(AE6=1,0,1) -> 3 | AH6: 1 | AN6: 1 | AO6: 0 | AP6: =IF(AO6=0,AO6,IF(AP5+AO6>60,AP5+IF(AE5>0,1,AO6)-60,AP5+IF(AE5>0,1,AO6))) -> 0 | AQ6: =IF(AP5>0,IF(AP6=1,IF(AT5-AS5>100,2,1),IF(AP6>0,1,0)),0) -> 0 | AT6: =IF(AY5="","",IF(AY5>0,INT(PMT(AR6/12,B$4*12+D$4-AG5-IF(AE6="",0,AE$3),-AY5,)),"")) ->  | AU6: =IF(AR6="","",INT(AS5*1.25)) ->  | AW6: =IF(AS6="","",IF(AS6>AV6,"",AV6-AS6)) ->  | BA6: 3 | BE6: 3 | BF6: =SUM(T28:T39)+IF(BF7=0,IF(BF8=0,0,X$3),0) -> 0 | BG6: =SUM(BB28:BB39) -> 0 | BH6: 0 | BI6: 0 | BJ6: =IFERROR(IF(BN$4-BE6<0,0,INT(IF(BH6>BJ4,BJ4,BH6)*IF(お客様情報1!$E$95>2020,1%,0.7%)))+MIN(BR6:BS6),0) -> 0 | BK6: =IFERROR(IF(BN$4-BE6<0,0,INT(IF(BI6>BJ$2,BJ$2,BI6)*IF(お客様情報1!$E$95>2020,1%,0.7%)))+MIN(BR6,BT6),0) -> 0 | BO6: =BO5+1 -> 2026 | BP6: =IF(お客様情報1!E$95=BP$2,1,IF(お客様情報1!E$95=BP$3,1,0)) -> 0 | BQ6: 0 | BR6: =(IF(お客様情報1!E$93="戸建て",お客様情報1!E$101,お客様情報1!E$99)*2%*BQ6*10000/3) -> 0 | BS6: =IFERROR(INT(IF(BH6>BJ4,BJ4,BH6)*IF(お客様情報1!$E$95>2020,1%,0.7%))*BQ6,0) -> 0 | BT6: =IFERROR(INT(IF(BI6>BJ4,BJ4,BI6)*IF(お客様情報1!$E$95>2020,1%,0.7%))*BQ6,0) -> 0
A7: =金利判定1!A7 -> 0 | B7: =金利判定1!B7 -> 0 | C7: =住宅ローン!S17 -> 0 | D7: =IFERROR(D24,0) ->  | E7: =IF(B7=0.5,1,0) -> 0 | F7: =IF(B2="変動金利",B4,B7) -> 0 | G7: 4 | H7: 1 | N7: 1 | O7: 0 | P7: 0 | Q7: 0 | R7: 0 | AB7: 1 | AF7: 0 | AG7: 4 | AH7: 1 | AN7: 1 | AO7: 0 | AP7: 0 | AQ7: 0 | AS7: =IF(AR7="","",IF(AR8="",IF(AY6<0,"",AY6+AV7),IF(AQ7=2,MIN(AT7:AU7),IF(AP7>1,AS6,IF(AR7=AR6,AS6,AT7))))) ->  | BA7: 4 | BE7: 4 | BF7: =SUM(T40:T51)+IF(BF8=0,IF(BF9=0,0,X$3),0) -> 0 | BG7: =SUM(BB40:BB51) -> 0 | BH7: 0 | BI7: 0 | BJ7: =IFERROR(IF(BN$4-BE7<0,0,INT(IF(BH7>BJ5,BJ5,BH7)*IF(お客様情報1!$E$95>2020,1%,0.7%)))+MIN(BR7:BS7),0) -> 0 | BK7: =IFERROR(IF(BN$4-BE7<0,0,INT(IF(BI7>BJ$2,BJ$2,BI7)*IF(お客様情報1!$E$95>2020,1%,0.7%)))+MIN(BR7,BT7),0) -> 0 | BO7: 2027 | BP7: =IF(お客様情報1!E$95=BP$2,1,IF(お客様情報1!E$95=BP$3,1,0)) -> 0 | BQ7: 0 | BR7: =(IF(お客様情報1!E$93="戸建て",お客様情報1!E$101,お客様情報1!E$99)*2%*BQ7*10000/3) -> 0 | BS7: =IFERROR(INT(IF(BH7>BJ5,BJ5,BH7)*IF(お客様情報1!$E$95>2020,1%,0.7%))*BQ7,0) -> 0 | BT7: =IFERROR(INT(IF(BI7>BJ5,BJ5,BI7)*IF(お客様情報1!$E$95>2020,1%,0.7%))*BQ7,0) -> 0
A8: =金利判定1!A8 -> 0 | B8: =金利判定1!B8 -> 0 | C8: =IF(F7=A7,住宅ローン!T17,C7)+金利判定1!C8*住宅ローン!J10 -> 0 | D8: =IFERROR(_xlfn.XLOOKUP(B4*12-1,G4:G603,T4:T603),0) -> 0 | E8: =IF(B8=0.5,1,0) -> 0 | F8: =住宅ローン!T16 -> 0 | G8: 5 | H8: 1 | N8: 1 | O8: 0 | P8: 0 | Q8: 0 | R8: 0 | AB8: 1 | AF8: 0 | AG8: 5 | AH8: 1 | AN8: 1 | AO8: 0 | AP8: 0 | AQ8: 0 | AS8: =IF(AR8="","",IF(AR9="",IF(AY7<0,"",AY7+AV8),IF(AQ8=2,MIN(AT8:AU8),IF(AP8>1,AS7,IF(AR8=AR7,AS7,AT8))))) ->  | BA8: 5 | BE8: 5 | BF8: =SUM(T52:T63)+IF(BF9=0,IF(BF10=0,0,X$3),0) -> 0 | BG8: =SUM(BB52:BB63) -> 0 | BH8: 0 | BI8: 0 | BJ8: =IFERROR(IF(BN$4-BE8<0,0,INT(IF(BH8>BJ6,BJ6,BH8)*IF(お客様情報1!$E$95>2020,1%,0.7%)))+MIN(BR8:BS8),0) -> 0 | BK8: =IFERROR(IF(BN$4-BE8<0,0,INT(IF(BI8>BJ$2,BJ$2,BI8)*IF(お客様情報1!$E$95>2020,1%,0.7%)))+MIN(BR8,BT8),0) -> 0 | BO8: 2028 | BP8: =IF(お客様情報1!E$95=BP$2,1,IF(お客様情報1!E$95=BP$3,1,0)) -> 0 | BQ8: 0 | BR8: =(IF(お客様情報1!E$93="戸建て",お客様情報1!E$101,お客様情報1!E$99)*2%*BQ8*10000/3) -> 0 | BS8: =IFERROR(INT(IF(BH8>BJ6,BJ6,BH8)*IF(お客様情報1!$E$95>2020,1%,0.7%))*BQ8,0) -> 0 | BT8: =IFERROR(INT(IF(BI8>BJ6,BJ6,BI8)*IF(お客様情報1!$E$95>2020,1%,0.7%))*BQ8,0) -> 0
A9: =金利判定1!A9 -> 0 | B9: =金利判定1!B9 -> 0 | C9: =IFERROR(IF(F7+F8=A7+A8,住宅ローン!U17+金利判定1!C9*住宅ローン!J10,住宅ローン!T17+金利判定1!C9*住宅ローン!J10),0) -> 0 | D9: =IFERROR(IF(B17>0,_xlfn.XLOOKUP(C9,AR$4:AR$603,AS$4:AS$603),(_xlfn.XLOOKUP(C9,S$4:S$603,T$4:T$603))),0) -> 0 | E9: =IF(B9=0.5,1,0) -> 0 | F9: =住宅ローン!U16 -> 0 | G9: 6 | H9: 1 | N9: 1 | O9: 0 | P9: 0 | Q9: =IF(P8>0,IF(P9=1,IF(U8-T8>100,2,1),IF(P9>0,1,0)),0) -> 0 | R9: 0 | AB9: 1 | AF9: 0 | AG9: 6 | AH9: 1 | AN9: 1 | AO9: 0 | AP9: 0 | AQ9: 0 | BA9: 6 | BE9: 6 | BF9: =SUM(T64:T75)+IF(BF10=0,IF(BF11=0,0,X$3),0) -> 0 | BG9: =SUM(BB64:BB75) -> 0 | BH9: 0 | BI9: 0 | BJ9: =IFERROR(IF(BN$4-BE9<0,0,INT(IF(BH9>BJ7,BJ7,BH9)*IF(お客様情報1!$E$95>2020,1%,0.7%)))+MIN(BR9:BS9),0) -> 0 | BK9: =IFERROR(IF(BN$4-BE9<0,0,INT(IF(BI9>BJ$2,BJ$2,BI9)*IF(お客様情報1!$E$95>2020,1%,0.7%)))+MIN(BR9,BT9),0) -> 0 | BO9: 2029 | BP9: =IF(お客様情報1!E$95=BP$2,1,IF(お客様情報1!E$95=BP$3,1,0)) -> 0 | BQ9: 0 | BR9: =(IF(お客様情報1!E$93="戸建て",お客様情報1!E$101,お客様情報1!E$99)*2%*BQ9*10000/3) -> 0 | BS9: =IFERROR(INT(IF(BH9>BJ7,BJ7,BH9)*IF(お客様情報1!$E$95>2020,1%,0.7%))*BQ9,0) -> 0 | BT9: =IFERROR(INT(IF(BI9>BJ7,BJ7,BI9)*IF(お客様情報1!$E$95>2020,1%,0.7%))*BQ9,0) -> 0
A10: =IF(B2="ｽﾃｯﾌﾟﾀﾞｳﾝ",IF(B$4>A$7+A$8+A$9,IF(B$4-A$7-A$8-A$9>5,5,B$4-A$7-A$8-A$9),0),金利判定1!A10) -> 0 | B10: =IF(A10>0,IF(B$2="ｽﾃｯﾌﾟﾀﾞｳﾝ",A10,金利判定1!B10),"") ->  | C10: =IFERROR(IF(A10>0,IF(B$2="ｽﾃｯﾌﾟﾀﾞｳﾝ",C$7*0.7,住宅ローン!U17+金利判定1!C10*住宅ローン!J10),""),0) ->  | E10: =IF(B10=0.5,1,0) -> 0 | G10: 7 | H10: 1 | N10: 1 | O10: 0 | P10: 0 | Q10: 0 | R10: 0 | AB10: 1 | AF10: 0 | AG10: 7 | AH10: 1 | AN10: 1 | AO10: 0 | AP10: 0 | AQ10: 0 | BA10: 7 | BE10: 7 | BF10: =SUM(T76:T87)+IF(BF11=0,IF(BF12=0,0,X$3),0) -> 0 | BG10: =SUM(BB76:BB87) -> 0 | BH10: 0 | BI10: 0 | BJ10: =IFERROR(IF(BN$4-BE10<0,0,INT(IF(BH10>BJ8,BJ8,BH10)*IF(お客様情報1!$E$95>2020,1%,0.7%)))+MIN(BR10:BS10),0) -> 0 | BK10: =IFERROR(IF(BN$4-BE10<0,0,INT(IF(BI10>BJ$2,BJ$2,BI10)*IF(お客様情報1!$E$95>2020,1%,0.7%)))+MIN(BR10,BT10),0) -> 0 | BO10: 2030 | BP10: =IF(お客様情報1!E$95=BP$2,1,IF(お客様情報1!E$95=BP$3,1,0)) -> 0 | BQ10: 0 | BR10: =(IF(お客様情報1!E$93="戸建て",お客様情報1!E$101,お客様情報1!E$99)*2%*BQ10*10000/3) -> 0 | BS10: =IFERROR(INT(IF(BH10>BJ8,BJ8,BH10)*IF(お客様情報1!$E$95>2020,1%,0.7%))*BQ10,0) -> 0 | BT10: =IFERROR(INT(IF(BI10>BJ8,BJ8,BI10)*IF(お客様情報1!$E$95>2020,1%,0.7%))*BQ10,0) -> 0
A11: =IF(B$4>A$7+A$8+A$9+A$10,IF(B$2="ｽﾃｯﾌﾟﾀﾞｳﾝ",IF(B$4-A$7-A$8-A$9-A$10>5,5,B$4-A$7-A$8-A$9-A$10),""),0) -> 0 | B11: =IF(A11>0,IF(B$2="ｽﾃｯﾌﾟﾀﾞｳﾝ",A11,""),"") ->  | C11: =IF(A11>0,IF(B$2="ｽﾃｯﾌﾟﾀﾞｳﾝ",C$7*0.6,""),"") ->  | E11: 0 | G11: 8 | H11: 1 | N11: 1 | O11: 0 | P11: 0 | Q11: 0 | R11: 0 | AB11: 1 | AF11: 0 | AG11: 8 | AH11: 1 | AN11: 1 | AO11: 0 | AP11: 0 | AQ11: 0 | BA11: 8 | BE11: 8 | BF11: =SUM(T88:T99)+IF(BF12=0,IF(BF13=0,0,X$3),0) -> 0 | BG11: =SUM(BB88:BB99) -> 0 | BH11: 0 | BI11: 0 | BJ11: =IFERROR(IF(BN$4-BE11<0,0,INT(IF(BH11>BJ9,BJ9,BH11)*IF(お客様情報1!$E$95>2020,1%,0.7%)))+MIN(BR11:BS11),0) -> 0 | BK11: =IFERROR(IF(BN$4-BE11<0,0,INT(IF(BI11>BJ$2,BJ$2,BI11)*IF(お客様情報1!$E$95>2020,1%,0.7%)))+MIN(BR11,BT11),0) -> 0 | BO11: 2031 | BP11: =IF(お客様情報1!E$95=BP$2,1,IF(お客様情報1!E$95=BP$3,1,0)) -> 0 | BQ11: 0 | BR11: =(IF(お客様情報1!E$93="戸建て",お客様情報1!E$101,お客様情報1!E$99)*2%*BQ11*10000/3) -> 0 | BS11: =IFERROR(INT(IF(BH11>BJ9,BJ9,BH11)*IF(お客様情報1!$E$95>2020,1%,0.7%))*BQ11,0) -> 0 | BT11: =IFERROR(INT(IF(BI11>BJ9,BJ9,BI11)*IF(お客様情報1!$E$95>2020,1%,0.7%))*BQ11,0) -> 0
A12: =IF(B$4>A$7+A$8+A$9+A$10+A$11,IF(B$2="ｽﾃｯﾌﾟﾀﾞｳﾝ",IF(B$4-A$7-A$8-A$9-A10-A11>5,5,B$4-A$7-A$8-A$9-A10-A11),""),0) -> 0 | B12: =IF(A12>0,IF(B$2="ｽﾃｯﾌﾟﾀﾞｳﾝ",A12,""),"") ->  | C12: =IF(A12>0,IF(B$2="ｽﾃｯﾌﾟﾀﾞｳﾝ",C$7*0.5,""),"") ->  | E12: 0 | G12: 9 | H12: 1 | N12: 1 | O12: 0 | P12: 0 | Q12: 0 | R12: 0 | AB12: 1 | AF12: 0 | AG12: 9 | AH12: 1 | AN12: 1 | AO12: 0 | AP12: 0 | AQ12: 0 | BA12: 9 | BE12: 9 | BF12: =SUM(T100:T111)+IF(BF13=0,IF(BF14=0,0,X$3),0) -> 0 | BG12: =SUM(BB100:BB111) -> 0 | BH12: 0 | BI12: 0 | BJ12: =IFERROR(IF(BN$4-BE12<0,0,INT(IF(BH12>BJ10,BJ10,BH12)*IF(お客様情報1!$E$95>2020,1%,0.7%)))+MIN(BR12:BS12),0) -> 0 | BK12: =IFERROR(IF(BN$4-BE12<0,0,INT(IF(BI12>BJ$2,BJ$2,BI12)*IF(お客様情報1!$E$95>2020,1%,0.7%)))+MIN(BR12,BT12),0) -> 0 | BO12: 2032 | BP12: =IF(お客様情報1!E$95=BP$2,1,IF(お客様情報1!E$95=BP$3,1,0)) -> 0 | BQ12: 0 | BR12: =(IF(お客様情報1!E$93="戸建て",お客様情報1!E$101,お客様情報1!E$99)*2%*BQ12*10000/3) -> 0 | BS12: =IFERROR(INT(IF(BH12>BJ10,BJ10,BH12)*IF(お客様情報1!$E$95>2020,1%,0.7%))*BQ12,0) -> 0 | BT12: =IFERROR(INT(IF(BI12>BJ10,BJ10,BI12)*IF(お客様情報1!$E$95>2020,1%,0.7%))*BQ12,0) -> 0
G13: 10 | H13: 1 | N13: 1 | O13: 0 | P13: 0 | Q13: 0 | R13: 0 | AB13: 1 | AF13: 0 | AG13: 10 | AH13: 1 | AN13: 1 | AO13: 0 | AP13: 0 | AQ13: 0 | BA13: 10 | BE13: 10 | BF13: =SUM(T112:T123)+IF(BF14=0,IF(BF15=0,0,X$3),0) -> 0 | BG13: =SUM(BB112:BB123) -> 0 | BH13: 0 | BI13: 0 | BJ13: =IFERROR(IF(BN$4-BE13<0,0,INT(IF(BH13>BJ11,BJ11,BH13)*IF(お客様情報1!$E$95>2020,1%,0.7%)))+MIN(BR13:BS13),0) -> 0 | BK13: =IFERROR(IF(BN$4-BE13<0,0,INT(IF(BI13>BJ$2,BJ$2,BI13)*IF(お客様情報1!$E$95>2020,1%,0.7%)))+MIN(BR13,BT13),0) -> 0 | BO13: 2033 | BP13: =IF(お客様情報1!E$95=BP$2,1,IF(お客様情報1!E$95=BP$3,1,0)) -> 0 | BQ13: 0 | BR13: =(IF(お客様情報1!E$93="戸建て",お客様情報1!E$101,お客様情報1!E$99)*2%*BQ13*10000/3) -> 0 | BS13: =IFERROR(INT(IF(BH13>BJ11,BJ11,BH13)*IF(お客様情報1!$E$95>2020,1%,0.7%))*BQ13,0) -> 0 | BT13: =IFERROR(INT(IF(BI13>BJ11,BJ11,BI13)*IF(お客様情報1!$E$95>2020,1%,0.7%))*BQ13,0) -> 0
A14: 繰上返済 | G14: 11 | H14: 1 | N14: 1 | O14: 0 | P14: 0 | Q14: 0 | R14: 0 | AB14: 1 | AF14: 0 | AG14: 11 | AH14: 1 | AN14: 1 | AO14: 0 | AP14: 0 | AQ14: 0 | BA14: 11 | BE14: 11 | BF14: =SUM(T124:T135)+IF(BF15=0,IF(BF16=0,0,X$3),0) -> 0 | BG14: =SUM(BB124:BB135) -> 0 | BH14: 0 | BI14: 0 | BJ14: =IFERROR(IF(BN$4-BE14<0,0,INT(IF(BH14>BJ12,BJ12,BH14)*IF(お客様情報1!$E$95>2020,1%,0.7%)))+MIN(BR14:BS14),0) -> 0 | BK14: =IFERROR(IF(BN$4-BE14<0,0,INT(IF(BI14>BJ$2,BJ$2,BI14)*IF(お客様情報1!$E$95>2020,1%,0.7%)))+MIN(BR14,BT14),0) -> 0 | BO14: 2034 | BP14: =IF(お客様情報1!E$95=BP$2,1,IF(お客様情報1!E$95=BP$3,1,0)) -> 0 | BQ14: 0 | BR14: =(IF(お客様情報1!E$93="戸建て",お客様情報1!E$101,お客様情報1!E$99)*2%*BQ14*10000/3) -> 0 | BS14: =IFERROR(INT(IF(BH14>BJ12,BJ12,BH14)*IF(お客様情報1!$E$95>2020,1%,0.7%))*BQ14,0) -> 0 | BT14: =IFERROR(INT(IF(BI14>BJ12,BJ12,BI14)*IF(お客様情報1!$E$95>2020,1%,0.7%))*BQ14,0) -> 0
A15: 時期 | B15: ='1-0'!B15 -> 0 | C15: 年後 | G15: 12 | H15: 1 | N15: 1 | O15: 0 | P15: 0 | Q15: 0 | R15: 0 | AB15: 1 | AF15: 0 | AG15: 12 | AH15: 1 | AN15: 1 | AO15: 0 | AP15: 0 | AQ15: 0 | BA15: 12 | BE15: 12 | BF15: =SUM(T136:T147)+IF(BF16=0,IF(BF17=0,0,X$3),0) -> 0 | BG15: =SUM(BB136:BB147) -> 0 | BH15: 0 | BI15: 0 | BJ15: =IFERROR(IF(BN$4-BE15<0,0,INT(IF(BH15>BJ13,BJ13,BH15)*IF(お客様情報1!$E$95>2020,1%,0.7%)))+MIN(BR15:BS15),0) -> 0 | BK15: =IFERROR(IF(BN$4-BE15<0,0,INT(IF(BI15>BJ$2,BJ$2,BI15)*IF(お客様情報1!$E$95>2020,1%,0.7%)))+MIN(BR15,BT15),0) -> 0 | BO15: 2035 | BP15: =IF(お客様情報1!E$95=BP$2,1,IF(お客様情報1!E$95=BP$3,1,0)) -> 0 | BQ15: 0 | BR15: =(IF(お客様情報1!E$93="戸建て",お客様情報1!E$101,お客様情報1!E$99)*2%*BQ15*10000/3) -> 0 | BS15: =IFERROR(INT(IF(BH15>BJ13,BJ13,BH15)*IF(お客様情報1!$E$95>2020,1%,0.7%))*BQ15,0) -> 0 | BT15: =IFERROR(INT(IF(BI15>BJ13,BJ13,BI15)*IF(お客様情報1!$E$95>2020,1%,0.7%))*BQ15,0) -> 0
A16: 金額 | B16: ='1-0'!B16 -> 0 | C16: 万円 | G16: 13 | H16: 1 | I16: =IF(A$8="",0,IF(A$7*12-G16<0,1,0)) -> 1 | N16: 2 | O16: 0 | P16: 0 | Q16: 0 | R16: 0 | AB16: 1 | AF16: 0 | AG16: 13 | AH16: 1 | AI16: =IF(A$8="",0,IF(A$7*12-AG16<0,1,0)) -> 1 | AN16: 2 | AO16: 0 | AP16: 0 | AQ16: 0 | BA16: 13 | BE16: 13 | BF16: =SUM(T148:T159)+IF(BF17=0,IF(BF18=0,0,X$3),0) -> 0 | BG16: =SUM(BB148:BB159) -> 0 | BH16: 0 | BI16: 0 | BJ16: =IFERROR(IF(BN$4-BE16<0,0,INT(IF(BH16>BJ14,BJ14,BH16)*IF(お客様情報1!$E$95>2020,1%,0.7%)))+MIN(BR16:BS16),0) -> 0 | BK16: =IFERROR(IF(BN$4-BE16<0,0,INT(IF(BI16>BJ$2,BJ$2,BI16)*IF(お客様情報1!$E$95>2020,1%,0.7%)))+MIN(BR16,BT16),0) -> 0 | BO16: 2036 | BP16: =IF(お客様情報1!E$95=BP$2,1,IF(お客様情報1!E$95=BP$3,1,0)) -> 0 | BQ16: 0 | BR16: =(IF(お客様情報1!E$93="戸建て",お客様情報1!E$101,お客様情報1!E$99)*2%*BQ16*10000/3) -> 0 | BS16: =IFERROR(INT(IF(BH16>BJ14,BJ14,BH16)*IF(お客様情報1!$E$95>2020,1%,0.7%))*BQ16,0) -> 0 | BT16: =IFERROR(INT(IF(BI16>BJ14,BJ14,BI16)*IF(お客様情報1!$E$95>2020,1%,0.7%))*BQ16,0) -> 0
A17: 繰上返済額 | B17: =AF3 -> 0 | C17: 円 | G17: 14 | H17: 1 | I17: =IF(A$8="",0,IF(A$7*12-G17<0,1,0)) -> 1 | N17: 2 | O17: 0 | P17: 0 | Q17: 0 | R17: 0 | AB17: 1 | AF17: 0 | AG17: 14 | AH17: 1 | AI17: =IF(A$8="",0,IF(A$7*12-AG17<0,1,0)) -> 1 | AN17: 2 | AO17: 0 | AP17: 0 | AQ17: 0 | BA17: 14 | BE17: 14 | BF17: =SUM(T160:T171)+IF(BF18=0,IF(BF19=0,0,X$3),0) -> 0 | BG17: =SUM(BB160:BB171) -> 0 | BH17: 0 | BI17: 0
A18: 繰上前利息 | B18: =W3 -> 0 | C18: 円 | G18: 15 | H18: 1 | I18: 1 | N18: 2 | O18: 0 | P18: 0 | Q18: 0 | R18: 0 | AB18: 1 | AF18: 0 | AG18: 15 | AH18: 1 | AI18: 1 | AN18: 2 | AO18: 0 | AP18: 0 | AQ18: 0 | BA18: 15 | BE18: 15 | BF18: =SUM(T172:T183)+IF(BF19=0,IF(BF20=0,0,X$3),0) -> 0 | BG18: =SUM(BB172:BB183) -> 0 | BH18: 0 | BI18: 0
A19: 繰上後利息 | B19: =AV3 -> 0 | C19: 円 | G19: 16 | H19: 1 | I19: 1 | N19: 2 | O19: 0 | P19: 0 | Q19: 0 | R19: 0 | AB19: 1 | AF19: 0 | AG19: 16 | AH19: 1 | AI19: 1 | AN19: 2 | AO19: 0 | AP19: 0 | AQ19: 0 | BA19: 16 | BE19: 16 | BF19: =SUM(T184:T195)+IF(BF20=0,IF(BF21=0,0,X$3),0) -> 0 | BG19: =SUM(BB184:BB195) -> 0 | BH19: 0 | BI19: 0
G20: 17 | H20: 1 | I20: 1 | N20: 2 | O20: 0 | P20: 0 | Q20: 0 | R20: 0 | AB20: 1 | AF20: 0 | AG20: 17 | AH20: 1 | AI20: 1 | AN20: 2 | AO20: 0 | AP20: 0 | AQ20: 0 | BA20: 17 | BE20: 17 | BF20: =SUM(T196:T207)+IF(BF21=0,IF(BF22=0,0,X$3),0) -> 0 | BG20: =SUM(BB196:BB207) -> 0 | BH20: 0 | BI20: 0
A21: 借入期間 | B21: 繰上後 | C21: =INT((B4*12-AE3)/12) -> 0 | G21: 18 | H21: 1 | I21: 1 | N21: 2 | O21: 0 | P21: 0 | Q21: 0 | R21: 0 | AB21: 1 | AF21: 0 | AG21: 18 | AH21: 1 | AI21: 1 | AN21: 2 | AO21: 0 | AP21: 0 | AQ21: 0 | BA21: 18 | BE21: 18 | BF21: =SUM(T208:T219)+IF(BF22=0,IF(BF23=0,0,X$3),0) -> 0 | BG21: =SUM(BB208:BB219) -> 0 | BH21: 0 | BI21: 0
C22: =B4*12-AE3-C21*12 -> 0 | G22: 19 | H22: 1 | I22: 1 | N22: 2 | O22: 0 | P22: 0 | Q22: 0 | R22: 0 | AB22: 1 | AF22: 0 | AG22: 19 | AH22: 1 | AI22: 1 | AN22: 2 | AO22: 0 | AP22: 0 | AQ22: 0 | BA22: 19 | BE22: 19 | BF22: =SUM(T220:T231)+IF(BF23=0,IF(BF24=0,0,X$3),0) -> 0 | BG22: =SUM(BB220:BB231) -> 0 | BH22: 0 | BI22: 0
G23: 20 | H23: 1 | I23: 1 | N23: 2 | O23: 0 | P23: 0 | Q23: 0 | R23: 0 | AB23: 1 | AF23: 0 | AG23: 20 | AH23: 1 | AI23: 1 | AN23: 2 | AO23: 0 | AP23: 0 | AQ23: 0 | BA23: 20 | BE23: 20 | BF23: =SUM(T232:T243)+IF(BF24=0,IF(BF25=0,0,X$3),0) -> 0 | BG23: =SUM(BB232:BB243) -> 0 | BH23: 0 | BI23: 0
A24: =IF(C24="","",ROUNDUP(C24,)) ->  | B24: =IF(A25="","",IF(A25="最終回",B$4,IF(A24="最終回","",IF(C24="","",A25-1)))) ->  | C24: =_xlfn._xlws.SORT(A31:C37,1,1,) ->  | G24: 21 | H24: 1 | I24: 1 | N24: 2 | O24: 0 | P24: =IF(O24=0,O24,IF(P23+O24>60,P23+O24-60,P23+O24)) -> 0 | Q24: 0 | R24: 0 | W24: =IF(S24="","",INT(Z23*S24/12)) ->  | Z24: =IF(S24="","",Z23-Y24) ->  | AB24: 1 | AD24: =IF(AC24="","",IF(AC24=0,"",IF(AD23="",0,AD23)+AC24)) ->  | AF24: 0 | AG24: =AG23+IF(AE24=1,0,1) -> 21 | AH24: 1 | AI24: 1 | AN24: 2 | AO24: 0 | AP24: 0 | AQ24: 0 | BA24: 21 | BE24: 21 | BF24: =SUM(T244:T255)+IF(BF25=0,IF(BF26=0,0,X$3),0) -> 0 | BG24: =SUM(BB244:BB255) -> 0 | BH24: 0 | BI24: 0
A25: =IF(C25="","",IF(C25=B$4,"最終回",ROUNDUP(C25,))) ->  | G25: 22 | H25: 1 | I25: 1 | N25: 2 | O25: 0 | P25: =IF(O25=0,O25,IF(P24+O25>60,P24+O25-60,P24+O25)) -> 0 | Q25: 0 | R25: 0 | W25: =IF(S25="","",INT(Z24*S25/12)) ->  | Z25: =IF(S25="","",Z24-Y25) ->  | AB25: 1 | AD25: =IF(AC25="","",IF(AC25=0,"",IF(AD24="",0,AD24)+AC25)) ->  | AF25: 0 | AG25: =AG24+IF(AE25=1,0,1) -> 22 | AH25: 1 | AI25: 1 | AN25: 2 | AO25: 0 | AP25: 0 | AQ25: 0 | BA25: 22 | BE25: 22 | BF25: =SUM(T256:T267)+IF(BF26=0,IF(BF27=0,0,X$3),0) -> 0 | BG25: =SUM(BB256:BB267) -> 0 | BH25: 0 | BI25: 0
A26: =IF(C26="","",IF(C26=B$4,"最終回",ROUNDUP(C26,))) ->  | G26: 23 | H26: 1 | I26: 1 | N26: 2 | O26: 0 | P26: 0 | Q26: 0 | R26: 0 | AB26: 1 | AF26: 0 | AG26: 23 | AH26: 1 | AI26: 1 | AN26: 2 | AO26: 0 | AP26: 0 | AQ26: 0 | BA26: 23 | BE26: 23 | BF26: =SUM(T268:T279)+IF(BF27=0,IF(BF28=0,0,X$3),0) -> 0 | BG26: =SUM(BB268:BB279) -> 0 | BH26: 0 | BI26: 0
G27: 24 | H27: 1 | I27: 1 | N27: 2 | O27: 0 | P27: 0 | Q27: 0 | R27: 0 | AB27: 1 | AF27: 0 | AG27: 24 | AH27: 1 | AI27: 1 | AN27: 2 | AO27: 0 | AP27: 0 | AQ27: 0 | BA27: 24 | BE27: 24 | BF27: =SUM(T280:T291)+IF(BF28=0,IF(BF29=0,0,X$3),0) -> 0 | BG27: =SUM(BB280:BB291) -> 0 | BH27: 0 | BI27: 0
G28: 25 | H28: 1 | I28: 1 | J28: =IF($A$9="",0,IF(SUM($A$7:$A$8)*12-G28<0,1,0)) -> 1 | N28: 3 | O28: 0 | P28: 0 | Q28: 0 | R28: 0 | AB28: 1 | AF28: 0 | AG28: 25 | AH28: 1 | AI28: 1 | AJ28: =IF($A$9="",0,IF(SUM($A$7:$A$8)*12-AG28<0,1,0)) -> 1 | AN28: 3 | AO28: 0 | AP28: 0 | AQ28: 0 | BA28: 25 | BE28: 25 | BF28: =SUM(T292:T303)+IF(BF29=0,IF(BF30=0,0,X$3),0) -> 0 | BG28: =SUM(BB292:BB303) -> 0 | BH28: 0 | BI28: 0
G29: 26 | H29: 1 | I29: 1 | J29: =IF($A$9="",0,IF(SUM($A$7:$A$8)*12-G29<0,1,0)) -> 1 | N29: 3 | O29: 0 | P29: 0 | Q29: 0 | R29: 0 | AB29: 1 | AF29: 0 | AG29: 26 | AH29: 1 | AI29: 1 | AJ29: =IF($A$9="",0,IF(SUM($A$7:$A$8)*12-AG29<0,1,0)) -> 1 | AN29: 3 | AO29: 0 | AP29: 0 | AQ29: 0 | BA29: 26 | BE29: 26 | BF29: =SUM(T304:T315)+IF(BF30=0,IF(BF31=0,0,X$3),0) -> 0 | BG29: =SUM(BB304:BB315) -> 0 | BH29: 0 | BI29: 0
B30: =IF(A31="","",IF(A31="最終回",B$4,IF(A30="最終回","",IF(C30="","",A31-1)))) ->  | G30: 27 | H30: 1 | I30: 1 | J30: 1 | N30: 3 | O30: 0 | P30: 0 | Q30: 0 | R30: 0 | AB30: 1 | AF30: 0 | AG30: 27 | AH30: 1 | AI30: 1 | AJ30: 1 | AN30: 3 | AO30: 0 | AP30: 0 | AQ30: 0 | BA30: 27 | BE30: 27 | BF30: =SUM(T316:T327)+IF(BF31=0,IF(BF32=0,0,X$3),0) -> 0 | BG30: =SUM(BB316:BB327) -> 0 | BH30: 0 | BI30: 0
A31: =IF(D31="","",D31/12) ->  | B31: =IFERROR(SMALL(_xlfn.UNIQUE(T$4:T$604),1),"") ->  | C31: =IF(B31="","",_xlfn.XLOOKUP(D31,G$4:G$604,S$4:S$604,,0,1)) ->  | D31: =IF(B31="","",_xlfn.XLOOKUP(B31,T$4:T$604,G$4:G$604,,0,1)) ->  | G31: 28 | H31: 1 | I31: 1 | J31: 1 | N31: 3 | O31: 0 | P31: 0 | Q31: 0 | R31: 0 | AB31: 1 | AF31: 0 | AG31: 28 | AH31: 1 | AI31: 1 | AJ31: 1 | AN31: 3 | AO31: 0 | AP31: 0 | AQ31: 0 | BA31: 28 | BE31: 28 | BF31: =SUM(T328:T339)+IF(BF32=0,IF(BF33=0,0,X$3),0) -> 0 | BG31: =SUM(BB328:BB339) -> 0 | BH31: 0 | BI31: 0
B32: =IFERROR(SMALL(_xlfn.UNIQUE(T$4:T$604),2),"") ->  | C32: =IF(B32="","",_xlfn.XLOOKUP(D32,G$4:G$604,S$4:S$604,,0,1)) ->  | D32: =IF(B32="","",_xlfn.XLOOKUP(B32,T$4:T$604,G$4:G$604,,0,1)) ->  | G32: 29 | H32: 1 | I32: 1 | J32: 1 | N32: 3 | O32: 0 | P32: 0 | Q32: 0 | R32: 0 | AB32: 1 | AF32: 0 | AG32: 29 | AH32: 1 | AI32: 1 | AJ32: 1 | AN32: 3 | AO32: 0 | AP32: 0 | AQ32: 0 | BA32: 29 | BE32: 29 | BF32: =SUM(T340:T351)+IF(BF33=0,IF(BF34=0,0,X$3),0) -> 0 | BG32: =SUM(BB340:BB351) -> 0 | BH32: 0 | BI32: 0
B33: =IFERROR(SMALL(_xlfn.UNIQUE(T$4:T$604),3),"") ->  | G33: 30 | H33: 1 | I33: 1 | J33: 1 | N33: 3 | O33: 0 | P33: 0 | Q33: 0 | R33: 0 | AB33: 1 | AF33: 0 | AG33: 30 | AH33: 1 | AI33: 1 | AJ33: 1 | AN33: 3 | AO33: 0 | AP33: 0 | AQ33: 0 | BA33: 30 | BE33: 30 | BF33: =SUM(T352:T363)+IF(BF34=0,IF(BF35=0,0,X$3),0) -> 0 | BG33: =SUM(BB352:BB363) -> 0 | BH33: 0 | BI33: 0
B34: =IFERROR(SMALL(_xlfn.UNIQUE(T$4:T$604),4),"") ->  | G34: 31 | H34: 1 | I34: 1 | J34: 1 | N34: 3 | O34: 0 | P34: 0 | Q34: 0 | R34: 0 | AB34: 1 | AF34: 0 | AG34: 31 | AH34: 1 | AI34: 1 | AJ34: 1 | AN34: 3 | AO34: 0 | AP34: 0 | AQ34: 0 | BA34: 31 | BE34: 31 | BF34: =SUM(T364:T375)+IF(BF35=0,IF(BF36=0,0,X$3),0) -> 0 | BG34: =SUM(BB364:BB375) -> 0 | BH34: 0 | BI34: 0
B35: =IFERROR(SMALL(_xlfn.UNIQUE(T$4:T$604),5),"") ->  | G35: 32 | H35: 1 | I35: 1 | J35: 1 | N35: 3 | O35: 0 | P35: 0 | Q35: 0 | R35: 0 | AB35: 1 | AF35: 0 | AG35: 32 | AH35: 1 | AI35: 1 | AJ35: 1 | AN35: 3 | AO35: 0 | AP35: 0 | AQ35: 0 | BA35: 32 | BE35: 32 | BF35: =SUM(T376:T387)+IF(BF36=0,IF(BF37=0,0,X$3),0) -> 0 | BG35: =SUM(BB376:BB387) -> 0 | BH35: 0 | BI35: 0
B36: =IFERROR(SMALL(_xlfn.UNIQUE(T$4:T$604),6),"") ->  | G36: 33 | H36: 1 | I36: 1 | J36: 1 | N36: 3 | O36: 0 | P36: 0 | Q36: 0 | R36: 0 | AB36: 1 | AF36: 0 | AG36: 33 | AH36: 1 | AI36: 1 | AJ36: 1 | AN36: 3 | AO36: 0 | AP36: 0 | AQ36: 0 | BA36: 33 | BE36: 33 | BF36: =SUM(T388:T399)+IF(BF37=0,IF(BF38=0,0,X$3),0) -> 0 | BG36: =SUM(BB388:BB399) -> 0 | BH36: 0 | BI36: 0
B37: =IFERROR(SMALL(_xlfn.UNIQUE(T$4:T$604),7),"") ->  | G37: 34 | H37: 1 | I37: 1 | J37: 1 | N37: 3 | O37: 0 | P37: 0 | Q37: 0 | R37: 0 | AB37: 1 | AF37: 0 | AG37: 34 | AH37: 1 | AI37: 1 | AJ37: 1 | AN37: 3 | AO37: 0 | AP37: 0 | AQ37: 0 | BA37: 34 | BE37: 34 | BF37: =SUM(T400:T411)+IF(BF38=0,IF(BF39=0,0,X$3),0) -> 0 | BG37: =SUM(BB400:BB411) -> 0 | BH37: 0 | BI37: 0
G38: 35 | H38: 1 | I38: 1 | J38: 1 | N38: 3 | O38: 0 | P38: 0 | Q38: 0 | R38: 0 | AB38: 1 | AF38: 0 | AG38: 35 | AH38: 1 | AI38: 1 | AJ38: 1 | AN38: 3 | AO38: 0 | AP38: 0 | AQ38: 0 | BA38: 35 | BE38: 35 | BF38: =SUM(T412:T423)+IF(BF39=0,IF(BF40=0,0,X$3),0) -> 0 | BG38: =SUM(BB412:BB423) -> 0 | BH38: 0 | BI38: 0
G39: 36 | H39: 1 | I39: 1 | J39: 1 | N39: 3 | O39: 0 | P39: 0 | Q39: 0 | R39: 0 | AB39: 1 | AF39: 0 | AG39: 36 | AH39: 1 | AI39: 1 | AJ39: 1 | AN39: 3 | AO39: 0 | AP39: 0 | AQ39: 0 | BA39: 36 | BE39: 36 | BF39: =SUM(T424:T435)+IF(BF40=0,IF(BF41=0,0,X$3),0) -> 0 | BG39: =SUM(BB424:BB435) -> 0 | BH39: 0 | BI39: 0
G40: 37 | H40: 1 | I40: 1 | J40: 1 | K40: =IF($A$9="",0,IF(SUM($A$7:$A$9)*12-G40<0,1,0)) -> 1 | N40: 4 | O40: 0 | P40: 0 | Q40: 0 | T40: =IF(S40="","",IF(S41="",IF(Z39<0,"",Z39+W40),IF(Q40=2,MIN(U40:V40),IF(P40>1,T39,IF(S40=S39,T39,U40))))) ->  | AB40: 1 | AF40: 0 | AG40: 37 | AH40: 1 | AI40: 1 | AJ40: 1 | AK40: =IF($A$9="",0,IF(SUM($A$7:$A$9)*12-AG40<0,1,0)) -> 1 | AN40: 4 | AO40: 0 | AP40: 0 | AQ40: 0 | BA40: 37 | BE40: 37 | BF40: =SUM(T436:T447)+IF(BF41=0,IF(BF42=0,0,X$3),0) -> 0 | BG40: =SUM(BB436:BB447) -> 0 | BH40: 0 | BI40: 0
G41: 38 | H41: 1 | I41: 1 | J41: 1 | K41: =IF($A$9="",0,IF(SUM($A$7:$A$9)*12-G41<0,1,0)) -> 1 | N41: 4 | O41: 0 | P41: 0 | Q41: 0 | AB41: 1 | AF41: 0 | AG41: 38 | AH41: 1 | AI41: 1 | AJ41: 1 | AK41: =IF($A$9="",0,IF(SUM($A$7:$A$9)*12-AG41<0,1,0)) -> 1 | AN41: 4 | AO41: 0 | AP41: 0 | AQ41: 0 | BA41: 38 | BE41: 38 | BF41: =SUM(T448:T459)+IF(BF42=0,IF(BF43=0,0,X$3),0) -> 0 | BG41: =SUM(BB448:BB459) -> 0 | BH41: 0 | BI41: 0
G42: 39 | H42: 1 | I42: 1 | J42: 1 | K42: 1 | N42: 4 | O42: 0 | P42: 0 | Q42: 0 | AB42: 1 | AF42: 0 | AG42: 39 | AH42: 1 | AI42: 1 | AJ42: 1 | AK42: 1 | AN42: 4 | AO42: 0 | AP42: 0 | AQ42: 0 | BA42: 39 | BE42: 39 | BF42: =SUM(T460:T471)+IF(BF43=0,IF(BF44=0,0,X$3),0) -> 0 | BG42: =SUM(BB460:BB471) -> 0 | BH42: 0 | BI42: 0
G43: 40 | H43: 1 | I43: 1 | J43: 1 | K43: 1 | N43: 4 | O43: 0 | P43: 0 | Q43: 0 | AB43: 1 | AF43: 0 | AG43: 40 | AH43: 1 | AI43: 1 | AJ43: 1 | AK43: 1 | AN43: 4 | AO43: 0 | AP43: 0 | AQ43: 0 | BA43: 40 | BE43: 40 | BF43: =SUM(T472:T483)+IF(BF44=0,IF(BF45=0,0,X$3),0) -> 0 | BG43: =SUM(BB472:BB483) -> 0 | BH43: 0 | BI43: 0
G44: 41 | H44: 1 | I44: 1 | J44: 1 | K44: 1 | N44: 4 | O44: 0 | P44: 0 | Q44: 0 | AB44: 1 | AF44: 0 | AG44: 41 | AH44: 1 | AI44: 1 | AJ44: 1 | AK44: 1 | AN44: 4 | AO44: 0 | AP44: 0 | AQ44: 0 | BA44: 41 | BE44: 41 | BF44: =SUM(T484:T495)+IF(BF45=0,IF(BF46=0,0,X$3),0) -> 0 | BG44: =SUM(BB484:BB495) -> 0 | BH44: 0 | BI44: 0
G45: 42 | H45: 1 | I45: 1 | J45: 1 | K45: 1 | N45: 4 | O45: 0 | P45: 0 | Q45: 0 | AB45: 1 | AF45: 0 | AG45: 42 | AH45: 1 | AI45: 1 | AJ45: 1 | AK45: 1 | AN45: 4 | AO45: 0 | AP45: 0 | AQ45: 0 | BA45: 42 | BE45: 42 | BF45: =SUM(T496:T507)+IF(BF46=0,IF(BF47=0,0,X$3),0) -> 0 | BG45: =SUM(BB496:BB507) -> 0 | BH45: 0 | BI45: 0
G46: 43 | H46: 1 | I46: 1 | J46: 1 | K46: 1 | N46: 4 | O46: 0 | P46: 0 | Q46: 0 | AB46: 1 | AF46: 0 | AG46: 43 | AH46: 1 | AI46: 1 | AJ46: 1 | AK46: 1 | AN46: 4 | AO46: 0 | AP46: 0 | AQ46: 0 | BA46: 43 | BE46: 43 | BF46: =SUM(T508:T519)+IF(BF47=0,IF(BF48=0,0,X$3),0) -> 0 | BG46: =SUM(BB508:BB519) -> 0 | BH46: 0 | BI46: 0
G47: 44 | H47: 1 | I47: 1 | J47: 1 | K47: 1 | N47: 4 | O47: 0 | P47: 0 | Q47: 0 | AB47: 1 | AF47: 0 | AG47: 44 | AH47: 1 | AI47: 1 | AJ47: 1 | AK47: 1 | AN47: 4 | AO47: 0 | AP47: 0 | AQ47: 0 | BA47: 44 | BE47: 44 | BF47: =SUM(T520:T531)+IF(BF48=0,IF(BF49=0,0,X$3),0) -> 0 | BG47: =SUM(BB520:BB531) -> 0 | BH47: 0 | BI47: 0
G48: 45 | H48: 1 | I48: 1 | J48: 1 | K48: 1 | N48: 4 | O48: 0 | P48: 0 | Q48: 0 | AB48: 1 | AF48: 0 | AG48: 45 | AH48: 1 | AI48: 1 | AJ48: 1 | AK48: 1 | AN48: 4 | AO48: 0 | AP48: 0 | AQ48: 0 | BA48: 45 | BE48: 45 | BF48: =SUM(T532:T543)+IF(BF49=0,IF(BF50=0,0,X$3),0) -> 0 | BG48: =SUM(BB532:BB543) -> 0 | BH48: 0 | BI48: 0
G49: 46 | H49: 1 | I49: 1 | J49: 1 | K49: 1 | N49: 4 | O49: 0 | P49: 0 | Q49: 0 | AB49: 1 | AF49: 0 | AG49: 46 | AH49: 1 | AI49: 1 | AJ49: 1 | AK49: 1 | AN49: 4 | AO49: 0 | AP49: 0 | AQ49: 0 | BA49: 46 | BE49: 46 | BF49: =SUM(T544:T555)+IF(BF50=0,IF(BF51=0,0,X$3),0) -> 0 | BG49: =SUM(BB544:BB555) -> 0 | BH49: 0 | BI49: 0
G50: 47 | H50: 1 | I50: 1 | J50: 1 | K50: 1 | N50: 4 | O50: 0 | P50: 0 | Q50: 0 | AB50: 1 | AF50: 0 | AG50: 47 | AH50: 1 | AI50: 1 | AJ50: 1 | AK50: 1 | AN50: 4 | AO50: 0 | AP50: 0 | AQ50: 0 | BA50: 47 | BE50: 47 | BF50: =SUM(T556:T567)+IF(BF51=0,IF(BF52=0,0,X$3),0) -> 0 | BG50: =SUM(BB556:BB567) -> 0 | BH50: 0 | BI50: 0
G51: 48 | H51: 1 | I51: 1 | J51: 1 | K51: 1 | N51: 4 | O51: 0 | P51: 0 | Q51: 0 | AB51: 1 | AF51: 0 | AG51: 48 | AH51: 1 | AI51: 1 | AJ51: 1 | AK51: 1 | AN51: 4 | AO51: 0 | AP51: 0 | AQ51: 0 | BA51: 48 | BE51: 48 | BF51: =SUM(T568:T579)+IF(BF52=0,IF(BF53=0,0,X$3),0) -> 0 | BG51: =SUM(BB568:BB579) -> 0 | BH51: 0 | BI51: 0
G52: 49 | H52: 1 | I52: 1 | J52: 1 | K52: 1 | L52: =IF($A$9="",0,IF(SUM($A$7:$A$10)*12-G52<0,1,0)) -> 1 | N52: 5 | O52: 0 | P52: 0 | Q52: 0 | AB52: 1 | AF52: 0 | AG52: 49 | AH52: 1 | AI52: 1 | AJ52: 1 | AK52: 1 | AL52: =IF($A$9="",0,IF(SUM($A$7:$A$10)*12-AG52<0,1,0)) -> 1 | AN52: 5 | AO52: 0 | AP52: 0 | AQ52: 0 | BA52: 49 | BE52: 49 | BF52: =SUM(T580:T591)+IF(BF53=0,IF(BF54=0,0,X$3),0) -> 0 | BG52: =SUM(BB580:BB591) -> 0 | BH52: 0 | BI52: 0
G53: 50 | H53: 1 | I53: 1 | J53: 1 | K53: 1 | L53: =IF($A$9="",0,IF(SUM($A$7:$A$10)*12-G53<0,1,0)) -> 1 | N53: 5 | O53: 0 | P53: 0 | Q53: 0 | AB53: 1 | AF53: 0 | AG53: 50 | AH53: 1 | AI53: 1 | AJ53: 1 | AK53: 1 | AL53: =IF($A$9="",0,IF(SUM($A$7:$A$10)*12-AG53<0,1,0)) -> 1 | AN53: 5 | AO53: 0 | AP53: 0 | AQ53: 0 | BA53: 50 | BE53: 50 | BF53: =SUM(T592:T603)+IF(BF54=0,IF(BF55=0,0,X$3),0) -> 0 | BG53: =SUM(BB592:BB603) -> 0 | BH53: 0 | BI53: 0
G54: 51 | H54: 1 | I54: 1 | J54: 1 | K54: 1 | L54: 1 | N54: 5 | O54: 0 | P54: 0 | Q54: 0 | AB54: 1 | AF54: 0 | AG54: 51 | AH54: 1 | AI54: 1 | AJ54: 1 | AK54: 1 | AL54: 1 | AN54: 5 | AO54: 0 | AP54: 0 | AQ54: 0 | BA54: 51
G55: 52 | H55: 1 | I55: 1 | J55: 1 | K55: 1 | L55: 1 | N55: 5 | O55: 0 | P55: 0 | Q55: 0 | AB55: 1 | AF55: 0 | AG55: 52 | AH55: 1 | AI55: 1 | AJ55: 1 | AK55: 1 | AL55: 1 | AN55: 5 | AO55: 0 | AP55: 0 | AQ55: 0 | BA55: 52
G56: 53 | H56: 1 | I56: 1 | J56: 1 | K56: 1 | L56: 1 | N56: 5 | O56: 0 | P56: 0 | Q56: 0 | AB56: 1 | AF56: 0 | AG56: 53 | AH56: 1 | AI56: 1 | AJ56: 1 | AK56: 1 | AL56: 1 | AN56: 5 | AO56: 0 | AP56: 0 | AQ56: 0 | BA56: 53
G57: 54 | H57: 1 | I57: 1 | J57: 1 | K57: 1 | L57: 1 | N57: 5 | O57: 0 | P57: 0 | Q57: 0 | AB57: 1 | AF57: 0 | AG57: 54 | AH57: 1 | AI57: 1 | AJ57: 1 | AK57: 1 | AL57: 1 | AN57: 5 | AO57: 0 | AP57: 0 | AQ57: 0 | BA57: 54
G58: 55 | H58: 1 | I58: 1 | J58: 1 | K58: 1 | L58: 1 | N58: 5 | O58: 0 | P58: 0 | Q58: 0 | AB58: 1 | AF58: 0 | AG58: 55 | AH58: 1 | AI58: 1 | AJ58: 1 | AK58: 1 | AL58: 1 | AN58: 5 | AO58: 0 | AP58: 0 | AQ58: 0 | BA58: 55
G59: 56 | H59: 1 | I59: 1 | J59: 1 | K59: 1 | L59: 1 | N59: 5 | O59: 0 | P59: 0 | Q59: 0 | AB59: 1 | AF59: 0 | AG59: 56 | AH59: 1 | AI59: 1 | AJ59: 1 | AK59: 1 | AL59: 1 | AN59: 5 | AO59: 0 | AP59: 0 | AQ59: 0 | BA59: 56
G60: 57 | H60: 1 | I60: 1 | J60: 1 | K60: 1 | L60: 1 | N60: 5 | O60: 0 | P60: 0 | Q60: 0 | AB60: 1 | AF60: 0 | AG60: 57 | AH60: 1 | AI60: 1 | AJ60: 1 | AK60: 1 | AL60: 1 | AN60: 5 | AO60: 0 | AP60: 0 | AQ60: 0 | BA60: 57
G61: 58 | H61: 1 | I61: 1 | J61: 1 | K61: 1 | L61: 1 | N61: 5 | O61: 0 | P61: 0 | Q61: 0 | AB61: 1 | AF61: 0 | AG61: 58 | AH61: 1 | AI61: 1 | AJ61: 1 | AK61: 1 | AL61: 1 | AN61: 5 | AO61: 0 | AP61: 0 | AQ61: 0 | BA61: 58
G62: 59 | H62: 1 | I62: 1 | J62: 1 | K62: 1 | L62: 1 | N62: 5 | O62: 0 | P62: 0 | Q62: 0 | AB62: 1 | AF62: 0 | AG62: 59 | AH62: 1 | AI62: 1 | AJ62: 1 | AK62: 1 | AL62: 1 | AN62: 5 | AO62: 0 | AP62: 0 | AQ62: 0 | BA62: 59
G63: 60 | H63: 1 | I63: 1 | J63: 1 | K63: 1 | L63: 1 | N63: 5 | O63: 0 | P63: 0 | Q63: 0 | AB63: 1 | AF63: 0 | AG63: 60 | AH63: 1 | AI63: 1 | AJ63: 1 | AK63: 1 | AL63: 1 | AN63: 5 | AO63: 0 | AP63: 0 | AQ63: 0 | BA63: 60
G64: 61 | H64: 1 | I64: 1 | J64: 1 | K64: 1 | L64: 1 | M64: =IF($A$9="",0,IF(SUM($A$7:$A$11)*12-G64<0,1,0)) -> 1 | N64: 6 | O64: 0 | P64: 0 | Q64: 0 | T64: =IF(S64="","",IF(S65="",IF(Z63<0,"",Z63+W64),IF(Q64=2,MIN(U64:V64),IF(P64>1,T63,IF(S64=S63,T63,U64))))) ->  | AB64: 1 | AF64: 0 | AG64: 61 | AH64: 1 | AI64: 1 | AJ64: 1 | AK64: 1 | AL64: 1 | AM64: =IF($A$9="",0,IF(SUM($A$7:$A$11)*12-AG64<0,1,0)) -> 1 | AN64: 6 | AO64: 0 | AP64: 0 | AQ64: 0 | BA64: 61
G65: 62 | H65: 1 | I65: 1 | J65: 1 | K65: 1 | L65: 1 | M65: =IF($A$9="",0,IF(SUM($A$7:$A$11)*12-G65<0,1,0)) -> 1 | N65: 6 | O65: 0 | P65: 0 | Q65: 0 | AB65: 1 | AF65: 0 | AG65: 62 | AH65: 1 | AI65: 1 | AJ65: 1 | AK65: 1 | AL65: 1 | AM65: =IF($A$9="",0,IF(SUM($A$7:$A$11)*12-AG65<0,1,0)) -> 1 | AN65: 6 | AO65: 0 | AP65: 0 | AQ65: 0 | BA65: 62
G66: 63 | H66: 1 | I66: 1 | J66: 1 | K66: 1 | L66: 1 | M66: 1 | N66: 6 | O66: 0 | P66: 0 | Q66: 0 | AB66: 1 | AF66: 0 | AG66: 63 | AH66: 1 | AI66: 1 | AJ66: 1 | AK66: 1 | AL66: 1 | AM66: 1 | AN66: 6 | AO66: 0 | AP66: 0 | AQ66: 0 | BA66: 63
G67: 64 | H67: 1 | I67: 1 | J67: 1 | K67: 1 | L67: 1 | M67: 1 | N67: 6 | O67: 0 | P67: 0 | Q67: 0 | AB67: 1 | AF67: 0 | AG67: 64 | AH67: 1 | AI67: 1 | AJ67: 1 | AK67: 1 | AL67: 1 | AM67: 1 | AN67: 6 | AO67: 0 | AP67: 0 | AQ67: 0 | BA67: 64
G68: 65 | H68: 1 | I68: 1 | J68: 1 | K68: 1 | L68: 1 | M68: 1 | N68: 6 | O68: 0 | P68: 0 | Q68: 0 | T68: =IF(S68="","",IF(S69="",IF(Z67<0,"",Z67+W68),IF(Q68=2,MIN(U68:V68),IF(P68>1,T67,IF(S68=S67,T67,U68))))) ->  | AB68: =IF(B$15*12<G68,1,"") -> 1 | AC68: =IF(AB68=1,Y68,"") ->  | AF68: 0 | AG68: 65 | AH68: 1 | AI68: 1 | AJ68: 1 | AK68: 1 | AL68: 1 | AM68: 1 | AN68: 6 | AO68: 0 | AP68: 0 | AQ68: 0 | AV68: =IF(S68="","",IF(AE68=1,0,INT(AY67*AR68/12))) ->  | AX68: =IF(S68="","",IF(AE68=1,0,AS68-AV68)) ->  | AY68: =IF(S68="","",IF(AX68=0,IF(AF67=0,AY67-$B$16*10000,AY67-AX68),AY67-AX68)) ->  | BA68: 65 | BB68: =IFERROR(_xlfn.XLOOKUP(BA68,AG$4:AG$603,AS$4:AS$603),"") -> 
G69: 66 | H69: 1 | I69: 1 | J69: 1 | K69: 1 | L69: 1 | M69: 1 | N69: =SUM(H69:M69) -> 6 | O69: =IF(N69=1,IF(E$7=1,1,0),IF(N69=2,IF(E$8=1,1,0),IF(N69=3,IF(E$9=1,1,0),IF(N69=4,IF(E$10=1,1,0),IF(N69=5,IF(E$11=1,1,0),IF(N69=6,IF(E$12=1,1,0),0)))))) -> 0 | P69: =IF(O69=0,O69,IF(P68+O69>60,P68+O69-60,P68+O69)) -> 0 | Q69: 0 | R69: =IF(N69=1,C$7,IF(N69=2,C$8,IF(N69=3,C$9,IF(N69=4,C$10,IF(N69=5,C$11,IF(N69=6,$C$12,0)))))) ->  | S69: =IF($B$4*12+D$4>=G69,R69,"") ->  | U69: =IF(Z68="","",IF(Z68>0,INT(PMT(S69/12,B$4*12+D$4-G68,-Z68,)),"")) ->  | W69: =IF(S69="","",INT(Z68*S69/12)) ->  | Y69: =IF(S69="","",IF(X69="",T69-W69,0)) ->  | Z69: =IF(S69="","",Z68-Y69) ->  | AB69: 1 | AD69: =IF(AC69="","",IF(AC69=0,"",IF(AD68="",0,AD68)+AC69)) ->  | AE69: =IF(AD69="","",IF(B$16*10000>=AD69,1,0)) ->  | AF69: =IF(AE69=1,AC69,0) -> 0 | AG69: 66 | AH69: 1 | AI69: 1 | AJ69: 1 | AK69: 1 | AL69: 1 | AM69: 1 | AN69: =SUM(AH69:AM69) -> 6 | AO69: =IF(AN69=1,IF(E$7=1,1,0),IF(AN69=2,IF(E$8=1,1,0),IF(AN69=3,IF(E$9=1,1,0),IF(AN69=4,IF(E$10=1,1,0),IF(AN69=5,IF(E$11=1,1,0),IF(AN69=6,IF(E$12=1,1,0),0)))))) -> 0 | AP69: 0 | AQ69: 0 | AR69: =IF(S69="","",_xlfn.XLOOKUP(AG69,G$4:G$604,S$4:S$604)) ->  | BA69: 66 | BC69: =IFERROR(_xlfn.XLOOKUP(BA69,AG$4:AG$603,AY$4:AY$603),"") -> 
G70: 67 | H70: 1 | I70: 1 | J70: 1 | K70: 1 | L70: 1 | M70: 1 | N70: 6 | O70: 0 | P70: 0 | Q70: =IF(P69>0,IF(P70=1,IF(U69-T69>100,2,1),IF(P70>0,1,0)),0) -> 0 | V70: =IF(S70="","",INT(T69*1.25)) ->  | X70: =IF(T70="","",IF(T70>W70,"",W70-T70)) ->  | AB70: 1 | AF70: 0 | AG70: =AG69+IF(AE70=1,0,1) -> 67 | AH70: 1 | AI70: 1 | AJ70: 1 | AK70: 1 | AL70: 1 | AM70: 1 | AN70: 6 | AO70: 0 | AP70: =IF(AO70=0,AO70,IF(AP69+AO70>60,AP69+IF(AE69>0,1,AO70)-60,AP69+IF(AE69>0,1,AO70))) -> 0 | AQ70: =IF(AP69>0,IF(AP70=1,IF(AT69-AS69>100,2,1),IF(AP70>0,1,0)),0) -> 0 | AT70: =IF(AY69="","",IF(AY69>0,INT(PMT(AR70/12,B$4*12+D$4-AG69-IF(AE70="",0,AE$3),-AY69,)),"")) ->  | AU70: =IF(AR70="","",INT(AS69*1.25)) ->  | AW70: =IF(AS70="","",IF(AS70>AV70,"",AV70-AS70)) ->  | BA70: 67
G71: 68 | H71: 1 | I71: 1 | J71: 1 | K71: 1 | L71: 1 | M71: 1 | N71: 6 | O71: 0 | P71: 0 | Q71: 0 | AB71: 1 | AF71: 0 | AG71: 68 | AH71: 1 | AI71: 1 | AJ71: 1 | AK71: 1 | AL71: 1 | AM71: 1 | AN71: 6 | AO71: 0 | AP71: 0 | AQ71: 0 | BA71: 68
G72: 69 | H72: 1 | I72: 1 | J72: 1 | K72: 1 | L72: 1 | M72: 1 | N72: 6 | O72: 0 | P72: 0 | Q72: 0 | AB72: 1 | AF72: 0 | AG72: 69 | AH72: 1 | AI72: 1 | AJ72: 1 | AK72: 1 | AL72: 1 | AM72: 1 | AN72: 6 | AO72: 0 | AP72: 0 | AQ72: 0 | AS72: =IF(AR72="","",IF(AR73="",IF(AY71<0,"",AY71+AV72),IF(AQ72=2,MIN(AT72:AU72),IF(AP72>1,AS71,IF(AR72=AR71,AS71,AT72))))) ->  | BA72: 69
G73: 70 | H73: 1 | I73: 1 | J73: =IF($A$9="",0,IF(SUM($A$7:$A$8)*12-G73<0,1,0)) -> 1 | K73: 1 | L73: 1 | M73: 1 | N73: 6 | O73: 0 | P73: 0 | Q73: 0 | AB73: 1 | AF73: 0 | AG73: 70 | AH73: 1 | AI73: 1 | AJ73: =IF($A$9="",0,IF(SUM($A$7:$A$8)*12-AG73<0,1,0)) -> 1 | AK73: 1 | AL73: 1 | AM73: 1 | AN73: 6 | AO73: 0 | AP73: 0 | AQ73: 0 | BA73: 70
G74: 71 | H74: 1 | I74: 1 | J74: 1 | K74: 1 | L74: 1 | M74: 1 | N74: 6 | O74: 0 | P74: 0 | Q74: 0 | AB74: 1 | AF74: 0 | AG74: 71 | AH74: 1 | AI74: 1 | AJ74: =IF($A$9="",0,IF(SUM($A$7:$A$8)*12-AG74<0,1,0)) -> 1 | AK74: 1 | AL74: 1 | AM74: 1 | AN74: 6 | AO74: 0 | AP74: 0 | AQ74: 0 | BA74: 71
G75: 72 | H75: 1 | I75: 1 | J75: 1 | K75: 1 | L75: 1 | M75: 1 | N75: 6 | O75: 0 | P75: 0 | Q75: 0 | AB75: 1 | AF75: 0 | AG75: 72 | AH75: 1 | AI75: 1 | AJ75: 1 | AK75: 1 | AL75: 1 | AM75: 1 | AN75: 6 | AO75: 0 | AP75: 0 | AQ75: 0 | BA75: 72
G76: 73 | H76: 1 | I76: 1 | J76: 1 | K76: 1 | L76: 1 | M76: 1 | N76: 6 | O76: 0 | P76: 0 | Q76: 0 | AB76: 1 | AF76: 0 | AG76: 73 | AH76: 1 | AI76: 1 | AJ76: 1 | AK76: 1 | AL76: 1 | AM76: 1 | AN76: 6 | AO76: 0 | AP76: 0 | AQ76: 0 | BA76: 73
G77: 74 | H77: 1 | I77: 1 | J77: 1 | K77: 1 | L77: 1 | M77: 1 | N77: 6 | O77: 0 | P77: 0 | Q77: 0 | AB77: 1 | AF77: 0 | AG77: 74 | AH77: 1 | AI77: 1 | AJ77: 1 | AK77: 1 | AL77: 1 | AM77: 1 | AN77: 6 | AO77: 0 | AP77: 0 | AQ77: 0 | BA77: 74
G78: 75 | H78: 1 | I78: 1 | J78: 1 | K78: 1 | L78: 1 | M78: 1 | N78: 6 | O78: 0 | P78: 0 | Q78: 0 | AB78: 1 | AF78: 0 | AG78: 75 | AH78: 1 | AI78: 1 | AJ78: 1 | AK78: 1 | AL78: 1 | AM78: 1 | AN78: 6 | AO78: 0 | AP78: 0 | AQ78: 0 | BA78: 75
G79: 76 | H79: 1 | I79: 1 | J79: 1 | K79: 1 | L79: 1 | M79: 1 | N79: 6 | O79: 0 | P79: 0 | Q79: 0 | AB79: 1 | AF79: 0 | AG79: 76 | AH79: 1 | AI79: 1 | AJ79: 1 | AK79: 1 | AL79: 1 | AM79: 1 | AN79: 6 | AO79: 0 | AP79: 0 | AQ79: 0 | BA79: 76
G80: 77 | H80: 1 | I80: 1 | J80: 1 | K80: 1 | L80: 1 | M80: 1 | N80: 6 | O80: 0 | P80: 0 | Q80: 0 | AB80: 1 | AF80: 0 | AG80: 77 | AH80: 1 | AI80: 1 | AJ80: 1 | AK80: 1 | AL80: 1 | AM80: 1 | AN80: 6 | AO80: 0 | AP80: 0 | AQ80: 0 | BA80: 77
G81: 78 | H81: 1 | I81: =IF(A$8="",0,IF(A$7*12-G81<0,1,0)) -> 1 | J81: 1 | K81: 1 | L81: 1 | M81: 1 | N81: 6 | O81: 0 | P81: 0 | Q81: 0 | AB81: 1 | AF81: 0 | AG81: 78 | AH81: 1 | AI81: =IF(A$8="",0,IF(A$7*12-AG81<0,1,0)) -> 1 | AJ81: 1 | AK81: 1 | AL81: 1 | AM81: 1 | AN81: 6 | AO81: 0 | AP81: 0 | AQ81: 0 | BA81: 78
G82: 79 | H82: 1 | I82: 1 | J82: 1 | K82: 1 | L82: 1 | M82: 1 | N82: 6 | O82: 0 | P82: 0 | Q82: 0 | AB82: 1 | AF82: 0 | AG82: 79 | AH82: 1 | AI82: 1 | AJ82: 1 | AK82: 1 | AL82: 1 | AM82: 1 | AN82: 6 | AO82: 0 | AP82: 0 | AQ82: 0 | BA82: 79
G83: 80 | H83: 1 | I83: 1 | J83: 1 | K83: 1 | L83: 1 | M83: 1 | N83: 6 | O83: 0 | P83: 0 | Q83: 0 | AB83: 1 | AF83: 0 | AG83: 80 | AH83: 1 | AI83: 1 | AJ83: 1 | AK83: 1 | AL83: 1 | AM83: 1 | AN83: 6 | AO83: 0 | AP83: 0 | AQ83: 0 | BA83: 80
G84: 81 | H84: 1 | I84: 1 | J84: 1 | K84: 1 | L84: 1 | M84: 1 | N84: 6 | O84: 0 | P84: 0 | Q84: 0 | AB84: 1 | AF84: 0 | AG84: 81 | AH84: 1 | AI84: 1 | AJ84: 1 | AK84: 1 | AL84: 1 | AM84: 1 | AN84: 6 | AO84: 0 | AP84: 0 | AQ84: 0 | BA84: 81
G85: 82 | H85: 1 | I85: 1 | J85: 1 | K85: 1 | L85: 1 | M85: 1 | N85: 6 | O85: 0 | P85: 0 | Q85: 0 | AB85: 1 | AF85: 0 | AG85: 82 | AH85: 1 | AI85: 1 | AJ85: 1 | AK85: 1 | AL85: 1 | AM85: 1 | AN85: 6 | AO85: 0 | AP85: 0 | AQ85: 0 | BA85: 82
G86: 83 | H86: 1 | I86: 1 | J86: 1 | K86: 1 | L86: 1 | M86: 1 | N86: 6 | O86: 0 | P86: 0 | Q86: 0 | AB86: 1 | AF86: 0 | AG86: 83 | AH86: 1 | AI86: 1 | AJ86: 1 | AK86: 1 | AL86: 1 | AM86: 1 | AN86: 6 | AO86: 0 | AP86: 0 | AQ86: 0 | BA86: 83
G87: 84 | H87: 1 | I87: 1 | J87: 1 | K87: 1 | L87: 1 | M87: 1 | N87: 6 | O87: 0 | P87: 0 | Q87: 0 | AB87: 1 | AF87: 0 | AG87: 84 | AH87: 1 | AI87: 1 | AJ87: 1 | AK87: 1 | AL87: 1 | AM87: 1 | AN87: 6 | AO87: 0 | AP87: 0 | AQ87: 0 | BA87: 84
G88: 85 | H88: 1 | I88: 1 | J88: 1 | K88: 1 | L88: 1 | M88: 1 | N88: 6 | O88: 0 | P88: 0 | Q88: 0 | AB88: 1 | AF88: 0 | AG88: 85 | AH88: 1 | AI88: 1 | AJ88: 1 | AK88: 1 | AL88: 1 | AM88: 1 | AN88: 6 | AO88: 0 | AP88: 0 | AQ88: 0 | BA88: 85
G89: 86 | H89: 1 | I89: 1 | J89: 1 | K89: 1 | L89: 1 | M89: 1 | N89: 6 | O89: 0 | P89: 0 | Q89: 0 | AB89: 1 | AF89: 0 | AG89: 86 | AH89: 1 | AI89: 1 | AJ89: 1 | AK89: 1 | AL89: 1 | AM89: 1 | AN89: 6 | AO89: 0 | AP89: 0 | AQ89: 0 | BA89: 86
G90: 87 | H90: 1 | I90: 1 | J90: 1 | K90: 1 | L90: 1 | M90: 1 | N90: 6 | O90: 0 | P90: 0 | Q90: 0 | AB90: 1 | AF90: 0 | AG90: 87 | AH90: 1 | AI90: 1 | AJ90: 1 | AK90: 1 | AL90: 1 | AM90: 1 | AN90: 6 | AO90: 0 | AP90: 0 | AQ90: 0 | BA90: 87
G91: 88 | H91: 1 | I91: 1 | J91: 1 | K91: 1 | L91: 1 | M91: 1 | N91: 6 | O91: 0 | P91: 0 | Q91: 0 | AB91: 1 | AF91: 0 | AG91: 88 | AH91: 1 | AI91: 1 | AJ91: 1 | AK91: 1 | AL91: 1 | AM91: 1 | AN91: 6 | AO91: 0 | AP91: 0 | AQ91: 0 | BA91: 88
G92: 89 | H92: 1 | I92: 1 | J92: 1 | K92: 1 | L92: 1 | M92: 1 | N92: 6 | O92: 0 | P92: 0 | Q92: 0 | AB92: 1 | AF92: 0 | AG92: 89 | AH92: 1 | AI92: 1 | AJ92: 1 | AK92: 1 | AL92: 1 | AM92: 1 | AN92: 6 | AO92: 0 | AP92: 0 | AQ92: 0 | BA92: 89
G93: 90 | H93: 1 | I93: 1 | J93: =IF($A$9="",0,IF(SUM($A$7:$A$8)*12-G93<0,1,0)) -> 1 | K93: 1 | L93: 1 | M93: 1 | N93: 6 | O93: 0 | P93: 0 | Q93: 0 | AB93: 1 | AF93: 0 | AG93: 90 | AH93: 1 | AI93: 1 | AJ93: 1 | AK93: 1 | AL93: 1 | AM93: 1 | AN93: 6 | AO93: 0 | AP93: 0 | AQ93: 0 | BA93: 90
G94: 91 | H94: 1 | I94: 1 | J94: 1 | K94: 1 | L94: 1 | M94: 1 | N94: 6 | O94: 0 | P94: 0 | Q94: 0 | AB94: 1 | AF94: 0 | AG94: 91 | AH94: 1 | AI94: 1 | AJ94: 1 | AK94: 1 | AL94: 1 | AM94: 1 | AN94: 6 | AO94: 0 | AP94: 0 | AQ94: 0 | BA94: 91
G95: 92 | H95: 1 | I95: 1 | J95: 1 | K95: 1 | L95: 1 | M95: 1 | N95: 6 | O95: 0 | P95: 0 | Q95: 0 | AB95: 1 | AF95: 0 | AG95: 92 | AH95: 1 | AI95: 1 | AJ95: 1 | AK95: 1 | AL95: 1 | AM95: 1 | AN95: 6 | AO95: 0 | AP95: 0 | AQ95: 0 | BA95: 92
G96: 93 | H96: 1 | I96: 1 | J96: 1 | K96: 1 | L96: 1 | M96: 1 | N96: 6 | O96: 0 | P96: 0 | Q96: 0 | AB96: 1 | AF96: 0 | AG96: 93 | AH96: 1 | AI96: 1 | AJ96: 1 | AK96: 1 | AL96: 1 | AM96: 1 | AN96: 6 | AO96: 0 | AP96: 0 | AQ96: 0 | BA96: 93
G97: 94 | H97: 1 | I97: 1 | J97: 1 | K97: 1 | L97: 1 | M97: 1 | N97: 6 | O97: 0 | P97: 0 | Q97: 0 | AB97: 1 | AF97: 0 | AG97: 94 | AH97: 1 | AI97: 1 | AJ97: 1 | AK97: 1 | AL97: 1 | AM97: 1 | AN97: 6 | AO97: 0 | AP97: 0 | AQ97: 0 | BA97: 94
G98: 95 | H98: 1 | I98: 1 | J98: 1 | K98: 1 | L98: 1 | M98: 1 | N98: 6 | O98: 0 | P98: 0 | Q98: 0 | AB98: 1 | AF98: 0 | AG98: 95 | AH98: 1 | AI98: 1 | AJ98: 1 | AK98: 1 | AL98: 1 | AM98: 1 | AN98: 6 | AO98: 0 | AP98: 0 | AQ98: 0 | BA98: 95
G99: 96 | H99: 1 | I99: 1 | J99: 1 | K99: 1 | L99: 1 | M99: 1 | N99: 6 | O99: 0 | P99: 0 | Q99: 0 | AB99: 1 | AF99: 0 | AG99: 96 | AH99: 1 | AI99: 1 | AJ99: 1 | AK99: 1 | AL99: 1 | AM99: 1 | AN99: 6 | AO99: 0 | AP99: 0 | AQ99: 0 | BA99: 96
G100: 97 | H100: 1 | I100: 1 | J100: 1 | K100: 1 | L100: 1 | M100: 1 | N100: 6 | O100: 0 | P100: 0 | Q100: 0 | AB100: 1 | AF100: 0 | AG100: 97 | AH100: 1 | AI100: 1 | AJ100: 1 | AK100: 1 | AL100: 1 | AM100: 1 | AN100: 6 | AO100: 0 | AP100: 0 | AQ100: 0 | BA100: 97
G101: 98 | H101: 1 | I101: 1 | J101: 1 | K101: 1 | L101: 1 | M101: 1 | N101: 6 | O101: 0 | P101: 0 | Q101: 0 | AB101: 1 | AF101: 0 | AG101: 98 | AH101: 1 | AI101: 1 | AJ101: 1 | AK101: 1 | AL101: 1 | AM101: 1 | AN101: 6 | AO101: 0 | AP101: 0 | AQ101: 0 | BA101: 98
G102: 99 | H102: 1 | I102: 1 | J102: 1 | K102: 1 | L102: 1 | M102: 1 | N102: 6 | O102: 0 | P102: 0 | Q102: 0 | AB102: 1 | AF102: 0 | AG102: 99 | AH102: 1 | AI102: 1 | AJ102: 1 | AK102: 1 | AL102: 1 | AM102: 1 | AN102: 6 | AO102: 0 | AP102: 0 | AQ102: 0 | BA102: 99
G103: 100 | H103: 1 | I103: 1 | J103: 1 | K103: 1 | L103: 1 | M103: 1 | N103: 6 | O103: 0 | P103: 0 | Q103: 0 | AB103: 1 | AF103: 0 | AG103: 100 | AH103: 1 | AI103: 1 | AJ103: 1 | AK103: 1 | AL103: 1 | AM103: 1 | AN103: 6 | AO103: 0 | AP103: 0 | AQ103: 0 | BA103: 100
G104: 101 | H104: 1 | I104: 1 | J104: 1 | K104: 1 | L104: 1 | M104: 1 | N104: 6 | O104: 0 | P104: 0 | Q104: 0 | AB104: 1 | AF104: 0 | AG104: 101 | AH104: 1 | AI104: 1 | AJ104: 1 | AK104: 1 | AL104: 1 | AM104: 1 | AN104: 6 | AO104: 0 | AP104: 0 | AQ104: 0 | BA104: 101
G105: 102 | H105: 1 | I105: 1 | J105: 1 | K105: =IF($A$9="",0,IF(SUM($A$7:$A$9)*12-G105<0,1,0)) -> 1 | L105: 1 | M105: 1 | N105: 6 | O105: 0 | P105: 0 | Q105: 0 | AB105: 1 | AF105: 0 | AG105: 102 | AH105: 1 | AI105: 1 | AJ105: 1 | AK105: =IF($A$9="",0,IF(SUM($A$7:$A$9)*12-AG105<0,1,0)) -> 1 | AL105: 1 | AM105: 1 | AN105: 6 | AO105: 0 | AP105: 0 | AQ105: 0 | BA105: 102
G106: 103 | H106: 1 | I106: 1 | J106: 1 | K106: 1 | L106: 1 | M106: 1 | N106: 6 | O106: 0 | P106: 0 | Q106: 0 | AB106: 1 | AF106: 0 | AG106: 103 | AH106: 1 | AI106: 1 | AJ106: 1 | AK106: 1 | AL106: 1 | AM106: 1 | AN106: 6 | AO106: 0 | AP106: 0 | AQ106: 0 | BA106: 103
G107: 104 | H107: 1 | I107: 1 | J107: 1 | K107: 1 | L107: 1 | M107: 1 | N107: 6 | O107: 0 | P107: 0 | Q107: 0 | AB107: 1 | AF107: 0 | AG107: 104 | AH107: 1 | AI107: 1 | AJ107: 1 | AK107: 1 | AL107: 1 | AM107: 1 | AN107: 6 | AO107: 0 | AP107: 0 | AQ107: 0 | BA107: 104
G108: 105 | H108: 1 | I108: 1 | J108: 1 | K108: 1 | L108: 1 | M108: 1 | N108: 6 | O108: 0 | P108: 0 | Q108: 0 | AB108: 1 | AF108: 0 | AG108: 105 | AH108: 1 | AI108: 1 | AJ108: 1 | AK108: 1 | AL108: 1 | AM108: 1 | AN108: 6 | AO108: 0 | AP108: 0 | AQ108: 0 | BA108: 105
G109: 106 | H109: 1 | I109: 1 | J109: 1 | K109: 1 | L109: 1 | M109: 1 | N109: 6 | O109: 0 | P109: =IF(O109=0,O109,IF(P108+O109>60,P108+O109-60,P108+O109)) -> 0 | Q109: 0 | AB109: 1 | AF109: 0 | AG109: 106 | AH109: 1 | AI109: 1 | AJ109: 1 | AK109: 1 | AL109: 1 | AM109: 1 | AN109: 6 | AO109: 0 | AP109: 0 | AQ109: 0 | BA109: 106
G110: 107 | H110: 1 | I110: 1 | J110: 1 | K110: 1 | L110: 1 | M110: 1 | N110: 6 | O110: 0 | P110: =IF(O110=0,O110,IF(P109+O110>60,P109+O110-60,P109+O110)) -> 0 | Q110: 0 | AB110: 1 | AF110: 0 | AG110: 107 | AH110: 1 | AI110: 1 | AJ110: 1 | AK110: 1 | AL110: 1 | AM110: 1 | AN110: 6 | AO110: 0 | AP110: 0 | AQ110: 0 | BA110: 107
G111: 108 | H111: 1 | I111: 1 | J111: 1 | K111: 1 | L111: 1 | M111: 1 | N111: 6 | O111: 0 | P111: 0 | Q111: 0 | AB111: 1 | AF111: 0 | AG111: 108 | AH111: 1 | AI111: 1 | AJ111: 1 | AK111: 1 | AL111: 1 | AM111: 1 | AN111: 6 | AO111: 0 | AP111: 0 | AQ111: 0 | BA111: 108
G112: 109 | H112: 1 | I112: 1 | J112: 1 | K112: 1 | L112: 1 | M112: 1 | N112: 6 | O112: 0 | P112: 0 | Q112: 0 | AB112: 1 | AF112: 0 | AG112: 109 | AH112: 1 | AI112: 1 | AJ112: 1 | AK112: 1 | AL112: 1 | AM112: 1 | AN112: 6 | AO112: 0 | AP112: 0 | AQ112: 0 | BA112: 109
G113: 110 | H113: 1 | I113: 1 | J113: 1 | K113: 1 | L113: 1 | M113: 1 | N113: 6 | O113: 0 | P113: 0 | Q113: 0 | AB113: 1 | AF113: 0 | AG113: 110 | AH113: 1 | AI113: 1 | AJ113: 1 | AK113: 1 | AL113: 1 | AM113: 1 | AN113: 6 | AO113: 0 | AP113: 0 | AQ113: 0 | BA113: 110
G114: 111 | H114: 1 | I114: 1 | J114: 1 | K114: 1 | L114: 1 | M114: 1 | N114: 6 | O114: 0 | P114: 0 | Q114: 0 | AB114: 1 | AF114: 0 | AG114: 111 | AH114: 1 | AI114: 1 | AJ114: 1 | AK114: 1 | AL114: 1 | AM114: 1 | AN114: 6 | AO114: 0 | AP114: 0 | AQ114: 0 | BA114: 111
G115: 112 | H115: 1 | I115: 1 | J115: 1 | K115: 1 | L115: 1 | M115: 1 | N115: 6 | O115: 0 | P115: 0 | Q115: 0 | AB115: 1 | AF115: 0 | AG115: 112 | AH115: 1 | AI115: 1 | AJ115: 1 | AK115: 1 | AL115: 1 | AM115: 1 | AN115: 6 | AO115: 0 | AP115: 0 | AQ115: 0 | BA115: 112
G116: 113 | H116: 1 | I116: 1 | J116: 1 | K116: 1 | L116: 1 | M116: 1 | N116: 6 | O116: 0 | P116: 0 | Q116: 0 | AB116: 1 | AF116: 0 | AG116: 113 | AH116: 1 | AI116: 1 | AJ116: 1 | AK116: 1 | AL116: 1 | AM116: 1 | AN116: 6 | AO116: 0 | AP116: 0 | AQ116: 0 | BA116: 113
G117: 114 | H117: 1 | I117: 1 | J117: 1 | K117: 1 | L117: =IF($A$9="",0,IF(SUM($A$7:$A$10)*12-G117<0,1,0)) -> 1 | M117: 1 | N117: 6 | O117: 0 | P117: 0 | Q117: 0 | AB117: 1 | AF117: 0 | AG117: 114 | AH117: 1 | AI117: 1 | AJ117: 1 | AK117: 1 | AL117: =IF($A$9="",0,IF(SUM($A$7:$A$10)*12-AG117<0,1,0)) -> 1 | AM117: 1 | AN117: 6 | AO117: 0 | AP117: 0 | AQ117: 0 | BA117: 114
G118: 115 | H118: 1 | I118: 1 | J118: 1 | K118: 1 | L118: 1 | M118: 1 | N118: 6 | O118: 0 | P118: 0 | Q118: 0 | AB118: 1 | AF118: 0 | AG118: 115 | AH118: 1 | AI118: 1 | AJ118: 1 | AK118: 1 | AL118: 1 | AM118: 1 | AN118: 6 | AO118: 0 | AP118: 0 | AQ118: 0 | BA118: 115
G119: 116 | H119: 1 | I119: 1 | J119: 1 | K119: 1 | L119: 1 | M119: 1 | N119: 6 | O119: 0 | P119: 0 | Q119: 0 | AB119: 1 | AF119: 0 | AG119: 116 | AH119: 1 | AI119: 1 | AJ119: 1 | AK119: 1 | AL119: 1 | AM119: 1 | AN119: 6 | AO119: 0 | AP119: 0 | AQ119: 0 | BA119: 116
G120: 117 | H120: 1 | I120: 1 | J120: 1 | K120: 1 | L120: 1 | M120: 1 | N120: 6 | O120: 0 | P120: 0 | Q120: 0 | AB120: 1 | AF120: 0 | AG120: 117 | AH120: 1 | AI120: 1 | AJ120: 1 | AK120: 1 | AL120: 1 | AM120: 1 | AN120: 6 | AO120: 0 | AP120: 0 | AQ120: 0 | BA120: 117
G121: 118 | H121: 1 | I121: 1 | J121: 1 | K121: 1 | L121: 1 | M121: 1 | N121: 6 | O121: 0 | P121: 0 | Q121: 0 | AB121: 1 | AF121: 0 | AG121: 118 | AH121: 1 | AI121: 1 | AJ121: 1 | AK121: 1 | AL121: 1 | AM121: 1 | AN121: 6 | AO121: 0 | AP121: 0 | AQ121: 0 | BA121: 118
G122: 119 | H122: 1 | I122: 1 | J122: 1 | K122: 1 | L122: 1 | M122: 1 | N122: 6 | O122: 0 | P122: 0 | Q122: 0 | AB122: 1 | AF122: 0 | AG122: 119 | AH122: 1 | AI122: 1 | AJ122: 1 | AK122: 1 | AL122: 1 | AM122: 1 | AN122: 6 | AO122: 0 | AP122: 0 | AQ122: 0 | BA122: 119
G123: 120 | H123: 1 | I123: 1 | J123: 1 | K123: 1 | L123: 1 | M123: 1 | N123: 6 | O123: 0 | P123: 0 | Q123: 0 | AB123: 1 | AF123: 0 | AG123: 120 | AH123: 1 | AI123: 1 | AJ123: 1 | AK123: 1 | AL123: 1 | AM123: 1 | AN123: 6 | AO123: 0 | AP123: 0 | AQ123: 0 | BA123: 120
G124: 121 | H124: 1 | I124: 1 | J124: 1 | K124: 1 | L124: 1 | M124: 1 | N124: 6 | O124: 0 | P124: 0 | Q124: 0 | AB124: 1 | AF124: 0 | AG124: 121 | AH124: 1 | AI124: 1 | AJ124: 1 | AK124: 1 | AL124: 1 | AM124: 1 | AN124: 6 | AO124: 0 | AP124: 0 | AQ124: 0 | BA124: 121
G125: 122 | H125: 1 | I125: 1 | J125: 1 | K125: 1 | L125: 1 | M125: 1 | N125: 6 | O125: 0 | P125: 0 | Q125: 0 | AB125: 1 | AF125: 0 | AG125: 122 | AH125: 1 | AI125: 1 | AJ125: 1 | AK125: 1 | AL125: 1 | AM125: 1 | AN125: 6 | AO125: 0 | AP125: 0 | AQ125: 0 | BA125: 122
G126: 123 | H126: 1 | I126: 1 | J126: 1 | K126: 1 | L126: 1 | M126: 1 | N126: 6 | O126: 0 | P126: 0 | Q126: 0 | AB126: 1 | AF126: 0 | AG126: 123 | AH126: 1 | AI126: 1 | AJ126: 1 | AK126: 1 | AL126: 1 | AM126: 1 | AN126: 6 | AO126: 0 | AP126: 0 | AQ126: 0 | BA126: 123
G127: 124 | H127: 1 | I127: 1 | J127: 1 | K127: 1 | L127: 1 | M127: 1 | N127: 6 | O127: 0 | P127: 0 | Q127: 0 | AB127: 1 | AF127: 0 | AG127: 124 | AH127: 1 | AI127: 1 | AJ127: 1 | AK127: 1 | AL127: 1 | AM127: 1 | AN127: 6 | AO127: 0 | AP127: 0 | AQ127: 0 | BA127: 124
G128: 125 | H128: 1 | I128: 1 | J128: 1 | K128: 1 | L128: 1 | M128: 1 | N128: 6 | O128: 0 | P128: 0 | Q128: 0 | AB128: 1 | AF128: 0 | AG128: 125 | AH128: 1 | AI128: 1 | AJ128: 1 | AK128: 1 | AL128: 1 | AM128: 1 | AN128: 6 | AO128: 0 | AP128: 0 | AQ128: 0 | BA128: 125
G129: 126 | H129: 1 | I129: 1 | J129: 1 | K129: 1 | L129: 1 | M129: =IF($A$9="",0,IF(SUM($A$7:$A$11)*12-G129<0,1,0)) -> 1 | N129: 6 | O129: 0 | P129: 0 | Q129: 0 | AB129: 1 | AF129: 0 | AG129: 126 | AH129: 1 | AI129: 1 | AJ129: 1 | AK129: 1 | AL129: 1 | AM129: =IF($A$9="",0,IF(SUM($A$7:$A$11)*12-AG129<0,1,0)) -> 1 | AN129: 6 | AO129: 0 | AP129: 0 | AQ129: 0 | BA129: 126
G130: 127 | H130: 1 | I130: 1 | J130: 1 | K130: 1 | L130: 1 | M130: 1 | N130: 6 | O130: 0 | P130: 0 | Q130: 0 | AB130: 1 | AF130: 0 | AG130: 127 | AH130: 1 | AI130: 1 | AJ130: 1 | AK130: 1 | AL130: 1 | AM130: 1 | AN130: 6 | AO130: 0 | AP130: 0 | AQ130: 0 | BA130: 127
G131: 128 | H131: 1 | I131: 1 | J131: 1 | K131: 1 | L131: 1 | M131: 1 | N131: 6 | O131: 0 | P131: 0 | Q131: 0 | AB131: 1 | AF131: 0 | AG131: 128 | AH131: 1 | AI131: 1 | AJ131: 1 | AK131: 1 | AL131: 1 | AM131: 1 | AN131: 6 | AO131: 0 | AP131: 0 | AQ131: 0 | BA131: 128
G132: 129 | H132: 1 | I132: 1 | J132: 1 | K132: 1 | L132: 1 | M132: 1 | N132: 6 | O132: 0 | P132: 0 | Q132: 0 | T132: =IF(S132="","",IF(S133="",IF(Z131<0,"",Z131+W132),IF(Q132=2,MIN(U132:V132),IF(P132>1,T131,IF(S132=S131,T131,U132))))) ->  | AB132: =IF(B$15*12<G132,1,"") -> 1 | AC132: =IF(AB132=1,Y132,"") ->  | AF132: 0 | AG132: 129 | AH132: 1 | AI132: 1 | AJ132: 1 | AK132: 1 | AL132: 1 | AM132: 1 | AN132: 6 | AO132: 0 | AP132: 0 | AQ132: 0 | AV132: =IF(S132="","",IF(AE132=1,0,INT(AY131*AR132/12))) ->  | AX132: =IF(S132="","",IF(AE132=1,0,AS132-AV132)) ->  | AY132: =IF(S132="","",IF(AX132=0,IF(AF131=0,AY131-$B$16*10000,AY131-AX132),AY131-AX132)) ->  | BA132: 129 | BB132: =IFERROR(_xlfn.XLOOKUP(BA132,AG$4:AG$603,AS$4:AS$603),"") -> 
G133: 130 | H133: 1 | I133: 1 | J133: 1 | K133: 1 | L133: 1 | M133: 1 | N133: =SUM(H133:M133) -> 6 | O133: =IF(N133=1,IF(E$7=1,1,0),IF(N133=2,IF(E$8=1,1,0),IF(N133=3,IF(E$9=1,1,0),IF(N133=4,IF(E$10=1,1,0),IF(N133=5,IF(E$11=1,1,0),IF(N133=6,IF(E$12=1,1,0),0)))))) -> 0 | P133: 0 | Q133: 0 | R133: =IF(N133=1,C$7,IF(N133=2,C$8,IF(N133=3,C$9,IF(N133=4,C$10,IF(N133=5,C$11,IF(N133=6,$C$12,0)))))) ->  | S133: =IF($B$4*12+D$4>=G133,R133,"") ->  | U133: =IF(Z132="","",IF(Z132>0,INT(PMT(S133/12,B$4*12+D$4-G132,-Z132,)),"")) ->  | W133: =IF(S133="","",INT(Z132*S133/12)) ->  | Y133: =IF(S133="","",IF(X133="",T133-W133,0)) ->  | Z133: =IF(S133="","",Z132-Y133) ->  | AB133: 1 | AD133: =IF(AC133="","",IF(AC133=0,"",IF(AD132="",0,AD132)+AC133)) ->  | AE133: =IF(AD133="","",IF(B$16*10000>=AD133,1,0)) ->  | AF133: =IF(AE133=1,AC133,0) -> 0 | AG133: 130 | AH133: 1 | AI133: 1 | AJ133: 1 | AK133: 1 | AL133: 1 | AM133: 1 | AN133: =SUM(AH133:AM133) -> 6 | AO133: =IF(AN133=1,IF(E$7=1,1,0),IF(AN133=2,IF(E$8=1,1,0),IF(AN133=3,IF(E$9=1,1,0),IF(AN133=4,IF(E$10=1,1,0),IF(AN133=5,IF(E$11=1,1,0),IF(AN133=6,IF(E$12=1,1,0),0)))))) -> 0 | AP133: 0 | AQ133: 0 | AR133: =IF(S133="","",_xlfn.XLOOKUP(AG133,G$4:G$604,S$4:S$604)) ->  | BA133: 130 | BC133: =IFERROR(_xlfn.XLOOKUP(BA133,AG$4:AG$603,AY$4:AY$603),"") -> 
G134: 131 | H134: 1 | I134: 1 | J134: 1 | K134: 1 | L134: 1 | M134: 1 | N134: 6 | O134: 0 | P134: 0 | Q134: =IF(P133>0,IF(P134=1,IF(U133-T133>100,2,1),IF(P134>0,1,0)),0) -> 0 | V134: =IF(S134="","",INT(T133*1.25)) ->  | X134: =IF(T134="","",IF(T134>W134,"",W134-T134)) ->  | AB134: 1 | AF134: 0 | AG134: =AG133+IF(AE134=1,0,1) -> 131 | AH134: 1 | AI134: 1 | AJ134: 1 | AK134: 1 | AL134: 1 | AM134: 1 | AN134: 6 | AO134: 0 | AP134: =IF(AO134=0,AO134,IF(AP133+AO134>60,AP133+IF(AE133>0,1,AO134)-60,AP133+IF(AE133>0,1,AO134))) -> 0 | AQ134: =IF(AP133>0,IF(AP134=1,IF(AT133-AS133>100,2,1),IF(AP134>0,1,0)),0) -> 0 | AT134: =IF(AY133="","",IF(AY133>0,INT(PMT(AR134/12,B$4*12+D$4-AG133-IF(AE134="",0,AE$3),-AY133,)),"")) ->  | AU134: =IF(AR134="","",INT(AS133*1.25)) ->  | AW134: =IF(AS134="","",IF(AS134>AV134,"",AV134-AS134)) ->  | BA134: 131
G135: 132 | H135: 1 | I135: 1 | J135: 1 | K135: 1 | L135: 1 | M135: 1 | N135: 6 | O135: 0 | P135: 0 | Q135: 0 | AB135: 1 | AF135: 0 | AG135: 132 | AH135: 1 | AI135: 1 | AJ135: 1 | AK135: 1 | AL135: 1 | AM135: 1 | AN135: 6 | AO135: 0 | AP135: 0 | AQ135: 0 | BA135: 132
G136: 133 | H136: 1 | I136: 1 | J136: 1 | K136: 1 | L136: 1 | M136: 1 | N136: 6 | O136: 0 | P136: 0 | Q136: 0 | AB136: 1 | AF136: 0 | AG136: 133 | AH136: 1 | AI136: 1 | AJ136: 1 | AK136: 1 | AL136: 1 | AM136: 1 | AN136: 6 | AO136: 0 | AP136: 0 | AQ136: 0 | AS136: =IF(AR136="","",IF(AR137="",IF(AY135<0,"",AY135+AV136),IF(AQ136=2,MIN(AT136:AU136),IF(AP136>1,AS135,IF(AR136=AR135,AS135,AT136))))) ->  | BA136: 133
G137: 134 | H137: 1 | I137: 1 | J137: 1 | K137: 1 | L137: 1 | M137: 1 | N137: 6 | O137: 0 | P137: 0 | Q137: 0 | AB137: 1 | AF137: 0 | AG137: 134 | AH137: 1 | AI137: 1 | AJ137: 1 | AK137: 1 | AL137: 1 | AM137: 1 | AN137: 6 | AO137: 0 | AP137: 0 | AQ137: 0 | BA137: 134
G138: 135 | H138: 1 | I138: 1 | J138: 1 | K138: 1 | L138: 1 | M138: 1 | N138: 6 | O138: 0 | P138: 0 | Q138: 0 | AB138: 1 | AF138: 0 | AG138: 135 | AH138: 1 | AI138: 1 | AJ138: =IF($A$9="",0,IF(SUM($A$7:$A$8)*12-AG138<0,1,0)) -> 1 | AK138: 1 | AL138: 1 | AM138: 1 | AN138: 6 | AO138: 0 | AP138: 0 | AQ138: 0 | BA138: 135
G139: 136 | H139: 1 | I139: 1 | J139: 1 | K139: 1 | L139: 1 | M139: 1 | N139: 6 | O139: 0 | P139: 0 | Q139: 0 | AB139: 1 | AF139: 0 | AG139: 136 | AH139: 1 | AI139: 1 | AJ139: 1 | AK139: 1 | AL139: 1 | AM139: 1 | AN139: 6 | AO139: 0 | AP139: 0 | AQ139: 0 | BA139: 136
G140: 137 | H140: 1 | I140: 1 | J140: 1 | K140: 1 | L140: 1 | M140: 1 | N140: 6 | O140: 0 | P140: 0 | Q140: 0 | AB140: 1 | AF140: 0 | AG140: 137 | AH140: 1 | AI140: 1 | AJ140: 1 | AK140: 1 | AL140: 1 | AM140: 1 | AN140: 6 | AO140: 0 | AP140: 0 | AQ140: 0 | BA140: 137
G141: 138 | H141: 1 | I141: 1 | J141: 1 | K141: 1 | L141: 1 | M141: 1 | N141: 6 | O141: 0 | P141: 0 | Q141: 0 | AB141: 1 | AF141: 0 | AG141: 138 | AH141: 1 | AI141: 1 | AJ141: 1 | AK141: 1 | AL141: 1 | AM141: 1 | AN141: 6 | AO141: 0 | AP141: 0 | AQ141: 0 | BA141: 138
G142: 139 | H142: 1 | I142: 1 | J142: 1 | K142: 1 | L142: 1 | M142: 1 | N142: 6 | O142: 0 | P142: 0 | Q142: 0 | AB142: 1 | AF142: 0 | AG142: 139 | AH142: 1 | AI142: 1 | AJ142: 1 | AK142: 1 | AL142: 1 | AM142: 1 | AN142: 6 | AO142: 0 | AP142: 0 | AQ142: 0 | BA142: 139
G143: 140 | H143: 1 | I143: 1 | J143: 1 | K143: 1 | L143: 1 | M143: 1 | N143: 6 | O143: 0 | P143: 0 | Q143: 0 | AB143: 1 | AF143: 0 | AG143: 140 | AH143: 1 | AI143: 1 | AJ143: 1 | AK143: 1 | AL143: 1 | AM143: 1 | AN143: 6 | AO143: 0 | AP143: 0 | AQ143: 0 | BA143: 140
G144: 141 | H144: 1 | I144: 1 | J144: 1 | K144: 1 | L144: 1 | M144: 1 | N144: 6 | O144: 0 | P144: 0 | Q144: 0 | AB144: 1 | AF144: 0 | AG144: 141 | AH144: 1 | AI144: 1 | AJ144: 1 | AK144: 1 | AL144: 1 | AM144: 1 | AN144: 6 | AO144: 0 | AP144: 0 | AQ144: 0 | BA144: 141
G145: 142 | H145: 1 | I145: =IF(A$8="",0,IF(A$7*12-G145<0,1,0)) -> 1 | J145: 1 | K145: 1 | L145: 1 | M145: 1 | N145: 6 | O145: 0 | P145: 0 | Q145: 0 | AB145: 1 | AF145: 0 | AG145: 142 | AH145: 1 | AI145: =IF(A$8="",0,IF(A$7*12-AG145<0,1,0)) -> 1 | AJ145: 1 | AK145: 1 | AL145: 1 | AM145: 1 | AN145: 6 | AO145: 0 | AP145: 0 | AQ145: 0 | BA145: 142
G146: 143 | H146: 1 | I146: 1 | J146: 1 | K146: 1 | L146: 1 | M146: 1 | N146: 6 | O146: 0 | P146: 0 | Q146: 0 | AB146: 1 | AF146: 0 | AG146: 143 | AH146: 1 | AI146: 1 | AJ146: 1 | AK146: 1 | AL146: 1 | AM146: 1 | AN146: 6 | AO146: 0 | AP146: 0 | AQ146: 0 | BA146: 143
G147: 144 | H147: 1 | I147: 1 | J147: 1 | K147: 1 | L147: 1 | M147: 1 | N147: 6 | O147: 0 | P147: 0 | Q147: 0 | AB147: 1 | AF147: 0 | AG147: 144 | AH147: 1 | AI147: 1 | AJ147: 1 | AK147: 1 | AL147: 1 | AM147: 1 | AN147: 6 | AO147: 0 | AP147: 0 | AQ147: 0 | BA147: 144
G148: 145 | H148: 1 | I148: 1 | J148: 1 | K148: 1 | L148: 1 | M148: 1 | N148: 6 | O148: 0 | P148: 0 | Q148: 0 | AB148: 1 | AF148: 0 | AG148: 145 | AH148: 1 | AI148: 1 | AJ148: 1 | AK148: 1 | AL148: 1 | AM148: 1 | AN148: 6 | AO148: 0 | AP148: 0 | AQ148: 0 | BA148: 145
G149: 146 | H149: 1 | I149: 1 | J149: 1 | K149: 1 | L149: 1 | M149: 1 | N149: 6 | O149: 0 | P149: 0 | Q149: 0 | AB149: 1 | AF149: 0 | AG149: 146 | AH149: 1 | AI149: 1 | AJ149: 1 | AK149: 1 | AL149: 1 | AM149: 1 | AN149: 6 | AO149: 0 | AP149: 0 | AQ149: 0 | BA149: 146
G150: 147 | H150: 1 | I150: 1 | J150: 1 | K150: 1 | L150: 1 | M150: 1 | N150: 6 | O150: 0 | P150: 0 | Q150: 0 | AB150: 1 | AF150: 0 | AG150: 147 | AH150: 1 | AI150: 1 | AJ150: 1 | AK150: 1 | AL150: 1 | AM150: 1 | AN150: 6 | AO150: 0 | AP150: 0 | AQ150: 0 | BA150: 147
G151: 148 | H151: 1 | I151: 1 | J151: 1 | K151: 1 | L151: 1 | M151: 1 | N151: 6 | O151: 0 | P151: 0 | Q151: 0 | AB151: 1 | AF151: 0 | AG151: 148 | AH151: 1 | AI151: 1 | AJ151: 1 | AK151: 1 | AL151: 1 | AM151: 1 | AN151: 6 | AO151: 0 | AP151: 0 | AQ151: 0 | BA151: 148
G152: 149 | H152: 1 | I152: 1 | J152: 1 | K152: 1 | L152: 1 | M152: 1 | N152: 6 | O152: 0 | P152: 0 | Q152: 0 | AB152: 1 | AF152: 0 | AG152: 149 | AH152: 1 | AI152: 1 | AJ152: 1 | AK152: 1 | AL152: 1 | AM152: 1 | AN152: 6 | AO152: 0 | AP152: 0 | AQ152: 0 | BA152: 149
G153: 150 | H153: 1 | I153: 1 | J153: 1 | K153: 1 | L153: 1 | M153: 1 | N153: 6 | O153: 0 | P153: 0 | Q153: 0 | AB153: 1 | AF153: 0 | AG153: 150 | AH153: 1 | AI153: 1 | AJ153: 1 | AK153: 1 | AL153: 1 | AM153: 1 | AN153: 6 | AO153: 0 | AP153: 0 | AQ153: 0 | BA153: 150
G154: 151 | H154: 1 | I154: 1 | J154: 1 | K154: 1 | L154: 1 | M154: 1 | N154: 6 | O154: 0 | P154: 0 | Q154: 0 | AB154: 1 | AF154: 0 | AG154: 151 | AH154: 1 | AI154: 1 | AJ154: 1 | AK154: 1 | AL154: 1 | AM154: 1 | AN154: 6 | AO154: 0 | AP154: 0 | AQ154: 0 | BA154: 151
G155: 152 | H155: 1 | I155: 1 | J155: 1 | K155: 1 | L155: 1 | M155: 1 | N155: 6 | O155: 0 | P155: 0 | Q155: 0 | AB155: 1 | AF155: 0 | AG155: 152 | AH155: 1 | AI155: 1 | AJ155: 1 | AK155: 1 | AL155: 1 | AM155: 1 | AN155: 6 | AO155: 0 | AP155: 0 | AQ155: 0 | BA155: 152
G156: 153 | H156: 1 | I156: 1 | J156: 1 | K156: 1 | L156: 1 | M156: 1 | N156: 6 | O156: 0 | P156: 0 | Q156: 0 | AB156: 1 | AF156: 0 | AG156: 153 | AH156: 1 | AI156: 1 | AJ156: 1 | AK156: 1 | AL156: 1 | AM156: 1 | AN156: 6 | AO156: 0 | AP156: 0 | AQ156: 0 | BA156: 153
G157: 154 | H157: 1 | I157: 1 | J157: =IF($A$9="",0,IF(SUM($A$7:$A$8)*12-G157<0,1,0)) -> 1 | K157: 1 | L157: 1 | M157: 1 | N157: 6 | O157: 0 | P157: 0 | Q157: 0 | AB157: 1 | AF157: 0 | AG157: 154 | AH157: 1 | AI157: 1 | AJ157: 1 | AK157: 1 | AL157: 1 | AM157: 1 | AN157: 6 | AO157: 0 | AP157: 0 | AQ157: 0 | BA157: 154
G158: 155 | H158: 1 | I158: 1 | J158: 1 | K158: 1 | L158: 1 | M158: 1 | N158: 6 | O158: 0 | P158: 0 | Q158: 0 | AB158: 1 | AF158: 0 | AG158: 155 | AH158: 1 | AI158: 1 | AJ158: 1 | AK158: 1 | AL158: 1 | AM158: 1 | AN158: 6 | AO158: 0 | AP158: 0 | AQ158: 0 | BA158: 155
G159: 156 | H159: 1 | I159: 1 | J159: 1 | K159: 1 | L159: 1 | M159: 1 | N159: 6 | O159: 0 | P159: 0 | Q159: 0 | AB159: 1 | AF159: 0 | AG159: 156 | AH159: 1 | AI159: 1 | AJ159: 1 | AK159: 1 | AL159: 1 | AM159: 1 | AN159: 6 | AO159: 0 | AP159: 0 | AQ159: 0 | BA159: 156
G160: 157 | H160: 1 | I160: 1 | J160: 1 | K160: 1 | L160: 1 | M160: 1 | N160: 6 | O160: 0 | P160: 0 | Q160: 0 | AB160: 1 | AF160: 0 | AG160: 157 | AH160: 1 | AI160: 1 | AJ160: 1 | AK160: 1 | AL160: 1 | AM160: 1 | AN160: 6 | AO160: 0 | AP160: 0 | AQ160: 0 | BA160: 157
G161: 158 | H161: 1 | I161: 1 | J161: 1 | K161: 1 | L161: 1 | M161: 1 | N161: 6 | O161: 0 | P161: 0 | Q161: 0 | AB161: 1 | AF161: 0 | AG161: 158 | AH161: 1 | AI161: 1 | AJ161: 1 | AK161: 1 | AL161: 1 | AM161: 1 | AN161: 6 | AO161: 0 | AP161: 0 | AQ161: 0 | BA161: 158
G162: 159 | H162: 1 | I162: 1 | J162: 1 | K162: 1 | L162: 1 | M162: 1 | N162: 6 | O162: 0 | P162: 0 | Q162: 0 | AB162: 1 | AF162: 0 | AG162: 159 | AH162: 1 | AI162: 1 | AJ162: 1 | AK162: 1 | AL162: 1 | AM162: 1 | AN162: 6 | AO162: 0 | AP162: 0 | AQ162: 0 | BA162: 159
G163: 160 | H163: 1 | I163: 1 | J163: 1 | K163: 1 | L163: 1 | M163: 1 | N163: 6 | O163: 0 | P163: 0 | Q163: 0 | AB163: 1 | AF163: 0 | AG163: 160 | AH163: 1 | AI163: 1 | AJ163: 1 | AK163: 1 | AL163: 1 | AM163: 1 | AN163: 6 | AO163: 0 | AP163: 0 | AQ163: 0 | BA163: 160
G164: 161 | H164: 1 | I164: 1 | J164: 1 | K164: 1 | L164: 1 | M164: 1 | N164: 6 | O164: 0 | P164: 0 | Q164: 0 | AB164: 1 | AF164: 0 | AG164: 161 | AH164: 1 | AI164: 1 | AJ164: 1 | AK164: 1 | AL164: 1 | AM164: 1 | AN164: 6 | AO164: 0 | AP164: 0 | AQ164: 0 | BA164: 161
G165: 162 | H165: 1 | I165: 1 | J165: 1 | K165: 1 | L165: 1 | M165: 1 | N165: 6 | O165: 0 | P165: 0 | Q165: 0 | AB165: 1 | AF165: 0 | AG165: 162 | AH165: 1 | AI165: 1 | AJ165: 1 | AK165: 1 | AL165: 1 | AM165: 1 | AN165: 6 | AO165: 0 | AP165: 0 | AQ165: 0 | BA165: 162
G166: 163 | H166: 1 | I166: 1 | J166: 1 | K166: 1 | L166: 1 | M166: 1 | N166: 6 | O166: 0 | P166: 0 | Q166: 0 | AB166: 1 | AF166: 0 | AG166: 163 | AH166: 1 | AI166: 1 | AJ166: 1 | AK166: 1 | AL166: 1 | AM166: 1 | AN166: 6 | AO166: 0 | AP166: 0 | AQ166: 0 | BA166: 163
G167: 164 | H167: 1 | I167: 1 | J167: 1 | K167: 1 | L167: 1 | M167: 1 | N167: 6 | O167: 0 | P167: 0 | Q167: 0 | AB167: 1 | AF167: 0 | AG167: 164 | AH167: 1 | AI167: 1 | AJ167: 1 | AK167: 1 | AL167: 1 | AM167: 1 | AN167: 6 | AO167: 0 | AP167: 0 | AQ167: 0 | BA167: 164
G168: 165 | H168: 1 | I168: 1 | J168: 1 | K168: 1 | L168: 1 | M168: 1 | N168: 6 | O168: 0 | P168: 0 | Q168: 0 | AB168: 1 | AF168: 0 | AG168: 165 | AH168: 1 | AI168: 1 | AJ168: 1 | AK168: 1 | AL168: 1 | AM168: 1 | AN168: 6 | AO168: 0 | AP168: 0 | AQ168: 0 | BA168: 165
G169: 166 | H169: 1 | I169: 1 | J169: 1 | K169: =IF($A$9="",0,IF(SUM($A$7:$A$9)*12-G169<0,1,0)) -> 1 | L169: 1 | M169: 1 | N169: 6 | O169: 0 | P169: 0 | Q169: 0 | AB169: 1 | AF169: 0 | AG169: 166 | AH169: 1 | AI169: 1 | AJ169: 1 | AK169: =IF($A$9="",0,IF(SUM($A$7:$A$9)*12-AG169<0,1,0)) -> 1 | AL169: 1 | AM169: 1 | AN169: 6 | AO169: 0 | AP169: 0 | AQ169: 0 | BA169: 166
G170: 167 | H170: 1 | I170: 1 | J170: 1 | K170: 1 | L170: 1 | M170: 1 | N170: 6 | O170: 0 | P170: 0 | Q170: 0 | AB170: 1 | AF170: 0 | AG170: 167 | AH170: 1 | AI170: 1 | AJ170: 1 | AK170: 1 | AL170: 1 | AM170: 1 | AN170: 6 | AO170: 0 | AP170: 0 | AQ170: 0 | BA170: 167
G171: 168 | H171: 1 | I171: 1 | J171: 1 | K171: 1 | L171: 1 | M171: 1 | N171: 6 | O171: 0 | P171: 0 | Q171: 0 | AB171: 1 | AF171: 0 | AG171: 168 | AH171: 1 | AI171: 1 | AJ171: 1 | AK171: 1 | AL171: 1 | AM171: 1 | AN171: 6 | AO171: 0 | AP171: 0 | AQ171: 0 | BA171: 168
G172: 169 | H172: 1 | I172: 1 | J172: 1 | K172: 1 | L172: 1 | M172: 1 | N172: 6 | O172: 0 | P172: 0 | Q172: 0 | AB172: 1 | AF172: 0 | AG172: 169 | AH172: 1 | AI172: 1 | AJ172: 1 | AK172: 1 | AL172: 1 | AM172: 1 | AN172: 6 | AO172: 0 | AP172: 0 | AQ172: 0 | BA172: 169
G173: 170 | H173: 1 | I173: 1 | J173: 1 | K173: 1 | L173: 1 | M173: 1 | N173: 6 | O173: 0 | P173: 0 | Q173: 0 | AB173: 1 | AF173: 0 | AG173: 170 | AH173: 1 | AI173: 1 | AJ173: 1 | AK173: 1 | AL173: 1 | AM173: 1 | AN173: 6 | AO173: 0 | AP173: 0 | AQ173: 0 | BA173: 170
G174: 171 | H174: 1 | I174: 1 | J174: 1 | K174: 1 | L174: 1 | M174: 1 | N174: 6 | O174: 0 | P174: =IF(O174=0,O174,IF(P173+O174>60,P173+O174-60,P173+O174)) -> 0 | Q174: 0 | AB174: 1 | AF174: 0 | AG174: 171 | AH174: 1 | AI174: 1 | AJ174: 1 | AK174: 1 | AL174: 1 | AM174: 1 | AN174: 6 | AO174: 0 | AP174: 0 | AQ174: 0 | BA174: 171
G175: 172 | H175: 1 | I175: 1 | J175: 1 | K175: 1 | L175: 1 | M175: 1 | N175: 6 | O175: 0 | P175: 0 | Q175: 0 | AB175: 1 | AF175: 0 | AG175: 172 | AH175: 1 | AI175: 1 | AJ175: 1 | AK175: 1 | AL175: 1 | AM175: 1 | AN175: 6 | AO175: 0 | AP175: 0 | AQ175: 0 | BA175: 172
G176: 173 | H176: 1 | I176: 1 | J176: 1 | K176: 1 | L176: 1 | M176: 1 | N176: 6 | O176: 0 | P176: 0 | Q176: 0 | AB176: 1 | AF176: 0 | AG176: 173 | AH176: 1 | AI176: 1 | AJ176: 1 | AK176: 1 | AL176: 1 | AM176: 1 | AN176: 6 | AO176: 0 | AP176: 0 | AQ176: 0 | BA176: 173
G177: 174 | H177: 1 | I177: 1 | J177: 1 | K177: 1 | L177: 1 | M177: 1 | N177: 6 | O177: 0 | P177: 0 | Q177: 0 | AB177: 1 | AF177: 0 | AG177: 174 | AH177: 1 | AI177: 1 | AJ177: 1 | AK177: 1 | AL177: 1 | AM177: 1 | AN177: 6 | AO177: 0 | AP177: 0 | AQ177: 0 | BA177: 174
G178: 175 | H178: 1 | I178: 1 | J178: 1 | K178: 1 | L178: 1 | M178: 1 | N178: 6 | O178: 0 | P178: 0 | Q178: 0 | AB178: 1 | AF178: 0 | AG178: 175 | AH178: 1 | AI178: 1 | AJ178: 1 | AK178: 1 | AL178: 1 | AM178: 1 | AN178: 6 | AO178: 0 | AP178: 0 | AQ178: 0 | BA178: 175
G179: 176 | H179: 1 | I179: 1 | J179: 1 | K179: 1 | L179: 1 | M179: 1 | N179: 6 | O179: 0 | P179: 0 | Q179: 0 | AB179: 1 | AF179: 0 | AG179: 176 | AH179: 1 | AI179: 1 | AJ179: 1 | AK179: 1 | AL179: 1 | AM179: 1 | AN179: 6 | AO179: 0 | AP179: 0 | AQ179: 0 | BA179: 176
G180: 177 | H180: 1 | I180: 1 | J180: 1 | K180: 1 | L180: 1 | M180: 1 | N180: 6 | O180: 0 | P180: 0 | Q180: 0 | AB180: 1 | AF180: 0 | AG180: 177 | AH180: 1 | AI180: 1 | AJ180: 1 | AK180: 1 | AL180: 1 | AM180: 1 | AN180: 6 | AO180: 0 | AP180: 0 | AQ180: 0 | BA180: 177
G181: 178 | H181: 1 | I181: 1 | J181: 1 | K181: 1 | L181: =IF($A$9="",0,IF(SUM($A$7:$A$10)*12-G181<0,1,0)) -> 1 | M181: 1 | N181: 6 | O181: 0 | P181: 0 | Q181: 0 | AB181: 1 | AF181: 0 | AG181: 178 | AH181: 1 | AI181: 1 | AJ181: 1 | AK181: 1 | AL181: =IF($A$9="",0,IF(SUM($A$7:$A$10)*12-AG181<0,1,0)) -> 1 | AM181: 1 | AN181: 6 | AO181: 0 | AP181: 0 | AQ181: 0 | BA181: 178
G182: 179 | H182: 1 | I182: 1 | J182: 1 | K182: 1 | L182: 1 | M182: 1 | N182: 6 | O182: 0 | P182: 0 | Q182: 0 | AB182: 1 | AF182: 0 | AG182: 179 | AH182: 1 | AI182: 1 | AJ182: 1 | AK182: 1 | AL182: 1 | AM182: 1 | AN182: 6 | AO182: 0 | AP182: 0 | AQ182: 0 | BA182: 179
G183: 180 | H183: 1 | I183: 1 | J183: 1 | K183: 1 | L183: 1 | M183: 1 | N183: 6 | O183: 0 | P183: 0 | Q183: 0 | AB183: 1 | AF183: 0 | AG183: 180 | AH183: 1 | AI183: 1 | AJ183: 1 | AK183: 1 | AL183: 1 | AM183: 1 | AN183: 6 | AO183: 0 | AP183: 0 | AQ183: 0 | BA183: 180
G184: 181 | H184: 1 | I184: 1 | J184: 1 | K184: 1 | L184: 1 | M184: 1 | N184: 6 | O184: 0 | P184: 0 | Q184: 0 | AB184: 1 | AF184: 0 | AG184: 181 | AH184: 1 | AI184: 1 | AJ184: 1 | AK184: 1 | AL184: 1 | AM184: 1 | AN184: 6 | AO184: 0 | AP184: 0 | AQ184: 0 | BA184: 181
G185: 182 | H185: 1 | I185: 1 | J185: 1 | K185: 1 | L185: 1 | M185: 1 | N185: 6 | O185: 0 | P185: 0 | Q185: 0 | AB185: 1 | AF185: 0 | AG185: 182 | AH185: 1 | AI185: 1 | AJ185: 1 | AK185: 1 | AL185: 1 | AM185: 1 | AN185: 6 | AO185: 0 | AP185: 0 | AQ185: 0 | BA185: 182
G186: 183 | H186: 1 | I186: 1 | J186: 1 | K186: 1 | L186: 1 | M186: 1 | N186: 6 | O186: 0 | P186: 0 | Q186: 0 | AB186: 1 | AF186: 0 | AG186: 183 | AH186: 1 | AI186: 1 | AJ186: 1 | AK186: 1 | AL186: 1 | AM186: 1 | AN186: 6 | AO186: 0 | AP186: 0 | AQ186: 0 | BA186: 183
G187: 184 | H187: 1 | I187: 1 | J187: 1 | K187: 1 | L187: 1 | M187: 1 | N187: 6 | O187: 0 | P187: 0 | Q187: 0 | AB187: 1 | AF187: 0 | AG187: 184 | AH187: 1 | AI187: 1 | AJ187: 1 | AK187: 1 | AL187: 1 | AM187: 1 | AN187: 6 | AO187: 0 | AP187: 0 | AQ187: 0 | BA187: 184
G188: 185 | H188: 1 | I188: 1 | J188: 1 | K188: 1 | L188: 1 | M188: 1 | N188: 6 | O188: 0 | P188: 0 | Q188: 0 | AB188: 1 | AF188: 0 | AG188: 185 | AH188: 1 | AI188: 1 | AJ188: 1 | AK188: 1 | AL188: 1 | AM188: 1 | AN188: 6 | AO188: 0 | AP188: 0 | AQ188: 0 | BA188: 185
G189: 186 | H189: 1 | I189: 1 | J189: 1 | K189: 1 | L189: 1 | M189: 1 | N189: 6 | O189: 0 | P189: 0 | Q189: 0 | AB189: 1 | AF189: 0 | AG189: 186 | AH189: 1 | AI189: 1 | AJ189: 1 | AK189: 1 | AL189: 1 | AM189: 1 | AN189: 6 | AO189: 0 | AP189: 0 | AQ189: 0 | BA189: 186
G190: 187 | H190: 1 | I190: 1 | J190: 1 | K190: 1 | L190: 1 | M190: 1 | N190: 6 | O190: 0 | P190: 0 | Q190: 0 | AB190: 1 | AF190: 0 | AG190: 187 | AH190: 1 | AI190: 1 | AJ190: 1 | AK190: 1 | AL190: 1 | AM190: 1 | AN190: 6 | AO190: 0 | AP190: 0 | AQ190: 0 | BA190: 187
G191: 188 | H191: 1 | I191: 1 | J191: 1 | K191: 1 | L191: 1 | M191: 1 | N191: 6 | O191: 0 | P191: 0 | Q191: 0 | AB191: 1 | AF191: 0 | AG191: 188 | AH191: 1 | AI191: 1 | AJ191: 1 | AK191: 1 | AL191: 1 | AM191: 1 | AN191: 6 | AO191: 0 | AP191: 0 | AQ191: 0 | BA191: 188
G192: 189 | H192: 1 | I192: 1 | J192: 1 | K192: 1 | L192: 1 | M192: 1 | N192: 6 | O192: 0 | P192: 0 | Q192: 0 | AB192: 1 | AF192: 0 | AG192: 189 | AH192: 1 | AI192: 1 | AJ192: 1 | AK192: 1 | AL192: 1 | AM192: 1 | AN192: 6 | AO192: 0 | AP192: 0 | AQ192: 0 | BA192: 189
G193: 190 | H193: 1 | I193: 1 | J193: 1 | K193: 1 | L193: 1 | M193: =IF($A$9="",0,IF(SUM($A$7:$A$11)*12-G193<0,1,0)) -> 1 | N193: 6 | O193: 0 | P193: 0 | Q193: 0 | AB193: 1 | AF193: 0 | AG193: 190 | AH193: 1 | AI193: 1 | AJ193: 1 | AK193: 1 | AL193: 1 | AM193: =IF($A$9="",0,IF(SUM($A$7:$A$11)*12-AG193<0,1,0)) -> 1 | AN193: 6 | AO193: 0 | AP193: 0 | AQ193: 0 | BA193: 190
G194: 191 | H194: 1 | I194: 1 | J194: 1 | K194: 1 | L194: 1 | M194: 1 | N194: 6 | O194: 0 | P194: 0 | Q194: 0 | AB194: 1 | AF194: 0 | AG194: 191 | AH194: 1 | AI194: 1 | AJ194: 1 | AK194: 1 | AL194: 1 | AM194: 1 | AN194: 6 | AO194: 0 | AP194: 0 | AQ194: 0 | BA194: 191
G195: 192 | H195: 1 | I195: 1 | J195: 1 | K195: 1 | L195: 1 | M195: 1 | N195: 6 | O195: 0 | P195: 0 | Q195: 0 | AB195: 1 | AF195: 0 | AG195: 192 | AH195: 1 | AI195: 1 | AJ195: 1 | AK195: 1 | AL195: 1 | AM195: 1 | AN195: 6 | AO195: 0 | AP195: 0 | AQ195: 0 | BA195: 192
G196: 193 | H196: 1 | I196: 1 | J196: 1 | K196: 1 | L196: 1 | M196: 1 | N196: 6 | O196: 0 | P196: 0 | Q196: 0 | T196: =IF(S196="","",IF(S197="",IF(Z195<0,"",Z195+W196),IF(Q196=2,MIN(U196:V196),IF(P196>1,T195,IF(S196=S195,T195,U196))))) ->  | AB196: =IF(B$15*12<G196,1,"") -> 1 | AC196: =IF(AB196=1,Y196,"") ->  | AF196: 0 | AG196: 193 | AH196: 1 | AI196: 1 | AJ196: 1 | AK196: 1 | AL196: 1 | AM196: 1 | AN196: 6 | AO196: 0 | AP196: 0 | AQ196: 0 | AV196: =IF(S196="","",IF(AE196=1,0,INT(AY195*AR196/12))) ->  | AX196: =IF(S196="","",IF(AE196=1,0,AS196-AV196)) ->  | AY196: =IF(S196="","",IF(AX196=0,IF(AF195=0,AY195-$B$16*10000,AY195-AX196),AY195-AX196)) ->  | BA196: 193 | BB196: =IFERROR(_xlfn.XLOOKUP(BA196,AG$4:AG$603,AS$4:AS$603),"") -> 
G197: 194 | H197: 1 | I197: 1 | J197: 1 | K197: 1 | L197: 1 | M197: 1 | N197: =SUM(H197:M197) -> 6 | O197: =IF(N197=1,IF(E$7=1,1,0),IF(N197=2,IF(E$8=1,1,0),IF(N197=3,IF(E$9=1,1,0),IF(N197=4,IF(E$10=1,1,0),IF(N197=5,IF(E$11=1,1,0),IF(N197=6,IF(E$12=1,1,0),0)))))) -> 0 | P197: 0 | Q197: 0 | R197: =IF(N197=1,C$7,IF(N197=2,C$8,IF(N197=3,C$9,IF(N197=4,C$10,IF(N197=5,C$11,IF(N197=6,$C$12,0)))))) ->  | S197: =IF($B$4*12+D$4>=G197,R197,"") ->  | U197: =IF(Z196="","",IF(Z196>0,INT(PMT(S197/12,B$4*12+D$4-G196,-Z196,)),"")) ->  | W197: =IF(S197="","",INT(Z196*S197/12)) ->  | Y197: =IF(S197="","",IF(X197="",T197-W197,0)) ->  | Z197: =IF(S197="","",Z196-Y197) ->  | AB197: 1 | AD197: =IF(AC197="","",IF(AC197=0,"",IF(AD196="",0,AD196)+AC197)) ->  | AE197: =IF(AD197="","",IF(B$16*10000>=AD197,1,0)) ->  | AF197: =IF(AE197=1,AC197,0) -> 0 | AG197: 194 | AH197: 1 | AI197: 1 | AJ197: 1 | AK197: 1 | AL197: 1 | AM197: 1 | AN197: =SUM(AH197:AM197) -> 6 | AO197: =IF(AN197=1,IF(E$7=1,1,0),IF(AN197=2,IF(E$8=1,1,0),IF(AN197=3,IF(E$9=1,1,0),IF(AN197=4,IF(E$10=1,1,0),IF(AN197=5,IF(E$11=1,1,0),IF(AN197=6,IF(E$12=1,1,0),0)))))) -> 0 | AP197: 0 | AQ197: 0 | AR197: =IF(S197="","",_xlfn.XLOOKUP(AG197,G$4:G$604,S$4:S$604)) ->  | BA197: 194 | BC197: =IFERROR(_xlfn.XLOOKUP(BA197,AG$4:AG$603,AY$4:AY$603),"") -> 
G198: 195 | H198: 1 | I198: 1 | J198: 1 | K198: 1 | L198: 1 | M198: 1 | N198: 6 | O198: 0 | P198: 0 | Q198: =IF(P197>0,IF(P198=1,IF(U197-T197>100,2,1),IF(P198>0,1,0)),0) -> 0 | V198: =IF(S198="","",INT(T197*1.25)) ->  | X198: =IF(T198="","",IF(T198>W198,"",W198-T198)) ->  | AB198: 1 | AF198: 0 | AG198: =AG197+IF(AE198=1,0,1) -> 195 | AH198: 1 | AI198: 1 | AJ198: 1 | AK198: 1 | AL198: 1 | AM198: 1 | AN198: 6 | AO198: 0 | AP198: =IF(AO198=0,AO198,IF(AP197+AO198>60,AP197+IF(AE197>0,1,AO198)-60,AP197+IF(AE197>0,1,AO198))) -> 0 | AQ198: =IF(AP197>0,IF(AP198=1,IF(AT197-AS197>100,2,1),IF(AP198>0,1,0)),0) -> 0 | AT198: =IF(AY197="","",IF(AY197>0,INT(PMT(AR198/12,B$4*12+D$4-AG197-IF(AE198="",0,AE$3),-AY197,)),"")) ->  | AU198: =IF(AR198="","",INT(AS197*1.25)) ->  | AW198: =IF(AS198="","",IF(AS198>AV198,"",AV198-AS198)) ->  | BA198: 195
G199: 196 | H199: 1 | I199: 1 | J199: 1 | K199: 1 | L199: 1 | M199: 1 | N199: 6 | O199: 0 | P199: 0 | Q199: 0 | AB199: 1 | AF199: 0 | AG199: 196 | AH199: 1 | AI199: 1 | AJ199: 1 | AK199: 1 | AL199: 1 | AM199: 1 | AN199: 6 | AO199: 0 | AP199: 0 | AQ199: 0 | BA199: 196
G200: 197 | H200: 1 | I200: 1 | J200: 1 | K200: 1 | L200: 1 | M200: 1 | N200: 6 | O200: 0 | P200: 0 | Q200: 0 | AB200: 1 | AF200: 0 | AG200: 197 | AH200: 1 | AI200: 1 | AJ200: 1 | AK200: 1 | AL200: 1 | AM200: 1 | AN200: 6 | AO200: 0 | AP200: 0 | AQ200: 0 | AS200: =IF(AR200="","",IF(AR201="",IF(AY199<0,"",AY199+AV200),IF(AQ200=2,MIN(AT200:AU200),IF(AP200>1,AS199,IF(AR200=AR199,AS199,AT200))))) ->  | BA200: 197
... 362 more rows

Sheet 1-2 (hidden)
H1: 金利判定 | O1: 5年ルール | R1: 金利 | S1: 適用金利 | T1: 毎月返済額 | W1: 利息 | X1: 未収利息 | Y1: 元金 | Z1: 残高 | AB1: 繰上あり | AC1: 元金 | AD1: 累計 | AE1: 判定 | AF1: 繰上判定 | AG1: 繰上後 | AH1: 金利判定 | AO1: 5年ルール | AR1: 適用金利 | AS1: 毎月返済額 | AV1: 利息 | AW1: 未収利息 | AX1: 元金返済 | AY1: 残高 | BA1: 繰上返済後
B2: =住宅ローン!J16 -> 0 | C2: =住宅ローン!T14 -> 0 | D2: =住宅ローン!U14 -> 0 | H2: 金利変更 | U2: 単純計算 | V2: 1.25倍 | AH2: 金利変更 | AT2: 単純計算 | AU2: 1.25倍 | BB2: 毎月返済額 | BC2: 残高 | BF2: 毎月返済額 | BH2: 残高 | BJ2: =住宅ローン控除!E19*10000 -> 0 | BK2: 繰上 | BP2: 2019
A3: 借入金額 | B3: =住宅ローン!G16/10000 -> 0 | C3: 万円 | H3: 初 | I3: 2 | J3: 3 | K3: 4 | L3: 5 | M3: 6 | N3: 合計 | O3: 変動 | P3: 経過月数 | Q3: 判定 | T3: =SUM(T4:T603) -> 0 | W3: =SUM(W4:W423) -> 0 | X3: =SUM(X4:X423) -> 0 | Z3: =B3*10000 -> 0 | AE3: =SUM(AE4:AE423) -> 0 | AF3: =SUM(AF4:AF423) -> 0 | AH3: 初 | AI3: 2 | AJ3: 3 | AK3: 4 | AL3: 5 | AM3: 6 | AN3: 合計 | AO3: 変動 | AP3: 経過月数 | AQ3: 判定 | AV3: =SUM(AV4:AV423) -> 0 | AW3: =SUM(AW4:AW423) -> 0 | AY3: =Z3 -> 0 | BF3: 繰上なし | BG3: 繰上あり | BH3: 繰上なし | BI3: 繰上あり | BJ3: 税金 | BK3: 税金 | BL3: 減税期間 | BM3: 経過期間 | BN3: 残存期間 | BP3: 2020
A4: 借入期間 | B4: =住宅ローン!H16 -> 0 | C4: 年 | D4: =住宅ローン!I16 -> 0 | E4: カ月 | G4: 1 | H4: 1 | N4: =SUM(H4:M4) -> 1 | O4: =IF(N4=1,IF(E$7=1,1,0),IF(N4=2,IF(E$8=1,1,0),IF(N4=3,IF(E$9=1,1,0),IF(N4=4,IF(E$10=1,1,0),IF(N4=5,IF(E$11=1,1,0),IF(N4=6,IF(E$12=1,1,0),0)))))) -> 0 | P4: =IF(O4=0,O4,1) -> 0 | Q4: =E7 -> 0 | R4: =IF(N4=1,C$7,IF(N4=2,C$8,IF(N4=3,C$9,IF(N4=4,C$10,IF(N4=5,C$11,IF(N4=6,$C$12,0)))))) -> 0 | S4: =IF($B$4*12+D$4>=G4,R4,"") ->  | T4: =U4 ->  | U4: =IF(Z3="","",IF(Z3>0,INT(PMT(S4/12,B$4*12+D$4-G3,-Z3,)),"")) ->  | W4: =IF(S4="","",INT(Z3*S4/12)) ->  | X4: =IF(T4="","",IF(T4>W4,"",W4-T4)) ->  | Y4: =IF(S4="","",IF(X4="",T4-W4,0)) ->  | Z4: =IF(S4="","",Z3-Y4) ->  | AB4: =IF(B$15*12<G4,1,"") -> 1 | AC4: =IF(AB4=1,Y4,"") ->  | AD4: =IF(AC4="","",IF(AC4=0,"",IF(AD3="",0,AD3)+AC4)) ->  | AE4: =IF(AD4="","",IF(B$16*10000>=AD4,1000,)) ->  | AF4: =IF(B15*12=G4,AF3,IF(AE4=1,AC4,0)) -> 0 | AG4: =G4 -> 1 | AH4: 1 | AN4: =SUM(AH4:AM4) -> 1 | AO4: =IF(AN4=1,IF(E$7=1,1,0),IF(AN4=2,IF(E$8=1,1,0),IF(AN4=3,IF(E$9=1,1,0),IF(AN4=4,IF(E$10=1,1,0),IF(AN4=5,IF(E$11=1,1,0),IF(AN4=6,IF(E$12=1,1,0),0)))))) -> 0 | AP4: =IF(AO4=0,AO4,1) -> 0 | AQ4: =E7 -> 0 | AR4: =IF(S4="","",_xlfn.XLOOKUP(AG4,G$4:G$604,S$4:S$604)) ->  | AS4: =IF(AR4="","",IF(AR5="",IF(AY3<0,"",AY3+AV4),IF(AQ4=2,MIN(AT4:AU4),IF(AP4>1,AS3,IF(AR4=AR3,AS3,AT4))))) ->  | AT4: =IF(AY3="","",IF(AY3>0,INT(PMT(AR4/12,B$4*12+D$4-AG3,-AY3,)),"")) ->  | AV4: =IF(S4="","",IF(AE4=1,0,INT(AY3*AR4/12))) ->  | AX4: =IF(S4="","",IF(AE4=1,0,AS4-AV4)) ->  | AY4: =IF(S4="","",IF(AX4=0,IF(AF3=0,AY3-$B$16*10000,AY3-AX4),AY3-AX4)) ->  | BA4: 1 | BB4: =IFERROR(_xlfn.XLOOKUP(BA4,AG$4:AG$603,AS$4:AS$603),"") ->  | BC4: =IFERROR(_xlfn.XLOOKUP(BA4,AG$4:AG$603,AY$4:AY$603),"") ->  | BE4: 1 | BF4: =SUM(T4:T15)+IF(BF5=0,IF(BF6=0,0,X$3),0) -> 0 | BG4: =SUM(BB4:BB15) -> 0 | BH4: =IF(_xlfn.XLOOKUP(BE4*12,G$4:G$603,Z$4:Z$603)="",0,_xlfn.XLOOKUP(BE4*12,G$4:G$603,Z$4:Z$603)) -> 0 | BI4: =IF(_xlfn.XLOOKUP(BE4*12,BA$4:BA$603,BC$4:BC$603)="",0,_xlfn.XLOOKUP(BE4*12,BA$4:BA$603,BC$4:BC$603)) -> 0 | BJ4: =IFERROR(IF(BN$4-BE4<0,0,INT(IF(BH4>BJ2,BJ2,BH4)*IF(お客様情報1!$E$95>2020,1%,0.7%)))+MIN(BR4:BS4),0) -> 0 | BK4: =IFERROR(IF(BN$4-BE4<0,0,INT(IF(BI4>BJ$2,BJ$2,BI4)*IF(お客様情報1!$E$95>2020,1%,0.7%)))+MIN(BR4,BT4),0) -> 0 | BL4: =IF(お客様情報1!E95<2014,0,IF(お客様情報1!E95<2021,10,13)) -> 0 | BM4: =YEAR(TODAY())-お客様情報1!E95 -> 2024 | BN4: =BL4-BM4+1 -> -2023 | BO4: =YEAR(TODAY())-お客様情報1!E95 -> 2024 | BP4: =IF(お客様情報1!E$95=BP$2,1,IF(お客様情報1!E$95=BP$3,1,0)) -> 0 | BQ4: =IF(BO4>10,IF(BO4>13,0,1),0) -> 0 | BR4: =(IF(お客様情報1!E$93="戸建て",お客様情報1!E$101,お客様情報1!E$99)*2%*BQ4*10000/3) -> 0 | BS4: =IFERROR(INT(IF(BH4>BJ2,BJ2,BH4)*IF(お客様情報1!$E$95>2020,1%,0.7%))*BQ4,0) -> 0 | BT4: =IFERROR(INT(IF(BI4>BJ2,BJ2,BI4)*IF(お客様情報1!$E$95>2020,1%,0.7%))*BQ4,0) -> 0
